Workbook

Sheet Sample Report (hidden)
A2: Date
A3: Hen
A4: Program
A5: Start at 999999
A6: Sequence component 1 | B6: Time 1 | C6: Seqeunce Component 2 | D6: Time 2 | E6: Seqeunce Component 3 | F6: Time 3 | G6: Correct 0 = No 1=Yes | J6: Seqeunce | K6: Time
A7: 12 | B7: 7 | C7: 12 | D7: 42 | E7: 13 | F7: 18 | G7: if 77 new line, if 31 or 41 = yes new line on 77, | J7: =string of Seqeunce compponent 1, 2 & 3 | K7: =time 3
A8: This continues until ther is a 1 on its own to indicate start of summary data
J9: 10-19 =1
A10: Summary Data | J10: 20-29 =2
A11: Correct | B11: Incorrect | C11: Rft | D11: total | E11: Av Correct | F11: Av Incorrect | G11: Percent correct | H11: Time | J11: in this example the seqeunce would be 111
A12: 40 | B12: 33 | C12: 40 | D12: 73 | E12: 23.95 | F12: 15 | G12: 54 | H12: 806

Sheet Summary
A2: Day | B2: Date | C2: Average Response Rate | D2: Target % | E2: RF for non correct sequence | F2: U Value | K2: Block 1 | L2: Block 2 | M2: Block 3 | N2: Block 4 | O2: Block 5 | P2: Block 6
A3: 1 | B3: ='!LB04A45.. d'!B2:C2 -> <date> | C3: =('!LB04A45.. d'!H174/60)/'!LB04A45.. d'!Q3 -> 2.366071429 | D3: ='!LB04A45.. d'!N28/'!LB04A45.. d'!Q3 -> 0.005952380952 | E3: =SUM('!LB04A45.. d'!L28:Q28)/'!LB04A45.. d'!Q3 -> 7.017857143 | F3: ='!LB04A45.. d'!Q24 -> 0.3394506387 | J3: Average Response Rate | K3: =AVERAGE(C3:C7) -> 2.362989178 | L3: =AVERAGE(C8:C12) -> 2.249164121 | M3: =AVERAGE(C13:C17) -> 2.33156745 | N3: =AVERAGE(C18:C22) -> 2.372607309 | O3: =AVERAGE(C23:C27) -> 2.371350625 | P3: =AVERAGE(C28:C32) -> 2.345871672
A4: 2 | B4: ='!LB05945.. d'!B2:C2 -> <date> | C4: =('!LB05945.. d'!H176/60)/'!LB05945.. d'!Q3 -> 2.343137255 | D4: ='!LB05945.. d'!N28/'!LB05945.. d'!Q3 -> 0.01176470588 | E4: =SUM('!LB05945.. d'!L28:Q28)/'!LB05945.. d'!Q3 -> 12.76470588 | F4: ='!LB05945.. d'!Q24 -> 0.3008013667 | J4: Target % | K4: =AVERAGE(D3:D7) -> 0.003543417367 | L4: =AVERAGE(D8:D12) -> 0.002367195434 | M4: =AVERAGE(D13:D17) -> 0 | N4: =AVERAGE(D18:D22) -> 0.001162790698 | O4: =AVERAGE(D23:D27) -> 0 | P4: =AVERAGE(D28:D32) -> 0
A5: 3 | B5: ='!LB06945.. d'!B2:C2 -> <date> | C5: =('!LB06945.. d'!H178/60)/'!LB06945.. d'!Q3 -> 2.31375969 | D5: ='!LB06945.. d'!N28/'!LB06945.. d'!Q3 -> 0 | E5: =SUM('!LB06945.. d'!L28:Q28)/'!LB06945.. d'!Q3 -> 12.60465116 | F5: ='!LB06945.. d'!Q24 -> 0.2498481819 | J5: CCRF | K5: =AVERAGE(E3:E7) -> 10.54313358 | L5: =AVERAGE(E8:E12) -> 12.62742547 | M5: =AVERAGE(E13:E17) -> 9.416305503 | N5: =AVERAGE(E18:E22) -> 9.406625061 | O5: =AVERAGE(E23:E27) -> 13.88808636 | P5: =AVERAGE(E28:E32) -> 12.13267805
A6: 4 | B6: ='!LB07C15.. d'!B2:C2 -> <date> | C6: =('!LB07C15.. d'!H180/60)/'!LB07C15.. d'!Q3 -> 2.287260536 | D6: ='!LB07C15.. d'!N28/'!LB07C15.. d'!Q3 -> 0 | E6: =SUM('!LB07C15.. d'!L28:Q28)/'!LB07C15.. d'!Q3 -> 6.718390805 | F6: ='!LB07C15.. d'!Q24 -> 0.2287048593 | J6: U Value | K6: =AVERAGE(F3:F7) -> 0.2838651335 | L6: =AVERAGE(F8:F12) -> 0.3272973896 | M6: =AVERAGE(F13:F17) -> 0.2888453775 | N6: =AVERAGE(F18:F22) -> 0.2553267668 | O6: =AVERAGE(F23:F27) -> 0.1807859235 | P6: =AVERAGE(F28:F32) -> 0.1543913712
A7: 5 | B7: ='!LB08955.. d'!B2:C2 -> <date> | C7: =('!LB08955.. d'!H164/60)/'!LB08955.. d'!Q3 -> 2.504716981 | D7: ='!LB08955.. d'!N28/'!LB08955.. d'!Q3 -> 0 | E7: =SUM('!LB08955.. d'!L28:Q28)/'!LB08955.. d'!Q3 -> 13.61006289 | F7: ='!LB08955.. d'!Q24 -> 0.3005206206
A8: 6 | B8: ='!LB09A45..Du'!B2:C2 -> <date> | C8: =('!LB09A45..Du'!H69/60)/'!LB09A45..Du'!Q3 -> 2.140740741 | D8: ='!LB09A45..Du'!N28/'!LB09A45..Du'!Q3 -> 0 | E8: =SUM('!LB09A45..Du'!L28:Q28)/'!LB09A45..Du'!Q3 -> 35.6031746 | F8: ='!LB09A45..Du'!Q24 -> 0.3498424607
A9: 7 | B9: ='!LB10A55..Du'!B2:C2 -> <date> | C9: =('!LB10A55..Du'!H173/60)/'!LB10A55..Du'!Q3 -> 2.385628743 | D9: ='!LB10A55..Du'!N28/'!LB10A55..Du'!Q3 -> 0.005988023952 | E9: =SUM('!LB10A55..Du'!L28:Q28)/'!LB10A55..Du'!Q3 -> 13.04790419 | F9: ='!LB10A55..Du'!Q24 -> 0.3315087437 | G9: =K3 -> 2.362989178 | H9: =L3 -> 2.249164121 | I9: 2.33156745 | J9: 2.372607309 | K9: 2.371350625 | L9: 2.345871672 | M9: =K4 -> 0.003543417367 | N9: =L4 -> 0.002367195434 | O9: 0 | P9: 0.001162790698 | Q9: 0 | R9: 0 | S9: =K6 -> 0.2838651335 | T9: =L6 -> 0.3272973896 | U9: 0.2888453775 | V9: 0.2553267668 | W9: 0.1807859235 | X9: 0.1543913712
A10: 8 | B10: ='!LB11A05..Du'!B2:C2 -> <date> | C10: =('!LB11A05..Du'!H177/60)/'!LB11A05..Du'!Q3 -> 2.337816764 | D10: ='!LB11A05..Du'!N28/'!LB11A05..Du'!Q3 -> 0.005847953216 | E10: =SUM('!LB11A05..Du'!L28:Q28)/'!LB11A05..Du'!Q3 -> 7.485380117 | F10: ='!LB11A05..Du'!Q24 -> 0.3007018485 | G10: =STDEV($C3:$C7) -> 0.08462969183 | H10: =STDEV($C8:$C12) -> 0.1174604016 | I10: =STDEV($C13:$C17) -> 0.01849147516 | J10: =STDEV($C18:$C22) -> 0.0794558246 | K10: =STDEV($C23:$C27) -> 0.1277377928 | L10: =STDEV($C28:$C32) -> 0.05411712808 | M10: =STDEV($D3:$D7) -> 0.005269253038 | N10: =STDEV($D8:$D12) -> 0.003241794124 | O10: =STDEV($D13:$D17) -> 0 | P10: =STDEV($D18:$D22) -> 0.002600079044 | Q10: =STDEV($D23:$D27) -> 0 | R10: =STDEV($D28:$D32) -> 0 | S10: =STDEV($F3:$F7) -> 0.0443108296 | T10: =STDEV($F8:$F12) -> 0.1054745666 | U10: =STDEV($F13:$F17) -> 0.04129393472 | V10: =STDEV($F18:$F22) -> 0.02072777892 | W10: =STDEV($F23:$F27) -> 0.0224201133 | X10: =STDEV($F28:$F32) -> 0.0301432357
A11: 9 | B11: ='!LB12A05..Du'!B2:C2 -> <date> | C11: =('!LB12A05..Du'!H23/60)/'!LB12A05..Du'!Q3 -> 2.119607843 | D11: ='!LB12A05..Du'!N28/'!LB12A05..Du'!Q3 -> 0 | E11: =SUM('!LB12A05..Du'!L28:Q28)/'!LB12A05..Du'!Q3 -> 0.3529411765 | F11: ='!LB12A05..Du'!Q24 -> 0.4742988725
A12: 10 | B12: ='!LB12A15..Du'!B2:C2 -> <date> | C12: =('!LB12A15..Du'!H181/60)/'!LB12A15..Du'!Q3 -> 2.262026515 | D12: ='!LB12A15..Du'!N28/'!LB12A15..Du'!Q3 -> 0 | E12: =SUM('!LB12A15..Du'!L28:Q28)/'!LB12A15..Du'!Q3 -> 6.647727273 | F12: ='!LB12A15..Du'!Q24 -> 0.1801350226
A13: 11 | B13: ='!LB13A25..Du'!B2:C2 -> <date> | C13: =('!LB13A25..Du'!H177/60)/'!LB13A25..Du'!Q3 -> 2.334210526 | D13: ='!LB13A25..Du'!N28/'!LB13A25..Du'!Q3 -> 0 | E13: =SUM('!LB13A25..Du'!L28:Q28)/'!LB13A25..Du'!Q3 -> 6.830409357 | F13: ='!LB13A25..Du'!Q24 -> 0.2244950756
A14: 12 | B14: ='!LB14B15..Du'!B2:C2 -> <date> | C14: =('!LB14B15..Du'!H178/60)/'!LB14B15..Du'!Q3 -> 2.325484496 | D14: ='!LB14B15..Du'!N28/'!LB14B15..Du'!Q3 -> 0 | E14: =SUM('!LB14B15..Du'!L28:Q28)/'!LB14B15..Du'!Q3 -> 12.66860465 | F14: ='!LB14B15..Du'!Q24 -> 0.2972866724
A15: 13 | B15: ='!LB15A25..Du'!B2:C2 -> <date> | C15: =('!LB15A25..Du'!H177/60)/'!LB15A25..Du'!Q3 -> 2.324756335 | D15: ='!LB15A25..Du'!N28/'!LB15A25..Du'!Q3 -> 0 | E15: =SUM('!LB15A25..Du'!L28:Q28)/'!LB15A25..Du'!Q3 -> 13.26315789 | F15: ='!LB15A25..Du'!Q24 -> 0.2898715572
A16: 14 | B16: ='!LB16A15..Du'!B2:C2 -> <date> | C16: =('!LB16A15..Du'!H179/60)/'!LB16A15..Du'!Q3 -> 2.31194605 | D16: ='!LB16A15..Du'!N28/'!LB16A15..Du'!Q3 -> 0 | E16: =SUM('!LB16A15..Du'!L28:Q28)/'!LB16A15..Du'!Q3 -> 6.757225434 | F16: ='!LB16A15..Du'!Q24 -> 0.2928195378
A17: 15 | B17: ='!LB17A05..Du'!B2:C2 -> <date> | C17: =('!LB17A05..Du'!H175/60)/'!LB17A05..Du'!Q3 -> 2.361439842 | D17: ='!LB17A05..Du'!N28/'!LB17A05..Du'!Q3 -> 0 | E17: =SUM('!LB17A05..Du'!L28:Q28)/'!LB17A05..Du'!Q3 -> 7.562130178 | F17: ='!LB17A05..Du'!Q24 -> 0.3397540444
A18: 16 | B18: ='!LB18A05..Du'!B2:C2 -> <date> | C18: =('!LB18A05..Du'!H176/60)/'!LB18A05..Du'!Q3 -> 2.345294118 | D18: ='!LB18A05..Du'!N28/'!LB18A05..Du'!Q3 -> 0 | E18: =SUM('!LB18A05..Du'!L28:Q28)/'!LB18A05..Du'!Q3 -> 13.40588235 | F18: ='!LB18A05..Du'!Q24 -> 0.2765340715
A19: 17 | B19: ='!LB19C55..Du'!B2:C2 -> <date> | C19: =('!LB19C55..Du'!H178/60)/'!LB19C55..Du'!Q3 -> 2.317151163 | D19: ='!LB19C55..Du'!N28/'!LB19C55..Du'!Q3 -> 0.005813953488 | E19: =SUM('!LB19C55..Du'!L28:Q28)/'!LB19C55..Du'!Q3 -> 6.796511628 | F19: ='!LB19C55..Du'!Q24 -> 0.2684525502
A20: 18 | B20: ='!LB20A15..Du'!B2:C2 -> <date> | C20: =('!LB20A15..Du'!H175/60)/'!LB20A15..Du'!Q3 -> 2.364891519 | D20: ='!LB20A15..Du'!N28/'!LB20A15..Du'!Q3 -> 0 | E20: =SUM('!LB20A15..Du'!L28:Q28)/'!LB20A15..Du'!Q3 -> 6.905325444 | F20: ='!LB20A15..Du'!Q24 -> 0.2489595631
A21: 19 | B21: ='!LB21B05..Du'!B2:C2 -> <date> | C21: =('!LB21B05..Du'!H165/60)/'!LB21B05..Du'!Q3 -> 2.510796646 | D21: ='!LB21B05..Du'!N28/'!LB21B05..Du'!Q3 -> 0 | E21: =SUM('!LB21B05..Du'!L28:Q28)/'!LB21B05..Du'!Q3 -> 7.320754717 | F21: ='!LB21B05..Du'!Q24 -> 0.2595775941
A22: 20 | B22: ='!LB22A45..Du'!B2:C2 -> <date> | C22: =('!LB22A45..Du'!H178/60)/'!LB22A45..Du'!Q3 -> 2.324903101 | D22: ='!LB22A45..Du'!N28/'!LB22A45..Du'!Q3 -> 0 | E22: =SUM('!LB22A45..Du'!L28:Q28)/'!LB22A45..Du'!Q3 -> 12.60465116 | F22: ='!LB22A45..Du'!Q24 -> 0.2231100553
A23: 21 | B23: ='!LB23A45..Du'!B2:C2 -> <date> | C23: =('!LB23A45..Du'!H181/60)/'!LB23A45..Du'!Q3 -> 2.284285714 | D23: ='!LB23A45..Du'!N28/'!LB23A45..Du'!Q3 -> 0 | E23: =SUM('!LB23A45..Du'!L28:Q28)/'!LB23A45..Du'!Q3 -> 6.68 | F23: ='!LB23A45..Du'!Q24 -> 0.1738011371
A24: 22 | B24: ='!LB24A05..Du'!B2:C2 -> <date> | C24: =('!LB24A05..Du'!H133/60)/'!LB24A05..Du'!Q3 -> 2.588713911 | D24: ='!LB24A05..Du'!N28/'!LB24A05..Du'!Q3 -> 0 | E24: =SUM('!LB24A05..Du'!L28:Q28)/'!LB24A05..Du'!Q3 -> 17.82677165 | F24: ='!LB24A05..Du'!Q24 -> 0.2171944516
A25: 23 | B25: ='!LB25955..Du'!B2:C2 -> <date> | C25: =('!LB25955..Du'!H132/60)/'!LB25955..Du'!Q3 -> 2.274206349 | D25: ='!LB25955..Du'!N28/'!LB25955..Du'!Q3 -> 0 | E25: =SUM('!LB25955..Du'!L28:Q28)/'!LB25955..Du'!Q3 -> 17.96825397 | F25: ='!LB25955..Du'!Q24 -> 0.1765792202
A26: 24 | B26: ='!LB26945..Du'!B2:C2 -> <date> | C26: =('!LB26945..Du'!H176/60)/'!LB26945..Du'!Q3 -> 2.339705882 | D26: ='!LB26945..Du'!N28/'!LB26945..Du'!Q3 -> 0 | E26: =SUM('!LB26945..Du'!L28:Q28)/'!LB26945..Du'!Q3 -> 13.40588235 | F26: ='!LB26945..Du'!Q24 -> 0.1804377449
A27: 25 | B27: ='!LB27A55..Du'!B2:C2 -> <date> | C27: =('!LB27A55..Du'!H173/60)/'!LB27A55..Du'!Q3 -> 2.36984127 | D27: ='!LB27A55..Du'!N28/'!LB27A55..Du'!Q3 -> 0 | E27: =SUM('!LB27A55..Du'!L28:Q28)/'!LB27A55..Du'!Q3 -> 13.55952381 | F27: ='!LB27A55..Du'!Q24 -> 0.1559170638
A28: 26 | B28: ='!LB28B05..Du'!B2:C2 -> <date> | C28: =('!LB28B05..Du'!H177/60)/'!LB28B05..Du'!Q3 -> 2.321539961 | D28: ='!LB28B05..Du'!N28/'!LB28B05..Du'!Q3 -> 0 | E28: =SUM('!LB28B05..Du'!L28:Q28)/'!LB28B05..Du'!Q3 -> 13.32748538 | F28: ='!LB28B05..Du'!Q24 -> 0.1909035955
A29: 27 | B29: ='!LB29955..Du'!B2:C2 -> <date> | C29: =('!LB29955..Du'!H176/60)/'!LB29955..Du'!Q3 -> 2.345980392 | D29: ='!LB29955..Du'!N28/'!LB29955..Du'!Q3 -> 0 | E29: =SUM('!LB29955..Du'!L28:Q28)/'!LB29955..Du'!Q3 -> 13.40588235 | F29: ='!LB29955..Du'!Q24 -> 0.1640432001
A30: 28 | B30: ='!LB30955..Du'!B2:C2 -> <date> | C30: =('!LB30955..Du'!H180/60)/'!LB30955..Du'!Q3 -> 2.290613027 | D30: ='!LB30955..Du'!N28/'!LB30955..Du'!Q3 -> 0 | E30: =SUM('!LB30955..Du'!L28:Q28)/'!LB30955..Du'!Q3 -> 6.718390805 | F30: ='!LB30955..Du'!Q24 -> 0.1348266128
A31: 29 | B31: ='!LC01B15..Du'!B2:C2 -> <date> | C31: =('!LC01B15..Du'!H177/60)/'!LC01B15..Du'!Q3 -> 2.336062378 | D31: ='!LC01B15..Du'!N28/'!LC01B15..Du'!Q3 -> 0 | E31: =SUM('!LC01B15..Du'!L28:Q28)/'!LC01B15..Du'!Q3 -> 13.32748538 | F31: ='!LC01B15..Du'!Q24 -> 0.1139659309
A32: 30 | B32: ='!LC02955..Du'!B2:C2 -> <date> | C32: =('!LC02955..Du'!H170/60)/'!LC02955..Du'!Q3 -> 2.435162602 | D32: ='!LC02955..Du'!N28/'!LC02955..Du'!Q3 -> 0 | E32: =SUM('!LC02955..Du'!L28:Q28)/'!LC02955..Du'!Q3 -> 13.88414634 | F32: ='!LC02955..Du'!Q24 -> 0.168217517
B33: ='!LC03A35..Du'!B2:C2 -> <date> | C33: =('!LC03A35..Du'!H178/60)/'!LC03A35..Du'!Q3 -> 2.300867052 | D33: ='!LC03A35..Du'!N28/'!LC03A35..Du'!Q3 -> 0 | E33: =SUM('!LC03A35..Du'!L28:Q28)/'!LC03A35..Du'!Q3 -> 13.17919075 | F33: ='!LC03A35..Du'!Q24 -> 0.1543847642

Sheet Start
F1: Use Folder 51 | H1: Auto Clean Up | J1: Correct sequence
F2: FALSE | H2: TRUE | J2: 2212
A4: Working with Folder | G4: Process All/Or Pick A number: ALL or an integer
A5: F:\Possum Chapter\Raw Data\Dusti\Phase 3 RRLR\ | G5: ALL
A6: Filenames:
A7: !LB04A45.. d | G7: Paint Cells
A8: !LB05945.. d | G8: FALSE
A9: !LB06945.. d
A10: !LB07C15.. d
A11: !LB08955.. d
A12: !LB09A45..Du
A13: !LB10A55..Du
A14: !LB11A05..Du
A15: !LB12A05..Du
A16: !LB12A15..Du
A17: !LB13A25..Du
A18: !LB14B15..Du
A19: !LB15A25..Du
A20: !LB16A15..Du
A21: !LB17A05..Du
A22: !LB18A05..Du
A23: !LB19C55..Du
A24: !LB20A15..Du
A25: !LB21B05..Du
A26: !LB22A45..Du
A27: !LB23A45..Du
A28: !LB24A05..Du
A29: !LB27A55..Du
A30: !LB28B05..Du
A31: !LB25955..Du
A32: !LB26945..Du
A33: !LB29955..Du
A34: !LB30955..Du
A35: !LC01B15..Du
A36: !LC02955..Du
A37: !LC03A35..Du

Sheet !LB04A45.. d
A1: Report for:!LB04A45.. d
A2: Date: | B2: <date>
A3: Hen: | B3: <hen> | F3: Correct Sequence | G3: =Start!J2 -> 2212 | P3: Total Sequences in Data | Q3: =4994-COUNTBLANK(L7:L5000) -> 168 | V3: Total Sequences in Block Data | W3: =COUNTA(L7:L34) -> 28 | AA3: Total Sequences in Block Data | AB3: =COUNTA(L35:L62) -> 28 | AF3: Total Sequences in Block Data | AG3: =COUNTA(L63:L90) -> 28 | AK3: Total Sequences in Block Data | AL3: =COUNTA(L91:L118) -> 28 | AP3: Total Sequences in Block Data | AQ3: =COUNTA(L119:L146) -> 28 | AU3: Total Sequences in Block Data | AV3: =COUNTA(L147:L174) -> 28
P4: Total Sequences in Summary | Q4: =SUM(O7:O22) -> 168 | V4: Total Sequences in Block Summary | W4: =SUM(U7:U22) -> 28 | AA4: Total Sequences in Block Summary | AB4: =SUM(Z7:Z22) -> 28 | AF4: Total Sequences in Block Summary | AG4: =SUM(AE7:AE22) -> 28 | AK4: Total Sequences in Block Summary | AL4: =SUM(AJ7:AJ22) -> 28 | AP4: Total Sequences in Block Summary | AQ4: =SUM(AO7:AO22) -> 28 | AU4: Total Sequences in Block Summary | AV4: =SUM(AT7:AT22) -> 28
T5: Block 1 | Y5: Block 2 | AD5: Block 3 | AI5: Block 4 | AN5: Block 5 | AS5: Block 6
A6: Sequence Component 1 | B6: Time 1 | C6: Sequence Component 2 | D6: Time 2 | E6: Sequence Component 3 | F6: Time 3 | G6: Sequence Component 4 | H6: Time 4 | I6: Sequence Component 5 | J6: Time 5 | K6: Correct? 0=No 1=Yes | L6: Sequence | N6: Frequency | P6: Relative Frequency | Q6: Variability | T6: Frequency | V6: Relative Frequency | W6: Variability | Y6: Frequency | AA6: Relative Frequency | AB6: Variability | AD6: Frequency | AF6: Relative Frequency | AG6: Variability | AI6: Frequency | AK6: Relative Frequency | AL6: Variability | AN6: Frequency | AP6: Relative Frequency | AQ6: Variability | AS6: Frequency | AU6: Relative Frequency | AV6: Variability
A7: 12 | B7: 15 | C7: 23 | D7: 28 | E7: 24 | F7: 35 | G7: 23 | H7: 45 | K7: 0 | L7: 1222 | N7: 1111 | O7: =COUNTIF($L$7:$L$500,N7) -> 33 | P7: =O7/$Q$4 -> 0.1964285714 | Q7: =IF(P7=0,0,(P7*((LOG(P7))/LOG(2)))) -> -0.4611992203 | T7: =N7 -> 1111 | U7: =COUNTIF(L7:L34,T7) -> 2 | V7: =U7/(W4-U20) -> 0.07142857143 | W7: =IF(V7=0,0,(V7*((LOG(V7))/LOG(2)))) -> -0.271953923 | Y7: =N7 -> 1111 | Z7: =COUNTIF(L35:L62,Y7) -> 3 | AA7: =Z7/(AB4-Z20) -> 0.1111111111 | AB7: =IF(AA7=0,0,(AA7*((LOG(AA7))/LOG(2)))) -> -0.352213889 | AD7: =N7 -> 1111 | AE7: =COUNTIF(L63:L90,AD7) -> 5 | AF7: =AE7/(AG4-AE20) -> 0.1785714286 | AG7: =IF(AF7=0,0,(AF7*((LOG(AF7))/LOG(2)))) -> -0.4438262191 | AI7: =N7 -> 1111 | AJ7: =COUNTIF(L91:L118,AI7) -> 11 | AK7: =AJ7/(AL4-AJ20) -> 0.3928571429 | AL7: =IF(AK7=0,0,(AK7*((LOG(AK7))/LOG(2)))) -> -0.5295412978 | AN7: =N7 -> 1111 | AO7: =COUNTIF(L119:L146,AN7) -> 7 | AP7: =AO7/(AQ4-AO20) -> 0.25 | AQ7: =IF(AP7=0,0,(AP7*((LOG(AP7))/LOG(2)))) -> -0.5 | AS7: =N7 -> 1111 | AT7: =COUNTIF(L147:L174,AS7) -> 5 | AU7: =AT7/(AV4-AT20) -> 0.1785714286 | AV7: =IF(AU7=0,0,(AU7*((LOG(AU7))/LOG(2)))) -> -0.4438262191
A8: 21 | B8: 140 | C8: 21 | D8: 152 | E8: 11 | F8: 163 | G8: 12 | H8: 169 | K8: 0 | L8: 2211 | N8: 1112 | O8: 1 | P8: 0.005952380952 | Q8: -0.04400188942 | T8: 1112 | U8: =COUNTIF(L7:L34,T8) -> 1 | V8: =U8/(W4-U20) -> 0.03571428571 | W8: -0.1716912472 | Y8: 1112 | Z8: =COUNTIF(L35:L62,Y8) -> 0 | AA8: =Z8/(AB4-Z20) -> 0 | AB8: 0 | AD8: 1112 | AE8: =COUNTIF(L63:L90,AD8) -> 0 | AF8: =AE8/(AG4-AE20) -> 0 | AG8: 0 | AI8: 1112 | AJ8: =COUNTIF(L91:L118,AI8) -> 0 | AK8: =AJ8/(AL4-AJ20) -> 0 | AL8: 0 | AN8: 1112 | AO8: =COUNTIF(L119:L146,AN8) -> 0 | AP8: =AO8/(AQ4-AO20) -> 0 | AQ8: 0 | AS8: 1112 | AT8: =COUNTIF(L147:L174,AS8) -> 0 | AU8: =AT8/(AV4-AT20) -> 0 | AV8: 0
A9: 12 | B9: 266 | C9: 23 | D9: 281 | E9: 24 | F9: 288 | G9: 23 | H9: 289 | K9: 0 | L9: 1222 | N9: 1121 | O9: 0 | P9: 0 | Q9: 0 | T9: 1121 | U9: =COUNTIF(L7:L34,T9) -> 0 | V9: =U9/(W4-U20) -> 0 | W9: 0 | Y9: 1121 | Z9: =COUNTIF(L35:L62,Y9) -> 0 | AA9: =Z9/(AB4-Z20) -> 0 | AB9: 0 | AD9: 1121 | AE9: =COUNTIF(L63:L90,AD9) -> 0 | AF9: =AE9/(AG4-AE20) -> 0 | AG9: 0 | AI9: 1121 | AJ9: =COUNTIF(L91:L118,AI9) -> 0 | AK9: =AJ9/(AL4-AJ20) -> 0 | AL9: 0 | AN9: 1121 | AO9: =COUNTIF(L119:L146,AN9) -> 0 | AP9: =AO9/(AQ4-AO20) -> 0 | AQ9: 0 | AS9: 1121 | AT9: =COUNTIF(L147:L174,AS9) -> 0 | AU9: =AT9/(AV4-AT20) -> 0 | AV9: 0
A10: 12 | B10: 384 | C10: 23 | D10: 402 | E10: 24 | F10: 409 | G10: 23 | H10: 411 | K10: 0 | L10: 1222 | N10: 1122 | O10: 5 | P10: 0.02976190476 | Q10: -0.1509044443 | T10: 1122 | U10: =COUNTIF(L7:L34,T10) -> 3 | V10: =U10/(W4-U20) -> 0.1071428571 | W10: -0.3452563309 | Y10: 1122 | Z10: =COUNTIF(L35:L62,Y10) -> 2 | AA10: =Z10/(AB4-Z20) -> 0.07407407407 | AB10: -0.278139815 | AD10: 1122 | AE10: =COUNTIF(L63:L90,AD10) -> 0 | AF10: =AE10/(AG4-AE20) -> 0 | AG10: 0 | AI10: 1122 | AJ10: =COUNTIF(L91:L118,AI10) -> 0 | AK10: =AJ10/(AL4-AJ20) -> 0 | AL10: 0 | AN10: 1122 | AO10: =COUNTIF(L119:L146,AN10) -> 0 | AP10: =AO10/(AQ4-AO20) -> 0 | AQ10: 0 | AS10: 1122 | AT10: =COUNTIF(L147:L174,AS10) -> 0 | AU10: =AT10/(AV4-AT20) -> 0 | AV10: 0
A11: 12 | B11: 509 | C11: 23 | D11: 521 | E11: 24 | F11: 526 | G11: 23 | H11: 532 | K11: 0 | L11: 1222 | N11: 1211 | O11: 0 | P11: 0 | Q11: 0 | T11: 1211 | U11: =COUNTIF(L7:L34,T11) -> 0 | V11: =U11/(W4-U20) -> 0 | W11: 0 | Y11: 1211 | Z11: =COUNTIF(L35:L62,Y11) -> 0 | AA11: =Z11/(AB4-Z20) -> 0 | AB11: 0 | AD11: 1211 | AE11: =COUNTIF(L63:L90,AD11) -> 0 | AF11: =AE11/(AG4-AE20) -> 0 | AG11: 0 | AI11: 1211 | AJ11: =COUNTIF(L91:L118,AI11) -> 0 | AK11: =AJ11/(AL4-AJ20) -> 0 | AL11: 0 | AN11: 1211 | AO11: =COUNTIF(L119:L146,AN11) -> 0 | AP11: =AO11/(AQ4-AO20) -> 0 | AQ11: 0 | AS11: 1211 | AT11: =COUNTIF(L147:L174,AS11) -> 0 | AU11: =AT11/(AV4-AT20) -> 0 | AV11: 0
A12: 12 | B12: 632 | C12: 23 | D12: 644 | E12: 24 | F12: 650 | G12: 23 | H12: 662 | K12: 0 | L12: 1222 | N12: 1212 | O12: 0 | P12: 0 | Q12: 0 | T12: 1212 | U12: =COUNTIF(L7:L34,T12) -> 0 | V12: =U12/(W4-U20) -> 0 | W12: 0 | Y12: 1212 | Z12: =COUNTIF(L35:L62,Y12) -> 0 | AA12: =Z12/(AB4-Z20) -> 0 | AB12: 0 | AD12: 1212 | AE12: =COUNTIF(L63:L90,AD12) -> 0 | AF12: =AE12/(AG4-AE20) -> 0 | AG12: 0 | AI12: 1212 | AJ12: =COUNTIF(L91:L118,AI12) -> 0 | AK12: =AJ12/(AL4-AJ20) -> 0 | AL12: 0 | AN12: 1212 | AO12: =COUNTIF(L119:L146,AN12) -> 0 | AP12: =AO12/(AQ4-AO20) -> 0 | AQ12: 0 | AS12: 1212 | AT12: =COUNTIF(L147:L174,AS12) -> 0 | AU12: =AT12/(AV4-AT20) -> 0 | AV12: 0
A13: 12 | B13: 753 | C13: 14 | D13: 758 | E13: 24 | F13: 768 | G13: 23 | H13: 779 | K13: 0 | L13: 1122 | N13: 1221 | O13: 0 | P13: 0 | Q13: 0 | T13: 1221 | U13: =COUNTIF(L7:L34,T13) -> 0 | V13: =U13/(W4-U20) -> 0 | W13: 0 | Y13: 1221 | Z13: =COUNTIF(L35:L62,Y13) -> 0 | AA13: =Z13/(AB4-Z20) -> 0 | AB13: 0 | AD13: 1221 | AE13: =COUNTIF(L63:L90,AD13) -> 0 | AF13: =AE13/(AG4-AE20) -> 0 | AG13: 0 | AI13: 1221 | AJ13: =COUNTIF(L91:L118,AI13) -> 0 | AK13: =AJ13/(AL4-AJ20) -> 0 | AL13: 0 | AN13: 1221 | AO13: =COUNTIF(L119:L146,AN13) -> 0 | AP13: =AO13/(AQ4-AO20) -> 0 | AQ13: 0 | AS13: 1221 | AT13: =COUNTIF(L147:L174,AS13) -> 0 | AU13: =AT13/(AV4-AT20) -> 0 | AV13: 0
A14: 12 | B14: 894 | C14: 14 | D14: 898 | E14: 13 | F14: 907 | G14: 14 | H14: 916 | K14: 0 | L14: 1111 | N14: 1222 | O14: 46 | P14: 0.2738095238 | Q14: -0.5116830445 | T14: 1222 | U14: =COUNTIF(L7:L34,T14) -> 14 | V14: =U14/(W4-U20) -> 0.5 | W14: -0.5 | Y14: 1222 | Z14: =COUNTIF(L35:L62,Y14) -> 8 | AA14: =Z14/(AB4-Z20) -> 0.2962962963 | AB14: -0.5199666673 | AD14: 1222 | AE14: =COUNTIF(L63:L90,AD14) -> 18 | AF14: =AE14/(AG4-AE20) -> 0.6428571429 | AG14: -0.4097763775 | AI14: 1222 | AJ14: =COUNTIF(L91:L118,AI14) -> 3 | AK14: =AJ14/(AL4-AJ20) -> 0.1071428571 | AL14: -0.3452563309 | AN14: 1222 | AO14: =COUNTIF(L119:L146,AN14) -> 3 | AP14: =AO14/(AQ4-AO20) -> 0.1071428571 | AQ14: -0.3452563309 | AS14: 1222 | AT14: =COUNTIF(L147:L174,AS14) -> 0 | AU14: =AT14/(AV4-AT20) -> 0 | AV14: 0
A15: 12 | B15: 1022 | C15: 23 | D15: 1034 | E15: 24 | F15: 1039 | G15: 23 | H15: 1049 | K15: 0 | L15: 1222 | N15: 2111 | O15: 48 | P15: 0.2857142857 | Q15: -0.5163871206 | T15: 2111 | U15: =COUNTIF(L7:L34,T15) -> 3 | V15: =U15/(W4-U20) -> 0.1071428571 | W15: -0.3452563309 | Y15: 2111 | Z15: =COUNTIF(L35:L62,Y15) -> 5 | AA15: =Z15/(AB4-Z20) -> 0.1851851852 | AB15: -0.4505480384 | AD15: 2111 | AE15: =COUNTIF(L63:L90,AD15) -> 1 | AF15: =AE15/(AG4-AE20) -> 0.03571428571 | AG15: -0.1716912472 | AI15: 2111 | AJ15: =COUNTIF(L91:L118,AI15) -> 12 | AK15: =AJ15/(AL4-AJ20) -> 0.4285714286 | AL15: -0.5238824663 | AN15: 2111 | AO15: =COUNTIF(L119:L146,AN15) -> 9 | AP15: =AO15/(AQ4-AO20) -> 0.3214285714 | AQ15: -0.5263167602 | AS15: 2111 | AT15: =COUNTIF(L147:L174,AS15) -> 18 | AU15: =AT15/(AV4-AT20) -> 0.6428571429 | AV15: -0.4097763775
A16: 21 | B16: 1165 | C16: 21 | D16: 1172 | E16: 22 | F16: 1178 | G16: 23 | H16: 1184 | K16: 0 | L16: 2222 | N16: 2112 | O16: 1 | P16: 0.005952380952 | Q16: -0.04400188942 | T16: 2112 | U16: =COUNTIF(L7:L34,T16) -> 0 | V16: =U16/(W4-U20) -> 0 | W16: 0 | Y16: 2112 | Z16: =COUNTIF(L35:L62,Y16) -> 0 | AA16: =Z16/(AB4-Z20) -> 0 | AB16: 0 | AD16: 2112 | AE16: =COUNTIF(L63:L90,AD16) -> 0 | AF16: =AE16/(AG4-AE20) -> 0 | AG16: 0 | AI16: 2112 | AJ16: =COUNTIF(L91:L118,AI16) -> 1 | AK16: =AJ16/(AL4-AJ20) -> 0.03571428571 | AL16: -0.1716912472 | AN16: 2112 | AO16: =COUNTIF(L119:L146,AN16) -> 0 | AP16: =AO16/(AQ4-AO20) -> 0 | AQ16: 0 | AS16: 2112 | AT16: =COUNTIF(L147:L174,AS16) -> 0 | AU16: =AT16/(AV4-AT20) -> 0 | AV16: 0
A17: 12 | B17: 1281 | C17: 23 | D17: 1293 | E17: 24 | F17: 1299 | G17: 23 | H17: 1312 | K17: 0 | L17: 1222 | N17: 2121 | O17: 0 | P17: 0 | Q17: 0 | T17: 2121 | U17: =COUNTIF(L7:L34,T17) -> 0 | V17: =U17/(W4-U20) -> 0 | W17: 0 | Y17: 2121 | Z17: =COUNTIF(L35:L62,Y17) -> 0 | AA17: =Z17/(AB4-Z20) -> 0 | AB17: 0 | AD17: 2121 | AE17: =COUNTIF(L63:L90,AD17) -> 0 | AF17: =AE17/(AG4-AE20) -> 0 | AG17: 0 | AI17: 2121 | AJ17: =COUNTIF(L91:L118,AI17) -> 0 | AK17: =AJ17/(AL4-AJ20) -> 0 | AL17: 0 | AN17: 2121 | AO17: =COUNTIF(L119:L146,AN17) -> 0 | AP17: =AO17/(AQ4-AO20) -> 0 | AQ17: 0 | AS17: 2121 | AT17: =COUNTIF(L147:L174,AS17) -> 0 | AU17: =AT17/(AV4-AT20) -> 0 | AV17: 0
A18: 21 | B18: 1410 | C18: 21 | D18: 1432 | E18: 11 | F18: 1449 | G18: 12 | H18: 1455 | K18: 0 | L18: 2211 | N18: 2122 | O18: 0 | P18: 0 | Q18: 0 | T18: 2122 | U18: =COUNTIF(L7:L34,T18) -> 0 | V18: =U18/(W4-U20) -> 0 | W18: 0 | Y18: 2122 | Z18: =COUNTIF(L35:L62,Y18) -> 0 | AA18: =Z18/(AB4-Z20) -> 0 | AB18: 0 | AD18: 2122 | AE18: =COUNTIF(L63:L90,AD18) -> 0 | AF18: =AE18/(AG4-AE20) -> 0 | AG18: 0 | AI18: 2122 | AJ18: =COUNTIF(L91:L118,AI18) -> 0 | AK18: =AJ18/(AL4-AJ20) -> 0 | AL18: 0 | AN18: 2122 | AO18: =COUNTIF(L119:L146,AN18) -> 0 | AP18: =AO18/(AQ4-AO20) -> 0 | AQ18: 0 | AS18: 2122 | AT18: =COUNTIF(L147:L174,AS18) -> 0 | AU18: =AT18/(AV4-AT20) -> 0 | AV18: 0
A19: 12 | B19: 1462 | C19: 23 | D19: 1477 | E19: 24 | F19: 1480 | G19: 23 | H19: 1488 | K19: 0 | L19: 1222 | N19: 2211 | O19: 16 | P19: 0.09523809524 | Q19: -0.3230778498 | T19: 2211 | U19: =COUNTIF(L7:L34,T19) -> 2 | V19: =U19/(W4-U20) -> 0.07142857143 | W19: -0.271953923 | Y19: 2211 | Z19: =COUNTIF(L35:L62,Y19) -> 4 | AA19: =Z19/(AB4-Z20) -> 0.1481481481 | AB19: -0.4081314818 | AD19: 2211 | AE19: =COUNTIF(L63:L90,AD19) -> 0 | AF19: =AE19/(AG4-AE20) -> 0 | AG19: 0 | AI19: 2211 | AJ19: =COUNTIF(L91:L118,AI19) -> 0 | AK19: =AJ19/(AL4-AJ20) -> 0 | AL19: 0 | AN19: 2211 | AO19: =COUNTIF(L119:L146,AN19) -> 5 | AP19: =AO19/(AQ4-AO20) -> 0.1785714286 | AQ19: -0.4438262191 | AS19: 2211 | AT19: =COUNTIF(L147:L174,AS19) -> 5 | AU19: =AT19/(AV4-AT20) -> 0.1785714286 | AV19: -0.4438262191
A20: 12 | B20: 1593 | C20: 14 | D20: 1616 | E20: 13 | F20: 1630 | G20: 14 | H20: 1642 | K20: 0 | L20: 1111 | N20: 2212 | O20: 1 | P20: 0.005952380952 | Q20: -0.04400188942 | T20: 2212 | U20: =COUNTIF(L7:L34,T20) -> 0 | Y20: 2212 | Z20: =COUNTIF(L35:L62,Y20) -> 1 | AD20: 2212 | AE20: =COUNTIF(L63:L90,AD20) -> 0 | AI20: 2212 | AJ20: =COUNTIF(L91:L118,AI20) -> 0 | AN20: 2212 | AO20: =COUNTIF(L119:L146,AN20) -> 0 | AS20: 2212 | AT20: =COUNTIF(L147:L174,AS20) -> 0
A21: 21 | B21: 1739 | C21: 12 | D21: 1754 | E21: 13 | F21: 1761 | G21: 14 | H21: 1769 | K21: 0 | L21: 2111 | N21: 2221 | O21: 4 | P21: 0.02380952381 | Q21: -0.1283885101 | T21: 2221 | U21: =COUNTIF(L7:L34,T21) -> 0 | V21: =U21/(W4-U20) -> 0 | W21: =IF(V21=0,0,(V21*((LOG(V21))/LOG(2)))) -> 0 | Y21: 2221 | Z21: =COUNTIF(L35:L62,Y21) -> 0 | AA21: =Z21/(AB4-Z20) -> 0 | AB21: =IF(AA21=0,0,(AA21*((LOG(AA21))/LOG(2)))) -> 0 | AD21: 2221 | AE21: =COUNTIF(L63:L90,AD21) -> 0 | AF21: =AE21/(AG4-AE20) -> 0 | AG21: =IF(AF21=0,0,(AF21*((LOG(AF21))/LOG(2)))) -> 0 | AI21: 2221 | AJ21: =COUNTIF(L91:L118,AI21) -> 0 | AK21: =AJ21/(AL4-AJ20) -> 0 | AL21: =IF(AK21=0,0,(AK21*((LOG(AK21))/LOG(2)))) -> 0 | AN21: 2221 | AO21: =COUNTIF(L119:L146,AN21) -> 4 | AP21: =AO21/(AQ4-AO20) -> 0.1428571429 | AQ21: =IF(AP21=0,0,(AP21*((LOG(AP21))/LOG(2)))) -> -0.4010507032 | AS21: 2221 | AT21: =COUNTIF(L147:L174,AS21) -> 0 | AU21: =AT21/(AV4-AT20) -> 0 | AV21: =IF(AU21=0,0,(AU21*((LOG(AU21))/LOG(2)))) -> 0
A22: 12 | B22: 1897 | C22: 23 | D22: 1915 | E22: 24 | F22: 1921 | G22: 23 | H22: 1932 | K22: 0 | L22: 1222 | N22: 2222 | O22: 13 | P22: 0.07738095238 | Q22: -0.2856810129 | T22: 2222 | U22: =COUNTIF(L7:L34,T22) -> 3 | V22: =U22/(W4-U20) -> 0.1071428571 | W22: =IF(V22=0,0,(V22*((LOG(V22))/LOG(2)))) -> -0.3452563309 | Y22: 2222 | Z22: =COUNTIF(L35:L62,Y22) -> 5 | AA22: =Z22/(AB4-Z20) -> 0.1851851852 | AB22: =IF(AA22=0,0,(AA22*((LOG(AA22))/LOG(2)))) -> -0.4505480384 | AD22: 2222 | AE22: =COUNTIF(L63:L90,AD22) -> 4 | AF22: =AE22/(AG4-AE20) -> 0.1428571429 | AG22: =IF(AF22=0,0,(AF22*((LOG(AF22))/LOG(2)))) -> -0.4010507032 | AI22: 2222 | AJ22: =COUNTIF(L91:L118,AI22) -> 1 | AK22: =AJ22/(AL4-AJ20) -> 0.03571428571 | AL22: =IF(AK22=0,0,(AK22*((LOG(AK22))/LOG(2)))) -> -0.1716912472 | AN22: 2222 | AO22: =COUNTIF(L119:L146,AN22) -> 0 | AP22: =AO22/(AQ4-AO20) -> 0 | AQ22: =IF(AP22=0,0,(AP22*((LOG(AP22))/LOG(2)))) -> 0 | AS22: 2222 | AT22: =COUNTIF(L147:L174,AS22) -> 0 | AU22: =AT22/(AV4-AT20) -> 0 | AV22: =IF(AU22=0,0,(AU22*((LOG(AU22))/LOG(2)))) -> 0
A23: 12 | B23: 2114 | C23: 23 | D23: 2130 | E23: 24 | F23: 2135 | G23: 23 | H23: 2142 | K23: 0 | L23: 1222 | P23: =SUM(P7:P22) -> 1 | Q23: =-SUM(Q7:Q22) -> 2.509326871 | V23: =SUM(V7:V22) -> 1 | W23: =-SUM(W7:W22) -> 2.251368086 | AA23: =SUM(AA7:AA22) -> 1 | AB23: =-SUM(AB7:AB22) -> 2.45954793 | AF23: =SUM(AF7:AF22) -> 1 | AG23: =-SUM(AG7:AG22) -> 1.426344547 | AK23: =SUM(AK7:AK22) -> 1 | AL23: =-SUM(AL7:AL22) -> 1.742062589 | AP23: =SUM(AP7:AP22) -> 1 | AQ23: =-SUM(AQ7:AQ22) -> 2.216450013 | AU23: =SUM(AU7:AU22) -> 1 | AV23: =-SUM(AV7:AV22) -> 1.297428816
A24: 21 | B24: 2329 | C24: 21 | D24: 2333 | E24: 22 | F24: 2340 | G24: 23 | H24: 2348 | K24: 0 | L24: 2222 | P24: U= | Q24: =Q23/(LOG(Q4)/LOG(2)) -> 0.3394506387 | V24: U1= | W24: =W23/(LOG(W4)/LOG(2)) -> 0.4683174266 | AA24: U2= | AB24: =AB23/(LOG(AB4)/LOG(2)) -> 0.5116218731 | AF24: U3= | AG24: =AG23/(LOG(AG4)/LOG(2)) -> 0.2967004871 | AK24: U4= | AL24: =AL23/(LOG(AL4)/LOG(2)) -> 0.3623744487 | AP24: U5= | AQ24: =AQ23/(LOG(AQ4)/LOG(2)) -> 0.4610539578 | AU24: U6= | AV24: =AV23/(LOG(AV4)/LOG(2)) -> 0.2698841331
A25: 12 | B25: 2448 | C25: 23 | D25: 2460 | E25: 24 | F25: 2464 | G25: 23 | H25: 2474 | K25: 0 | L25: 1222
A26: 12 | B26: 2613 | C26: 23 | D26: 2626 | E26: 24 | F26: 2630 | G26: 23 | H26: 2636 | K26: 0 | L26: 1222
A27: 12 | B27: 2734 | C27: 23 | D27: 2746 | E27: 24 | F27: 2750 | G27: 23 | H27: 2756 | K27: 0 | L27: 1222 | N27: Total Target Seq
A28: 12 | B28: 2853 | C28: 14 | D28: 2859 | E28: 24 | F28: 2873 | G28: 23 | H28: 2879 | K28: 0 | L28: 1122 | N28: =COUNTIF(L7:L174,G3) -> 1 | P28: 28 | Q28: 28 | R28: 28 | S28: 28 | T28: 28 | U28: 28
A29: 21 | B29: 2989 | C29: 21 | D29: 2994 | E29: 22 | F29: 3000 | G29: 23 | H29: 3005 | K29: 0 | L29: 2222 | P29: % of reinforcement given in 6 equal intervals based on number of trials
A30: 12 | B30: 3159 | C30: 23 | D30: 3174 | E30: 24 | F30: 3183 | G30: 23 | H30: 3194 | K30: 0 | L30: 1222 | P30: %_1 | Q30: %_2 | R30: %_3 | S30: %_4 | T30: %_5 | U30: %_6
A31: 12 | B31: 3286 | C31: 14 | D31: 3293 | E31: 24 | F31: 3303 | G31: 23 | H31: 3307 | K31: 0 | L31: 1122 | O31: target sequence | P31: =$G$3 -> 2212 | Q31: 2212 | R31: 2212 | S31: 2212 | T31: 2212 | U31: 2212
A32: 21 | B32: 3404 | C32: 12 | D32: 3417 | E32: 13 | F32: 3431 | G32: 14 | H32: 3443 | K32: 0 | L32: 2111 | O32: total reinforcement | P32: =U20 -> 0 | Q32: =Z20 -> 1 | R32: =AE20 -> 0 | S32: =AJ20 -> 0 | T32: =AO20 -> 0 | U32: =AT20 -> 0
A33: 21 | B33: 3538 | C33: 12 | D33: 3552 | E33: 13 | F33: 3559 | G33: 14 | H33: 3572 | K33: 0 | L33: 2111 | O33: % target
A34: 12 | B34: 3680 | C34: 14 | D34: 3685 | E34: 13 | F34: 3698 | G34: 23 | H34: 3716 | K34: 0 | L34: 1112 | O34: CCRF
A35: 12 | B35: 3851 | C35: 23 | D35: 3866 | E35: 24 | F35: 3870 | G35: 23 | H35: 3883 | K35: 0 | L35: 1222 | O35: % CCRf
A36: 12 | B36: 3976 | C36: 23 | D36: 3996 | E36: 24 | F36: 4002 | G36: 23 | H36: 4010 | K36: 0 | L36: 1222 | O36: average response rate | P36: =H34/P28 -> 132.7142857 | Q36: =(H62-H34)/Q28 -> 137 | R36: =(H90-H62)/R28 -> 141 | S36: =(H118-H90)/S28 -> 138.7142857 | T36: =(H146-H118)/T28 -> 138.9642857 | U36: =(H174-H146)/U28 -> 163.3928571
A37: 21 | B37: 4124 | C37: 21 | D37: 4129 | E37: 22 | F37: 4134 | G37: 23 | H37: 4141 | K37: 0 | L37: 2222
A38: 21 | B38: 4252 | C38: 21 | D38: 4256 | E38: 11 | F38: 4268 | G38: 12 | H38: 4272 | K38: 0 | L38: 2211
A39: 12 | B39: 4390 | C39: 14 | D39: 4393 | E39: 13 | F39: 4398 | G39: 14 | H39: 4404 | K39: 0 | L39: 1111
A40: 12 | B40: 4502 | C40: 23 | D40: 4516 | E40: 24 | F40: 4521 | G40: 23 | H40: 4528 | K40: 0 | L40: 1222
A41: 12 | B41: 4629 | C41: 14 | D41: 4639 | E41: 24 | F41: 4666 | G41: 23 | H41: 4674 | K41: 0 | L41: 1122
A42: 12 | B42: 4813 | C42: 23 | D42: 4825 | E42: 24 | F42: 4829 | G42: 23 | H42: 4834 | K42: 0 | L42: 1222
A43: 12 | B43: 4943 | C43: 14 | D43: 4946 | E43: 13 | F43: 4955 | G43: 14 | H43: 4961 | K43: 0 | L43: 1111
A44: 21 | B44: 5058 | C44: 12 | D44: 5074 | E44: 13 | F44: 5079 | G44: 14 | H44: 5084 | K44: 0 | L44: 2111
A45: 21 | B45: 5221 | C45: 21 | D45: 5227 | E45: 22 | F45: 5232 | G45: 23 | H45: 5239 | K45: 0 | L45: 2222
A46: 21 | B46: 5337 | C46: 21 | D46: 5341 | E46: 11 | F46: 5360 | G46: 21 | H46: 5376 | K46: 0 | L46: 2212
A47: 12 | B47: 5518 | C47: 23 | D47: 5531 | E47: 24 | F47: 5534 | G47: 23 | H47: 5539 | K47: 0 | L47: 1222
A48: 21 | B48: 5653 | C48: 21 | D48: 5659 | E48: 11 | F48: 5678 | G48: 12 | H48: 5685 | K48: 0 | L48: 2211
A49: 12 | B49: 5788 | C49: 14 | D49: 5791 | E49: 24 | F49: 5807 | G49: 23 | H49: 5814 | K49: 0 | L49: 1122
A50: 12 | B50: 5909 | C50: 23 | D50: 5925 | E50: 24 | F50: 5930 | G50: 23 | H50: 5938 | K50: 0 | L50: 1222
A51: 12 | B51: 6037 | C51: 14 | D51: 6041 | E51: 13 | F51: 6047 | G51: 14 | H51: 6052 | K51: 0 | L51: 1111
A52: 21 | B52: 6158 | C52: 12 | D52: 6174 | E52: 13 | F52: 6180 | G52: 14 | H52: 6187 | K52: 0 | L52: 2111
A53: 21 | B53: 6370 | C53: 21 | D53: 6374 | E53: 22 | F53: 6380 | G53: 23 | H53: 6391 | K53: 0 | L53: 2222
A54: 21 | B54: 6487 | C54: 12 | D54: 6499 | E54: 13 | F54: 6507 | G54: 14 | H54: 6512 | K54: 0 | L54: 2111
A55: 21 | B55: 6626 | C55: 21 | D55: 6631 | E55: 22 | F55: 6638 | G55: 23 | H55: 6644 | K55: 0 | L55: 2222
A56: 21 | B56: 6750 | C56: 21 | D56: 6755 | E56: 22 | F56: 6761 | G56: 23 | H56: 6772 | K56: 0 | L56: 2222
A57: 21 | B57: 6868 | C57: 12 | D57: 6880 | E57: 13 | F57: 6885 | G57: 14 | H57: 6894 | K57: 0 | L57: 2111
A58: 21 | B58: 6988 | C58: 12 | D58: 7003 | E58: 13 | F58: 7013 | G58: 14 | H58: 7019 | K58: 0 | L58: 2111
A59: 21 | B59: 7118 | C59: 21 | D59: 7135 | E59: 11 | F59: 7150 | G59: 12 | H59: 7155 | K59: 0 | L59: 2211
A60: 12 | B60: 7252 | C60: 23 | D60: 7268 | E60: 24 | F60: 7272 | G60: 23 | H60: 7283 | K60: 0 | L60: 1222
A61: 21 | B61: 7407 | C61: 21 | D61: 7411 | E61: 11 | F61: 7427 | G61: 12 | H61: 7435 | K61: 0 | L61: 2211
A62: 12 | B62: 7531 | C62: 23 | D62: 7544 | E62: 24 | F62: 7547 | G62: 23 | H62: 7552 | K62: 0 | L62: 1222
A63: 12 | B63: 7648 | C63: 14 | D63: 7653 | E63: 13 | F63: 7657 | G63: 14 | H63: 7663 | K63: 0 | L63: 1111
A64: 12 | B64: 7763 | C64: 23 | D64: 7774 | E64: 24 | F64: 7778 | G64: 23 | H64: 7785 | K64: 0 | L64: 1222
A65: 12 | B65: 7986 | C65: 23 | D65: 8001 | E65: 24 | F65: 8004 | G65: 23 | H65: 8011 | K65: 0 | L65: 1222
A66: 12 | B66: 8111 | C66: 23 | D66: 8122 | E66: 24 | F66: 8131 | G66: 23 | H66: 8137 | K66: 0 | L66: 1222
A67: 12 | B67: 8232 | C67: 23 | D67: 8244 | E67: 24 | F67: 8248 | G67: 23 | H67: 8256 | K67: 0 | L67: 1222
A68: 12 | B68: 8356 | C68: 23 | D68: 8371 | E68: 24 | F68: 8376 | G68: 23 | H68: 8383 | K68: 0 | L68: 1222
A69: 12 | B69: 8534 | C69: 23 | D69: 8554 | E69: 24 | F69: 8560 | G69: 23 | H69: 8574 | K69: 0 | L69: 1222
A70: 12 | B70: 8725 | C70: 23 | D70: 8740 | E70: 24 | F70: 8746 | G70: 23 | H70: 8751 | K70: 0 | L70: 1222
A71: 12 | B71: 8849 | C71: 23 | D71: 8865 | E71: 24 | F71: 8883 | G71: 23 | H71: 8890 | K71: 0 | L71: 1222
A72: 12 | B72: 8985 | C72: 23 | D72: 8996 | E72: 24 | F72: 9000 | G72: 23 | H72: 9006 | K72: 0 | L72: 1222
A73: 12 | B73: 9106 | C73: 23 | D73: 9128 | E73: 24 | F73: 9134 | G73: 23 | H73: 9140 | K73: 0 | L73: 1222
A74: 12 | B74: 9281 | C74: 14 | D74: 9292 | E74: 13 | F74: 9295 | G74: 14 | H74: 9301 | K74: 0 | L74: 1111
A75: 21 | B75: 9504 | C75: 21 | D75: 9508 | E75: 22 | F75: 9513 | G75: 23 | H75: 9519 | K75: 0 | L75: 2222
A76: 12 | B76: 9625 | C76: 23 | D76: 9636 | E76: 24 | F76: 9640 | G76: 23 | H76: 9651 | K76: 0 | L76: 1222
A77: 12 | B77: 9753 | C77: 23 | D77: 9766 | E77: 24 | F77: 9769 | G77: 23 | H77: 9776 | K77: 0 | L77: 1222
A78: 12 | B78: 9883 | C78: 14 | D78: 9889 | E78: 13 | F78: 9893 | G78: 14 | H78: 9899 | K78: 0 | L78: 1111
A79: 12 | B79: 9996 | C79: 14 | D79: 10002 | E79: 13 | F79: 10015 | G79: 14 | H79: 10022 | K79: 0 | L79: 1111
A80: 21 | B80: 10117 | C80: 12 | D80: 10130 | E80: 13 | F80: 10136 | G80: 14 | H80: 10145 | K80: 0 | L80: 2111
A81: 12 | B81: 10243 | C81: 23 | D81: 10257 | E81: 24 | F81: 10262 | G81: 23 | H81: 10267 | K81: 0 | L81: 1222
A82: 12 | B82: 10411 | C82: 23 | D82: 10424 | E82: 24 | F82: 10427 | G82: 23 | H82: 10431 | K82: 0 | L82: 1222
A83: 21 | B83: 10555 | C83: 21 | D83: 10560 | E83: 22 | F83: 10566 | G83: 23 | H83: 10573 | K83: 0 | L83: 2222
A84: 12 | B84: 10674 | C84: 23 | D84: 10689 | E84: 24 | F84: 10694 | G84: 23 | H84: 10700 | K84: 0 | L84: 1222
A85: 12 | B85: 10801 | C85: 23 | D85: 10814 | E85: 24 | F85: 10819 | G85: 23 | H85: 10825 | K85: 0 | L85: 1222
A86: 12 | B86: 10926 | C86: 14 | D86: 10933 | E86: 13 | F86: 10945 | G86: 14 | H86: 10953 | K86: 0 | L86: 1111
A87: 21 | B87: 11105 | C87: 21 | D87: 11110 | E87: 22 | F87: 11117 | G87: 23 | H87: 11127 | K87: 0 | L87: 2222
A88: 12 | B88: 11228 | C88: 23 | D88: 11240 | E88: 24 | F88: 11244 | G88: 23 | H88: 11249 | K88: 0 | L88: 1222
A89: 12 | B89: 11347 | C89: 23 | D89: 11365 | E89: 24 | F89: 11369 | G89: 23 | H89: 11376 | K89: 0 | L89: 1222
A90: 21 | B90: 11484 | C90: 21 | D90: 11488 | E90: 22 | F90: 11493 | G90: 23 | H90: 11500 | K90: 0 | L90: 2222
A91: 21 | B91: 11600 | C91: 12 | D91: 11613 | E91: 13 | F91: 11621 | G91: 14 | H91: 11629 | K91: 0 | L91: 2111
A92: 21 | B92: 11731 | C92: 12 | D92: 11743 | E92: 13 | F92: 11747 | G92: 14 | H92: 11752 | K92: 0 | L92: 2111
A93: 21 | B93: 11854 | C93: 12 | D93: 11869 | E93: 13 | F93: 11873 | G93: 14 | H93: 11878 | K93: 0 | L93: 2111
A94: 21 | B94: 11972 | C94: 12 | D94: 11986 | E94: 13 | F94: 11990 | G94: 14 | H94: 12001 | K94: 0 | L94: 2111
A95: 12 | B95: 12097 | C95: 14 | D95: 12101 | E95: 13 | F95: 12108 | G95: 14 | H95: 12114 | K95: 0 | L95: 1111
A96: 21 | B96: 12285 | C96: 21 | D96: 12290 | E96: 22 | F96: 12296 | G96: 23 | H96: 12307 | K96: 0 | L96: 2222
A97: 12 | B97: 12404 | C97: 14 | D97: 12412 | E97: 13 | F97: 12420 | G97: 14 | H97: 12426 | K97: 0 | L97: 1111
A98: 21 | B98: 12526 | C98: 12 | D98: 12538 | E98: 13 | F98: 12551 | G98: 14 | H98: 12558 | K98: 0 | L98: 2111
A99: 12 | B99: 12653 | C99: 14 | D99: 12660 | E99: 13 | F99: 12667 | G99: 14 | H99: 12673 | K99: 0 | L99: 1111
A100: 21 | B100: 12772 | C100: 12 | D100: 12786 | E100: 13 | F100: 12795 | G100: 14 | H100: 12800 | K100: 0 | L100: 2111
A101: 12 | B101: 12903 | C101: 14 | D101: 12907 | E101: 13 | F101: 12913 | G101: 14 | H101: 12918 | K101: 0 | L101: 1111
A102: 21 | B102: 13033 | C102: 12 | D102: 13047 | E102: 13 | F102: 13052 | G102: 14 | H102: 13057 | K102: 0 | L102: 2111
A103: 21 | B103: 13157 | C103: 12 | D103: 13182 | E103: 13 | F103: 13183 | G103: 23 | H103: 13196 | K103: 0 | L103: 2112
A104: 12 | B104: 13306 | C104: 14 | D104: 13311 | E104: 13 | F104: 13316 | G104: 14 | H104: 13329 | K104: 0 | L104: 1111
A105: 12 | B105: 13428 | C105: 14 | D105: 13433 | E105: 13 | F105: 13442 | G105: 14 | H105: 13449 | K105: 0 | L105: 1111
A106: 12 | B106: 13566 | C106: 14 | D106: 13574 | E106: 13 | F106: 13580 | G106: 14 | H106: 13587 | K106: 0 | L106: 1111
A107: 12 | B107: 13765 | C107: 23 | D107: 13778 | E107: 24 | F107: 13782 | G107: 23 | H107: 13791 | K107: 0 | L107: 1222
A108: 21 | B108: 13897 | C108: 12 | D108: 13918 | E108: 13 | F108: 13928 | G108: 14 | H108: 13934 | K108: 0 | L108: 2111
A109: 12 | B109: 14029 | C109: 14 | D109: 14037 | E109: 13 | F109: 14050 | G109: 14 | H109: 14056 | K109: 0 | L109: 1111
A110: 12 | B110: 14205 | C110: 23 | D110: 14221 | E110: 24 | F110: 14225 | G110: 23 | H110: 14234 | K110: 0 | L110: 1222
A111: 21 | B111: 14333 | C111: 12 | D111: 14350 | E111: 13 | F111: 14361 | G111: 14 | H111: 14368 | K111: 0 | L111: 2111
A112: 21 | B112: 14469 | C112: 12 | D112: 14485 | E112: 13 | F112: 14488 | G112: 14 | H112: 14494 | K112: 0 | L112: 2111
A113: 12 | B113: 14603 | C113: 14 | D113: 14611 | E113: 13 | F113: 14614 | G113: 14 | H113: 14628 | K113: 0 | L113: 1111
A114: 21 | B114: 14738 | C114: 12 | D114: 14751 | E114: 13 | F114: 14756 | G114: 14 | H114: 14760 | K114: 0 | L114: 2111
A115: 12 | B115: 14946 | C115: 14 | D115: 14951 | E115: 13 | F115: 14968 | G115: 14 | H115: 14977 | K115: 0 | L115: 1111
A116: 12 | B116: 15080 | C116: 23 | D116: 15094 | E116: 24 | F116: 15099 | G116: 23 | H116: 15104 | K116: 0 | L116: 1222
A117: 12 | B117: 15223 | C117: 14 | D117: 15238 | E117: 13 | F117: 15245 | G117: 14 | H117: 15258 | K117: 0 | L117: 1111
A118: 21 | B118: 15359 | C118: 12 | D118: 15373 | E118: 13 | F118: 15379 | G118: 14 | H118: 15384 | K118: 0 | L118: 2111
A119: 21 | B119: 15480 | C119: 12 | D119: 15493 | E119: 13 | F119: 15498 | G119: 14 | H119: 15505 | K119: 0 | L119: 2111
A120: 21 | B120: 15641 | C120: 21 | D120: 15646 | E120: 22 | F120: 15652 | G120: 14 | H120: 15672 | K120: 0 | L120: 2221
A121: 12 | B121: 15777 | C121: 14 | D121: 15782 | E121: 13 | F121: 15788 | G121: 14 | H121: 15794 | K121: 0 | L121: 1111
A122: 21 | B122: 15890 | C122: 12 | D122: 15913 | E122: 13 | F122: 15919 | G122: 14 | H122: 15923 | K122: 0 | L122: 2111
A123: 21 | B123: 16038 | C123: 21 | D123: 16042 | E123: 11 | F123: 16056 | G123: 12 | H123: 16061 | K123: 0 | L123: 2211
A124: 21 | B124: 16154 | C124: 12 | D124: 16166 | E124: 13 | F124: 16172 | G124: 14 | H124: 16179 | K124: 0 | L124: 2111
A125: 21 | B125: 16279 | C125: 12 | D125: 16304 | E125: 13 | F125: 16308 | G125: 14 | H125: 16316 | K125: 0 | L125: 2111
A126: 12 | B126: 16482 | C126: 14 | D126: 16489 | E126: 13 | F126: 16494 | G126: 14 | H126: 16502 | K126: 0 | L126: 1111
A127: 21 | B127: 16615 | C127: 12 | D127: 16630 | E127: 13 | F127: 16635 | G127: 14 | H127: 16643 | K127: 0 | L127: 2111
A128: 21 | B128: 16737 | C128: 12 | D128: 16753 | E128: 13 | F128: 16760 | G128: 14 | H128: 16766 | K128: 0 | L128: 2111
A129: 12 | B129: 16872 | C129: 14 | D129: 16877 | E129: 13 | F129: 16882 | G129: 14 | H129: 16889 | K129: 0 | L129: 1111
A130: 21 | B130: 16997 | C130: 21 | D130: 17001 | E130: 11 | F130: 17014 | G130: 12 | H130: 17018 | K130: 0 | L130: 2211
A131: 12 | B131: 17168 | C131: 23 | D131: 17184 | E131: 24 | F131: 17188 | G131: 23 | H131: 17193 | K131: 0 | L131: 1222
A132: 21 | B132: 17286 | C132: 21 | D132: 17298 | E132: 22 | F132: 17304 | G132: 14 | H132: 17319 | K132: 0 | L132: 2221
A133: 21 | B133: 17414 | C133: 12 | D133: 17428 | E133: 13 | F133: 17434 | G133: 14 | H133: 17441 | K133: 0 | L133: 2111
A134: 21 | B134: 17540 | C134: 21 | D134: 17545 | E134: 11 | F134: 17557 | G134: 12 | H134: 17562 | K134: 0 | L134: 2211
A135: 12 | B135: 17656 | C135: 14 | D135: 17676 | E135: 13 | F135: 17684 | G135: 14 | H135: 17693 | K135: 0 | L135: 1111
A136: 12 | B136: 17795 | C136: 23 | D136: 17811 | E136: 24 | F136: 17816 | G136: 23 | H136: 17829 | K136: 0 | L136: 1222
A137: 21 | B137: 17928 | C137: 12 | D137: 17942 | E137: 13 | F137: 17946 | G137: 14 | H137: 17950 | K137: 0 | L137: 2111
A138: 21 | B138: 18051 | C138: 21 | D138: 18072 | E138: 22 | F138: 18078 | G138: 14 | H138: 18101 | K138: 0 | L138: 2221
A139: 12 | B139: 18267 | C139: 23 | D139: 18284 | E139: 24 | F139: 18290 | G139: 23 | H139: 18296 | K139: 0 | L139: 1222
A140: 21 | B140: 18403 | C140: 21 | D140: 18408 | E140: 22 | F140: 18414 | G140: 14 | H140: 18427 | K140: 0 | L140: 2221
A141: 12 | B141: 18641 | C141: 14 | D141: 18650 | E141: 13 | F141: 18655 | G141: 14 | H141: 18657 | K141: 0 | L141: 1111
A142: 12 | B142: 18767 | C142: 14 | D142: 18774 | E142: 13 | F142: 18779 | G142: 14 | H142: 18783 | K142: 0 | L142: 1111
A143: 12 | B143: 18886 | C143: 14 | D143: 18889 | E143: 13 | F143: 18893 | G143: 14 | H143: 18899 | K143: 0 | L143: 1111
A144: 21 | B144: 18994 | C144: 21 | D144: 19002 | E144: 11 | F144: 19013 | G144: 12 | H144: 19019 | K144: 0 | L144: 2211
A145: 21 | B145: 19118 | C145: 12 | D145: 19134 | E145: 13 | F145: 19140 | G145: 14 | H145: 19148 | K145: 0 | L145: 2111
A146: 21 | B146: 19252 | C146: 21 | D146: 19257 | E146: 11 | F146: 19271 | G146: 12 | H146: 19275 | K146: 0 | L146: 2211
A147: 21 | B147: 19375 | C147: 12 | D147: 19393 | E147: 13 | F147: 19398 | G147: 14 | H147: 19406 | K147: 0 | L147: 2111
A148: 21 | B148: 19502 | C148: 21 | D148: 19510 | E148: 11 | F148: 19525 | G148: 12 | H148: 19530 | K148: 0 | L148: 2211
A149: 21 | B149: 19632 | C149: 21 | D149: 19638 | E149: 11 | F149: 19653 | G149: 12 | H149: 19658 | K149: 0 | L149: 2211
A150: 21 | B150: 19751 | C150: 21 | D150: 19777 | E150: 11 | F150: 19793 | G150: 12 | H150: 19801 | K150: 0 | L150: 2211
A151: 12 | B151: 19926 | C151: 14 | D151: 19938 | E151: 13 | F151: 19945 | G151: 14 | H151: 19953 | K151: 0 | L151: 1111
A152: 21 | B152: 20173 | C152: 12 | D152: 20188 | E152: 13 | F152: 20197 | G152: 14 | H152: 20205 | K152: 0 | L152: 2111
A153: 21 | B153: 20473 | C153: 12 | D153: 20490 | E153: 13 | F153: 20496 | G153: 14 | H153: 20503 | K153: 0 | L153: 2111
A154: 21 | B154: 20596 | C154: 21 | D154: 20598 | E154: 11 | F154: 20622 | G154: 12 | H154: 20626 | K154: 0 | L154: 2211
A155: 12 | B155: 20729 | C155: 14 | D155: 20734 | E155: 13 | F155: 20744 | G155: 14 | H155: 20764 | K155: 0 | L155: 1111
A156: 12 | B156: 20863 | C156: 14 | D156: 20871 | E156: 13 | F156: 20882 | G156: 14 | H156: 20891 | K156: 0 | L156: 1111
A157: 21 | B157: 20994 | C157: 12 | D157: 21036 | E157: 13 | F157: 21045 | G157: 14 | H157: 21049 | K157: 0 | L157: 2111
A158: 21 | B158: 21144 | C158: 12 | D158: 21159 | E158: 13 | F158: 21163 | G158: 14 | H158: 21169 | K158: 0 | L158: 2111
A159: 21 | B159: 21375 | C159: 12 | D159: 21390 | E159: 13 | F159: 21396 | G159: 14 | H159: 21409 | K159: 0 | L159: 2111
A160: 21 | B160: 21510 | C160: 12 | D160: 21526 | E160: 13 | F160: 21529 | G160: 14 | H160: 21534 | K160: 0 | L160: 2111
A161: 21 | B161: 21637 | C161: 21 | D161: 21656 | E161: 11 | F161: 21674 | G161: 12 | H161: 21678 | K161: 0 | L161: 2211
A162: 12 | B162: 21983 | C162: 14 | D162: 21984 | E162: 13 | F162: 21989 | G162: 14 | H162: 21997 | K162: 0 | L162: 1111
A163: 21 | B163: 22099 | C163: 12 | D163: 22114 | E163: 13 | F163: 22117 | G163: 14 | H163: 22122 | K163: 0 | L163: 2111
A164: 21 | B164: 22220 | C164: 12 | D164: 22233 | E164: 13 | F164: 22239 | G164: 14 | H164: 22243 | K164: 0 | L164: 2111
A165: 21 | B165: 22343 | C165: 12 | D165: 22357 | E165: 13 | F165: 22360 | G165: 14 | H165: 22364 | K165: 0 | L165: 2111
A166: 21 | B166: 22465 | C166: 12 | D166: 22485 | E166: 13 | F166: 22489 | G166: 14 | H166: 22494 | K166: 0 | L166: 2111
A167: 21 | B167: 22590 | C167: 12 | D167: 22606 | E167: 13 | F167: 22609 | G167: 14 | H167: 22614 | K167: 0 | L167: 2111
A168: 21 | B168: 22738 | C168: 12 | D168: 22756 | E168: 13 | F168: 22761 | G168: 14 | H168: 22769 | K168: 0 | L168: 2111
A169: 21 | B169: 22960 | C169: 12 | D169: 22978 | E169: 13 | F169: 22983 | G169: 14 | H169: 22990 | K169: 0 | L169: 2111
A170: 21 | B170: 23183 | C170: 12 | D170: 23196 | E170: 13 | F170: 23200 | G170: 14 | H170: 23207 | K170: 0 | L170: 2111
A171: 21 | B171: 23414 | C171: 12 | D171: 23427 | E171: 13 | F171: 23430 | G171: 14 | H171: 23437 | K171: 0 | L171: 2111
A172: 21 | B172: 23531 | C172: 12 | D172: 23576 | E172: 13 | F172: 23585 | G172: 14 | H172: 23591 | K172: 0 | L172: 2111
A173: 21 | B173: 23695 | C173: 12 | D173: 23709 | E173: 13 | F173: 23717 | G173: 14 | H173: 23729 | K173: 0 | L173: 2111
A174: 12 | B174: 23829 | C174: 14 | D174: 23839 | E174: 13 | F174: 23845 | G174: 14 | H174: 23850 | K174: 0 | L174: 1111

Sheet !LB05945.. d
A1: Report for:!LB05945.. d
A2: Date: | B2: <date>
A3: Hen: | B3: <hen> | F3: Correct Sequence | G3: =Start!J2 -> 2212 | P3: Total Sequences in Data | Q3: =4994-COUNTBLANK(L7:L5000) -> 170 | V3: Total Sequences in Block Data | W3: =COUNTA(L7:L34) -> 28 | AA3: Total Sequences in Block Data | AB3: =COUNTA(L35:L63) -> 29 | AF3: Total Sequences in Block Data | AG3: =COUNTA(L64:L91) -> 28 | AK3: Total Sequences in Block Data | AL3: =COUNTA(L92:L119) -> 28 | AP3: Total Sequences in Block Data | AQ3: =COUNTA(L120:L148) -> 29 | AU3: Total Sequences in Block Data | AV3: =COUNTA(L149:L176) -> 28
P4: Total Sequences in Summary | Q4: =SUM(O7:O22) -> 170 | V4: Total Sequences in Block Summary | W4: =SUM(U7:U22) -> 28 | AA4: Total Sequences in Block Summary | AB4: =SUM(Z7:Z22) -> 29 | AF4: Total Sequences in Block Summary | AG4: =SUM(AE7:AE22) -> 28 | AK4: Total Sequences in Block Summary | AL4: =SUM(AJ7:AJ22) -> 28 | AP4: Total Sequences in Block Summary | AQ4: =SUM(AO7:AO22) -> 29 | AU4: Total Sequences in Block Summary | AV4: =SUM(AT7:AT22) -> 28
T5: Block 1 | Y5: Block 2 | AD5: Block 3 | AI5: Block 4 | AN5: Block 5 | AS5: Block 6
A6: Sequence Component 1 | B6: Time 1 | C6: Sequence Component 2 | D6: Time 2 | E6: Sequence Component 3 | F6: Time 3 | G6: Sequence Component 4 | H6: Time 4 | I6: Sequence Component 5 | J6: Time 5 | K6: Correct? 0=No 1=Yes | L6: Sequence | N6: Frequency | P6: Relative Frequency | Q6: Variability | T6: Frequency | V6: Relative Frequency | W6: Variability | Y6: Frequency | AA6: Relative Frequency | AB6: Variability | AD6: Frequency | AF6: Relative Frequency | AG6: Variability | AI6: Frequency | AK6: Relative Frequency | AL6: Variability | AN6: Frequency | AP6: Relative Frequency | AQ6: Variability | AS6: Frequency | AU6: Relative Frequency | AV6: Variability
A7: 12 | B7: 21 | C7: 14 | D7: 26 | E7: 13 | F7: 31 | G7: 14 | H7: 38 | K7: 0 | L7: 1111 | N7: 1111 | O7: =COUNTIF($L$7:$L$500,N7) -> 30 | P7: =O7/$Q$4 -> 0.1764705882 | Q7: =IF(P7=0,0,(P7*((LOG(P7))/LOG(2)))) -> -0.4416177072 | T7: =N7 -> 1111 | U7: =COUNTIF(L7:L34,T7) -> 5 | V7: =U7/(W4-U20) -> 0.1785714286 | W7: =IF(V7=0,0,(V7*((LOG(V7))/LOG(2)))) -> -0.4438262191 | Y7: =N7 -> 1111 | Z7: =COUNTIF(L35:L63,Y7) -> 3 | AA7: =Z7/(AB4-Z20) -> 0.1071428571 | AB7: =IF(AA7=0,0,(AA7*((LOG(AA7))/LOG(2)))) -> -0.3452563309 | AD7: =N7 -> 1111 | AE7: =COUNTIF(L64:L91,AD7) -> 5 | AF7: =AE7/(AG4-AE20) -> 0.1785714286 | AG7: =IF(AF7=0,0,(AF7*((LOG(AF7))/LOG(2)))) -> -0.4438262191 | AI7: =N7 -> 1111 | AJ7: =COUNTIF(L92:L119,AI7) -> 4 | AK7: =AJ7/(AL4-AJ20) -> 0.1481481481 | AL7: =IF(AK7=0,0,(AK7*((LOG(AK7))/LOG(2)))) -> -0.4081314818 | AN7: =N7 -> 1111 | AO7: =COUNTIF(L120:L148,AN7) -> 6 | AP7: =AO7/(AQ4-AO20) -> 0.2068965517 | AQ7: =IF(AP7=0,0,(AP7*((LOG(AP7))/LOG(2)))) -> -0.4702796885 | AS7: =N7 -> 1111 | AT7: =COUNTIF(L149:L176,AS7) -> 7 | AU7: =AT7/(AV4-AT20) -> 0.25 | AV7: =IF(AU7=0,0,(AU7*((LOG(AU7))/LOG(2)))) -> -0.5
A8: 12 | B8: 138 | C8: 14 | D8: 142 | E8: 13 | F8: 147 | G8: 14 | H8: 152 | K8: 0 | L8: 1111 | N8: 1112 | O8: 0 | P8: 0 | Q8: 0 | T8: 1112 | U8: =COUNTIF(L7:L34,T8) -> 0 | V8: =U8/(W4-U20) -> 0 | W8: 0 | Y8: 1112 | Z8: =COUNTIF(L35:L63,Y8) -> 0 | AA8: =Z8/(AB4-Z20) -> 0 | AB8: 0 | AD8: 1112 | AE8: =COUNTIF(L64:L91,AD8) -> 0 | AF8: =AE8/(AG4-AE20) -> 0 | AG8: 0 | AI8: 1112 | AJ8: =COUNTIF(L92:L119,AI8) -> 0 | AK8: =AJ8/(AL4-AJ20) -> 0 | AL8: 0 | AN8: 1112 | AO8: =COUNTIF(L120:L148,AN8) -> 0 | AP8: =AO8/(AQ4-AO20) -> 0 | AQ8: 0 | AS8: 1112 | AT8: =COUNTIF(L149:L176,AS8) -> 0 | AU8: =AT8/(AV4-AT20) -> 0 | AV8: 0
A9: 12 | B9: 246 | C9: 14 | D9: 250 | E9: 13 | F9: 255 | G9: 14 | H9: 261 | K9: 0 | L9: 1111 | N9: 1121 | O9: 0 | P9: 0 | Q9: 0 | T9: 1121 | U9: =COUNTIF(L7:L34,T9) -> 0 | V9: =U9/(W4-U20) -> 0 | W9: 0 | Y9: 1121 | Z9: =COUNTIF(L35:L63,Y9) -> 0 | AA9: =Z9/(AB4-Z20) -> 0 | AB9: 0 | AD9: 1121 | AE9: =COUNTIF(L64:L91,AD9) -> 0 | AF9: =AE9/(AG4-AE20) -> 0 | AG9: 0 | AI9: 1121 | AJ9: =COUNTIF(L92:L119,AI9) -> 0 | AK9: =AJ9/(AL4-AJ20) -> 0 | AL9: 0 | AN9: 1121 | AO9: =COUNTIF(L120:L148,AN9) -> 0 | AP9: =AO9/(AQ4-AO20) -> 0 | AQ9: 0 | AS9: 1121 | AT9: =COUNTIF(L149:L176,AS9) -> 0 | AU9: =AT9/(AV4-AT20) -> 0 | AV9: 0
A10: 12 | B10: 355 | C10: 23 | D10: 375 | E10: 24 | F10: 382 | G10: 23 | H10: 388 | K10: 0 | L10: 1222 | N10: 1122 | O10: 0 | P10: 0 | Q10: 0 | T10: 1122 | U10: =COUNTIF(L7:L34,T10) -> 0 | V10: =U10/(W4-U20) -> 0 | W10: 0 | Y10: 1122 | Z10: =COUNTIF(L35:L63,Y10) -> 0 | AA10: =Z10/(AB4-Z20) -> 0 | AB10: 0 | AD10: 1122 | AE10: =COUNTIF(L64:L91,AD10) -> 0 | AF10: =AE10/(AG4-AE20) -> 0 | AG10: 0 | AI10: 1122 | AJ10: =COUNTIF(L92:L119,AI10) -> 0 | AK10: =AJ10/(AL4-AJ20) -> 0 | AL10: 0 | AN10: 1122 | AO10: =COUNTIF(L120:L148,AN10) -> 0 | AP10: =AO10/(AQ4-AO20) -> 0 | AQ10: 0 | AS10: 1122 | AT10: =COUNTIF(L149:L176,AS10) -> 0 | AU10: =AT10/(AV4-AT20) -> 0 | AV10: 0
A11: 12 | B11: 483 | C11: 23 | D11: 493 | E11: 24 | F11: 498 | G11: 23 | H11: 504 | K11: 0 | L11: 1222 | N11: 1211 | O11: 0 | P11: 0 | Q11: 0 | T11: 1211 | U11: =COUNTIF(L7:L34,T11) -> 0 | V11: =U11/(W4-U20) -> 0 | W11: 0 | Y11: 1211 | Z11: =COUNTIF(L35:L63,Y11) -> 0 | AA11: =Z11/(AB4-Z20) -> 0 | AB11: 0 | AD11: 1211 | AE11: =COUNTIF(L64:L91,AD11) -> 0 | AF11: =AE11/(AG4-AE20) -> 0 | AG11: 0 | AI11: 1211 | AJ11: =COUNTIF(L92:L119,AI11) -> 0 | AK11: =AJ11/(AL4-AJ20) -> 0 | AL11: 0 | AN11: 1211 | AO11: =COUNTIF(L120:L148,AN11) -> 0 | AP11: =AO11/(AQ4-AO20) -> 0 | AQ11: 0 | AS11: 1211 | AT11: =COUNTIF(L149:L176,AS11) -> 0 | AU11: =AT11/(AV4-AT20) -> 0 | AV11: 0
A12: 12 | B12: 601 | C12: 14 | D12: 605 | E12: 13 | F12: 611 | G12: 14 | H12: 617 | K12: 0 | L12: 1111 | N12: 1212 | O12: 0 | P12: 0 | Q12: 0 | T12: 1212 | U12: =COUNTIF(L7:L34,T12) -> 0 | V12: =U12/(W4-U20) -> 0 | W12: 0 | Y12: 1212 | Z12: =COUNTIF(L35:L63,Y12) -> 0 | AA12: =Z12/(AB4-Z20) -> 0 | AB12: 0 | AD12: 1212 | AE12: =COUNTIF(L64:L91,AD12) -> 0 | AF12: =AE12/(AG4-AE20) -> 0 | AG12: 0 | AI12: 1212 | AJ12: =COUNTIF(L92:L119,AI12) -> 0 | AK12: =AJ12/(AL4-AJ20) -> 0 | AL12: 0 | AN12: 1212 | AO12: =COUNTIF(L120:L148,AN12) -> 0 | AP12: =AO12/(AQ4-AO20) -> 0 | AQ12: 0 | AS12: 1212 | AT12: =COUNTIF(L149:L176,AS12) -> 0 | AU12: =AT12/(AV4-AT20) -> 0 | AV12: 0
A13: 21 | B13: 717 | C13: 12 | D13: 730 | E13: 13 | F13: 739 | G13: 14 | H13: 746 | K13: 0 | L13: 2111 | N13: 1221 | O13: 0 | P13: 0 | Q13: 0 | T13: 1221 | U13: =COUNTIF(L7:L34,T13) -> 0 | V13: =U13/(W4-U20) -> 0 | W13: 0 | Y13: 1221 | Z13: =COUNTIF(L35:L63,Y13) -> 0 | AA13: =Z13/(AB4-Z20) -> 0 | AB13: 0 | AD13: 1221 | AE13: =COUNTIF(L64:L91,AD13) -> 0 | AF13: =AE13/(AG4-AE20) -> 0 | AG13: 0 | AI13: 1221 | AJ13: =COUNTIF(L92:L119,AI13) -> 0 | AK13: =AJ13/(AL4-AJ20) -> 0 | AL13: 0 | AN13: 1221 | AO13: =COUNTIF(L120:L148,AN13) -> 0 | AP13: =AO13/(AQ4-AO20) -> 0 | AQ13: 0 | AS13: 1221 | AT13: =COUNTIF(L149:L176,AS13) -> 0 | AU13: =AT13/(AV4-AT20) -> 0 | AV13: 0
A14: 21 | B14: 842 | C14: 12 | D14: 874 | E14: 13 | F14: 880 | G14: 14 | H14: 884 | K14: 0 | L14: 2111 | N14: 1222 | O14: 16 | P14: 0.09411764706 | Q14: -0.3208838528 | T14: 1222 | U14: =COUNTIF(L7:L34,T14) -> 6 | V14: =U14/(W4-U20) -> 0.2142857143 | W14: -0.4762269474 | Y14: 1222 | Z14: =COUNTIF(L35:L63,Y14) -> 2 | AA14: =Z14/(AB4-Z20) -> 0.07142857143 | AB14: -0.271953923 | AD14: 1222 | AE14: =COUNTIF(L64:L91,AD14) -> 3 | AF14: =AE14/(AG4-AE20) -> 0.1071428571 | AG14: -0.3452563309 | AI14: 1222 | AJ14: =COUNTIF(L92:L119,AI14) -> 3 | AK14: =AJ14/(AL4-AJ20) -> 0.1111111111 | AL14: -0.352213889 | AN14: 1222 | AO14: =COUNTIF(L120:L148,AN14) -> 0 | AP14: =AO14/(AQ4-AO20) -> 0 | AQ14: 0 | AS14: 1222 | AT14: =COUNTIF(L149:L176,AS14) -> 2 | AU14: =AT14/(AV4-AT20) -> 0.07142857143 | AV14: -0.271953923
A15: 21 | B15: 1007 | C15: 21 | D15: 1011 | E15: 11 | F15: 1025 | G15: 12 | H15: 1031 | K15: 0 | L15: 2211 | N15: 2111 | O15: 80 | P15: 0.4705882353 | Q15: -0.5117472194 | T15: 2111 | U15: =COUNTIF(L7:L34,T15) -> 12 | V15: =U15/(W4-U20) -> 0.4285714286 | W15: -0.5238824663 | Y15: 2111 | Z15: =COUNTIF(L35:L63,Y15) -> 14 | AA15: =Z15/(AB4-Z20) -> 0.5 | AB15: -0.5 | AD15: 2111 | AE15: =COUNTIF(L64:L91,AD15) -> 12 | AF15: =AE15/(AG4-AE20) -> 0.4285714286 | AG15: -0.5238824663 | AI15: 2111 | AJ15: =COUNTIF(L92:L119,AI15) -> 13 | AK15: =AJ15/(AL4-AJ20) -> 0.4814814815 | AL15: -0.5076970812 | AN15: 2111 | AO15: =COUNTIF(L120:L148,AN15) -> 16 | AP15: =AO15/(AQ4-AO20) -> 0.5517241379 | AQ15: -0.4733688249 | AS15: 2111 | AT15: =COUNTIF(L149:L176,AS15) -> 13 | AU15: =AT15/(AV4-AT20) -> 0.4642857143 | AV15: -0.5139249161
A16: 21 | B16: 1126 | C16: 21 | D16: 1143 | E16: 22 | F16: 1164 | G16: 14 | H16: 1175 | K16: 0 | L16: 2221 | N16: 2112 | O16: 0 | P16: 0 | Q16: 0 | T16: 2112 | U16: =COUNTIF(L7:L34,T16) -> 0 | V16: =U16/(W4-U20) -> 0 | W16: 0 | Y16: 2112 | Z16: =COUNTIF(L35:L63,Y16) -> 0 | AA16: =Z16/(AB4-Z20) -> 0 | AB16: 0 | AD16: 2112 | AE16: =COUNTIF(L64:L91,AD16) -> 0 | AF16: =AE16/(AG4-AE20) -> 0 | AG16: 0 | AI16: 2112 | AJ16: =COUNTIF(L92:L119,AI16) -> 0 | AK16: =AJ16/(AL4-AJ20) -> 0 | AL16: 0 | AN16: 2112 | AO16: =COUNTIF(L120:L148,AN16) -> 0 | AP16: =AO16/(AQ4-AO20) -> 0 | AQ16: 0 | AS16: 2112 | AT16: =COUNTIF(L149:L176,AS16) -> 0 | AU16: =AT16/(AV4-AT20) -> 0 | AV16: 0
A17: 21 | B17: 1295 | C17: 12 | D17: 1308 | E17: 13 | F17: 1313 | G17: 14 | H17: 1320 | K17: 0 | L17: 2111 | N17: 2121 | O17: 0 | P17: 0 | Q17: 0 | T17: 2121 | U17: =COUNTIF(L7:L34,T17) -> 0 | V17: =U17/(W4-U20) -> 0 | W17: 0 | Y17: 2121 | Z17: =COUNTIF(L35:L63,Y17) -> 0 | AA17: =Z17/(AB4-Z20) -> 0 | AB17: 0 | AD17: 2121 | AE17: =COUNTIF(L64:L91,AD17) -> 0 | AF17: =AE17/(AG4-AE20) -> 0 | AG17: 0 | AI17: 2121 | AJ17: =COUNTIF(L92:L119,AI17) -> 0 | AK17: =AJ17/(AL4-AJ20) -> 0 | AL17: 0 | AN17: 2121 | AO17: =COUNTIF(L120:L148,AN17) -> 0 | AP17: =AO17/(AQ4-AO20) -> 0 | AQ17: 0 | AS17: 2121 | AT17: =COUNTIF(L149:L176,AS17) -> 0 | AU17: =AT17/(AV4-AT20) -> 0 | AV17: 0
A18: 12 | B18: 1424 | C18: 23 | D18: 1438 | E18: 24 | F18: 1445 | G18: 23 | H18: 1451 | K18: 0 | L18: 1222 | N18: 2122 | O18: 1 | P18: 0.005882352941 | Q18: -0.04358465257 | T18: 2122 | U18: =COUNTIF(L7:L34,T18) -> 0 | V18: =U18/(W4-U20) -> 0 | W18: 0 | Y18: 2122 | Z18: =COUNTIF(L35:L63,Y18) -> 1 | AA18: =Z18/(AB4-Z20) -> 0.03571428571 | AB18: -0.1716912472 | AD18: 2122 | AE18: =COUNTIF(L64:L91,AD18) -> 0 | AF18: =AE18/(AG4-AE20) -> 0 | AG18: 0 | AI18: 2122 | AJ18: =COUNTIF(L92:L119,AI18) -> 0 | AK18: =AJ18/(AL4-AJ20) -> 0 | AL18: 0 | AN18: 2122 | AO18: =COUNTIF(L120:L148,AN18) -> 0 | AP18: =AO18/(AQ4-AO20) -> 0 | AQ18: 0 | AS18: 2122 | AT18: =COUNTIF(L149:L176,AS18) -> 0 | AU18: =AT18/(AV4-AT20) -> 0 | AV18: 0
A19: 21 | B19: 1548 | C19: 12 | D19: 1560 | E19: 13 | F19: 1564 | G19: 14 | H19: 1570 | K19: 0 | L19: 2111 | N19: 2211 | O19: 23 | P19: 0.1352941176 | Q19: -0.3904356855 | T19: 2211 | U19: =COUNTIF(L7:L34,T19) -> 4 | V19: =U19/(W4-U20) -> 0.1428571429 | W19: -0.4010507032 | Y19: 2211 | Z19: =COUNTIF(L35:L63,Y19) -> 4 | AA19: =Z19/(AB4-Z20) -> 0.1428571429 | AB19: -0.4010507032 | AD19: 2211 | AE19: =COUNTIF(L64:L91,AD19) -> 6 | AF19: =AE19/(AG4-AE20) -> 0.2142857143 | AG19: -0.4762269474 | AI19: 2211 | AJ19: =COUNTIF(L92:L119,AI19) -> 2 | AK19: =AJ19/(AL4-AJ20) -> 0.07407407407 | AL19: -0.278139815 | AN19: 2211 | AO19: =COUNTIF(L120:L148,AN19) -> 5 | AP19: =AO19/(AQ4-AO20) -> 0.1724137931 | AQ19: -0.4372505 | AS19: 2211 | AT19: =COUNTIF(L149:L176,AS19) -> 2 | AU19: =AT19/(AV4-AT20) -> 0.07142857143 | AV19: -0.271953923
A20: 21 | B20: 1667 | C20: 12 | D20: 1678 | E20: 13 | F20: 1682 | G20: 14 | H20: 1689 | K20: 0 | L20: 2111 | N20: 2212 | O20: 2 | P20: 0.01176470588 | Q20: -0.07540459925 | T20: 2212 | U20: =COUNTIF(L7:L34,T20) -> 0 | Y20: 2212 | Z20: =COUNTIF(L35:L63,Y20) -> 1 | AD20: 2212 | AE20: =COUNTIF(L64:L91,AD20) -> 0 | AI20: 2212 | AJ20: =COUNTIF(L92:L119,AI20) -> 1 | AN20: 2212 | AO20: =COUNTIF(L120:L148,AN20) -> 0 | AS20: 2212 | AT20: =COUNTIF(L149:L176,AS20) -> 0
A21: 12 | B21: 1790 | C21: 23 | D21: 1800 | E21: 24 | F21: 1804 | G21: 23 | H21: 1808 | K21: 0 | L21: 1222 | N21: 2221 | O21: 7 | P21: 0.04117647059 | Q21: -0.1894956006 | T21: 2221 | U21: =COUNTIF(L7:L34,T21) -> 1 | V21: =U21/(W4-U20) -> 0.03571428571 | W21: =IF(V21=0,0,(V21*((LOG(V21))/LOG(2)))) -> -0.1716912472 | Y21: 2221 | Z21: =COUNTIF(L35:L63,Y21) -> 1 | AA21: =Z21/(AB4-Z20) -> 0.03571428571 | AB21: =IF(AA21=0,0,(AA21*((LOG(AA21))/LOG(2)))) -> -0.1716912472 | AD21: 2221 | AE21: =COUNTIF(L64:L91,AD21) -> 2 | AF21: =AE21/(AG4-AE20) -> 0.07142857143 | AG21: =IF(AF21=0,0,(AF21*((LOG(AF21))/LOG(2)))) -> -0.271953923 | AI21: 2221 | AJ21: =COUNTIF(L92:L119,AI21) -> 2 | AK21: =AJ21/(AL4-AJ20) -> 0.07407407407 | AL21: =IF(AK21=0,0,(AK21*((LOG(AK21))/LOG(2)))) -> -0.278139815 | AN21: 2221 | AO21: =COUNTIF(L120:L148,AN21) -> 1 | AP21: =AO21/(AQ4-AO20) -> 0.03448275862 | AQ21: =IF(AP21=0,0,(AP21*((LOG(AP21))/LOG(2)))) -> -0.167516586 | AS21: 2221 | AT21: =COUNTIF(L149:L176,AS21) -> 0 | AU21: =AT21/(AV4-AT20) -> 0 | AV21: =IF(AU21=0,0,(AU21*((LOG(AU21))/LOG(2)))) -> 0
A22: 21 | B22: 1906 | C22: 21 | D22: 1921 | E22: 11 | F22: 1933 | G22: 12 | H22: 1938 | K22: 0 | L22: 2211 | N22: 2222 | O22: 11 | P22: 0.06470588235 | Q22: -0.2555856029 | T22: 2222 | U22: =COUNTIF(L7:L34,T22) -> 0 | V22: =U22/(W4-U20) -> 0 | W22: =IF(V22=0,0,(V22*((LOG(V22))/LOG(2)))) -> 0 | Y22: 2222 | Z22: =COUNTIF(L35:L63,Y22) -> 3 | AA22: =Z22/(AB4-Z20) -> 0.1071428571 | AB22: =IF(AA22=0,0,(AA22*((LOG(AA22))/LOG(2)))) -> -0.3452563309 | AD22: 2222 | AE22: =COUNTIF(L64:L91,AD22) -> 0 | AF22: =AE22/(AG4-AE20) -> 0 | AG22: =IF(AF22=0,0,(AF22*((LOG(AF22))/LOG(2)))) -> 0 | AI22: 2222 | AJ22: =COUNTIF(L92:L119,AI22) -> 3 | AK22: =AJ22/(AL4-AJ20) -> 0.1111111111 | AL22: =IF(AK22=0,0,(AK22*((LOG(AK22))/LOG(2)))) -> -0.352213889 | AN22: 2222 | AO22: =COUNTIF(L120:L148,AN22) -> 1 | AP22: =AO22/(AQ4-AO20) -> 0.03448275862 | AQ22: =IF(AP22=0,0,(AP22*((LOG(AP22))/LOG(2)))) -> -0.167516586 | AS22: 2222 | AT22: =COUNTIF(L149:L176,AS22) -> 4 | AU22: =AT22/(AV4-AT20) -> 0.1428571429 | AV22: =IF(AU22=0,0,(AU22*((LOG(AU22))/LOG(2)))) -> -0.4010507032
A23: 12 | B23: 2042 | C23: 23 | D23: 2053 | E23: 24 | F23: 2057 | G23: 23 | H23: 2064 | K23: 0 | L23: 1222 | P23: =SUM(P7:P22) -> 1 | Q23: =-SUM(Q7:Q22) -> 2.22875492 | V23: =SUM(V7:V22) -> 1 | W23: =-SUM(W7:W22) -> 2.016677583 | AA23: =SUM(AA7:AA22) -> 1 | AB23: =-SUM(AB7:AB22) -> 2.206899782 | AF23: =SUM(AF7:AF22) -> 1 | AG23: =-SUM(AG7:AG22) -> 2.061145887 | AK23: =SUM(AK7:AK22) -> 1 | AL23: =-SUM(AL7:AL22) -> 2.176535971 | AP23: =SUM(AP7:AP22) -> 1 | AQ23: =-SUM(AQ7:AQ22) -> 1.715932186 | AU23: =SUM(AU7:AU22) -> 1 | AV23: =-SUM(AV7:AV22) -> 1.958883465
A24: 12 | B24: 2159 | C24: 23 | D24: 2171 | E24: 24 | F24: 2176 | G24: 23 | H24: 2182 | K24: 0 | L24: 1222 | P24: U= | Q24: =Q23/(LOG(Q4)/LOG(2)) -> 0.3008013667 | V24: U1= | W24: =W23/(LOG(W4)/LOG(2)) -> 0.4194983761 | AA24: U2= | AB24: =AB23/(LOG(AB4)/LOG(2)) -> 0.4542833297 | AF24: U3= | AG24: =AG23/(LOG(AG4)/LOG(2)) -> 0.4287484324 | AK24: U4= | AL24: =AL23/(LOG(AL4)/LOG(2)) -> 0.4527512543 | AP24: U5= | AQ24: =AQ23/(LOG(AQ4)/LOG(2)) -> 0.3532192051 | AU24: U6= | AV24: =AV23/(LOG(AV4)/LOG(2)) -> 0.4074763559
A25: 12 | B25: 2277 | C25: 14 | D25: 2283 | E25: 13 | F25: 2292 | G25: 14 | H25: 2298 | K25: 0 | L25: 1111
A26: 21 | B26: 2393 | C26: 12 | D26: 2405 | E26: 13 | F26: 2407 | G26: 14 | H26: 2414 | K26: 0 | L26: 2111
A27: 21 | B27: 2519 | C27: 21 | D27: 2524 | E27: 11 | F27: 2535 | G27: 12 | H27: 2541 | K27: 0 | L27: 2211 | N27: Total Target Seq
A28: 21 | B28: 2553 | C28: 12 | D28: 2569 | E28: 13 | F28: 2572 | G28: 14 | H28: 2577 | K28: 0 | L28: 2111 | N28: =COUNTIF(L7:L176,G3) -> 2 | P28: 28 | Q28: 29 | R28: 28 | S28: 28 | T28: 29 | U28: 28
A29: 21 | B29: 2677 | C29: 12 | D29: 2689 | E29: 13 | F29: 2692 | G29: 14 | H29: 2697 | K29: 0 | L29: 2111 | P29: % of reinforcement given in 6 equal intervals based on number of trials
A30: 21 | B30: 2799 | C30: 12 | D30: 2812 | E30: 13 | F30: 2820 | G30: 14 | H30: 2826 | K30: 0 | L30: 2111 | P30: %_1 | Q30: %_2 | R30: %_3 | S30: %_4 | T30: %_5 | U30: %_6
A31: 21 | B31: 2934 | C31: 12 | D31: 2948 | E31: 13 | F31: 2951 | G31: 14 | H31: 2958 | K31: 0 | L31: 2111 | O31: target sequence | P31: =$G$3 -> 2212 | Q31: 2212 | R31: 2212 | S31: 2212 | T31: 2212 | U31: 2212
A32: 21 | B32: 3059 | C32: 12 | D32: 3072 | E32: 13 | F32: 3076 | G32: 14 | H32: 3082 | K32: 0 | L32: 2111 | O32: total reinforcement | P32: =U20 -> 0 | Q32: =Z20 -> 1 | R32: =AE20 -> 0 | S32: =AJ20 -> 1 | T32: =AO20 -> 0 | U32: =AT20 -> 0
A33: 21 | B33: 3183 | C33: 12 | D33: 3200 | E33: 13 | F33: 3204 | G33: 14 | H33: 3211 | K33: 0 | L33: 2111 | O33: % target
A34: 21 | B34: 3311 | C34: 21 | D34: 3326 | E34: 11 | F34: 3339 | G34: 12 | H34: 3344 | K34: 0 | L34: 2211 | O34: CCRF
A35: 21 | B35: 3438 | C35: 12 | D35: 3452 | E35: 13 | F35: 3456 | G35: 14 | H35: 3462 | K35: 0 | L35: 2111 | O35: % CCRf
A36: 21 | B36: 3556 | C36: 12 | D36: 3570 | E36: 13 | F36: 3580 | G36: 14 | H36: 3586 | K36: 0 | L36: 2111 | O36: average response rate | P36: =H34/P28 -> 119.4285714 | Q36: =(H63-H34)/Q28 -> 139.3103448 | R36: =(H91-H63)/R28 -> 150.0357143 | S36: =(H119-H91)/S28 -> 141.4642857 | T36: =(H148-H119)/T28 -> 145.862069 | U36: =(H176-H148)/U28 -> 147.2857143
A37: 21 | B37: 3681 | C37: 12 | D37: 3695 | E37: 13 | F37: 3699 | G37: 14 | H37: 3705 | K37: 0 | L37: 2111
A38: 21 | B38: 3803 | C38: 12 | D38: 3829 | E38: 13 | F38: 3834 | G38: 14 | H38: 3840 | K38: 0 | L38: 2111
A39: 21 | B39: 3935 | C39: 21 | D39: 3951 | E39: 11 | F39: 3968 | G39: 12 | H39: 3972 | K39: 0 | L39: 2211
A40: 21 | B40: 4010 | C40: 21 | D40: 4029 | E40: 22 | F40: 4039 | G40: 14 | H40: 4052 | K40: 0 | L40: 2221
A41: 12 | B41: 4165 | C41: 14 | D41: 4171 | E41: 13 | F41: 4176 | G41: 14 | H41: 4182 | K41: 0 | L41: 1111
A42: 21 | B42: 4276 | C42: 21 | D42: 4290 | E42: 11 | F42: 4315 | G42: 21 | H42: 4331 | K42: 0 | L42: 2212
A43: 12 | B43: 4453 | C43: 14 | D43: 4463 | E43: 13 | F43: 4468 | G43: 14 | H43: 4475 | K43: 0 | L43: 1111
A44: 21 | B44: 4582 | C44: 12 | D44: 4593 | E44: 13 | F44: 4604 | G44: 14 | H44: 4611 | K44: 0 | L44: 2111
A45: 21 | B45: 4711 | C45: 12 | D45: 4724 | E45: 13 | F45: 4729 | G45: 14 | H45: 4735 | K45: 0 | L45: 2111
A46: 21 | B46: 4836 | C46: 12 | D46: 4850 | E46: 13 | F46: 4854 | G46: 14 | H46: 4860 | K46: 0 | L46: 2111
A47: 21 | B47: 4974 | C47: 12 | D47: 4989 | E47: 13 | F47: 4993 | G47: 14 | H47: 5001 | K47: 0 | L47: 2111
A48: 21 | B48: 5096 | C48: 21 | D48: 5100 | E48: 22 | F48: 5105 | G48: 23 | H48: 5108 | K48: 0 | L48: 2222
A49: 12 | B49: 5235 | C49: 23 | D49: 5246 | E49: 24 | F49: 5250 | G49: 23 | H49: 5256 | K49: 0 | L49: 1222
A50: 21 | B50: 5355 | C50: 12 | D50: 5367 | E50: 13 | F50: 5372 | G50: 14 | H50: 5379 | K50: 0 | L50: 2111
A51: 21 | B51: 5475 | C51: 12 | D51: 5487 | E51: 13 | F51: 5491 | G51: 14 | H51: 5497 | K51: 0 | L51: 2111
A52: 12 | B52: 5655 | C52: 23 | D52: 5666 | E52: 24 | F52: 5672 | G52: 23 | H52: 5677 | K52: 0 | L52: 1222
A53: 21 | B53: 5913 | C53: 21 | D53: 5917 | E53: 22 | F53: 5927 | G53: 23 | H53: 5933 | K53: 0 | L53: 2222
A54: 21 | B54: 6040 | C54: 21 | D54: 6059 | E54: 11 | F54: 6072 | G54: 12 | H54: 6076 | K54: 0 | L54: 2211
A55: 21 | B55: 6257 | C55: 21 | D55: 6260 | E55: 22 | F55: 6266 | G55: 23 | H55: 6271 | K55: 0 | L55: 2222
A56: 21 | B56: 6381 | C56: 12 | D56: 6396 | E56: 13 | F56: 6404 | G56: 14 | H56: 6411 | K56: 0 | L56: 2111
A57: 21 | B57: 6512 | C57: 12 | D57: 6533 | E57: 24 | F57: 6549 | G57: 23 | H57: 6555 | K57: 0 | L57: 2122
A58: 21 | B58: 6662 | C58: 12 | D58: 6673 | E58: 13 | F58: 6677 | G58: 14 | H58: 6685 | K58: 0 | L58: 2111
A59: 12 | B59: 6877 | C59: 14 | D59: 6885 | E59: 13 | F59: 6890 | G59: 14 | H59: 6896 | K59: 0 | L59: 1111
A60: 21 | B60: 6990 | C60: 12 | D60: 7003 | E60: 13 | F60: 7007 | G60: 14 | H60: 7013 | K60: 0 | L60: 2111
A61: 21 | B61: 7115 | C61: 21 | D61: 7117 | E61: 11 | F61: 7131 | G61: 12 | H61: 7134 | K61: 0 | L61: 2211
A62: 21 | B62: 7237 | C62: 21 | D62: 7241 | E62: 11 | F62: 7253 | G62: 12 | H62: 7257 | K62: 0 | L62: 2211
A63: 21 | B63: 7349 | C63: 12 | D63: 7372 | E63: 13 | F63: 7378 | G63: 14 | H63: 7384 | K63: 0 | L63: 2111
A64: 21 | B64: 7562 | C64: 21 | D64: 7565 | E64: 11 | F64: 7577 | G64: 12 | H64: 7581 | K64: 0 | L64: 2211
A65: 21 | B65: 7679 | C65: 12 | D65: 7690 | E65: 13 | F65: 7698 | G65: 14 | H65: 7705 | K65: 0 | L65: 2111
A66: 12 | B66: 7807 | C66: 23 | D66: 7818 | E66: 24 | F66: 7822 | G66: 23 | H66: 7828 | K66: 0 | L66: 1222
A67: 21 | B67: 7928 | C67: 12 | D67: 7942 | E67: 13 | F67: 7951 | G67: 14 | H67: 7958 | K67: 0 | L67: 2111
A68: 21 | B68: 8051 | C68: 21 | D68: 8070 | E68: 11 | F68: 8090 | G68: 12 | H68: 8096 | K68: 0 | L68: 2211
A69: 21 | B69: 8224 | C69: 12 | D69: 8237 | E69: 13 | F69: 8240 | G69: 14 | H69: 8247 | K69: 0 | L69: 2111
A70: 12 | B70: 8366 | C70: 14 | D70: 8373 | E70: 13 | F70: 8378 | G70: 14 | H70: 8383 | K70: 0 | L70: 1111
A71: 21 | B71: 8485 | C71: 12 | D71: 8498 | E71: 13 | F71: 8503 | G71: 14 | H71: 8509 | K71: 0 | L71: 2111
A72: 21 | B72: 8608 | C72: 12 | D72: 8620 | E72: 13 | F72: 8625 | G72: 14 | H72: 8631 | K72: 0 | L72: 2111
A73: 21 | B73: 8727 | C73: 21 | D73: 8732 | E73: 11 | F73: 8744 | G73: 12 | H73: 8747 | K73: 0 | L73: 2211
A74: 21 | B74: 8849 | C74: 21 | D74: 8870 | E74: 22 | F74: 8876 | G74: 14 | H74: 8887 | K74: 0 | L74: 2221
A75: 21 | B75: 9091 | C75: 12 | D75: 9104 | E75: 13 | F75: 9108 | G75: 14 | H75: 9114 | K75: 0 | L75: 2111
A76: 12 | B76: 9439 | C76: 14 | D76: 9447 | E76: 13 | F76: 9454 | G76: 14 | H76: 9461 | K76: 0 | L76: 1111
A77: 12 | B77: 9565 | C77: 14 | D77: 9570 | E77: 13 | F77: 9576 | G77: 14 | H77: 9581 | K77: 0 | L77: 1111
A78: 12 | B78: 9684 | C78: 23 | D78: 9699 | E78: 24 | F78: 9702 | G78: 23 | H78: 9708 | K78: 0 | L78: 1222
A79: 21 | B79: 9858 | C79: 12 | D79: 9871 | E79: 13 | F79: 9875 | G79: 14 | H79: 9885 | K79: 0 | L79: 2111
A80: 21 | B80: 9982 | C80: 12 | D80: 10017 | E80: 13 | F80: 10022 | G80: 14 | H80: 10027 | K80: 0 | L80: 2111
A81: 21 | B81: 10130 | C81: 21 | D81: 10158 | E81: 11 | F81: 10171 | G81: 12 | H81: 10176 | K81: 0 | L81: 2211
A82: 21 | B82: 10268 | C82: 21 | D82: 10281 | E82: 22 | F82: 10286 | G82: 14 | H82: 10302 | K82: 0 | L82: 2221
A83: 21 | B83: 10394 | C83: 12 | D83: 10409 | E83: 13 | F83: 10418 | G83: 14 | H83: 10423 | K83: 0 | L83: 2111
A84: 12 | B84: 10558 | C84: 14 | D84: 10563 | E84: 13 | F84: 10568 | G84: 14 | H84: 10572 | K84: 0 | L84: 1111
A85: 21 | B85: 10680 | C85: 12 | D85: 10693 | E85: 13 | F85: 10699 | G85: 14 | H85: 10706 | K85: 0 | L85: 2111
A86: 21 | B86: 10904 | C86: 21 | D86: 10923 | E86: 11 | F86: 10942 | G86: 12 | H86: 10947 | K86: 0 | L86: 2211
A87: 21 | B87: 11047 | C87: 21 | D87: 11066 | E87: 11 | F87: 11081 | G87: 12 | H87: 11086 | K87: 0 | L87: 2211
A88: 21 | B88: 11181 | C88: 12 | D88: 11194 | E88: 13 | F88: 11199 | G88: 14 | H88: 11206 | K88: 0 | L88: 2111
A89: 12 | B89: 11323 | C89: 14 | D89: 11328 | E89: 13 | F89: 11333 | G89: 14 | H89: 11339 | K89: 0 | L89: 1111
A90: 21 | B90: 11434 | C90: 12 | D90: 11446 | E90: 13 | F90: 11451 | G90: 14 | H90: 11457 | K90: 0 | L90: 2111
A91: 12 | B91: 11565 | C91: 23 | D91: 11576 | E91: 24 | F91: 11580 | G91: 23 | H91: 11585 | K91: 0 | L91: 1222
A92: 12 | B92: 11724 | C92: 14 | D92: 11729 | E92: 13 | F92: 11734 | G92: 14 | H92: 11741 | K92: 0 | L92: 1111
A93: 21 | B93: 11933 | C93: 21 | D93: 11938 | E93: 22 | F93: 11944 | G93: 23 | H93: 11950 | K93: 0 | L93: 2222
A94: 21 | B94: 12091 | C94: 12 | D94: 12105 | E94: 13 | F94: 12124 | G94: 14 | H94: 12137 | K94: 0 | L94: 2111
A95: 21 | B95: 12240 | C95: 12 | D95: 12254 | E95: 13 | F95: 12258 | G95: 14 | H95: 12269 | K95: 0 | L95: 2111
A96: 21 | B96: 12364 | C96: 12 | D96: 12378 | E96: 13 | F96: 12382 | G96: 14 | H96: 12388 | K96: 0 | L96: 2111
A97: 12 | B97: 12479 | C97: 14 | D97: 12485 | E97: 13 | F97: 12491 | G97: 14 | H97: 12498 | K97: 0 | L97: 1111
A98: 21 | B98: 12606 | C98: 12 | D98: 12619 | E98: 13 | F98: 12624 | G98: 14 | H98: 12628 | K98: 0 | L98: 2111
A99: 21 | B99: 12780 | C99: 12 | D99: 12798 | E99: 13 | F99: 12804 | G99: 14 | H99: 12811 | K99: 0 | L99: 2111
A100: 12 | B100: 12906 | C100: 23 | D100: 12920 | E100: 24 | F100: 12926 | G100: 23 | H100: 12933 | K100: 0 | L100: 1222
A101: 21 | B101: 13030 | C101: 12 | D101: 13043 | E101: 13 | F101: 13047 | G101: 14 | H101: 13053 | K101: 0 | L101: 2111
A102: 21 | B102: 13153 | C102: 12 | D102: 13167 | E102: 13 | F102: 13172 | G102: 14 | H102: 13177 | K102: 0 | L102: 2111
A103: 12 | B103: 13332 | C103: 23 | D103: 13348 | E103: 24 | F103: 13352 | G103: 23 | H103: 13358 | K103: 0 | L103: 1222
A104: 12 | B104: 13530 | C104: 14 | D104: 13534 | E104: 13 | F104: 13542 | G104: 14 | H104: 13548 | K104: 0 | L104: 1111
A105: 21 | B105: 13642 | C105: 21 | D105: 13649 | E105: 11 | F105: 13668 | G105: 21 | H105: 13683 | K105: 0 | L105: 2212
A106: 21 | B106: 13870 | C106: 21 | D106: 13875 | E106: 22 | F106: 13880 | G106: 23 | H106: 13886 | K106: 0 | L106: 2222
A107: 21 | B107: 13986 | C107: 12 | D107: 13999 | E107: 13 | F107: 14010 | G107: 14 | H107: 14017 | K107: 0 | L107: 2111
A108: 21 | B108: 14125 | C108: 12 | D108: 14138 | E108: 13 | F108: 14144 | G108: 14 | H108: 14150 | K108: 0 | L108: 2111
A109: 12 | B109: 14247 | C109: 14 | D109: 14254 | E109: 13 | F109: 14259 | G109: 14 | H109: 14266 | K109: 0 | L109: 1111
A110: 21 | B110: 14371 | C110: 21 | D110: 14375 | E110: 11 | F110: 14386 | G110: 12 | H110: 14392 | K110: 0 | L110: 2211
A111: 21 | B111: 14485 | C111: 12 | D111: 14496 | E111: 13 | F111: 14501 | G111: 14 | H111: 14506 | K111: 0 | L111: 2111
A112: 21 | B112: 14606 | C112: 12 | D112: 14621 | E112: 13 | F112: 14625 | G112: 14 | H112: 14630 | K112: 0 | L112: 2111
A113: 21 | B113: 14724 | C113: 21 | D113: 14739 | E113: 22 | F113: 14743 | G113: 14 | H113: 14756 | K113: 0 | L113: 2221
A114: 21 | B114: 14859 | C114: 12 | D114: 14875 | E114: 13 | F114: 14880 | G114: 14 | H114: 14886 | K114: 0 | L114: 2111
A115: 21 | B115: 15013 | C115: 21 | D115: 15018 | E115: 22 | F115: 15024 | G115: 23 | H115: 15031 | K115: 0 | L115: 2222
A116: 21 | B116: 15126 | C116: 12 | D116: 15139 | E116: 13 | F116: 15144 | G116: 14 | H116: 15151 | K116: 0 | L116: 2111
A117: 21 | B117: 15248 | C117: 21 | D117: 15262 | E117: 22 | F117: 15268 | G117: 14 | H117: 15280 | K117: 0 | L117: 2221
A118: 21 | B118: 15390 | C118: 21 | D118: 15395 | E118: 11 | F118: 15409 | G118: 12 | H118: 15416 | K118: 0 | L118: 2211
A119: 12 | B119: 15513 | C119: 23 | D119: 15529 | E119: 24 | F119: 15535 | G119: 23 | H119: 15546 | K119: 0 | L119: 1222
A120: 21 | B120: 15647 | C120: 12 | D120: 15664 | E120: 13 | F120: 15669 | G120: 14 | H120: 15674 | K120: 0 | L120: 2111
A121: 21 | B121: 15768 | C121: 12 | D121: 15782 | E121: 13 | F121: 15793 | G121: 14 | H121: 15800 | K121: 0 | L121: 2111
A122: 21 | B122: 15904 | C122: 21 | D122: 15909 | E122: 11 | F122: 15921 | G122: 12 | H122: 15924 | K122: 0 | L122: 2211
A123: 21 | B123: 16038 | C123: 21 | D123: 16042 | E123: 11 | F123: 16055 | G123: 12 | H123: 16059 | K123: 0 | L123: 2211
A124: 21 | B124: 16164 | C124: 12 | D124: 16180 | E124: 13 | F124: 16185 | G124: 14 | H124: 16198 | K124: 0 | L124: 2111
A125: 21 | B125: 16313 | C125: 12 | D125: 16329 | E125: 13 | F125: 16335 | G125: 14 | H125: 16342 | K125: 0 | L125: 2111
A126: 21 | B126: 16478 | C126: 12 | D126: 16493 | E126: 13 | F126: 16500 | G126: 14 | H126: 16518 | K126: 0 | L126: 2111
A127: 12 | B127: 16623 | C127: 14 | D127: 16629 | E127: 13 | F127: 16636 | G127: 14 | H127: 16642 | K127: 0 | L127: 1111
A128: 21 | B128: 16751 | C128: 12 | D128: 16764 | E128: 13 | F128: 16768 | G128: 14 | H128: 16773 | K128: 0 | L128: 2111
A129: 21 | B129: 16982 | C129: 21 | D129: 16988 | E129: 11 | F129: 16998 | G129: 12 | H129: 17001 | K129: 0 | L129: 2211
A130: 21 | B130: 17208 | C130: 12 | D130: 17221 | E130: 13 | F130: 17226 | G130: 14 | H130: 17234 | K130: 0 | L130: 2111
A131: 21 | B131: 17336 | C131: 21 | D131: 17355 | E131: 11 | F131: 17367 | G131: 12 | H131: 17371 | K131: 0 | L131: 2211
A132: 21 | B132: 17468 | C132: 21 | D132: 17485 | E132: 22 | F132: 17503 | G132: 14 | H132: 17519 | K132: 0 | L132: 2221
A133: 21 | B133: 17674 | C133: 12 | D133: 17692 | E133: 13 | F133: 17700 | G133: 14 | H133: 17706 | K133: 0 | L133: 2111
A134: 21 | B134: 17821 | C134: 21 | D134: 17825 | E134: 22 | F134: 17830 | G134: 23 | H134: 17836 | K134: 0 | L134: 2222
A135: 12 | B135: 17954 | C135: 14 | D135: 17961 | E135: 13 | F135: 17966 | G135: 14 | H135: 17973 | K135: 0 | L135: 1111
A136: 21 | B136: 18130 | C136: 12 | D136: 18165 | E136: 13 | F136: 18172 | G136: 14 | H136: 18178 | K136: 0 | L136: 2111
A137: 12 | B137: 18278 | C137: 14 | D137: 18283 | E137: 13 | F137: 18287 | G137: 14 | H137: 18293 | K137: 0 | L137: 1111
A138: 21 | B138: 18424 | C138: 12 | D138: 18438 | E138: 13 | F138: 18442 | G138: 14 | H138: 18449 | K138: 0 | L138: 2111
A139: 21 | B139: 18548 | C139: 21 | D139: 18567 | E139: 11 | F139: 18579 | G139: 12 | H139: 18583 | K139: 0 | L139: 2211
A140: 21 | B140: 18684 | C140: 12 | D140: 18697 | E140: 13 | F140: 18700 | G140: 14 | H140: 18708 | K140: 0 | L140: 2111
A141: 12 | B141: 18848 | C141: 14 | D141: 18853 | E141: 13 | F141: 18858 | G141: 14 | H141: 18864 | K141: 0 | L141: 1111
A142: 21 | B142: 18956 | C142: 12 | D142: 18972 | E142: 13 | F142: 18977 | G142: 14 | H142: 18983 | K142: 0 | L142: 2111
A143: 21 | B143: 19100 | C143: 12 | D143: 19115 | E143: 13 | F143: 19120 | G143: 14 | H143: 19124 | K143: 0 | L143: 2111
A144: 21 | B144: 19251 | C144: 12 | D144: 19264 | E144: 13 | F144: 19268 | G144: 14 | H144: 19277 | K144: 0 | L144: 2111
A145: 21 | B145: 19377 | C145: 12 | D145: 19389 | E145: 13 | F145: 19394 | G145: 14 | H145: 19400 | K145: 0 | L145: 2111
A146: 12 | B146: 19497 | C146: 14 | D146: 19501 | E146: 13 | F146: 19508 | G146: 14 | H146: 19513 | K146: 0 | L146: 1111
A147: 21 | B147: 19614 | C147: 12 | D147: 19626 | E147: 13 | F147: 19630 | G147: 14 | H147: 19634 | K147: 0 | L147: 2111
A148: 12 | B148: 19749 | C148: 14 | D148: 19755 | E148: 13 | F148: 19761 | G148: 14 | H148: 19776 | K148: 0 | L148: 1111
A149: 21 | B149: 19881 | C149: 12 | D149: 19895 | E149: 13 | F149: 19899 | G149: 14 | H149: 19905 | K149: 0 | L149: 2111
A150: 12 | B150: 20007 | C150: 23 | D150: 20026 | E150: 24 | F150: 20032 | G150: 23 | H150: 20037 | K150: 0 | L150: 1222
A151: 21 | B151: 20150 | C151: 21 | D151: 20155 | E151: 11 | F151: 20167 | G151: 12 | H151: 20171 | K151: 0 | L151: 2211
A152: 12 | B152: 20276 | C152: 14 | D152: 20282 | E152: 13 | F152: 20288 | G152: 14 | H152: 20293 | K152: 0 | L152: 1111
A153: 21 | B153: 20392 | C153: 12 | D153: 20405 | E153: 13 | F153: 20410 | G153: 14 | H153: 20417 | K153: 0 | L153: 2111
A154: 21 | B154: 20521 | C154: 12 | D154: 20536 | E154: 13 | F154: 20540 | G154: 14 | H154: 20545 | K154: 0 | L154: 2111
A155: 12 | B155: 20662 | C155: 14 | D155: 20667 | E155: 13 | F155: 20677 | G155: 14 | H155: 20685 | K155: 0 | L155: 1111
A156: 12 | B156: 20843 | C156: 23 | D156: 20858 | E156: 24 | F156: 20863 | G156: 23 | H156: 20870 | K156: 0 | L156: 1222
A157: 21 | B157: 21031 | C157: 21 | D157: 21035 | E157: 22 | F157: 21040 | G157: 23 | H157: 21050 | K157: 0 | L157: 2222
A158: 21 | B158: 21156 | C158: 12 | D158: 21168 | E158: 13 | F158: 21172 | G158: 14 | H158: 21180 | K158: 0 | L158: 2111
A159: 21 | B159: 21296 | C159: 12 | D159: 21313 | E159: 13 | F159: 21319 | G159: 14 | H159: 21328 | K159: 0 | L159: 2111
A160: 21 | B160: 21429 | C160: 12 | D160: 21443 | E160: 13 | F160: 21447 | G160: 14 | H160: 21453 | K160: 0 | L160: 2111
A161: 21 | B161: 21561 | C161: 12 | D161: 21574 | E161: 13 | F161: 21579 | G161: 14 | H161: 21586 | K161: 0 | L161: 2111
A162: 21 | B162: 21793 | C162: 21 | D162: 21798 | E162: 22 | F162: 21811 | G162: 23 | H162: 21817 | K162: 0 | L162: 2222
A163: 21 | B163: 21919 | C163: 12 | D163: 21936 | E163: 13 | F163: 21941 | G163: 14 | H163: 21947 | K163: 0 | L163: 2111
A164: 21 | B164: 22087 | C164: 21 | D164: 22091 | E164: 22 | F164: 22098 | G164: 23 | H164: 22105 | K164: 0 | L164: 2222
A165: 21 | B165: 22213 | C165: 12 | D165: 22227 | E165: 13 | F165: 22230 | G165: 14 | H165: 22236 | K165: 0 | L165: 2111
A166: 12 | B166: 22332 | C166: 14 | D166: 22337 | E166: 13 | F166: 22342 | G166: 14 | H166: 22348 | K166: 0 | L166: 1111
A167: 12 | B167: 22452 | C167: 14 | D167: 22457 | E167: 13 | F167: 22464 | G167: 14 | H167: 22478 | K167: 0 | L167: 1111
A168: 21 | B168: 22645 | C168: 21 | D168: 22651 | E168: 11 | F168: 22660 | G168: 12 | H168: 22664 | K168: 0 | L168: 2211
A169: 12 | B169: 22779 | C169: 14 | D169: 22784 | E169: 13 | F169: 22789 | G169: 14 | H169: 22796 | K169: 0 | L169: 1111
A170: 21 | B170: 22903 | C170: 12 | D170: 22914 | E170: 13 | F170: 22919 | G170: 14 | H170: 22929 | K170: 0 | L170: 2111
A171: 21 | B171: 23069 | C171: 12 | D171: 23082 | E171: 13 | F171: 23086 | G171: 14 | H171: 23092 | K171: 0 | L171: 2111
A172: 21 | B172: 23195 | C172: 12 | D172: 23209 | E172: 13 | F172: 23214 | G172: 14 | H172: 23226 | K172: 0 | L172: 2111
A173: 21 | B173: 23415 | C173: 21 | D173: 23420 | E173: 22 | F173: 23427 | G173: 23 | H173: 23433 | K173: 0 | L173: 2222
A174: 12 | B174: 23576 | C174: 14 | D174: 23582 | E174: 13 | F174: 23592 | G174: 14 | H174: 23597 | K174: 0 | L174: 1111
A175: 12 | B175: 23710 | C175: 14 | D175: 23714 | E175: 13 | F175: 23720 | G175: 14 | H175: 23726 | K175: 0 | L175: 1111
A176: 21 | B176: 23873 | C176: 12 | D176: 23887 | E176: 13 | F176: 23892 | G176: 14 | H176: 23900 | K176: 0 | L176: 2111

Sheet !LB06945.. d
A1: Report for:!LB06945.. d
A2: Date: | B2: <date>
A3: Hen: | B3: <hen> | F3: Correct Sequence | G3: =Start!J2 -> 2212 | P3: Total Sequences in Data | Q3: =4994-COUNTBLANK(L7:L5000) -> 172 | V3: Total Sequences in Block Data | W3: =COUNTA(L7:L35) -> 29 | AA3: Total Sequences in Block Data | AB3: =COUNTA(L36:L63) -> 28 | AF3: Total Sequences in Block Data | AG3: =COUNTA(L64:L92) -> 29 | AK3: Total Sequences in Block Data | AL3: =COUNTA(L93:L121) -> 29 | AP3: Total Sequences in Block Data | AQ3: =COUNTA(L122:L149) -> 28 | AU3: Total Sequences in Block Data | AV3: =COUNTA(L150:L178) -> 29
P4: Total Sequences in Summary | Q4: =SUM(O7:O22) -> 172 | V4: Total Sequences in Block Summary | W4: =SUM(U7:U22) -> 29 | AA4: Total Sequences in Block Summary | AB4: =SUM(Z7:Z22) -> 28 | AF4: Total Sequences in Block Summary | AG4: =SUM(AE7:AE22) -> 29 | AK4: Total Sequences in Block Summary | AL4: =SUM(AJ7:AJ22) -> 29 | AP4: Total Sequences in Block Summary | AQ4: =SUM(AO7:AO22) -> 28 | AU4: Total Sequences in Block Summary | AV4: =SUM(AT7:AT22) -> 29
T5: Block 1 | Y5: Block 2 | AD5: Block 3 | AI5: Block 4 | AN5: Block 5 | AS5: Block 6
A6: Sequence Component 1 | B6: Time 1 | C6: Sequence Component 2 | D6: Time 2 | E6: Sequence Component 3 | F6: Time 3 | G6: Sequence Component 4 | H6: Time 4 | I6: Sequence Component 5 | J6: Time 5 | K6: Correct? 0=No 1=Yes | L6: Sequence | N6: Frequency | P6: Relative Frequency | Q6: Variability | T6: Frequency | V6: Relative Frequency | W6: Variability | Y6: Frequency | AA6: Relative Frequency | AB6: Variability | AD6: Frequency | AF6: Relative Frequency | AG6: Variability | AI6: Frequency | AK6: Relative Frequency | AL6: Variability | AN6: Frequency | AP6: Relative Frequency | AQ6: Variability | AS6: Frequency | AU6: Relative Frequency | AV6: Variability
A7: 21 | B7: 22 | C7: 12 | D7: 32 | E7: 13 | F7: 35 | G7: 14 | H7: 41 | K7: 0 | L7: 2111 | N7: 1111 | O7: =COUNTIF($L$7:$L$500,N7) -> 68 | P7: =O7/$Q$4 -> 0.3953488372 | Q7: =IF(P7=0,0,(P7*((LOG(P7))/LOG(2)))) -> -0.5292937797 | T7: =N7 -> 1111 | U7: =COUNTIF(L7:L35,T7) -> 8 | V7: =U7/(W4-U20) -> 0.275862069 | W7: =IF(V7=0,0,(V7*((LOG(V7))/LOG(2)))) -> -0.5125464814 | Y7: =N7 -> 1111 | Z7: =COUNTIF(L36:L63,Y7) -> 4 | AA7: =Z7/(AB4-Z20) -> 0.1428571429 | AB7: =IF(AA7=0,0,(AA7*((LOG(AA7))/LOG(2)))) -> -0.4010507032 | AD7: =N7 -> 1111 | AE7: =COUNTIF(L64:L92,AD7) -> 8 | AF7: =AE7/(AG4-AE20) -> 0.275862069 | AG7: =IF(AF7=0,0,(AF7*((LOG(AF7))/LOG(2)))) -> -0.5125464814 | AI7: =N7 -> 1111 | AJ7: =COUNTIF(L93:L121,AI7) -> 14 | AK7: =AJ7/(AL4-AJ20) -> 0.4827586207 | AL7: =IF(AK7=0,0,(AK7*((LOG(AK7))/LOG(2)))) -> -0.5071987939 | AN7: =N7 -> 1111 | AO7: =COUNTIF(L122:L149,AN7) -> 15 | AP7: =AO7/(AQ4-AO20) -> 0.5357142857 | AQ7: =IF(AP7=0,0,(AP7*((LOG(AP7))/LOG(2)))) -> -0.4823916035 | AS7: =N7 -> 1111 | AT7: =COUNTIF(L150:L178,AS7) -> 19 | AU7: =AT7/(AV4-AT20) -> 0.6551724138 | AV7: =IF(AU7=0,0,(AU7*((LOG(AU7))/LOG(2)))) -> -0.3996902121
A8: 12 | B8: 351 | C8: 14 | D8: 355 | E8: 13 | F8: 360 | G8: 14 | H8: 370 | K8: 0 | L8: 1111 | N8: 1112 | O8: 0 | P8: 0 | Q8: 0 | T8: 1112 | U8: =COUNTIF(L7:L35,T8) -> 0 | V8: =U8/(W4-U20) -> 0 | W8: 0 | Y8: 1112 | Z8: =COUNTIF(L36:L63,Y8) -> 0 | AA8: =Z8/(AB4-Z20) -> 0 | AB8: 0 | AD8: 1112 | AE8: =COUNTIF(L64:L92,AD8) -> 0 | AF8: =AE8/(AG4-AE20) -> 0 | AG8: 0 | AI8: 1112 | AJ8: =COUNTIF(L93:L121,AI8) -> 0 | AK8: =AJ8/(AL4-AJ20) -> 0 | AL8: 0 | AN8: 1112 | AO8: =COUNTIF(L122:L149,AN8) -> 0 | AP8: =AO8/(AQ4-AO20) -> 0 | AQ8: 0 | AS8: 1112 | AT8: =COUNTIF(L150:L178,AS8) -> 0 | AU8: =AT8/(AV4-AT20) -> 0 | AV8: 0
A9: 21 | B9: 534 | C9: 12 | D9: 546 | E9: 13 | F9: 551 | G9: 14 | H9: 555 | K9: 0 | L9: 2111 | N9: 1121 | O9: 0 | P9: 0 | Q9: 0 | T9: 1121 | U9: =COUNTIF(L7:L35,T9) -> 0 | V9: =U9/(W4-U20) -> 0 | W9: 0 | Y9: 1121 | Z9: =COUNTIF(L36:L63,Y9) -> 0 | AA9: =Z9/(AB4-Z20) -> 0 | AB9: 0 | AD9: 1121 | AE9: =COUNTIF(L64:L92,AD9) -> 0 | AF9: =AE9/(AG4-AE20) -> 0 | AG9: 0 | AI9: 1121 | AJ9: =COUNTIF(L93:L121,AI9) -> 0 | AK9: =AJ9/(AL4-AJ20) -> 0 | AL9: 0 | AN9: 1121 | AO9: =COUNTIF(L122:L149,AN9) -> 0 | AP9: =AO9/(AQ4-AO20) -> 0 | AQ9: 0 | AS9: 1121 | AT9: =COUNTIF(L150:L178,AS9) -> 0 | AU9: =AT9/(AV4-AT20) -> 0 | AV9: 0
A10: 21 | B10: 658 | C10: 12 | D10: 666 | E10: 13 | F10: 669 | G10: 14 | H10: 675 | K10: 0 | L10: 2111 | N10: 1122 | O10: 2 | P10: 0.01162790698 | Q10: -0.07472400878 | T10: 1122 | U10: =COUNTIF(L7:L35,T10) -> 1 | V10: =U10/(W4-U20) -> 0.03448275862 | W10: -0.167516586 | Y10: 1122 | Z10: =COUNTIF(L36:L63,Y10) -> 0 | AA10: =Z10/(AB4-Z20) -> 0 | AB10: 0 | AD10: 1122 | AE10: =COUNTIF(L64:L92,AD10) -> 0 | AF10: =AE10/(AG4-AE20) -> 0 | AG10: 0 | AI10: 1122 | AJ10: =COUNTIF(L93:L121,AI10) -> 0 | AK10: =AJ10/(AL4-AJ20) -> 0 | AL10: 0 | AN10: 1122 | AO10: =COUNTIF(L122:L149,AN10) -> 1 | AP10: =AO10/(AQ4-AO20) -> 0.03571428571 | AQ10: -0.1716912472 | AS10: 1122 | AT10: =COUNTIF(L150:L178,AS10) -> 0 | AU10: =AT10/(AV4-AT20) -> 0 | AV10: 0
A11: 21 | B11: 775 | C11: 12 | D11: 785 | E11: 13 | F11: 790 | G11: 14 | H11: 795 | K11: 0 | L11: 2111 | N11: 1211 | O11: 0 | P11: 0 | Q11: 0 | T11: 1211 | U11: =COUNTIF(L7:L35,T11) -> 0 | V11: =U11/(W4-U20) -> 0 | W11: 0 | Y11: 1211 | Z11: =COUNTIF(L36:L63,Y11) -> 0 | AA11: =Z11/(AB4-Z20) -> 0 | AB11: 0 | AD11: 1211 | AE11: =COUNTIF(L64:L92,AD11) -> 0 | AF11: =AE11/(AG4-AE20) -> 0 | AG11: 0 | AI11: 1211 | AJ11: =COUNTIF(L93:L121,AI11) -> 0 | AK11: =AJ11/(AL4-AJ20) -> 0 | AL11: 0 | AN11: 1211 | AO11: =COUNTIF(L122:L149,AN11) -> 0 | AP11: =AO11/(AQ4-AO20) -> 0 | AQ11: 0 | AS11: 1211 | AT11: =COUNTIF(L150:L178,AS11) -> 0 | AU11: =AT11/(AV4-AT20) -> 0 | AV11: 0
A12: 12 | B12: 909 | C12: 14 | D12: 914 | E12: 13 | F12: 923 | G12: 14 | H12: 948 | K12: 0 | L12: 1111 | N12: 1212 | O12: 0 | P12: 0 | Q12: 0 | T12: 1212 | U12: =COUNTIF(L7:L35,T12) -> 0 | V12: =U12/(W4-U20) -> 0 | W12: 0 | Y12: 1212 | Z12: =COUNTIF(L36:L63,Y12) -> 0 | AA12: =Z12/(AB4-Z20) -> 0 | AB12: 0 | AD12: 1212 | AE12: =COUNTIF(L64:L92,AD12) -> 0 | AF12: =AE12/(AG4-AE20) -> 0 | AG12: 0 | AI12: 1212 | AJ12: =COUNTIF(L93:L121,AI12) -> 0 | AK12: =AJ12/(AL4-AJ20) -> 0 | AL12: 0 | AN12: 1212 | AO12: =COUNTIF(L122:L149,AN12) -> 0 | AP12: =AO12/(AQ4-AO20) -> 0 | AQ12: 0 | AS12: 1212 | AT12: =COUNTIF(L150:L178,AS12) -> 0 | AU12: =AT12/(AV4-AT20) -> 0 | AV12: 0
A13: 21 | B13: 1108 | C13: 12 | D13: 1119 | E13: 13 | F13: 1127 | G13: 14 | H13: 1133 | K13: 0 | L13: 2111 | N13: 1221 | O13: 0 | P13: 0 | Q13: 0 | T13: 1221 | U13: =COUNTIF(L7:L35,T13) -> 0 | V13: =U13/(W4-U20) -> 0 | W13: 0 | Y13: 1221 | Z13: =COUNTIF(L36:L63,Y13) -> 0 | AA13: =Z13/(AB4-Z20) -> 0 | AB13: 0 | AD13: 1221 | AE13: =COUNTIF(L64:L92,AD13) -> 0 | AF13: =AE13/(AG4-AE20) -> 0 | AG13: 0 | AI13: 1221 | AJ13: =COUNTIF(L93:L121,AI13) -> 0 | AK13: =AJ13/(AL4-AJ20) -> 0 | AL13: 0 | AN13: 1221 | AO13: =COUNTIF(L122:L149,AN13) -> 0 | AP13: =AO13/(AQ4-AO20) -> 0 | AQ13: 0 | AS13: 1221 | AT13: =COUNTIF(L150:L178,AS13) -> 0 | AU13: =AT13/(AV4-AT20) -> 0 | AV13: 0
A14: 12 | B14: 1231 | C14: 23 | D14: 1243 | E14: 24 | F14: 1248 | G14: 23 | H14: 1254 | K14: 0 | L14: 1222 | N14: 1222 | O14: 8 | P14: 0.04651162791 | Q14: -0.2058727793 | T14: 1222 | U14: =COUNTIF(L7:L35,T14) -> 4 | V14: =U14/(W4-U20) -> 0.1379310345 | W14: -0.3942042752 | Y14: 1222 | Z14: =COUNTIF(L36:L63,Y14) -> 1 | AA14: =Z14/(AB4-Z20) -> 0.03571428571 | AB14: -0.1716912472 | AD14: 1222 | AE14: =COUNTIF(L64:L92,AD14) -> 1 | AF14: =AE14/(AG4-AE20) -> 0.03448275862 | AG14: -0.167516586 | AI14: 1222 | AJ14: =COUNTIF(L93:L121,AI14) -> 0 | AK14: =AJ14/(AL4-AJ20) -> 0 | AL14: 0 | AN14: 1222 | AO14: =COUNTIF(L122:L149,AN14) -> 2 | AP14: =AO14/(AQ4-AO20) -> 0.07142857143 | AQ14: -0.271953923 | AS14: 1222 | AT14: =COUNTIF(L150:L178,AS14) -> 0 | AU14: =AT14/(AV4-AT20) -> 0 | AV14: 0
A15: 12 | B15: 1358 | C15: 14 | D15: 1363 | E15: 13 | F15: 1370 | G15: 14 | H15: 1379 | K15: 0 | L15: 1111 | N15: 2111 | O15: 72 | P15: 0.4186046512 | Q15: -0.5259096642 | T15: 2111 | U15: =COUNTIF(L7:L35,T15) -> 13 | V15: =U15/(W4-U20) -> 0.4482758621 | W15: -0.5188978138 | Y15: 2111 | Z15: =COUNTIF(L36:L63,Y15) -> 15 | AA15: =Z15/(AB4-Z20) -> 0.5357142857 | AB15: -0.4823916035 | AD15: 2111 | AE15: =COUNTIF(L64:L92,AD15) -> 14 | AF15: =AE15/(AG4-AE20) -> 0.4827586207 | AG15: -0.5071987939 | AI15: 2111 | AJ15: =COUNTIF(L93:L121,AI15) -> 12 | AK15: =AJ15/(AL4-AJ20) -> 0.4137931034 | AL15: -0.5267662735 | AN15: 2111 | AO15: =COUNTIF(L122:L149,AN15) -> 9 | AP15: =AO15/(AQ4-AO20) -> 0.3214285714 | AQ15: -0.5263167602 | AS15: 2111 | AT15: =COUNTIF(L150:L178,AS15) -> 9 | AU15: =AT15/(AV4-AT20) -> 0.3103448276 | AV15: -0.5238794463
A16: 21 | B16: 1471 | C16: 21 | D16: 1495 | E16: 11 | F16: 1505 | G16: 12 | H16: 1510 | K16: 0 | L16: 2211 | N16: 2112 | O16: 0 | P16: 0 | Q16: 0 | T16: 2112 | U16: =COUNTIF(L7:L35,T16) -> 0 | V16: =U16/(W4-U20) -> 0 | W16: 0 | Y16: 2112 | Z16: =COUNTIF(L36:L63,Y16) -> 0 | AA16: =Z16/(AB4-Z20) -> 0 | AB16: 0 | AD16: 2112 | AE16: =COUNTIF(L64:L92,AD16) -> 0 | AF16: =AE16/(AG4-AE20) -> 0 | AG16: 0 | AI16: 2112 | AJ16: =COUNTIF(L93:L121,AI16) -> 0 | AK16: =AJ16/(AL4-AJ20) -> 0 | AL16: 0 | AN16: 2112 | AO16: =COUNTIF(L122:L149,AN16) -> 0 | AP16: =AO16/(AQ4-AO20) -> 0 | AQ16: 0 | AS16: 2112 | AT16: =COUNTIF(L150:L178,AS16) -> 0 | AU16: =AT16/(AV4-AT20) -> 0 | AV16: 0
A17: 21 | B17: 1608 | C17: 12 | D17: 1621 | E17: 13 | F17: 1630 | G17: 14 | H17: 1635 | K17: 0 | L17: 2111 | N17: 2121 | O17: 0 | P17: 0 | Q17: 0 | T17: 2121 | U17: =COUNTIF(L7:L35,T17) -> 0 | V17: =U17/(W4-U20) -> 0 | W17: 0 | Y17: 2121 | Z17: =COUNTIF(L36:L63,Y17) -> 0 | AA17: =Z17/(AB4-Z20) -> 0 | AB17: 0 | AD17: 2121 | AE17: =COUNTIF(L64:L92,AD17) -> 0 | AF17: =AE17/(AG4-AE20) -> 0 | AG17: 0 | AI17: 2121 | AJ17: =COUNTIF(L93:L121,AI17) -> 0 | AK17: =AJ17/(AL4-AJ20) -> 0 | AL17: 0 | AN17: 2121 | AO17: =COUNTIF(L122:L149,AN17) -> 0 | AP17: =AO17/(AQ4-AO20) -> 0 | AQ17: 0 | AS17: 2121 | AT17: =COUNTIF(L150:L178,AS17) -> 0 | AU17: =AT17/(AV4-AT20) -> 0 | AV17: 0
A18: 21 | B18: 1741 | C18: 12 | D18: 1754 | E18: 13 | F18: 1758 | G18: 14 | H18: 1761 | K18: 0 | L18: 2111 | N18: 2122 | O18: 0 | P18: 0 | Q18: 0 | T18: 2122 | U18: =COUNTIF(L7:L35,T18) -> 0 | V18: =U18/(W4-U20) -> 0 | W18: 0 | Y18: 2122 | Z18: =COUNTIF(L36:L63,Y18) -> 0 | AA18: =Z18/(AB4-Z20) -> 0 | AB18: 0 | AD18: 2122 | AE18: =COUNTIF(L64:L92,AD18) -> 0 | AF18: =AE18/(AG4-AE20) -> 0 | AG18: 0 | AI18: 2122 | AJ18: =COUNTIF(L93:L121,AI18) -> 0 | AK18: =AJ18/(AL4-AJ20) -> 0 | AL18: 0 | AN18: 2122 | AO18: =COUNTIF(L122:L149,AN18) -> 0 | AP18: =AO18/(AQ4-AO20) -> 0 | AQ18: 0 | AS18: 2122 | AT18: =COUNTIF(L150:L178,AS18) -> 0 | AU18: =AT18/(AV4-AT20) -> 0 | AV18: 0
A19: 12 | B19: 1859 | C19: 14 | D19: 1862 | E19: 24 | F19: 1872 | G19: 23 | H19: 1876 | K19: 0 | L19: 1122 | N19: 2211 | O19: 16 | P19: 0.09302325581 | Q19: -0.3187223028 | T19: 2211 | U19: =COUNTIF(L7:L35,T19) -> 3 | V19: =U19/(W4-U20) -> 0.1034482759 | W19: -0.3385881201 | Y19: 2211 | Z19: =COUNTIF(L36:L63,Y19) -> 4 | AA19: =Z19/(AB4-Z20) -> 0.1428571429 | AB19: -0.4010507032 | AD19: 2211 | AE19: =COUNTIF(L64:L92,AD19) -> 5 | AF19: =AE19/(AG4-AE20) -> 0.1724137931 | AG19: -0.4372505 | AI19: 2211 | AJ19: =COUNTIF(L93:L121,AI19) -> 3 | AK19: =AJ19/(AL4-AJ20) -> 0.1034482759 | AL19: -0.3385881201 | AN19: 2211 | AO19: =COUNTIF(L122:L149,AN19) -> 1 | AP19: =AO19/(AQ4-AO20) -> 0.03571428571 | AQ19: -0.1716912472 | AS19: 2211 | AT19: =COUNTIF(L150:L178,AS19) -> 0 | AU19: =AT19/(AV4-AT20) -> 0 | AV19: 0
A20: 21 | B20: 1977 | C20: 21 | D20: 1982 | E20: 11 | F20: 1990 | G20: 12 | H20: 1995 | K20: 0 | L20: 2211 | N20: 2212 | O20: 0 | P20: 0 | Q20: 0 | T20: 2212 | U20: =COUNTIF(L7:L35,T20) -> 0 | Y20: 2212 | Z20: =COUNTIF(L36:L63,Y20) -> 0 | AD20: 2212 | AE20: =COUNTIF(L64:L92,AD20) -> 0 | AI20: 2212 | AJ20: =COUNTIF(L93:L121,AI20) -> 0 | AN20: 2212 | AO20: =COUNTIF(L122:L149,AN20) -> 0 | AS20: 2212 | AT20: =COUNTIF(L150:L178,AS20) -> 0
A21: 21 | B21: 2090 | C21: 12 | D21: 2102 | E21: 13 | F21: 2106 | G21: 14 | H21: 2110 | K21: 0 | L21: 2111 | N21: 2221 | O21: 4 | P21: 0.02325581395 | Q21: -0.1261922036 | T21: 2221 | U21: =COUNTIF(L7:L35,T21) -> 0 | V21: =U21/(W4-U20) -> 0 | W21: =IF(V21=0,0,(V21*((LOG(V21))/LOG(2)))) -> 0 | Y21: 2221 | Z21: =COUNTIF(L36:L63,Y21) -> 3 | AA21: =Z21/(AB4-Z20) -> 0.1071428571 | AB21: =IF(AA21=0,0,(AA21*((LOG(AA21))/LOG(2)))) -> -0.3452563309 | AD21: 2221 | AE21: =COUNTIF(L64:L92,AD21) -> 0 | AF21: =AE21/(AG4-AE20) -> 0 | AG21: =IF(AF21=0,0,(AF21*((LOG(AF21))/LOG(2)))) -> 0 | AI21: 2221 | AJ21: =COUNTIF(L93:L121,AI21) -> 0 | AK21: =AJ21/(AL4-AJ20) -> 0 | AL21: =IF(AK21=0,0,(AK21*((LOG(AK21))/LOG(2)))) -> 0 | AN21: 2221 | AO21: =COUNTIF(L122:L149,AN21) -> 0 | AP21: =AO21/(AQ4-AO20) -> 0 | AQ21: =IF(AP21=0,0,(AP21*((LOG(AP21))/LOG(2)))) -> 0 | AS21: 2221 | AT21: =COUNTIF(L150:L178,AS21) -> 1 | AU21: =AT21/(AV4-AT20) -> 0.03448275862 | AV21: =IF(AU21=0,0,(AU21*((LOG(AU21))/LOG(2)))) -> -0.167516586
A22: 12 | B22: 2205 | C22: 23 | D22: 2217 | E22: 24 | F22: 2221 | G22: 23 | H22: 2227 | K22: 0 | L22: 1222 | N22: 2222 | O22: 2 | P22: 0.01162790698 | Q22: -0.07472400878 | T22: 2222 | U22: =COUNTIF(L7:L35,T22) -> 0 | V22: =U22/(W4-U20) -> 0 | W22: =IF(V22=0,0,(V22*((LOG(V22))/LOG(2)))) -> 0 | Y22: 2222 | Z22: =COUNTIF(L36:L63,Y22) -> 1 | AA22: =Z22/(AB4-Z20) -> 0.03571428571 | AB22: =IF(AA22=0,0,(AA22*((LOG(AA22))/LOG(2)))) -> -0.1716912472 | AD22: 2222 | AE22: =COUNTIF(L64:L92,AD22) -> 1 | AF22: =AE22/(AG4-AE20) -> 0.03448275862 | AG22: =IF(AF22=0,0,(AF22*((LOG(AF22))/LOG(2)))) -> -0.167516586 | AI22: 2222 | AJ22: =COUNTIF(L93:L121,AI22) -> 0 | AK22: =AJ22/(AL4-AJ20) -> 0 | AL22: =IF(AK22=0,0,(AK22*((LOG(AK22))/LOG(2)))) -> 0 | AN22: 2222 | AO22: =COUNTIF(L122:L149,AN22) -> 0 | AP22: =AO22/(AQ4-AO20) -> 0 | AQ22: =IF(AP22=0,0,(AP22*((LOG(AP22))/LOG(2)))) -> 0 | AS22: 2222 | AT22: =COUNTIF(L150:L178,AS22) -> 0 | AU22: =AT22/(AV4-AT20) -> 0 | AV22: =IF(AU22=0,0,(AU22*((LOG(AU22))/LOG(2)))) -> 0
A23: 12 | B23: 2332 | C23: 14 | D23: 2335 | E23: 13 | F23: 2340 | G23: 14 | H23: 2351 | K23: 0 | L23: 1111 | P23: =SUM(P7:P22) -> 1 | Q23: =-SUM(Q7:Q22) -> 1.855438747 | V23: =SUM(V7:V22) -> 1 | W23: =-SUM(W7:W22) -> 1.931753277 | AA23: =SUM(AA7:AA22) -> 1 | AB23: =-SUM(AB7:AB22) -> 1.973131835 | AF23: =SUM(AF7:AF22) -> 1 | AG23: =-SUM(AG7:AG22) -> 1.792028947 | AK23: =SUM(AK7:AK22) -> 1 | AL23: =-SUM(AL7:AL22) -> 1.372553188 | AP23: =SUM(AP7:AP22) -> 1 | AQ23: =-SUM(AQ7:AQ22) -> 1.624044781 | AU23: =SUM(AU7:AU22) -> 1 | AV23: =-SUM(AV7:AV22) -> 1.091086244
A24: 21 | B24: 2473 | C24: 12 | D24: 2483 | E24: 13 | F24: 2487 | G24: 14 | H24: 2493 | K24: 0 | L24: 2111 | P24: U= | Q24: =Q23/(LOG(Q4)/LOG(2)) -> 0.2498481819 | V24: U1= | W24: =W23/(LOG(W4)/LOG(2)) -> 0.3976452931 | AA24: U2= | AB24: =AB23/(LOG(AB4)/LOG(2)) -> 0.4104402248 | AF24: U3= | AG24: =AG23/(LOG(AG4)/LOG(2)) -> 0.3688834825 | AK24: U4= | AL24: =AL23/(LOG(AL4)/LOG(2)) -> 0.282535726 | AP24: U5= | AQ24: =AQ23/(LOG(AQ4)/LOG(2)) -> 0.3378250217 | AU24: U6= | AV24: =AV23/(LOG(AV4)/LOG(2)) -> 0.2245966474
A25: 12 | B25: 2588 | C25: 14 | D25: 2597 | E25: 13 | F25: 2603 | G25: 14 | H25: 2609 | K25: 0 | L25: 1111
A26: 12 | B26: 2711 | C26: 14 | D26: 2716 | E26: 13 | F26: 2721 | G26: 14 | H26: 2726 | K26: 0 | L26: 1111
A27: 12 | B27: 2830 | C27: 23 | D27: 2843 | E27: 24 | F27: 2849 | G27: 23 | H27: 2856 | K27: 0 | L27: 1222 | N27: Total Target Seq
A28: 21 | B28: 2957 | C28: 12 | D28: 2967 | E28: 13 | F28: 2972 | G28: 14 | H28: 2977 | K28: 0 | L28: 2111 | N28: =COUNTIF(L7:L178,G3) -> 0 | P28: 29 | Q28: 28 | R28: 29 | S28: 29 | T28: 28 | U28: 29
A29: 21 | B29: 3080 | C29: 21 | D29: 3103 | E29: 11 | F29: 3114 | G29: 12 | H29: 3118 | K29: 0 | L29: 2211 | P29: % of reinforcement given in 6 equal intervals based on number of trials
A30: 12 | B30: 3259 | C30: 14 | D30: 3268 | E30: 13 | F30: 3275 | G30: 14 | H30: 3282 | K30: 0 | L30: 1111 | P30: %_1 | Q30: %_2 | R30: %_3 | S30: %_4 | T30: %_5 | U30: %_6
A31: 21 | B31: 3388 | C31: 12 | D31: 3404 | E31: 13 | F31: 3410 | G31: 14 | H31: 3417 | K31: 0 | L31: 2111 | O31: target sequence | P31: =$G$3 -> 2212 | Q31: 2212 | R31: 2212 | S31: 2212 | T31: 2212 | U31: 2212
A32: 21 | B32: 3511 | C32: 12 | D32: 3525 | E32: 13 | F32: 3528 | G32: 14 | H32: 3533 | K32: 0 | L32: 2111 | O32: total reinforcement | P32: =U20 -> 0 | Q32: =Z20 -> 0 | R32: =AE20 -> 0 | S32: =AJ20 -> 0 | T32: =AO20 -> 0 | U32: =AT20 -> 0
A33: 12 | B33: 3633 | C33: 14 | D33: 3637 | E33: 13 | F33: 3643 | G33: 14 | H33: 3648 | K33: 0 | L33: 1111 | O33: % target
A34: 21 | B34: 3746 | C34: 12 | D34: 3773 | E34: 13 | F34: 3777 | G34: 14 | H34: 3783 | K34: 0 | L34: 2111 | O34: CCRF
A35: 12 | B35: 3879 | C35: 23 | D35: 3892 | E35: 24 | F35: 3896 | G35: 23 | H35: 3902 | K35: 0 | L35: 1222 | O35: % CCRf
A36: 12 | B36: 4072 | C36: 14 | D36: 4085 | E36: 13 | F36: 4093 | G36: 14 | H36: 4109 | K36: 0 | L36: 1111 | O36: average response rate | P36: =H35/P28 -> 134.5517241 | Q36: =(H63-H35)/Q28 -> 136.2142857 | R36: =(H92-H63)/R28 -> 134.2068966 | S36: =(H121-H92)/S28 -> 140.3793103 | T36: =(H149-H121)/T28 -> 140.5 | U36: =(H178-H149)/U28 -> 147.0689655
A37: 21 | B37: 4201 | C37: 21 | D37: 4206 | E37: 22 | F37: 4232 | G37: 14 | H37: 4246 | K37: 0 | L37: 2221
A38: 21 | B38: 4348 | C38: 21 | D38: 4368 | E38: 11 | F38: 4380 | G38: 12 | H38: 4384 | K38: 0 | L38: 2211
A39: 21 | B39: 4460 | C39: 12 | D39: 4473 | E39: 13 | F39: 4477 | G39: 14 | H39: 4486 | K39: 0 | L39: 2111
A40: 21 | B40: 4691 | C40: 12 | D40: 4699 | E40: 13 | F40: 4703 | G40: 14 | H40: 4710 | K40: 0 | L40: 2111
A41: 21 | B41: 4867 | C41: 12 | D41: 4876 | E41: 13 | F41: 4881 | G41: 14 | H41: 4887 | K41: 0 | L41: 2111
A42: 12 | B42: 4998 | C42: 14 | D42: 5003 | E42: 13 | F42: 5007 | G42: 14 | H42: 5012 | K42: 0 | L42: 1111
A43: 21 | B43: 5190 | C43: 12 | D43: 5207 | E43: 13 | F43: 5212 | G43: 14 | H43: 5218 | K43: 0 | L43: 2111
A44: 21 | B44: 5334 | C44: 21 | D44: 5337 | E44: 22 | F44: 5343 | G44: 23 | H44: 5351 | K44: 0 | L44: 2222
A45: 21 | B45: 5456 | C45: 12 | D45: 5470 | E45: 13 | F45: 5474 | G45: 14 | H45: 5480 | K45: 0 | L45: 2111
A46: 21 | B46: 5590 | C46: 12 | D46: 5601 | E46: 13 | F46: 5605 | G46: 14 | H46: 5608 | K46: 0 | L46: 2111
A47: 21 | B47: 5707 | C47: 12 | D47: 5720 | E47: 13 | F47: 5724 | G47: 14 | H47: 5729 | K47: 0 | L47: 2111
A48: 21 | B48: 5853 | C48: 21 | D48: 5863 | E48: 22 | F48: 5866 | G48: 14 | H48: 5876 | K48: 0 | L48: 2221
A49: 21 | B49: 5987 | C49: 21 | D49: 5991 | E49: 11 | F49: 6001 | G49: 12 | H49: 6005 | K49: 0 | L49: 2211
A50: 21 | B50: 6103 | C50: 12 | D50: 6114 | E50: 13 | F50: 6119 | G50: 14 | H50: 6125 | K50: 0 | L50: 2111
A51: 21 | B51: 6228 | C51: 12 | D51: 6239 | E51: 13 | F51: 6245 | G51: 14 | H51: 6261 | K51: 0 | L51: 2111
A52: 21 | B52: 6353 | C52: 21 | D52: 6356 | E52: 22 | F52: 6383 | G52: 14 | H52: 6395 | K52: 0 | L52: 2221
A53: 21 | B53: 6496 | C53: 21 | D53: 6517 | E53: 11 | F53: 6528 | G53: 12 | H53: 6532 | K53: 0 | L53: 2211
A54: 21 | B54: 6625 | C54: 21 | D54: 6648 | E54: 11 | F54: 6661 | G54: 12 | H54: 6664 | K54: 0 | L54: 2211
A55: 12 | B55: 6682 | C55: 14 | D55: 6687 | E55: 13 | F55: 6693 | G55: 14 | H55: 6700 | K55: 0 | L55: 1111
A56: 12 | B56: 6809 | C56: 14 | D56: 6814 | E56: 13 | F56: 6819 | G56: 14 | H56: 6824 | K56: 0 | L56: 1111
A57: 21 | B57: 6931 | C57: 12 | D57: 6944 | E57: 13 | F57: 6949 | G57: 14 | H57: 6955 | K57: 0 | L57: 2111
A58: 21 | B58: 7059 | C58: 12 | D58: 7072 | E58: 13 | F58: 7076 | G58: 14 | H58: 7081 | K58: 0 | L58: 2111
A59: 21 | B59: 7184 | C59: 12 | D59: 7197 | E59: 13 | F59: 7201 | G59: 14 | H59: 7205 | K59: 0 | L59: 2111
A60: 21 | B60: 7302 | C60: 12 | D60: 7318 | E60: 13 | F60: 7322 | G60: 14 | H60: 7329 | K60: 0 | L60: 2111
A61: 21 | B61: 7426 | C61: 12 | D61: 7438 | E61: 13 | F61: 7443 | G61: 14 | H61: 7448 | K61: 0 | L61: 2111
A62: 21 | B62: 7550 | C62: 12 | D62: 7563 | E62: 13 | F62: 7568 | G62: 14 | H62: 7573 | K62: 0 | L62: 2111
A63: 12 | B63: 7684 | C63: 23 | D63: 7705 | E63: 24 | F63: 7710 | G63: 23 | H63: 7716 | K63: 0 | L63: 1222
A64: 12 | B64: 7813 | C64: 14 | D64: 7823 | E64: 13 | F64: 7829 | G64: 14 | H64: 7834 | K64: 0 | L64: 1111
A65: 21 | B65: 7940 | C65: 12 | D65: 7957 | E65: 13 | F65: 7962 | G65: 14 | H65: 7969 | K65: 0 | L65: 2111
A66: 21 | B66: 8082 | C66: 12 | D66: 8096 | E66: 13 | F66: 8102 | G66: 14 | H66: 8107 | K66: 0 | L66: 2111
A67: 21 | B67: 8233 | C67: 12 | D67: 8247 | E67: 13 | F67: 8253 | G67: 14 | H67: 8257 | K67: 0 | L67: 2111
A68: 21 | B68: 8368 | C68: 12 | D68: 8379 | E68: 13 | F68: 8383 | G68: 14 | H68: 8389 | K68: 0 | L68: 2111
A69: 21 | B69: 8481 | C69: 12 | D69: 8493 | E69: 13 | F69: 8497 | G69: 14 | H69: 8501 | K69: 0 | L69: 2111
A70: 21 | B70: 8598 | C70: 12 | D70: 8612 | E70: 13 | F70: 8614 | G70: 14 | H70: 8620 | K70: 0 | L70: 2111
A71: 21 | B71: 8819 | C71: 12 | D71: 8830 | E71: 13 | F71: 8834 | G71: 14 | H71: 8839 | K71: 0 | L71: 2111
A72: 12 | B72: 9090 | C72: 23 | D72: 9114 | E72: 24 | F72: 9118 | G72: 23 | H72: 9125 | K72: 0 | L72: 1222
A73: 12 | B73: 9248 | C73: 14 | D73: 9252 | E73: 13 | F73: 9258 | G73: 14 | H73: 9264 | K73: 0 | L73: 1111
A74: 21 | B74: 9358 | C74: 12 | D74: 9371 | E74: 13 | F74: 9375 | G74: 14 | H74: 9381 | K74: 0 | L74: 2111
A75: 12 | B75: 9486 | C75: 14 | D75: 9492 | E75: 13 | F75: 9497 | G75: 14 | H75: 9503 | K75: 0 | L75: 1111
A76: 12 | B76: 9615 | C76: 14 | D76: 9619 | E76: 13 | F76: 9626 | G76: 14 | H76: 9632 | K76: 0 | L76: 1111
A77: 21 | B77: 9735 | C77: 12 | D77: 9746 | E77: 13 | F77: 9751 | G77: 14 | H77: 9758 | K77: 0 | L77: 2111
A78: 21 | B78: 9878 | C78: 21 | D78: 9882 | E78: 22 | F78: 9887 | G78: 23 | H78: 9893 | K78: 0 | L78: 2222
A79: 21 | B79: 10004 | C79: 12 | D79: 10017 | E79: 13 | F79: 10023 | G79: 14 | H79: 10028 | K79: 0 | L79: 2111
A80: 21 | B80: 10178 | C80: 21 | D80: 10188 | E80: 11 | F80: 10206 | G80: 12 | H80: 10212 | K80: 0 | L80: 2211
A81: 21 | B81: 10314 | C81: 21 | D81: 10318 | E81: 11 | F81: 10329 | G81: 12 | H81: 10337 | K81: 0 | L81: 2211
A82: 21 | B82: 10432 | C82: 21 | D82: 10437 | E82: 11 | F82: 10450 | G82: 12 | H82: 10454 | K82: 0 | L82: 2211
A83: 12 | B83: 10549 | C83: 14 | D83: 10555 | E83: 13 | F83: 10560 | G83: 14 | H83: 10565 | K83: 0 | L83: 1111
A84: 21 | B84: 10669 | C84: 21 | D84: 10672 | E84: 11 | F84: 10683 | G84: 12 | H84: 10687 | K84: 0 | L84: 2211
A85: 21 | B85: 10786 | C85: 21 | D85: 10791 | E85: 11 | F85: 10803 | G85: 12 | H85: 10807 | K85: 0 | L85: 2211
A86: 12 | B86: 10817 | C86: 14 | D86: 10828 | E86: 13 | F86: 10834 | G86: 14 | H86: 10842 | K86: 0 | L86: 1111
A87: 21 | B87: 10939 | C87: 12 | D87: 10951 | E87: 13 | F87: 10959 | G87: 14 | H87: 10964 | K87: 0 | L87: 2111
A88: 21 | B88: 11078 | C88: 12 | D88: 11096 | E88: 13 | F88: 11099 | G88: 14 | H88: 11106 | K88: 0 | L88: 2111
A89: 12 | B89: 11209 | C89: 14 | D89: 11214 | E89: 13 | F89: 11219 | G89: 14 | H89: 11226 | K89: 0 | L89: 1111
A90: 21 | B90: 11339 | C90: 12 | D90: 11353 | E90: 13 | F90: 11358 | G90: 14 | H90: 11362 | K90: 0 | L90: 2111
A91: 12 | B91: 11474 | C91: 14 | D91: 11478 | E91: 13 | F91: 11483 | G91: 14 | H91: 11488 | K91: 0 | L91: 1111
A92: 21 | B92: 11587 | C92: 12 | D92: 11598 | E92: 13 | F92: 11601 | G92: 14 | H92: 11608 | K92: 0 | L92: 2111
A93: 21 | B93: 11708 | C93: 21 | D93: 11720 | E93: 11 | F93: 11734 | G93: 12 | H93: 11743 | K93: 0 | L93: 2211
A94: 21 | B94: 11771 | C94: 12 | D94: 11786 | E94: 13 | F94: 11792 | G94: 14 | H94: 11799 | K94: 0 | L94: 2111
A95: 12 | B95: 11909 | C95: 14 | D95: 11914 | E95: 13 | F95: 11921 | G95: 14 | H95: 11927 | K95: 0 | L95: 1111
A96: 21 | B96: 12022 | C96: 12 | D96: 12038 | E96: 13 | F96: 12042 | G96: 14 | H96: 12048 | K96: 0 | L96: 2111
A97: 21 | B97: 12152 | C97: 12 | D97: 12164 | E97: 13 | F97: 12168 | G97: 14 | H97: 12175 | K97: 0 | L97: 2111
A98: 21 | B98: 12280 | C98: 12 | D98: 12295 | E98: 13 | F98: 12300 | G98: 14 | H98: 12305 | K98: 0 | L98: 2111
A99: 21 | B99: 12402 | C99: 12 | D99: 12417 | E99: 13 | F99: 12421 | G99: 14 | H99: 12427 | K99: 0 | L99: 2111
A100: 21 | B100: 12526 | C100: 12 | D100: 12545 | E100: 13 | F100: 12549 | G100: 14 | H100: 12555 | K100: 0 | L100: 2111
A101: 12 | B101: 12672 | C101: 14 | D101: 12677 | E101: 13 | F101: 12682 | G101: 14 | H101: 12687 | K101: 0 | L101: 1111
A102: 12 | B102: 12792 | C102: 14 | D102: 12797 | E102: 13 | F102: 12803 | G102: 14 | H102: 12809 | K102: 0 | L102: 1111
A103: 12 | B103: 12955 | C103: 14 | D103: 12960 | E103: 13 | F103: 12966 | G103: 14 | H103: 12972 | K103: 0 | L103: 1111
A104: 21 | B104: 13083 | C104: 12 | D104: 13095 | E104: 13 | F104: 13099 | G104: 14 | H104: 13105 | K104: 0 | L104: 2111
A105: 21 | B105: 13205 | C105: 12 | D105: 13220 | E105: 13 | F105: 13224 | G105: 14 | H105: 13226 | K105: 0 | L105: 2111
A106: 12 | B106: 13344 | C106: 14 | D106: 13349 | E106: 13 | F106: 13351 | G106: 14 | H106: 13356 | K106: 0 | L106: 1111
A107: 21 | B107: 13454 | C107: 21 | D107: 13458 | E107: 11 | F107: 13471 | G107: 12 | H107: 13475 | K107: 0 | L107: 2211
A108: 12 | B108: 13596 | C108: 14 | D108: 13600 | E108: 13 | F108: 13608 | G108: 14 | H108: 13614 | K108: 0 | L108: 1111
A109: 21 | B109: 13713 | C109: 21 | D109: 13715 | E109: 11 | F109: 13726 | G109: 12 | H109: 13730 | K109: 0 | L109: 2211
A110: 12 | B110: 13842 | C110: 14 | D110: 13851 | E110: 13 | F110: 13856 | G110: 14 | H110: 13864 | K110: 0 | L110: 1111
A111: 21 | B111: 13975 | C111: 12 | D111: 13989 | E111: 13 | F111: 13993 | G111: 14 | H111: 13996 | K111: 0 | L111: 2111
A112: 12 | B112: 14178 | C112: 14 | D112: 14188 | E112: 13 | F112: 14194 | G112: 14 | H112: 14201 | K112: 0 | L112: 1111
A113: 12 | B113: 14305 | C113: 14 | D113: 14308 | E113: 13 | F113: 14314 | G113: 14 | H113: 14319 | K113: 0 | L113: 1111
A114: 12 | B114: 14437 | C114: 14 | D114: 14446 | E114: 13 | F114: 14452 | G114: 14 | H114: 14458 | K114: 0 | L114: 1111
A115: 21 | B115: 14556 | C115: 12 | D115: 14576 | E115: 13 | F115: 14581 | G115: 14 | H115: 14586 | K115: 0 | L115: 2111
A116: 12 | B116: 14701 | C116: 14 | D116: 14707 | E116: 13 | F116: 14713 | G116: 14 | H116: 14718 | K116: 0 | L116: 1111
A117: 12 | B117: 14906 | C117: 14 | D117: 14910 | E117: 13 | F117: 14915 | G117: 14 | H117: 14920 | K117: 0 | L117: 1111
A118: 21 | B118: 15200 | C118: 12 | D118: 15216 | E118: 13 | F118: 15223 | G118: 14 | H118: 15228 | K118: 0 | L118: 2111
A119: 12 | B119: 15352 | C119: 14 | D119: 15360 | E119: 13 | F119: 15366 | G119: 14 | H119: 15374 | K119: 0 | L119: 1111
A120: 12 | B120: 15478 | C120: 14 | D120: 15483 | E120: 13 | F120: 15489 | G120: 14 | H120: 15495 | K120: 0 | L120: 1111
A121: 21 | B121: 15654 | C121: 12 | D121: 15670 | E121: 13 | F121: 15673 | G121: 14 | H121: 15679 | K121: 0 | L121: 2111
A122: 21 | B122: 15876 | C122: 12 | D122: 15893 | E122: 13 | F122: 15902 | G122: 14 | H122: 15908 | K122: 0 | L122: 2111
A123: 21 | B123: 16013 | C123: 12 | D123: 16031 | E123: 13 | F123: 16035 | G123: 14 | H123: 16040 | K123: 0 | L123: 2111
A124: 21 | B124: 16142 | C124: 12 | D124: 16155 | E124: 13 | F124: 16159 | G124: 14 | H124: 16165 | K124: 0 | L124: 2111
A125: 21 | B125: 16273 | C125: 12 | D125: 16286 | E125: 13 | F125: 16290 | G125: 14 | H125: 16297 | K125: 0 | L125: 2111
A126: 21 | B126: 16449 | C126: 12 | D126: 16461 | E126: 13 | F126: 16465 | G126: 14 | H126: 16471 | K126: 0 | L126: 2111
A127: 21 | B127: 16566 | C127: 12 | D127: 16583 | E127: 13 | F127: 16587 | G127: 14 | H127: 16595 | K127: 0 | L127: 2111
A128: 12 | B128: 16690 | C128: 23 | D128: 16707 | E128: 24 | F128: 16713 | G128: 23 | H128: 16719 | K128: 0 | L128: 1222
A129: 12 | B129: 16840 | C129: 14 | D129: 16849 | E129: 13 | F129: 16854 | G129: 14 | H129: 16861 | K129: 0 | L129: 1111
A130: 12 | B130: 16957 | C130: 14 | D130: 16962 | E130: 13 | F130: 16967 | G130: 14 | H130: 16974 | K130: 0 | L130: 1111
A131: 21 | B131: 17130 | C131: 12 | D131: 17145 | E131: 13 | F131: 17150 | G131: 14 | H131: 17158 | K131: 0 | L131: 2111
A132: 12 | B132: 17328 | C132: 14 | D132: 17332 | E132: 13 | F132: 17338 | G132: 14 | H132: 17347 | K132: 0 | L132: 1111
A133: 12 | B133: 17443 | C133: 14 | D133: 17453 | E133: 13 | F133: 17459 | G133: 14 | H133: 17465 | K133: 0 | L133: 1111
A134: 12 | B134: 17579 | C134: 14 | D134: 17584 | E134: 13 | F134: 17589 | G134: 14 | H134: 17594 | K134: 0 | L134: 1111
A135: 12 | B135: 17699 | C135: 14 | D135: 17701 | E135: 24 | F135: 17714 | G135: 23 | H135: 17717 | K135: 0 | L135: 1122
A136: 12 | B136: 17819 | C136: 14 | D136: 17821 | E136: 13 | F136: 17826 | G136: 14 | H136: 17831 | K136: 0 | L136: 1111
A137: 12 | B137: 17935 | C137: 14 | D137: 17937 | E137: 13 | F137: 17939 | G137: 14 | H137: 17944 | K137: 0 | L137: 1111
A138: 21 | B138: 18067 | C138: 12 | D138: 18080 | E138: 13 | F138: 18085 | G138: 14 | H138: 18097 | K138: 0 | L138: 2111
A139: 12 | B139: 18200 | C139: 14 | D139: 18204 | E139: 13 | F139: 18210 | G139: 14 | H139: 18215 | K139: 0 | L139: 1111
A140: 12 | B140: 18351 | C140: 14 | D140: 18356 | E140: 13 | F140: 18362 | G140: 14 | H140: 18368 | K140: 0 | L140: 1111
A141: 12 | B141: 18468 | C141: 14 | D141: 18472 | E141: 13 | F141: 18477 | G141: 14 | H141: 18482 | K141: 0 | L141: 1111
A142: 12 | B142: 18668 | C142: 23 | D142: 18682 | E142: 24 | F142: 18687 | G142: 23 | H142: 18693 | K142: 0 | L142: 1222
A143: 12 | B143: 18788 | C143: 14 | D143: 18797 | E143: 13 | F143: 18803 | G143: 14 | H143: 18811 | K143: 0 | L143: 1111
A144: 12 | B144: 18913 | C144: 14 | D144: 18918 | E144: 13 | F144: 18923 | G144: 14 | H144: 18929 | K144: 0 | L144: 1111
A145: 21 | B145: 19065 | C145: 21 | D145: 19070 | E145: 11 | F145: 19083 | G145: 12 | H145: 19090 | K145: 0 | L145: 2211
A146: 21 | B146: 19185 | C146: 12 | D146: 19201 | E146: 13 | F146: 19206 | G146: 14 | H146: 19211 | K146: 0 | L146: 2111
A147: 12 | B147: 19311 | C147: 14 | D147: 19316 | E147: 13 | F147: 19320 | G147: 14 | H147: 19326 | K147: 0 | L147: 1111
A148: 12 | B148: 19440 | C148: 14 | D148: 19444 | E148: 13 | F148: 19451 | G148: 14 | H148: 19457 | K148: 0 | L148: 1111
A149: 12 | B149: 19585 | C149: 14 | D149: 19590 | E149: 13 | F149: 19595 | G149: 14 | H149: 19613 | K149: 0 | L149: 1111
A150: 12 | B150: 19751 | C150: 14 | D150: 19757 | E150: 13 | F150: 19762 | G150: 14 | H150: 19768 | K150: 0 | L150: 1111
A151: 12 | B151: 20170 | C151: 14 | D151: 20176 | E151: 13 | F151: 20181 | G151: 14 | H151: 20186 | K151: 0 | L151: 1111
A152: 21 | B152: 20299 | C152: 12 | D152: 20318 | E152: 13 | F152: 20324 | G152: 14 | H152: 20330 | K152: 0 | L152: 2111
A153: 21 | B153: 20425 | C153: 12 | D153: 20439 | E153: 13 | F153: 20442 | G153: 14 | H153: 20447 | K153: 0 | L153: 2111
A154: 21 | B154: 20577 | C154: 12 | D154: 20590 | E154: 13 | F154: 20594 | G154: 14 | H154: 20601 | K154: 0 | L154: 2111
A155: 21 | B155: 20704 | C155: 12 | D155: 20717 | E155: 13 | F155: 20721 | G155: 14 | H155: 20727 | K155: 0 | L155: 2111
A156: 12 | B156: 20825 | C156: 14 | D156: 20828 | E156: 13 | F156: 20833 | G156: 14 | H156: 20838 | K156: 0 | L156: 1111
A157: 12 | B157: 20941 | C157: 14 | D157: 20945 | E157: 13 | F157: 20950 | G157: 14 | H157: 20956 | K157: 0 | L157: 1111
A158: 21 | B158: 21097 | C158: 12 | D158: 21108 | E158: 13 | F158: 21111 | G158: 14 | H158: 21117 | K158: 0 | L158: 2111
A159: 12 | B159: 21215 | C159: 14 | D159: 21221 | E159: 13 | F159: 21227 | G159: 14 | H159: 21233 | K159: 0 | L159: 1111
A160: 21 | B160: 21336 | C160: 12 | D160: 21352 | E160: 13 | F160: 21356 | G160: 14 | H160: 21361 | K160: 0 | L160: 2111
A161: 12 | B161: 21469 | C161: 14 | D161: 21474 | E161: 13 | F161: 21481 | G161: 14 | H161: 21487 | K161: 0 | L161: 1111
A162: 12 | B162: 21591 | C162: 14 | D162: 21600 | E162: 13 | F162: 21606 | G162: 14 | H162: 21614 | K162: 0 | L162: 1111
A163: 21 | B163: 21712 | C163: 12 | D163: 21732 | E163: 13 | F163: 21737 | G163: 14 | H163: 21743 | K163: 0 | L163: 2111
A164: 21 | B164: 21835 | C164: 21 | D164: 21855 | E164: 22 | F164: 21859 | G164: 14 | H164: 21871 | K164: 0 | L164: 2221
A165: 12 | B165: 21973 | C165: 14 | D165: 21978 | E165: 13 | F165: 21983 | G165: 14 | H165: 21988 | K165: 0 | L165: 1111
A166: 12 | B166: 22099 | C166: 14 | D166: 22104 | E166: 13 | F166: 22109 | G166: 14 | H166: 22115 | K166: 0 | L166: 1111
A167: 12 | B167: 22288 | C167: 14 | D167: 22290 | E167: 13 | F167: 22296 | G167: 14 | H167: 22302 | K167: 0 | L167: 1111
A168: 12 | B168: 22401 | C168: 14 | D168: 22410 | E168: 13 | F168: 22414 | G168: 14 | H168: 22420 | K168: 0 | L168: 1111
A169: 21 | B169: 22559 | C169: 12 | D169: 22573 | E169: 13 | F169: 22578 | G169: 14 | H169: 22585 | K169: 0 | L169: 2111
A170: 12 | B170: 22683 | C170: 14 | D170: 22689 | E170: 13 | F170: 22694 | G170: 14 | H170: 22700 | K170: 0 | L170: 1111
A171: 12 | B171: 22800 | C171: 14 | D171: 22812 | E171: 13 | F171: 22818 | G171: 14 | H171: 22826 | K171: 0 | L171: 1111
A172: 12 | B172: 22928 | C172: 14 | D172: 22932 | E172: 13 | F172: 22941 | G172: 14 | H172: 22948 | K172: 0 | L172: 1111
A173: 12 | B173: 23105 | C173: 14 | D173: 23110 | E173: 13 | F173: 23117 | G173: 14 | H173: 23120 | K173: 0 | L173: 1111
A174: 12 | B174: 23298 | C174: 14 | D174: 23303 | E174: 13 | F174: 23309 | G174: 14 | H174: 23314 | K174: 0 | L174: 1111
A175: 12 | B175: 23466 | C175: 14 | D175: 23476 | E175: 13 | F175: 23482 | G175: 14 | H175: 23488 | K175: 0 | L175: 1111
A176: 12 | B176: 23617 | C176: 14 | D176: 23622 | E176: 13 | F176: 23628 | G176: 14 | H176: 23635 | K176: 0 | L176: 1111
A177: 21 | B177: 23741 | C177: 12 | D177: 23753 | E177: 13 | F177: 23757 | G177: 14 | H177: 23762 | K177: 0 | L177: 2111
A178: 12 | B178: 23858 | C178: 14 | D178: 23866 | E178: 13 | F178: 23871 | G178: 14 | H178: 23878 | K178: 0 | L178: 1111

Sheet !LB07C15.. d
A1: Report for:!LB07C15.. d
A2: Date: | B2: <date>
A3: Hen: | B3: <hen> | F3: Correct Sequence | G3: =Start!J2 -> 2212 | P3: Total Sequences in Data | Q3: =4994-COUNTBLANK(L7:L5000) -> 174 | V3: Total Sequences in Block Data | W3: =COUNTA(L7:L35) -> 29 | AA3: Total Sequences in Block Data | AB3: =COUNTA(L36:L64) -> 29 | AF3: Total Sequences in Block Data | AG3: =COUNTA(L65:L93) -> 29 | AK3: Total Sequences in Block Data | AL3: =COUNTA(L94:L122) -> 29 | AP3: Total Sequences in Block Data | AQ3: =COUNTA(L123:L151) -> 29 | AU3: Total Sequences in Block Data | AV3: =COUNTA(L152:L180) -> 29
P4: Total Sequences in Summary | Q4: =SUM(O7:O22) -> 174 | V4: Total Sequences in Block Summary | W4: =SUM(U7:U22) -> 29 | AA4: Total Sequences in Block Summary | AB4: =SUM(Z7:Z22) -> 29 | AF4: Total Sequences in Block Summary | AG4: =SUM(AE7:AE22) -> 29 | AK4: Total Sequences in Block Summary | AL4: =SUM(AJ7:AJ22) -> 29 | AP4: Total Sequences in Block Summary | AQ4: =SUM(AO7:AO22) -> 29 | AU4: Total Sequences in Block Summary | AV4: =SUM(AT7:AT22) -> 29
T5: Block 1 | Y5: Block 2 | AD5: Block 3 | AI5: Block 4 | AN5: Block 5 | AS5: Block 6
A6: Sequence Component 1 | B6: Time 1 | C6: Sequence Component 2 | D6: Time 2 | E6: Sequence Component 3 | F6: Time 3 | G6: Sequence Component 4 | H6: Time 4 | I6: Sequence Component 5 | J6: Time 5 | K6: Correct? 0=No 1=Yes | L6: Sequence | N6: Frequency | P6: Relative Frequency | Q6: Variability | T6: Frequency | V6: Relative Frequency | W6: Variability | Y6: Frequency | AA6: Relative Frequency | AB6: Variability | AD6: Frequency | AF6: Relative Frequency | AG6: Variability | AI6: Frequency | AK6: Relative Frequency | AL6: Variability | AN6: Frequency | AP6: Relative Frequency | AQ6: Variability | AS6: Frequency | AU6: Relative Frequency | AV6: Variability
A7: 21 | B7: 79 | C7: 12 | D7: 88 | E7: 13 | F7: 94 | G7: 14 | H7: 100 | K7: 0 | L7: 2111 | N7: 1111 | O7: =COUNTIF($L$7:$L$500,N7) -> 75 | P7: =O7/$Q$4 -> 0.4310344828 | Q7: =IF(P7=0,0,(P7*((LOG(P7))/LOG(2)))) -> -0.5233296575 | T7: =N7 -> 1111 | U7: =COUNTIF(L7:L35,T7) -> 13 | V7: =U7/(W4-U20) -> 0.4482758621 | W7: =IF(V7=0,0,(V7*((LOG(V7))/LOG(2)))) -> -0.5188978138 | Y7: =N7 -> 1111 | Z7: =COUNTIF(L36:L64,Y7) -> 7 | AA7: =Z7/(AB4-Z20) -> 0.2413793103 | AB7: =IF(AA7=0,0,(AA7*((LOG(AA7))/LOG(2)))) -> -0.4949787073 | AD7: =N7 -> 1111 | AE7: =COUNTIF(L65:L93,AD7) -> 10 | AF7: =AE7/(AG4-AE20) -> 0.3448275862 | AG7: =IF(AF7=0,0,(AF7*((LOG(AF7))/LOG(2)))) -> -0.5296734139 | AI7: =N7 -> 1111 | AJ7: =COUNTIF(L94:L122,AI7) -> 9 | AK7: =AJ7/(AL4-AJ20) -> 0.3103448276 | AL7: =IF(AK7=0,0,(AK7*((LOG(AK7))/LOG(2)))) -> -0.5238794463 | AN7: =N7 -> 1111 | AO7: =COUNTIF(L123:L151,AN7) -> 21 | AP7: =AO7/(AQ4-AO20) -> 0.724137931 | AQ7: =IF(AP7=0,0,(AP7*((LOG(AP7))/LOG(2)))) -> -0.3372046558 | AS7: =N7 -> 1111 | AT7: =COUNTIF(L152:L180,AS7) -> 15 | AU7: =AT7/(AV4-AT20) -> 0.5172413793 | AV7: =IF(AU7=0,0,(AU7*((LOG(AU7))/LOG(2)))) -> -0.4919433101
A8: 12 | B8: 215 | C8: 14 | D8: 217 | E8: 13 | F8: 225 | G8: 14 | H8: 236 | K8: 0 | L8: 1111 | N8: 1112 | O8: 0 | P8: 0 | Q8: 0 | T8: 1112 | U8: =COUNTIF(L7:L35,T8) -> 0 | V8: =U8/(W4-U20) -> 0 | W8: 0 | Y8: 1112 | Z8: =COUNTIF(L36:L64,Y8) -> 0 | AA8: =Z8/(AB4-Z20) -> 0 | AB8: 0 | AD8: 1112 | AE8: =COUNTIF(L65:L93,AD8) -> 0 | AF8: =AE8/(AG4-AE20) -> 0 | AG8: 0 | AI8: 1112 | AJ8: =COUNTIF(L94:L122,AI8) -> 0 | AK8: =AJ8/(AL4-AJ20) -> 0 | AL8: 0 | AN8: 1112 | AO8: =COUNTIF(L123:L151,AN8) -> 0 | AP8: =AO8/(AQ4-AO20) -> 0 | AQ8: 0 | AS8: 1112 | AT8: =COUNTIF(L152:L180,AS8) -> 0 | AU8: =AT8/(AV4-AT20) -> 0 | AV8: 0
A9: 21 | B9: 336 | C9: 12 | D9: 350 | E9: 13 | F9: 359 | G9: 14 | H9: 365 | K9: 0 | L9: 2111 | N9: 1121 | O9: 0 | P9: 0 | Q9: 0 | T9: 1121 | U9: =COUNTIF(L7:L35,T9) -> 0 | V9: =U9/(W4-U20) -> 0 | W9: 0 | Y9: 1121 | Z9: =COUNTIF(L36:L64,Y9) -> 0 | AA9: =Z9/(AB4-Z20) -> 0 | AB9: 0 | AD9: 1121 | AE9: =COUNTIF(L65:L93,AD9) -> 0 | AF9: =AE9/(AG4-AE20) -> 0 | AG9: 0 | AI9: 1121 | AJ9: =COUNTIF(L94:L122,AI9) -> 0 | AK9: =AJ9/(AL4-AJ20) -> 0 | AL9: 0 | AN9: 1121 | AO9: =COUNTIF(L123:L151,AN9) -> 0 | AP9: =AO9/(AQ4-AO20) -> 0 | AQ9: 0 | AS9: 1121 | AT9: =COUNTIF(L152:L180,AS9) -> 0 | AU9: =AT9/(AV4-AT20) -> 0 | AV9: 0
A10: 21 | B10: 465 | C10: 12 | D10: 475 | E10: 13 | F10: 483 | G10: 14 | H10: 495 | K10: 0 | L10: 2111 | N10: 1122 | O10: 0 | P10: 0 | Q10: 0 | T10: 1122 | U10: =COUNTIF(L7:L35,T10) -> 0 | V10: =U10/(W4-U20) -> 0 | W10: 0 | Y10: 1122 | Z10: =COUNTIF(L36:L64,Y10) -> 0 | AA10: =Z10/(AB4-Z20) -> 0 | AB10: 0 | AD10: 1122 | AE10: =COUNTIF(L65:L93,AD10) -> 0 | AF10: =AE10/(AG4-AE20) -> 0 | AG10: 0 | AI10: 1122 | AJ10: =COUNTIF(L94:L122,AI10) -> 0 | AK10: =AJ10/(AL4-AJ20) -> 0 | AL10: 0 | AN10: 1122 | AO10: =COUNTIF(L123:L151,AN10) -> 0 | AP10: =AO10/(AQ4-AO20) -> 0 | AQ10: 0 | AS10: 1122 | AT10: =COUNTIF(L152:L180,AS10) -> 0 | AU10: =AT10/(AV4-AT20) -> 0 | AV10: 0
A11: 12 | B11: 589 | C11: 14 | D11: 601 | E11: 13 | F11: 606 | G11: 14 | H11: 612 | K11: 0 | L11: 1111 | N11: 1211 | O11: 0 | P11: 0 | Q11: 0 | T11: 1211 | U11: =COUNTIF(L7:L35,T11) -> 0 | V11: =U11/(W4-U20) -> 0 | W11: 0 | Y11: 1211 | Z11: =COUNTIF(L36:L64,Y11) -> 0 | AA11: =Z11/(AB4-Z20) -> 0 | AB11: 0 | AD11: 1211 | AE11: =COUNTIF(L65:L93,AD11) -> 0 | AF11: =AE11/(AG4-AE20) -> 0 | AG11: 0 | AI11: 1211 | AJ11: =COUNTIF(L94:L122,AI11) -> 0 | AK11: =AJ11/(AL4-AJ20) -> 0 | AL11: 0 | AN11: 1211 | AO11: =COUNTIF(L123:L151,AN11) -> 0 | AP11: =AO11/(AQ4-AO20) -> 0 | AQ11: 0 | AS11: 1211 | AT11: =COUNTIF(L152:L180,AS11) -> 0 | AU11: =AT11/(AV4-AT20) -> 0 | AV11: 0
A12: 12 | B12: 708 | C12: 14 | D12: 713 | E12: 13 | F12: 720 | G12: 14 | H12: 726 | K12: 0 | L12: 1111 | N12: 1212 | O12: 0 | P12: 0 | Q12: 0 | T12: 1212 | U12: =COUNTIF(L7:L35,T12) -> 0 | V12: =U12/(W4-U20) -> 0 | W12: 0 | Y12: 1212 | Z12: =COUNTIF(L36:L64,Y12) -> 0 | AA12: =Z12/(AB4-Z20) -> 0 | AB12: 0 | AD12: 1212 | AE12: =COUNTIF(L65:L93,AD12) -> 0 | AF12: =AE12/(AG4-AE20) -> 0 | AG12: 0 | AI12: 1212 | AJ12: =COUNTIF(L94:L122,AI12) -> 0 | AK12: =AJ12/(AL4-AJ20) -> 0 | AL12: 0 | AN12: 1212 | AO12: =COUNTIF(L123:L151,AN12) -> 0 | AP12: =AO12/(AQ4-AO20) -> 0 | AQ12: 0 | AS12: 1212 | AT12: =COUNTIF(L152:L180,AS12) -> 0 | AU12: =AT12/(AV4-AT20) -> 0 | AV12: 0
A13: 12 | B13: 962 | C13: 14 | D13: 967 | E13: 13 | F13: 971 | G13: 14 | H13: 977 | K13: 0 | L13: 1111 | N13: 1221 | O13: 0 | P13: 0 | Q13: 0 | T13: 1221 | U13: =COUNTIF(L7:L35,T13) -> 0 | V13: =U13/(W4-U20) -> 0 | W13: 0 | Y13: 1221 | Z13: =COUNTIF(L36:L64,Y13) -> 0 | AA13: =Z13/(AB4-Z20) -> 0 | AB13: 0 | AD13: 1221 | AE13: =COUNTIF(L65:L93,AD13) -> 0 | AF13: =AE13/(AG4-AE20) -> 0 | AG13: 0 | AI13: 1221 | AJ13: =COUNTIF(L94:L122,AI13) -> 0 | AK13: =AJ13/(AL4-AJ20) -> 0 | AL13: 0 | AN13: 1221 | AO13: =COUNTIF(L123:L151,AN13) -> 0 | AP13: =AO13/(AQ4-AO20) -> 0 | AQ13: 0 | AS13: 1221 | AT13: =COUNTIF(L152:L180,AS13) -> 0 | AU13: =AT13/(AV4-AT20) -> 0 | AV13: 0
A14: 12 | B14: 1121 | C14: 14 | D14: 1130 | E14: 13 | F14: 1135 | G14: 14 | H14: 1141 | K14: 0 | L14: 1111 | N14: 1222 | O14: 4 | P14: 0.02298850575 | Q14: -0.1251251378 | T14: 1222 | U14: =COUNTIF(L7:L35,T14) -> 0 | V14: =U14/(W4-U20) -> 0 | W14: 0 | Y14: 1222 | Z14: =COUNTIF(L36:L64,Y14) -> 2 | AA14: =Z14/(AB4-Z20) -> 0.06896551724 | AB14: -0.2660676548 | AD14: 1222 | AE14: =COUNTIF(L65:L93,AD14) -> 1 | AF14: =AE14/(AG4-AE20) -> 0.03448275862 | AG14: -0.167516586 | AI14: 1222 | AJ14: =COUNTIF(L94:L122,AI14) -> 1 | AK14: =AJ14/(AL4-AJ20) -> 0.03448275862 | AL14: -0.167516586 | AN14: 1222 | AO14: =COUNTIF(L123:L151,AN14) -> 0 | AP14: =AO14/(AQ4-AO20) -> 0 | AQ14: 0 | AS14: 1222 | AT14: =COUNTIF(L152:L180,AS14) -> 0 | AU14: =AT14/(AV4-AT20) -> 0 | AV14: 0
A15: 12 | B15: 1239 | C15: 14 | D15: 1244 | E15: 13 | F15: 1255 | G15: 14 | H15: 1265 | K15: 0 | L15: 1111 | N15: 2111 | O15: 72 | P15: 0.4137931034 | Q15: -0.5267662735 | T15: 2111 | U15: =COUNTIF(L7:L35,T15) -> 12 | V15: =U15/(W4-U20) -> 0.4137931034 | W15: -0.5267662735 | Y15: 2111 | Z15: =COUNTIF(L36:L64,Y15) -> 17 | AA15: =Z15/(AB4-Z20) -> 0.5862068966 | AB15: -0.4516830557 | AD15: 2111 | AE15: =COUNTIF(L65:L93,AD15) -> 13 | AF15: =AE15/(AG4-AE20) -> 0.4482758621 | AG15: -0.5188978138 | AI15: 2111 | AJ15: =COUNTIF(L94:L122,AI15) -> 15 | AK15: =AJ15/(AL4-AJ20) -> 0.5172413793 | AL15: -0.4919433101 | AN15: 2111 | AO15: =COUNTIF(L123:L151,AN15) -> 6 | AP15: =AO15/(AQ4-AO20) -> 0.2068965517 | AQ15: -0.4702796885 | AS15: 2111 | AT15: =COUNTIF(L152:L180,AS15) -> 9 | AU15: =AT15/(AV4-AT20) -> 0.3103448276 | AV15: -0.5238794463
A16: 12 | B16: 1363 | C16: 14 | D16: 1370 | E16: 13 | F16: 1375 | G16: 14 | H16: 1381 | K16: 0 | L16: 1111 | N16: 2112 | O16: 0 | P16: 0 | Q16: 0 | T16: 2112 | U16: =COUNTIF(L7:L35,T16) -> 0 | V16: =U16/(W4-U20) -> 0 | W16: 0 | Y16: 2112 | Z16: =COUNTIF(L36:L64,Y16) -> 0 | AA16: =Z16/(AB4-Z20) -> 0 | AB16: 0 | AD16: 2112 | AE16: =COUNTIF(L65:L93,AD16) -> 0 | AF16: =AE16/(AG4-AE20) -> 0 | AG16: 0 | AI16: 2112 | AJ16: =COUNTIF(L94:L122,AI16) -> 0 | AK16: =AJ16/(AL4-AJ20) -> 0 | AL16: 0 | AN16: 2112 | AO16: =COUNTIF(L123:L151,AN16) -> 0 | AP16: =AO16/(AQ4-AO20) -> 0 | AQ16: 0 | AS16: 2112 | AT16: =COUNTIF(L152:L180,AS16) -> 0 | AU16: =AT16/(AV4-AT20) -> 0 | AV16: 0
A17: 21 | B17: 1543 | C17: 12 | D17: 1554 | E17: 13 | F17: 1559 | G17: 14 | H17: 1572 | K17: 0 | L17: 2111 | N17: 2121 | O17: 0 | P17: 0 | Q17: 0 | T17: 2121 | U17: =COUNTIF(L7:L35,T17) -> 0 | V17: =U17/(W4-U20) -> 0 | W17: 0 | Y17: 2121 | Z17: =COUNTIF(L36:L64,Y17) -> 0 | AA17: =Z17/(AB4-Z20) -> 0 | AB17: 0 | AD17: 2121 | AE17: =COUNTIF(L65:L93,AD17) -> 0 | AF17: =AE17/(AG4-AE20) -> 0 | AG17: 0 | AI17: 2121 | AJ17: =COUNTIF(L94:L122,AI17) -> 0 | AK17: =AJ17/(AL4-AJ20) -> 0 | AL17: 0 | AN17: 2121 | AO17: =COUNTIF(L123:L151,AN17) -> 0 | AP17: =AO17/(AQ4-AO20) -> 0 | AQ17: 0 | AS17: 2121 | AT17: =COUNTIF(L152:L180,AS17) -> 0 | AU17: =AT17/(AV4-AT20) -> 0 | AV17: 0
A18: 12 | B18: 1666 | C18: 14 | D18: 1671 | E18: 13 | F18: 1676 | G18: 14 | H18: 1681 | K18: 0 | L18: 1111 | N18: 2122 | O18: 0 | P18: 0 | Q18: 0 | T18: 2122 | U18: =COUNTIF(L7:L35,T18) -> 0 | V18: =U18/(W4-U20) -> 0 | W18: 0 | Y18: 2122 | Z18: =COUNTIF(L36:L64,Y18) -> 0 | AA18: =Z18/(AB4-Z20) -> 0 | AB18: 0 | AD18: 2122 | AE18: =COUNTIF(L65:L93,AD18) -> 0 | AF18: =AE18/(AG4-AE20) -> 0 | AG18: 0 | AI18: 2122 | AJ18: =COUNTIF(L94:L122,AI18) -> 0 | AK18: =AJ18/(AL4-AJ20) -> 0 | AL18: 0 | AN18: 2122 | AO18: =COUNTIF(L123:L151,AN18) -> 0 | AP18: =AO18/(AQ4-AO20) -> 0 | AQ18: 0 | AS18: 2122 | AT18: =COUNTIF(L152:L180,AS18) -> 0 | AU18: =AT18/(AV4-AT20) -> 0 | AV18: 0
A19: 21 | B19: 1779 | C19: 12 | D19: 1791 | E19: 13 | F19: 1797 | G19: 14 | H19: 1802 | K19: 0 | L19: 2111 | N19: 2211 | O19: 17 | P19: 0.09770114943 | Q19: -0.3278343168 | T19: 2211 | U19: =COUNTIF(L7:L35,T19) -> 3 | V19: =U19/(W4-U20) -> 0.1034482759 | W19: -0.3385881201 | Y19: 2211 | Z19: =COUNTIF(L36:L64,Y19) -> 2 | AA19: =Z19/(AB4-Z20) -> 0.06896551724 | AB19: -0.2660676548 | AD19: 2211 | AE19: =COUNTIF(L65:L93,AD19) -> 3 | AF19: =AE19/(AG4-AE20) -> 0.1034482759 | AG19: -0.3385881201 | AI19: 2211 | AJ19: =COUNTIF(L94:L122,AI19) -> 4 | AK19: =AJ19/(AL4-AJ20) -> 0.1379310345 | AL19: -0.3942042752 | AN19: 2211 | AO19: =COUNTIF(L123:L151,AN19) -> 1 | AP19: =AO19/(AQ4-AO20) -> 0.03448275862 | AQ19: -0.167516586 | AS19: 2211 | AT19: =COUNTIF(L152:L180,AS19) -> 4 | AU19: =AT19/(AV4-AT20) -> 0.1379310345 | AV19: -0.3942042752
A20: 21 | B20: 1904 | C20: 12 | D20: 1917 | E20: 13 | F20: 1921 | G20: 14 | H20: 1925 | K20: 0 | L20: 2111 | N20: 2212 | O20: 0 | P20: 0 | Q20: 0 | T20: 2212 | U20: =COUNTIF(L7:L35,T20) -> 0 | Y20: 2212 | Z20: =COUNTIF(L36:L64,Y20) -> 0 | AD20: 2212 | AE20: =COUNTIF(L65:L93,AD20) -> 0 | AI20: 2212 | AJ20: =COUNTIF(L94:L122,AI20) -> 0 | AN20: 2212 | AO20: =COUNTIF(L123:L151,AN20) -> 0 | AS20: 2212 | AT20: =COUNTIF(L152:L180,AS20) -> 0
A21: 12 | B21: 2026 | C21: 14 | D21: 2033 | E21: 13 | F21: 2038 | G21: 14 | H21: 2044 | K21: 0 | L21: 1111 | N21: 2221 | O21: 2 | P21: 0.01149425287 | Q21: -0.07405682179 | T21: 2221 | U21: =COUNTIF(L7:L35,T21) -> 0 | V21: =U21/(W4-U20) -> 0 | W21: =IF(V21=0,0,(V21*((LOG(V21))/LOG(2)))) -> 0 | Y21: 2221 | Z21: =COUNTIF(L36:L64,Y21) -> 0 | AA21: =Z21/(AB4-Z20) -> 0 | AB21: =IF(AA21=0,0,(AA21*((LOG(AA21))/LOG(2)))) -> 0 | AD21: 2221 | AE21: =COUNTIF(L65:L93,AD21) -> 2 | AF21: =AE21/(AG4-AE20) -> 0.06896551724 | AG21: =IF(AF21=0,0,(AF21*((LOG(AF21))/LOG(2)))) -> -0.2660676548 | AI21: 2221 | AJ21: =COUNTIF(L94:L122,AI21) -> 0 | AK21: =AJ21/(AL4-AJ20) -> 0 | AL21: =IF(AK21=0,0,(AK21*((LOG(AK21))/LOG(2)))) -> 0 | AN21: 2221 | AO21: =COUNTIF(L123:L151,AN21) -> 0 | AP21: =AO21/(AQ4-AO20) -> 0 | AQ21: =IF(AP21=0,0,(AP21*((LOG(AP21))/LOG(2)))) -> 0 | AS21: 2221 | AT21: =COUNTIF(L152:L180,AS21) -> 0 | AU21: =AT21/(AV4-AT20) -> 0 | AV21: =IF(AU21=0,0,(AU21*((LOG(AU21))/LOG(2)))) -> 0
A22: 21 | B22: 2149 | C22: 12 | D22: 2159 | E22: 13 | F22: 2162 | G22: 14 | H22: 2165 | K22: 0 | L22: 2111 | N22: 2222 | O22: 4 | P22: 0.02298850575 | Q22: -0.1251251378 | T22: 2222 | U22: =COUNTIF(L7:L35,T22) -> 1 | V22: =U22/(W4-U20) -> 0.03448275862 | W22: =IF(V22=0,0,(V22*((LOG(V22))/LOG(2)))) -> -0.167516586 | Y22: 2222 | Z22: =COUNTIF(L36:L64,Y22) -> 1 | AA22: =Z22/(AB4-Z20) -> 0.03448275862 | AB22: =IF(AA22=0,0,(AA22*((LOG(AA22))/LOG(2)))) -> -0.167516586 | AD22: 2222 | AE22: =COUNTIF(L65:L93,AD22) -> 0 | AF22: =AE22/(AG4-AE20) -> 0 | AG22: =IF(AF22=0,0,(AF22*((LOG(AF22))/LOG(2)))) -> 0 | AI22: 2222 | AJ22: =COUNTIF(L94:L122,AI22) -> 0 | AK22: =AJ22/(AL4-AJ20) -> 0 | AL22: =IF(AK22=0,0,(AK22*((LOG(AK22))/LOG(2)))) -> 0 | AN22: 2222 | AO22: =COUNTIF(L123:L151,AN22) -> 1 | AP22: =AO22/(AQ4-AO20) -> 0.03448275862 | AQ22: =IF(AP22=0,0,(AP22*((LOG(AP22))/LOG(2)))) -> -0.167516586 | AS22: 2222 | AT22: =COUNTIF(L152:L180,AS22) -> 1 | AU22: =AT22/(AV4-AT20) -> 0.03448275862 | AV22: =IF(AU22=0,0,(AU22*((LOG(AU22))/LOG(2)))) -> -0.167516586
A23: 21 | B23: 2276 | C23: 12 | D23: 2292 | E23: 13 | F23: 2298 | G23: 14 | H23: 2305 | K23: 0 | L23: 2111 | P23: =SUM(P7:P22) -> 1 | Q23: =-SUM(Q7:Q22) -> 1.702237345 | V23: =SUM(V7:V22) -> 1 | W23: =-SUM(W7:W22) -> 1.551768794 | AA23: =SUM(AA7:AA22) -> 1 | AB23: =-SUM(AB7:AB22) -> 1.646313659 | AF23: =SUM(AF7:AF22) -> 1 | AG23: =-SUM(AG7:AG22) -> 1.820743589 | AK23: =SUM(AK7:AK22) -> 1 | AL23: =-SUM(AL7:AL22) -> 1.577543618 | AP23: =SUM(AP7:AP22) -> 1 | AQ23: =-SUM(AQ7:AQ22) -> 1.142517516 | AU23: =SUM(AU7:AU22) -> 1 | AV23: =-SUM(AV7:AV22) -> 1.577543618
A24: 12 | B24: 2404 | C24: 14 | D24: 2409 | E24: 13 | F24: 2415 | G24: 14 | H24: 2424 | K24: 0 | L24: 1111 | P24: U= | Q24: =Q23/(LOG(Q4)/LOG(2)) -> 0.2287048593 | V24: U1= | W24: =W23/(LOG(W4)/LOG(2)) -> 0.3194266909 | AA24: U2= | AB24: =AB23/(LOG(AB4)/LOG(2)) -> 0.3388884519 | AF24: U3= | AG24: =AG23/(LOG(AG4)/LOG(2)) -> 0.3747943005 | AK24: U4= | AL24: =AL23/(LOG(AL4)/LOG(2)) -> 0.3247323568 | AP24: U5= | AQ24: =AQ23/(LOG(AQ4)/LOG(2)) -> 0.2351836118 | AU24: U6= | AV24: =AV23/(LOG(AV4)/LOG(2)) -> 0.3247323568
A25: 21 | B25: 2518 | C25: 21 | D25: 2540 | E25: 11 | F25: 2552 | G25: 12 | H25: 2556 | K25: 0 | L25: 2211
A26: 21 | B26: 2649 | C26: 12 | D26: 2663 | E26: 13 | F26: 2665 | G26: 14 | H26: 2672 | K26: 0 | L26: 2111
A27: 12 | B27: 2771 | C27: 14 | D27: 2776 | E27: 13 | F27: 2786 | G27: 14 | H27: 2791 | K27: 0 | L27: 1111 | N27: Total Target Seq
A28: 12 | B28: 2899 | C28: 14 | D28: 2904 | E28: 13 | F28: 2913 | G28: 14 | H28: 2918 | K28: 0 | L28: 1111 | N28: =COUNTIF(L7:L180,G3) -> 0 | P28: 29 | Q28: 29 | R28: 29 | S28: 29 | T28: 29 | U28: 29
A29: 21 | B29: 3013 | C29: 12 | D29: 3039 | E29: 13 | F29: 3045 | G29: 14 | H29: 3050 | K29: 0 | L29: 2111 | P29: % of reinforcement given in 6 equal intervals based on number of trials
A30: 21 | B30: 3161 | C30: 21 | D30: 3165 | E30: 11 | F30: 3173 | G30: 12 | H30: 3177 | K30: 0 | L30: 2211 | P30: %_1 | Q30: %_2 | R30: %_3 | S30: %_4 | T30: %_5 | U30: %_6
A31: 21 | B31: 3201 | C31: 21 | D31: 3205 | E31: 22 | F31: 3211 | G31: 23 | H31: 3217 | K31: 0 | L31: 2222 | O31: target sequence | P31: =$G$3 -> 2212 | Q31: 2212 | R31: 2212 | S31: 2212 | T31: 2212 | U31: 2212
A32: 21 | B32: 3317 | C32: 21 | D32: 3322 | E32: 11 | F32: 3335 | G32: 12 | H32: 3338 | K32: 0 | L32: 2211 | O32: total reinforcement | P32: =U20 -> 0 | Q32: =Z20 -> 0 | R32: =AE20 -> 0 | S32: =AJ20 -> 0 | T32: =AO20 -> 0 | U32: =AT20 -> 0
A33: 12 | B33: 3441 | C33: 14 | D33: 3446 | E33: 13 | F33: 3450 | G33: 14 | H33: 3456 | K33: 0 | L33: 1111 | O33: % target
A34: 21 | B34: 3560 | C34: 12 | D34: 3573 | E34: 13 | F34: 3578 | G34: 14 | H34: 3585 | K34: 0 | L34: 2111 | O34: CCRF
A35: 21 | B35: 3682 | C35: 12 | D35: 3693 | E35: 13 | F35: 3701 | G35: 14 | H35: 3707 | K35: 0 | L35: 2111 | O35: % CCRf
A36: 21 | B36: 3803 | C36: 21 | D36: 3824 | E36: 11 | F36: 3835 | G36: 12 | H36: 3839 | K36: 0 | L36: 2211 | O36: average response rate | P36: =H35/P28 -> 127.8275862 | Q36: =(H64-H35)/Q28 -> 137.4482759 | R36: =(H93-H64)/R28 -> 126.7586207 | S36: =(H122-H93)/S28 -> 147.2068966 | T36: =(H151-H122)/T28 -> 145.6206897 | U36: =(H180-H151)/U28 -> 138.5517241
A37: 21 | B37: 3945 | C37: 12 | D37: 3959 | E37: 13 | F37: 3963 | G37: 14 | H37: 3968 | K37: 0 | L37: 2111
A38: 21 | B38: 4060 | C38: 12 | D38: 4077 | E38: 13 | F38: 4081 | G38: 14 | H38: 4085 | K38: 0 | L38: 2111
A39: 21 | B39: 4180 | C39: 12 | D39: 4192 | E39: 13 | F39: 4195 | G39: 14 | H39: 4201 | K39: 0 | L39: 2111
A40: 21 | B40: 4301 | C40: 12 | D40: 4316 | E40: 13 | F40: 4320 | G40: 14 | H40: 4332 | K40: 0 | L40: 2111
A41: 21 | B41: 4447 | C41: 12 | D41: 4458 | E41: 13 | F41: 4467 | G41: 14 | H41: 4472 | K41: 0 | L41: 2111
A42: 21 | B42: 4643 | C42: 12 | D42: 4656 | E42: 13 | F42: 4660 | G42: 14 | H42: 4663 | K42: 0 | L42: 2111
A43: 21 | B43: 4760 | C43: 12 | D43: 4771 | E43: 13 | F43: 4775 | G43: 14 | H43: 4781 | K43: 0 | L43: 2111
A44: 21 | B44: 4878 | C44: 12 | D44: 4894 | E44: 13 | F44: 4902 | G44: 14 | H44: 4907 | K44: 0 | L44: 2111
A45: 21 | B45: 5003 | C45: 12 | D45: 5020 | E45: 13 | F45: 5023 | G45: 14 | H45: 5030 | K45: 0 | L45: 2111
A46: 21 | B46: 5129 | C46: 21 | D46: 5151 | E46: 11 | F46: 5161 | G46: 12 | H46: 5165 | K46: 0 | L46: 2211
A47: 21 | B47: 5261 | C47: 21 | D47: 5275 | E47: 22 | F47: 5278 | G47: 23 | H47: 5312 | K47: 0 | L47: 2222
A48: 12 | B48: 5407 | C48: 23 | D48: 5419 | E48: 24 | F48: 5428 | G48: 23 | H48: 5435 | K48: 0 | L48: 1222
A49: 12 | B49: 5628 | C49: 14 | D49: 5632 | E49: 13 | F49: 5639 | G49: 14 | H49: 5653 | K49: 0 | L49: 1111
A50: 12 | B50: 5746 | C50: 23 | D50: 5757 | E50: 24 | F50: 5760 | G50: 23 | H50: 5765 | K50: 0 | L50: 1222
A51: 12 | B51: 5988 | C51: 14 | D51: 5992 | E51: 13 | F51: 5998 | G51: 14 | H51: 6004 | K51: 0 | L51: 1111
A52: 12 | B52: 6098 | C52: 14 | D52: 6101 | E52: 13 | F52: 6103 | G52: 14 | H52: 6108 | K52: 0 | L52: 1111
A53: 21 | B53: 6237 | C53: 12 | D53: 6248 | E53: 13 | F53: 6253 | G53: 14 | H53: 6259 | K53: 0 | L53: 2111
A54: 12 | B54: 6371 | C54: 14 | D54: 6375 | E54: 13 | F54: 6382 | G54: 14 | H54: 6390 | K54: 0 | L54: 1111
A55: 12 | B55: 6487 | C55: 14 | D55: 6496 | E55: 13 | F55: 6502 | G55: 14 | H55: 6509 | K55: 0 | L55: 1111
A56: 12 | B56: 6606 | C56: 14 | D56: 6613 | E56: 13 | F56: 6617 | G56: 14 | H56: 6624 | K56: 0 | L56: 1111
A57: 12 | B57: 6730 | C57: 14 | D57: 6734 | E57: 13 | F57: 6737 | G57: 14 | H57: 6742 | K57: 0 | L57: 1111
A58: 21 | B58: 6885 | C58: 12 | D58: 6896 | E58: 13 | F58: 6904 | G58: 14 | H58: 6909 | K58: 0 | L58: 2111
A59: 21 | B59: 7018 | C59: 12 | D59: 7028 | E59: 13 | F59: 7032 | G59: 14 | H59: 7036 | K59: 0 | L59: 2111
A60: 21 | B60: 7131 | C60: 12 | D60: 7146 | E60: 13 | F60: 7156 | G60: 14 | H60: 7163 | K60: 0 | L60: 2111
A61: 21 | B61: 7258 | C61: 12 | D61: 7268 | E61: 13 | F61: 7275 | G61: 14 | H61: 7280 | K61: 0 | L61: 2111
A62: 21 | B62: 7415 | C62: 12 | D62: 7427 | E62: 13 | F62: 7432 | G62: 14 | H62: 7438 | K62: 0 | L62: 2111
A63: 21 | B63: 7535 | C63: 12 | D63: 7546 | E63: 13 | F63: 7553 | G63: 14 | H63: 7560 | K63: 0 | L63: 2111
A64: 21 | B64: 7662 | C64: 12 | D64: 7674 | E64: 13 | F64: 7683 | G64: 14 | H64: 7693 | K64: 0 | L64: 2111
A65: 12 | B65: 7791 | C65: 14 | D65: 7796 | E65: 13 | F65: 7801 | G65: 14 | H65: 7804 | K65: 0 | L65: 1111
A66: 12 | B66: 7905 | C66: 14 | D66: 7915 | E66: 13 | F66: 7921 | G66: 14 | H66: 7926 | K66: 0 | L66: 1111
A67: 21 | B67: 8025 | C67: 12 | D67: 8037 | E67: 13 | F67: 8041 | G67: 14 | H67: 8043 | K67: 0 | L67: 2111
A68: 21 | B68: 8154 | C68: 12 | D68: 8177 | E68: 13 | F68: 8184 | G68: 14 | H68: 8192 | K68: 0 | L68: 2111
A69: 12 | B69: 8294 | C69: 14 | D69: 8304 | E69: 13 | F69: 8309 | G69: 14 | H69: 8314 | K69: 0 | L69: 1111
A70: 21 | B70: 8415 | C70: 12 | D70: 8426 | E70: 13 | F70: 8429 | G70: 14 | H70: 8435 | K70: 0 | L70: 2111
A71: 21 | B71: 8533 | C71: 12 | D71: 8545 | E71: 13 | F71: 8551 | G71: 14 | H71: 8558 | K71: 0 | L71: 2111
A72: 21 | B72: 8651 | C72: 21 | D72: 8654 | E72: 22 | F72: 8673 | G72: 14 | H72: 8684 | K72: 0 | L72: 2221
A73: 21 | B73: 8786 | C73: 21 | D73: 8804 | E73: 11 | F73: 8816 | G73: 12 | H73: 8819 | K73: 0 | L73: 2211
A74: 21 | B74: 8932 | C74: 12 | D74: 8945 | E74: 13 | F74: 8948 | G74: 14 | H74: 8954 | K74: 0 | L74: 2111
A75: 12 | B75: 9070 | C75: 14 | D75: 9073 | E75: 13 | F75: 9078 | G75: 14 | H75: 9090 | K75: 0 | L75: 1111
A76: 21 | B76: 9191 | C76: 12 | D76: 9206 | E76: 13 | F76: 9211 | G76: 14 | H76: 9215 | K76: 0 | L76: 2111
A77: 12 | B77: 9333 | C77: 14 | D77: 9339 | E77: 13 | F77: 9345 | G77: 14 | H77: 9351 | K77: 0 | L77: 1111
A78: 21 | B78: 9449 | C78: 12 | D78: 9464 | E78: 13 | F78: 9468 | G78: 14 | H78: 9472 | K78: 0 | L78: 2111
A79: 21 | B79: 9620 | C79: 12 | D79: 9632 | E79: 13 | F79: 9637 | G79: 14 | H79: 9648 | K79: 0 | L79: 2111
A80: 12 | B80: 9753 | C80: 23 | D80: 9773 | E80: 24 | F80: 9784 | G80: 23 | H80: 9791 | K80: 0 | L80: 1222
A81: 12 | B81: 9924 | C81: 14 | D81: 9930 | E81: 13 | F81: 9936 | G81: 14 | H81: 9948 | K81: 0 | L81: 1111
A82: 12 | B82: 10047 | C82: 14 | D82: 10051 | E82: 13 | F82: 10064 | G82: 14 | H82: 10074 | K82: 0 | L82: 1111
A83: 21 | B83: 10176 | C83: 21 | D83: 10181 | E83: 11 | F83: 10191 | G83: 12 | H83: 10195 | K83: 0 | L83: 2211
A84: 12 | B84: 10214 | C84: 14 | D84: 10218 | E84: 13 | F84: 10225 | G84: 14 | H84: 10232 | K84: 0 | L84: 1111
A85: 21 | B85: 10327 | C85: 12 | D85: 10342 | E85: 13 | F85: 10346 | G85: 14 | H85: 10353 | K85: 0 | L85: 2111
A86: 21 | B86: 10448 | C86: 12 | D86: 10459 | E86: 13 | F86: 10464 | G86: 14 | H86: 10471 | K86: 0 | L86: 2111
A87: 21 | B87: 10575 | C87: 21 | D87: 10591 | E87: 11 | F87: 10606 | G87: 12 | H87: 10609 | K87: 0 | L87: 2211
A88: 21 | B88: 10711 | C88: 12 | D88: 10723 | E88: 13 | F88: 10727 | G88: 14 | H88: 10734 | K88: 0 | L88: 2111
A89: 12 | B89: 10827 | C89: 14 | D89: 10836 | E89: 13 | F89: 10845 | G89: 14 | H89: 10847 | K89: 0 | L89: 1111
A90: 21 | B90: 10949 | C90: 12 | D90: 10965 | E90: 13 | F90: 10970 | G90: 14 | H90: 10974 | K90: 0 | L90: 2111
A91: 21 | B91: 11072 | C91: 21 | D91: 11075 | E91: 22 | F91: 11096 | G91: 14 | H91: 11108 | K91: 0 | L91: 2221
A92: 21 | B92: 11217 | C92: 12 | D92: 11228 | E92: 13 | F92: 11233 | G92: 14 | H92: 11239 | K92: 0 | L92: 2111
A93: 12 | B93: 11348 | C93: 14 | D93: 11358 | E93: 13 | F93: 11363 | G93: 14 | H93: 11369 | K93: 0 | L93: 1111
A94: 21 | B94: 11468 | C94: 21 | D94: 11471 | E94: 11 | F94: 11483 | G94: 12 | H94: 11487 | K94: 0 | L94: 2211
A95: 21 | B95: 11585 | C95: 12 | D95: 11602 | E95: 13 | F95: 11605 | G95: 14 | H95: 11610 | K95: 0 | L95: 2111
A96: 21 | B96: 11712 | C96: 21 | D96: 11729 | E96: 11 | F96: 11743 | G96: 12 | H96: 11748 | K96: 0 | L96: 2211
A97: 21 | B97: 11846 | C97: 21 | D97: 11871 | E97: 11 | F97: 11885 | G97: 12 | H97: 11891 | K97: 0 | L97: 2211
A98: 21 | B98: 11992 | C98: 12 | D98: 12004 | E98: 13 | F98: 12007 | G98: 14 | H98: 12013 | K98: 0 | L98: 2111
A99: 12 | B99: 12117 | C99: 14 | D99: 12121 | E99: 13 | F99: 12126 | G99: 14 | H99: 12130 | K99: 0 | L99: 1111
A100: 21 | B100: 12227 | C100: 12 | D100: 12237 | E100: 13 | F100: 12240 | G100: 14 | H100: 12243 | K100: 0 | L100: 2111
A101: 12 | B101: 12342 | C101: 14 | D101: 12348 | E101: 13 | F101: 12350 | G101: 14 | H101: 12357 | K101: 0 | L101: 1111
A102: 21 | B102: 12464 | C102: 21 | D102: 12469 | E102: 11 | F102: 12480 | G102: 12 | H102: 12485 | K102: 0 | L102: 2211
A103: 12 | B103: 12506 | C103: 14 | D103: 12510 | E103: 13 | F103: 12515 | G103: 14 | H103: 12520 | K103: 0 | L103: 1111
A104: 21 | B104: 12618 | C104: 12 | D104: 12631 | E104: 13 | F104: 12635 | G104: 14 | H104: 12642 | K104: 0 | L104: 2111
A105: 21 | B105: 12749 | C105: 12 | D105: 12763 | E105: 13 | F105: 12767 | G105: 14 | H105: 12779 | K105: 0 | L105: 2111
A106: 21 | B106: 12889 | C106: 12 | D106: 12903 | E106: 13 | F106: 12907 | G106: 14 | H106: 12912 | K106: 0 | L106: 2111
A107: 12 | B107: 13050 | C107: 14 | D107: 13054 | E107: 13 | F107: 13060 | G107: 14 | H107: 13066 | K107: 0 | L107: 1111
A108: 21 | B108: 13167 | C108: 12 | D108: 13183 | E108: 13 | F108: 13187 | G108: 14 | H108: 13190 | K108: 0 | L108: 2111
A109: 12 | B109: 13294 | C109: 14 | D109: 13298 | E109: 13 | F109: 13304 | G109: 14 | H109: 13310 | K109: 0 | L109: 1111
A110: 12 | B110: 13425 | C110: 23 | D110: 13441 | E110: 24 | F110: 13446 | G110: 23 | H110: 13453 | K110: 0 | L110: 1222
A111: 12 | B111: 13670 | C111: 14 | D111: 13675 | E111: 13 | F111: 13679 | G111: 14 | H111: 13687 | K111: 0 | L111: 1111
A112: 12 | B112: 13941 | C112: 14 | D112: 13946 | E112: 13 | F112: 13957 | G112: 14 | H112: 13966 | K112: 0 | L112: 1111
A113: 21 | B113: 14069 | C113: 12 | D113: 14090 | E113: 13 | F113: 14094 | G113: 14 | H113: 14099 | K113: 0 | L113: 2111
A114: 21 | B114: 14274 | C114: 12 | D114: 14290 | E114: 13 | F114: 14296 | G114: 14 | H114: 14303 | K114: 0 | L114: 2111
A115: 21 | B115: 14419 | C115: 12 | D115: 14430 | E115: 13 | F115: 14434 | G115: 14 | H115: 14439 | K115: 0 | L115: 2111
A116: 21 | B116: 14637 | C116: 12 | D116: 14649 | E116: 13 | F116: 14653 | G116: 14 | H116: 14664 | K116: 0 | L116: 2111
A117: 12 | B117: 14797 | C117: 14 | D117: 14802 | E117: 13 | F117: 14808 | G117: 14 | H117: 14814 | K117: 0 | L117: 1111
A118: 12 | B118: 15012 | C118: 14 | D118: 15014 | E118: 13 | F118: 15020 | G118: 14 | H118: 15035 | K118: 0 | L118: 1111
A119: 21 | B119: 15131 | C119: 12 | D119: 15142 | E119: 13 | F119: 15145 | G119: 14 | H119: 15150 | K119: 0 | L119: 2111
A120: 21 | B120: 15299 | C120: 12 | D120: 15311 | E120: 13 | F120: 15315 | G120: 14 | H120: 15321 | K120: 0 | L120: 2111
A121: 21 | B121: 15484 | C121: 12 | D121: 15499 | E121: 13 | F121: 15503 | G121: 14 | H121: 15513 | K121: 0 | L121: 2111
A122: 21 | B122: 15613 | C122: 12 | D122: 15629 | E122: 13 | F122: 15633 | G122: 14 | H122: 15638 | K122: 0 | L122: 2111
A123: 21 | B123: 15747 | C123: 21 | D123: 15751 | E123: 22 | F123: 15756 | G123: 23 | H123: 15763 | K123: 0 | L123: 2222
A124: 12 | B124: 15858 | C124: 14 | D124: 15863 | E124: 13 | F124: 15867 | G124: 14 | H124: 15877 | K124: 0 | L124: 1111
A125: 12 | B125: 15982 | C125: 14 | D125: 15986 | E125: 13 | F125: 15996 | G125: 14 | H125: 16002 | K125: 0 | L125: 1111
A126: 12 | B126: 16172 | C126: 14 | D126: 16177 | E126: 13 | F126: 16182 | G126: 14 | H126: 16190 | K126: 0 | L126: 1111
A127: 12 | B127: 16302 | C127: 14 | D127: 16306 | E127: 13 | F127: 16311 | G127: 14 | H127: 16318 | K127: 0 | L127: 1111
A128: 21 | B128: 16466 | C128: 12 | D128: 16478 | E128: 13 | F128: 16482 | G128: 14 | H128: 16488 | K128: 0 | L128: 2111
A129: 12 | B129: 16649 | C129: 14 | D129: 16654 | E129: 13 | F129: 16659 | G129: 14 | H129: 16665 | K129: 0 | L129: 1111
A130: 21 | B130: 16764 | C130: 12 | D130: 16780 | E130: 13 | F130: 16784 | G130: 14 | H130: 16788 | K130: 0 | L130: 2111
A131: 12 | B131: 16900 | C131: 14 | D131: 16905 | E131: 13 | F131: 16913 | G131: 14 | H131: 16920 | K131: 0 | L131: 1111
A132: 12 | B132: 17025 | C132: 14 | D132: 17028 | E132: 13 | F132: 17033 | G132: 14 | H132: 17039 | K132: 0 | L132: 1111
A133: 12 | B133: 17145 | C133: 14 | D133: 17149 | E133: 13 | F133: 17154 | G133: 14 | H133: 17160 | K133: 0 | L133: 1111
A134: 12 | B134: 17264 | C134: 14 | D134: 17271 | E134: 13 | F134: 17274 | G134: 14 | H134: 17281 | K134: 0 | L134: 1111
A135: 21 | B135: 17435 | C135: 12 | D135: 17444 | E135: 13 | F135: 17448 | G135: 14 | H135: 17454 | K135: 0 | L135: 2111
A136: 12 | B136: 17573 | C136: 14 | D136: 17580 | E136: 13 | F136: 17588 | G136: 14 | H136: 17593 | K136: 0 | L136: 1111
A137: 21 | B137: 17685 | C137: 12 | D137: 17704 | E137: 13 | F137: 17708 | G137: 14 | H137: 17714 | K137: 0 | L137: 2111
A138: 12 | B138: 17818 | C138: 14 | D138: 17822 | E138: 13 | F138: 17826 | G138: 14 | H138: 17832 | K138: 0 | L138: 1111
A139: 12 | B139: 17931 | C139: 14 | D139: 17937 | E139: 13 | F139: 17944 | G139: 14 | H139: 17957 | K139: 0 | L139: 1111
A140: 12 | B140: 18078 | C140: 14 | D140: 18089 | E140: 13 | F140: 18094 | G140: 14 | H140: 18097 | K140: 0 | L140: 1111
A141: 21 | B141: 18196 | C141: 12 | D141: 18209 | E141: 13 | F141: 18213 | G141: 14 | H141: 18218 | K141: 0 | L141: 2111
A142: 12 | B142: 18322 | C142: 14 | D142: 18326 | E142: 13 | F142: 18337 | G142: 14 | H142: 18344 | K142: 0 | L142: 1111
A143: 12 | B143: 18523 | C143: 14 | D143: 18528 | E143: 13 | F143: 18535 | G143: 14 | H143: 18545 | K143: 0 | L143: 1111
A144: 12 | B144: 19006 | C144: 14 | D144: 19011 | E144: 13 | F144: 19018 | G144: 14 | H144: 19022 | K144: 0 | L144: 1111
A145: 12 | B145: 19158 | C145: 14 | D145: 19162 | E145: 13 | F145: 19168 | G145: 14 | H145: 19176 | K145: 0 | L145: 1111
A146: 21 | B146: 19281 | C146: 12 | D146: 19292 | E146: 13 | F146: 19297 | G146: 14 | H146: 19304 | K146: 0 | L146: 2111
A147: 12 | B147: 19397 | C147: 14 | D147: 19404 | E147: 13 | F147: 19414 | G147: 14 | H147: 19419 | K147: 0 | L147: 1111
A148: 12 | B148: 19520 | C148: 14 | D148: 19529 | E148: 13 | F148: 19532 | G148: 14 | H148: 19537 | K148: 0 | L148: 1111
A149: 21 | B149: 19638 | C149: 21 | D149: 19653 | E149: 11 | F149: 19664 | G149: 12 | H149: 19667 | K149: 0 | L149: 2211
A150: 12 | B150: 19686 | C150: 14 | D150: 19691 | E150: 13 | F150: 19696 | G150: 14 | H150: 19701 | K150: 0 | L150: 1111
A151: 12 | B151: 19826 | C151: 14 | D151: 19830 | E151: 13 | F151: 19840 | G151: 14 | H151: 19861 | K151: 0 | L151: 1111
A152: 21 | B152: 19953 | C152: 21 | D152: 19971 | E152: 11 | F152: 19984 | G152: 12 | H152: 19987 | K152: 0 | L152: 2211
A153: 21 | B153: 20084 | C153: 12 | D153: 20102 | E153: 13 | F153: 20106 | G153: 14 | H153: 20110 | K153: 0 | L153: 2111
A154: 21 | B154: 20221 | C154: 12 | D154: 20236 | E154: 13 | F154: 20240 | G154: 14 | H154: 20245 | K154: 0 | L154: 2111
A155: 12 | B155: 20343 | C155: 14 | D155: 20347 | E155: 13 | F155: 20352 | G155: 14 | H155: 20355 | K155: 0 | L155: 1111
A156: 12 | B156: 20452 | C156: 14 | D156: 20461 | E156: 13 | F156: 20466 | G156: 14 | H156: 20473 | K156: 0 | L156: 1111
A157: 12 | B157: 20581 | C157: 14 | D157: 20585 | E157: 13 | F157: 20590 | G157: 14 | H157: 20596 | K157: 0 | L157: 1111
A158: 12 | B158: 20767 | C158: 14 | D158: 20770 | E158: 13 | F158: 20778 | G158: 14 | H158: 20790 | K158: 0 | L158: 1111
A159: 12 | B159: 20900 | C159: 14 | D159: 20906 | E159: 13 | F159: 20910 | G159: 14 | H159: 20917 | K159: 0 | L159: 1111
A160: 21 | B160: 21017 | C160: 12 | D160: 21030 | E160: 13 | F160: 21035 | G160: 14 | H160: 21041 | K160: 0 | L160: 2111
A161: 21 | B161: 21140 | C161: 21 | D161: 21160 | E161: 11 | F161: 21173 | G161: 12 | H161: 21184 | K161: 0 | L161: 2211
A162: 12 | B162: 21284 | C162: 14 | D162: 21295 | E162: 13 | F162: 21303 | G162: 14 | H162: 21311 | K162: 0 | L162: 1111
A163: 21 | B163: 21423 | C163: 12 | D163: 21438 | E163: 13 | F163: 21441 | G163: 14 | H163: 21446 | K163: 0 | L163: 2111
A164: 21 | B164: 21543 | C164: 21 | D164: 21548 | E164: 11 | F164: 21560 | G164: 12 | H164: 21565 | K164: 0 | L164: 2211
A165: 21 | B165: 21702 | C165: 21 | D165: 21731 | E165: 11 | F165: 21744 | G165: 12 | H165: 21749 | K165: 0 | L165: 2211
A166: 12 | B166: 21771 | C166: 14 | D166: 21777 | E166: 13 | F166: 21783 | G166: 14 | H166: 21789 | K166: 0 | L166: 1111
A167: 21 | B167: 21887 | C167: 12 | D167: 21898 | E167: 13 | F167: 21903 | G167: 14 | H167: 21906 | K167: 0 | L167: 2111
A168: 12 | B168: 22009 | C168: 14 | D168: 22013 | E168: 13 | F168: 22020 | G168: 14 | H168: 22026 | K168: 0 | L168: 1111
A169: 21 | B169: 22132 | C169: 12 | D169: 22146 | E169: 13 | F169: 22151 | G169: 14 | H169: 22157 | K169: 0 | L169: 2111
A170: 12 | B170: 22263 | C170: 14 | D170: 22269 | E170: 13 | F170: 22274 | G170: 14 | H170: 22279 | K170: 0 | L170: 1111
A171: 21 | B171: 22388 | C171: 21 | D171: 22392 | E171: 22 | F171: 22398 | G171: 23 | H171: 22404 | K171: 0 | L171: 2222
A172: 21 | B172: 22508 | C172: 12 | D172: 22526 | E172: 13 | F172: 22533 | G172: 14 | H172: 22539 | K172: 0 | L172: 2111
A173: 12 | B173: 22632 | C173: 14 | D173: 22637 | E173: 13 | F173: 22646 | G173: 14 | H173: 22657 | K173: 0 | L173: 1111
A174: 12 | B174: 22819 | C174: 14 | D174: 22828 | E174: 13 | F174: 22834 | G174: 14 | H174: 22840 | K174: 0 | L174: 1111
A175: 12 | B175: 22965 | C175: 14 | D175: 22971 | E175: 13 | F175: 22975 | G175: 14 | H175: 22981 | K175: 0 | L175: 1111
A176: 21 | B176: 23077 | C176: 12 | D176: 23092 | E176: 13 | F176: 23096 | G176: 14 | H176: 23101 | K176: 0 | L176: 2111
A177: 21 | B177: 23207 | C177: 12 | D177: 23219 | E177: 13 | F177: 23223 | G177: 14 | H177: 23230 | K177: 0 | L177: 2111
A178: 12 | B178: 23343 | C178: 14 | D178: 23353 | E178: 13 | F178: 23361 | G178: 14 | H178: 23367 | K178: 0 | L178: 1111
A179: 12 | B179: 23733 | C179: 14 | D179: 23738 | E179: 13 | F179: 23743 | G179: 14 | H179: 23744 | K179: 0 | L179: 1111
A180: 12 | B180: 23861 | C180: 14 | D180: 23866 | E180: 13 | F180: 23873 | G180: 14 | H180: 23879 | K180: 0 | L180: 1111

Sheet !LB08955.. d
A1: Report for:!LB08955.. d
A2: Date: | B2: <date>
A3: Hen: | B3: <hen> | F3: Correct Sequence | G3: =Start!J2 -> 2212 | P3: Total Sequences in Data | Q3: =4994-COUNTBLANK(L7:L5000) -> 159 | V3: Total Sequences in Block Data | W3: =COUNTA(L7:L33) -> 27 | AA3: Total Sequences in Block Data | AB3: =COUNTA(L34:L59) -> 26 | AF3: Total Sequences in Block Data | AG3: =COUNTA(L60:L86) -> 27 | AK3: Total Sequences in Block Data | AL3: =COUNTA(L87:L112) -> 26 | AP3: Total Sequences in Block Data | AQ3: =COUNTA(L113:L139) -> 27 | AU3: Total Sequences in Block Data | AV3: =COUNTA(L140:L165) -> 26
P4: Total Sequences in Summary | Q4: =SUM(O7:O22) -> 158 | V4: Total Sequences in Block Summary | W4: =SUM(U7:U22) -> 27 | AA4: Total Sequences in Block Summary | AB4: =SUM(Z7:Z22) -> 26 | AF4: Total Sequences in Block Summary | AG4: =SUM(AE7:AE22) -> 27 | AK4: Total Sequences in Block Summary | AL4: =SUM(AJ7:AJ22) -> 26 | AP4: Total Sequences in Block Summary | AQ4: =SUM(AO7:AO22) -> 27 | AU4: Total Sequences in Block Summary | AV4: =SUM(AT7:AT22) -> 25
T5: Block 1 | Y5: Block 2 | AD5: Block 3 | AI5: Block 4 | AN5: Block 5 | AS5: Block 6
A6: Sequence Component 1 | B6: Time 1 | C6: Sequence Component 2 | D6: Time 2 | E6: Sequence Component 3 | F6: Time 3 | G6: Sequence Component 4 | H6: Time 4 | I6: Sequence Component 5 | J6: Time 5 | K6: Correct? 0=No 1=Yes | L6: Sequence | N6: Frequency | P6: Relative Frequency | Q6: Variability | T6: Frequency | V6: Relative Frequency | W6: Variability | Y6: Frequency | AA6: Relative Frequency | AB6: Variability | AD6: Frequency | AF6: Relative Frequency | AG6: Variability | AI6: Frequency | AK6: Relative Frequency | AL6: Variability | AN6: Frequency | AP6: Relative Frequency | AQ6: Variability | AS6: Frequency | AU6: Relative Frequency | AV6: Variability
A7: 12 | B7: 18 | C7: 14 | D7: 23 | E7: 13 | F7: 28 | G7: 14 | H7: 33 | K7: 0 | L7: 1111 | N7: 1111 | O7: =COUNTIF($L$7:$L$500,N7) -> 52 | P7: =O7/$Q$4 -> 0.3291139241 | Q7: =IF(P7=0,0,(P7*((LOG(P7))/LOG(2)))) -> -0.527681858 | T7: =N7 -> 1111 | U7: =COUNTIF(L7:L33,T7) -> 10 | V7: =U7/(W4-U20) -> 0.3703703704 | W7: =IF(V7=0,0,(V7*((LOG(V7))/LOG(2)))) -> -0.5307257064 | Y7: =N7 -> 1111 | Z7: =COUNTIF(L34:L59,Y7) -> 4 | AA7: =Z7/(AB4-Z20) -> 0.1538461538 | AB7: =IF(AA7=0,0,(AA7*((LOG(AA7))/LOG(2)))) -> -0.4154522643 | AD7: =N7 -> 1111 | AE7: =COUNTIF(L60:L86,AD7) -> 7 | AF7: =AE7/(AG4-AE20) -> 0.2592592593 | AG7: =IF(AF7=0,0,(AF7*((LOG(AF7))/LOG(2)))) -> -0.5049158541 | AI7: =N7 -> 1111 | AJ7: =COUNTIF(L87:L112,AI7) -> 6 | AK7: =AJ7/(AL4-AJ20) -> 0.2307692308 | AL7: =IF(AK7=0,0,(AK7*((LOG(AK7))/LOG(2)))) -> -0.4881870502 | AN7: =N7 -> 1111 | AO7: =COUNTIF(L113:L139,AN7) -> 9 | AP7: =AO7/(AQ4-AO20) -> 0.3333333333 | AQ7: =IF(AP7=0,0,(AP7*((LOG(AP7))/LOG(2)))) -> -0.5283208336 | AS7: =N7 -> 1111 | AT7: =COUNTIF(L140:L165,AS7) -> 16 | AU7: =AT7/(AV4-AT20) -> 0.64 | AV7: =IF(AU7=0,0,(AU7*((LOG(AU7))/LOG(2)))) -> -0.4120679615
A8: 12 | B8: 136 | C8: 14 | D8: 140 | E8: 13 | F8: 143 | G8: 14 | H8: 148 | K8: 0 | L8: 1111 | N8: 1112 | O8: 0 | P8: 0 | Q8: 0 | T8: 1112 | U8: =COUNTIF(L7:L33,T8) -> 0 | V8: =U8/(W4-U20) -> 0 | W8: 0 | Y8: 1112 | Z8: =COUNTIF(L34:L59,Y8) -> 0 | AA8: =Z8/(AB4-Z20) -> 0 | AB8: 0 | AD8: 1112 | AE8: =COUNTIF(L60:L86,AD8) -> 0 | AF8: =AE8/(AG4-AE20) -> 0 | AG8: 0 | AI8: 1112 | AJ8: =COUNTIF(L87:L112,AI8) -> 0 | AK8: =AJ8/(AL4-AJ20) -> 0 | AL8: 0 | AN8: 1112 | AO8: =COUNTIF(L113:L139,AN8) -> 0 | AP8: =AO8/(AQ4-AO20) -> 0 | AQ8: 0 | AS8: 1112 | AT8: =COUNTIF(L140:L165,AS8) -> 0 | AU8: =AT8/(AV4-AT20) -> 0 | AV8: 0
A9: 12 | B9: 384 | C9: 14 | D9: 390 | E9: 13 | F9: 396 | G9: 14 | H9: 402 | K9: 0 | L9: 1111 | N9: 1121 | O9: 0 | P9: 0 | Q9: 0 | T9: 1121 | U9: =COUNTIF(L7:L33,T9) -> 0 | V9: =U9/(W4-U20) -> 0 | W9: 0 | Y9: 1121 | Z9: =COUNTIF(L34:L59,Y9) -> 0 | AA9: =Z9/(AB4-Z20) -> 0 | AB9: 0 | AD9: 1121 | AE9: =COUNTIF(L60:L86,AD9) -> 0 | AF9: =AE9/(AG4-AE20) -> 0 | AG9: 0 | AI9: 1121 | AJ9: =COUNTIF(L87:L112,AI9) -> 0 | AK9: =AJ9/(AL4-AJ20) -> 0 | AL9: 0 | AN9: 1121 | AO9: =COUNTIF(L113:L139,AN9) -> 0 | AP9: =AO9/(AQ4-AO20) -> 0 | AQ9: 0 | AS9: 1121 | AT9: =COUNTIF(L140:L165,AS9) -> 0 | AU9: =AT9/(AV4-AT20) -> 0 | AV9: 0
A10: 21 | B10: 551 | C10: 12 | D10: 561 | E10: 13 | F10: 565 | G10: 14 | H10: 570 | K10: 0 | L10: 2111 | N10: 1122 | O10: 2 | P10: 0.01265822785 | Q10: -0.07979469301 | T10: 1122 | U10: =COUNTIF(L7:L33,T10) -> 0 | V10: =U10/(W4-U20) -> 0 | W10: 0 | Y10: 1122 | Z10: =COUNTIF(L34:L59,Y10) -> 0 | AA10: =Z10/(AB4-Z20) -> 0 | AB10: 0 | AD10: 1122 | AE10: =COUNTIF(L60:L86,AD10) -> 2 | AF10: =AE10/(AG4-AE20) -> 0.07407407407 | AG10: -0.278139815 | AI10: 1122 | AJ10: =COUNTIF(L87:L112,AI10) -> 0 | AK10: =AJ10/(AL4-AJ20) -> 0 | AL10: 0 | AN10: 1122 | AO10: =COUNTIF(L113:L139,AN10) -> 0 | AP10: =AO10/(AQ4-AO20) -> 0 | AQ10: 0 | AS10: 1122 | AT10: =COUNTIF(L140:L165,AS10) -> 0 | AU10: =AT10/(AV4-AT20) -> 0 | AV10: 0
A11: 12 | B11: 665 | C11: 23 | D11: 677 | E11: 24 | F11: 681 | G11: 23 | H11: 686 | K11: 0 | L11: 1222 | N11: 1211 | O11: 0 | P11: 0 | Q11: 0 | T11: 1211 | U11: =COUNTIF(L7:L33,T11) -> 0 | V11: =U11/(W4-U20) -> 0 | W11: 0 | Y11: 1211 | Z11: =COUNTIF(L34:L59,Y11) -> 0 | AA11: =Z11/(AB4-Z20) -> 0 | AB11: 0 | AD11: 1211 | AE11: =COUNTIF(L60:L86,AD11) -> 0 | AF11: =AE11/(AG4-AE20) -> 0 | AG11: 0 | AI11: 1211 | AJ11: =COUNTIF(L87:L112,AI11) -> 0 | AK11: =AJ11/(AL4-AJ20) -> 0 | AL11: 0 | AN11: 1211 | AO11: =COUNTIF(L113:L139,AN11) -> 0 | AP11: =AO11/(AQ4-AO20) -> 0 | AQ11: 0 | AS11: 1211 | AT11: =COUNTIF(L140:L165,AS11) -> 0 | AU11: =AT11/(AV4-AT20) -> 0 | AV11: 0
A12: 12 | B12: 784 | C12: 14 | D12: 789 | E12: 13 | F12: 799 | G12: 14 | H12: 805 | K12: 0 | L12: 1111 | N12: 1212 | O12: 0 | P12: 0 | Q12: 0 | T12: 1212 | U12: =COUNTIF(L7:L33,T12) -> 0 | V12: =U12/(W4-U20) -> 0 | W12: 0 | Y12: 1212 | Z12: =COUNTIF(L34:L59,Y12) -> 0 | AA12: =Z12/(AB4-Z20) -> 0 | AB12: 0 | AD12: 1212 | AE12: =COUNTIF(L60:L86,AD12) -> 0 | AF12: =AE12/(AG4-AE20) -> 0 | AG12: 0 | AI12: 1212 | AJ12: =COUNTIF(L87:L112,AI12) -> 0 | AK12: =AJ12/(AL4-AJ20) -> 0 | AL12: 0 | AN12: 1212 | AO12: =COUNTIF(L113:L139,AN12) -> 0 | AP12: =AO12/(AQ4-AO20) -> 0 | AQ12: 0 | AS12: 1212 | AT12: =COUNTIF(L140:L165,AS12) -> 0 | AU12: =AT12/(AV4-AT20) -> 0 | AV12: 0
A13: 21 | B13: 905 | C13: 12 | D13: 926 | E13: 13 | F13: 936 | G13: 14 | H13: 942 | K13: 0 | L13: 2111 | N13: 1221 | O13: 0 | P13: 0 | Q13: 0 | T13: 1221 | U13: =COUNTIF(L7:L33,T13) -> 0 | V13: =U13/(W4-U20) -> 0 | W13: 0 | Y13: 1221 | Z13: =COUNTIF(L34:L59,Y13) -> 0 | AA13: =Z13/(AB4-Z20) -> 0 | AB13: 0 | AD13: 1221 | AE13: =COUNTIF(L60:L86,AD13) -> 0 | AF13: =AE13/(AG4-AE20) -> 0 | AG13: 0 | AI13: 1221 | AJ13: =COUNTIF(L87:L112,AI13) -> 0 | AK13: =AJ13/(AL4-AJ20) -> 0 | AL13: 0 | AN13: 1221 | AO13: =COUNTIF(L113:L139,AN13) -> 0 | AP13: =AO13/(AQ4-AO20) -> 0 | AQ13: 0 | AS13: 1221 | AT13: =COUNTIF(L140:L165,AS13) -> 0 | AU13: =AT13/(AV4-AT20) -> 0 | AV13: 0
A14: 12 | B14: 1045 | C14: 14 | D14: 1054 | E14: 13 | F14: 1062 | G14: 14 | H14: 1073 | K14: 0 | L14: 1111 | N14: 1222 | O14: 14 | P14: 0.08860759494 | Q14: -0.3098098833 | T14: 1222 | U14: =COUNTIF(L7:L33,T14) -> 2 | V14: =U14/(W4-U20) -> 0.07407407407 | W14: -0.278139815 | Y14: 1222 | Z14: =COUNTIF(L34:L59,Y14) -> 0 | AA14: =Z14/(AB4-Z20) -> 0 | AB14: 0 | AD14: 1222 | AE14: =COUNTIF(L60:L86,AD14) -> 2 | AF14: =AE14/(AG4-AE20) -> 0.07407407407 | AG14: -0.278139815 | AI14: 1222 | AJ14: =COUNTIF(L87:L112,AI14) -> 1 | AK14: =AJ14/(AL4-AJ20) -> 0.03846153846 | AL14: -0.180786143 | AN14: 1222 | AO14: =COUNTIF(L113:L139,AN14) -> 5 | AP14: =AO14/(AQ4-AO20) -> 0.1851851852 | AQ14: -0.4505480384 | AS14: 1222 | AT14: =COUNTIF(L140:L165,AS14) -> 4 | AU14: =AT14/(AV4-AT20) -> 0.16 | AV14: -0.4230169904
A15: 12 | B15: 1174 | C15: 23 | D15: 1196 | E15: 24 | F15: 1203 | G15: 23 | H15: 1211 | K15: 0 | L15: 1222 | N15: 2111 | O15: 53 | P15: 0.335443038 | Q15: -0.5286113643 | T15: 2111 | U15: =COUNTIF(L7:L33,T15) -> 11 | V15: =U15/(W4-U20) -> 0.4074074074 | W15: -0.5277783229 | Y15: 2111 | Z15: =COUNTIF(L34:L59,Y15) -> 8 | AA15: =Z15/(AB4-Z20) -> 0.3076923077 | AB15: -0.523212221 | AD15: 2111 | AE15: =COUNTIF(L60:L86,AD15) -> 10 | AF15: =AE15/(AG4-AE20) -> 0.3703703704 | AG15: -0.5307257064 | AI15: 2111 | AJ15: =COUNTIF(L87:L112,AI15) -> 13 | AK15: =AJ15/(AL4-AJ20) -> 0.5 | AL15: -0.5 | AN15: 2111 | AO15: =COUNTIF(L113:L139,AN15) -> 9 | AP15: =AO15/(AQ4-AO20) -> 0.3333333333 | AQ15: -0.5283208336 | AS15: 2111 | AT15: =COUNTIF(L140:L165,AS15) -> 2 | AU15: =AT15/(AV4-AT20) -> 0.08 | AV15: -0.2915084952
A16: 21 | B16: 1308 | C16: 12 | D16: 1317 | E16: 13 | F16: 1321 | G16: 14 | H16: 1326 | K16: 0 | L16: 2111 | N16: 2112 | O16: 0 | P16: 0 | Q16: 0 | T16: 2112 | U16: =COUNTIF(L7:L33,T16) -> 0 | V16: =U16/(W4-U20) -> 0 | W16: 0 | Y16: 2112 | Z16: =COUNTIF(L34:L59,Y16) -> 0 | AA16: =Z16/(AB4-Z20) -> 0 | AB16: 0 | AD16: 2112 | AE16: =COUNTIF(L60:L86,AD16) -> 0 | AF16: =AE16/(AG4-AE20) -> 0 | AG16: 0 | AI16: 2112 | AJ16: =COUNTIF(L87:L112,AI16) -> 0 | AK16: =AJ16/(AL4-AJ20) -> 0 | AL16: 0 | AN16: 2112 | AO16: =COUNTIF(L113:L139,AN16) -> 0 | AP16: =AO16/(AQ4-AO20) -> 0 | AQ16: 0 | AS16: 2112 | AT16: =COUNTIF(L140:L165,AS16) -> 0 | AU16: =AT16/(AV4-AT20) -> 0 | AV16: 0
A17: 21 | B17: 1424 | C17: 12 | D17: 1435 | E17: 13 | F17: 1439 | G17: 14 | H17: 1445 | K17: 0 | L17: 2111 | N17: 2121 | O17: 0 | P17: 0 | Q17: 0 | T17: 2121 | U17: =COUNTIF(L7:L33,T17) -> 0 | V17: =U17/(W4-U20) -> 0 | W17: 0 | Y17: 2121 | Z17: =COUNTIF(L34:L59,Y17) -> 0 | AA17: =Z17/(AB4-Z20) -> 0 | AB17: 0 | AD17: 2121 | AE17: =COUNTIF(L60:L86,AD17) -> 0 | AF17: =AE17/(AG4-AE20) -> 0 | AG17: 0 | AI17: 2121 | AJ17: =COUNTIF(L87:L112,AI17) -> 0 | AK17: =AJ17/(AL4-AJ20) -> 0 | AL17: 0 | AN17: 2121 | AO17: =COUNTIF(L113:L139,AN17) -> 0 | AP17: =AO17/(AQ4-AO20) -> 0 | AQ17: 0 | AS17: 2121 | AT17: =COUNTIF(L140:L165,AS17) -> 0 | AU17: =AT17/(AV4-AT20) -> 0 | AV17: 0
A18: 21 | B18: 1541 | C18: 12 | D18: 1552 | E18: 13 | F18: 1568 | G18: 14 | H18: 1578 | K18: 0 | L18: 2111 | N18: 2122 | O18: 0 | P18: 0 | Q18: 0 | T18: 2122 | U18: =COUNTIF(L7:L33,T18) -> 0 | V18: =U18/(W4-U20) -> 0 | W18: 0 | Y18: 2122 | Z18: =COUNTIF(L34:L59,Y18) -> 0 | AA18: =Z18/(AB4-Z20) -> 0 | AB18: 0 | AD18: 2122 | AE18: =COUNTIF(L60:L86,AD18) -> 0 | AF18: =AE18/(AG4-AE20) -> 0 | AG18: 0 | AI18: 2122 | AJ18: =COUNTIF(L87:L112,AI18) -> 0 | AK18: =AJ18/(AL4-AJ20) -> 0 | AL18: 0 | AN18: 2122 | AO18: =COUNTIF(L113:L139,AN18) -> 0 | AP18: =AO18/(AQ4-AO20) -> 0 | AQ18: 0 | AS18: 2122 | AT18: =COUNTIF(L140:L165,AS18) -> 0 | AU18: =AT18/(AV4-AT20) -> 0 | AV18: 0
A19: 21 | B19: 1680 | C19: 21 | D19: 1691 | E19: 11 | F19: 1700 | G19: 12 | H19: 1709 | K19: 0 | L19: 2211 | N19: 2211 | O19: 27 | P19: 0.1708860759 | Q19: -0.4355703648 | T19: 2211 | U19: =COUNTIF(L7:L33,T19) -> 3 | V19: =U19/(W4-U20) -> 0.1111111111 | W19: -0.352213889 | Y19: 2211 | Z19: =COUNTIF(L34:L59,Y19) -> 9 | AA19: =Z19/(AB4-Z20) -> 0.3461538462 | AB19: -0.5297935558 | AD19: 2211 | AE19: =COUNTIF(L60:L86,AD19) -> 5 | AF19: =AE19/(AG4-AE20) -> 0.1851851852 | AG19: -0.4505480384 | AI19: 2211 | AJ19: =COUNTIF(L87:L112,AI19) -> 4 | AK19: =AJ19/(AL4-AJ20) -> 0.1538461538 | AL19: -0.4154522643 | AN19: 2211 | AO19: =COUNTIF(L113:L139,AN19) -> 4 | AP19: =AO19/(AQ4-AO20) -> 0.1481481481 | AQ19: -0.4081314818 | AS19: 2211 | AT19: =COUNTIF(L140:L165,AS19) -> 2 | AU19: =AT19/(AV4-AT20) -> 0.08 | AV19: -0.2915084952
A20: 12 | B20: 1725 | C20: 14 | D20: 1728 | E20: 13 | F20: 1732 | G20: 14 | H20: 1737 | K20: 0 | L20: 1111 | N20: 2212 | O20: 0 | P20: 0 | Q20: 0 | T20: 2212 | U20: =COUNTIF(L7:L33,T20) -> 0 | Y20: 2212 | Z20: =COUNTIF(L34:L59,Y20) -> 0 | AD20: 2212 | AE20: =COUNTIF(L60:L86,AD20) -> 0 | AI20: 2212 | AJ20: =COUNTIF(L87:L112,AI20) -> 0 | AN20: 2212 | AO20: =COUNTIF(L113:L139,AN20) -> 0 | AS20: 2212 | AT20: =COUNTIF(L140:L165,AS20) -> 0
A21: 12 | B21: 1845 | C21: 14 | D21: 1848 | E21: 13 | F21: 1854 | G21: 14 | H21: 1859 | K21: 0 | L21: 1111 | N21: 2221 | O21: 4 | P21: 0.0253164557 | Q21: -0.1342729303 | T21: 2221 | U21: =COUNTIF(L7:L33,T21) -> 1 | V21: =U21/(W4-U20) -> 0.03703703704 | W21: =IF(V21=0,0,(V21*((LOG(V21))/LOG(2)))) -> -0.1761069445 | Y21: 2221 | Z21: =COUNTIF(L34:L59,Y21) -> 3 | AA21: =Z21/(AB4-Z20) -> 0.1153846154 | AB21: =IF(AA21=0,0,(AA21*((LOG(AA21))/LOG(2)))) -> -0.3594781405 | AD21: 2221 | AE21: =COUNTIF(L60:L86,AD21) -> 0 | AF21: =AE21/(AG4-AE20) -> 0 | AG21: =IF(AF21=0,0,(AF21*((LOG(AF21))/LOG(2)))) -> 0 | AI21: 2221 | AJ21: =COUNTIF(L87:L112,AI21) -> 0 | AK21: =AJ21/(AL4-AJ20) -> 0 | AL21: =IF(AK21=0,0,(AK21*((LOG(AK21))/LOG(2)))) -> 0 | AN21: 2221 | AO21: =COUNTIF(L113:L139,AN21) -> 0 | AP21: =AO21/(AQ4-AO20) -> 0 | AQ21: =IF(AP21=0,0,(AP21*((LOG(AP21))/LOG(2)))) -> 0 | AS21: 2221 | AT21: =COUNTIF(L140:L165,AS21) -> 0 | AU21: =AT21/(AV4-AT20) -> 0 | AV21: =IF(AU21=0,0,(AU21*((LOG(AU21))/LOG(2)))) -> 0
A22: 21 | B22: 1955 | C22: 21 | D22: 1957 | E22: 22 | F22: 1980 | G22: 14 | H22: 1991 | K22: 0 | L22: 2221 | N22: 2222 | O22: 6 | P22: 0.03797468354 | Q22: -0.1791956297 | T22: 2222 | U22: =COUNTIF(L7:L33,T22) -> 0 | V22: =U22/(W4-U20) -> 0 | W22: =IF(V22=0,0,(V22*((LOG(V22))/LOG(2)))) -> 0 | Y22: 2222 | Z22: =COUNTIF(L34:L59,Y22) -> 2 | AA22: =Z22/(AB4-Z20) -> 0.07692307692 | AB22: =IF(AA22=0,0,(AA22*((LOG(AA22))/LOG(2)))) -> -0.2846492091 | AD22: 2222 | AE22: =COUNTIF(L60:L86,AD22) -> 1 | AF22: =AE22/(AG4-AE20) -> 0.03703703704 | AG22: =IF(AF22=0,0,(AF22*((LOG(AF22))/LOG(2)))) -> -0.1761069445 | AI22: 2222 | AJ22: =COUNTIF(L87:L112,AI22) -> 2 | AK22: =AJ22/(AL4-AJ20) -> 0.07692307692 | AL22: =IF(AK22=0,0,(AK22*((LOG(AK22))/LOG(2)))) -> -0.2846492091 | AN22: 2222 | AO22: =COUNTIF(L113:L139,AN22) -> 0 | AP22: =AO22/(AQ4-AO20) -> 0 | AQ22: =IF(AP22=0,0,(AP22*((LOG(AP22))/LOG(2)))) -> 0 | AS22: 2222 | AT22: =COUNTIF(L140:L165,AS22) -> 1 | AU22: =AT22/(AV4-AT20) -> 0.04 | AV22: =IF(AU22=0,0,(AU22*((LOG(AU22))/LOG(2)))) -> -0.1857542476
A23: 21 | B23: 2091 | C23: 12 | D23: 2103 | E23: 13 | F23: 2106 | G23: 14 | H23: 2112 | K23: 0 | L23: 2111 | P23: =SUM(P7:P22) -> 1 | Q23: =-SUM(Q7:Q22) -> 2.194936723 | V23: =SUM(V7:V22) -> 1 | W23: =-SUM(W7:W22) -> 1.864964678 | AA23: =SUM(AA7:AA22) -> 1 | AB23: =-SUM(AB7:AB22) -> 2.112585391 | AF23: =SUM(AF7:AF22) -> 1 | AG23: =-SUM(AG7:AG22) -> 2.218576173 | AK23: =SUM(AK7:AK22) -> 1 | AL23: =-SUM(AL7:AL22) -> 1.869074667 | AP23: =SUM(AP7:AP22) -> 1 | AQ23: =-SUM(AQ7:AQ22) -> 1.915321187 | AU23: =SUM(AU7:AU22) -> 1 | AV23: =-SUM(AV7:AV22) -> 1.60385619
A24: 12 | B24: 2217 | C24: 14 | D24: 2221 | E24: 13 | F24: 2226 | G24: 14 | H24: 2232 | K24: 0 | L24: 1111 | P24: U= | Q24: =Q23/(LOG(Q4)/LOG(2)) -> 0.3005206206 | V24: U1= | W24: =W23/(LOG(W4)/LOG(2)) -> 0.3922205682 | AA24: U2= | AB24: =AB23/(LOG(AB4)/LOG(2)) -> 0.4494442047 | AF24: U3= | AG24: =AG23/(LOG(AG4)/LOG(2)) -> 0.4665885728 | AK24: U4= | AL24: =AL23/(LOG(AL4)/LOG(2)) -> 0.3976382591 | AP24: U5= | AQ24: =AQ23/(LOG(AQ4)/LOG(2)) -> 0.4028110416 | AU24: U6= | AV24: =AV23/(LOG(AV4)/LOG(2)) -> 0.3453716317
A25: 21 | B25: 2330 | C25: 12 | D25: 2342 | E25: 13 | F25: 2346 | G25: 14 | H25: 2351 | K25: 0 | L25: 2111
A26: 12 | B26: 2453 | C26: 14 | D26: 2456 | E26: 13 | F26: 2461 | G26: 14 | H26: 2468 | K26: 0 | L26: 1111
A27: 21 | B27: 2566 | C27: 21 | D27: 2588 | E27: 11 | F27: 2598 | G27: 12 | H27: 2602 | K27: 0 | L27: 2211 | N27: Total Target Seq
A28: 21 | B28: 2700 | C28: 12 | D28: 2712 | E28: 13 | F28: 2719 | G28: 14 | H28: 2725 | K28: 0 | L28: 2111 | N28: =COUNTIF(L7:L165,G3) -> 0 | P28: 27 | Q28: 26 | R28: 27 | S28: 26 | T28: 27 | U28: 26
A29: 21 | B29: 2842 | C29: 12 | D29: 2852 | E29: 13 | F29: 2857 | G29: 14 | H29: 2863 | K29: 0 | L29: 2111 | P29: % of reinforcement given in 6 equal intervals based on number of trials
A30: 21 | B30: 2957 | C30: 12 | D30: 2967 | E30: 13 | F30: 2971 | G30: 14 | H30: 2976 | K30: 0 | L30: 2111 | P30: %_1 | Q30: %_2 | R30: %_3 | S30: %_4 | T30: %_5 | U30: %_6
A31: 21 | B31: 3077 | C31: 21 | D31: 3080 | E31: 11 | F31: 3093 | G31: 12 | H31: 3096 | K31: 0 | L31: 2211 | O31: target sequence | P31: =$G$3 -> 2212 | Q31: 2212 | R31: 2212 | S31: 2212 | T31: 2212 | U31: 2212
A32: 12 | B32: 3113 | C32: 14 | D32: 3117 | E32: 13 | F32: 3123 | G32: 14 | H32: 3134 | K32: 0 | L32: 1111 | O32: total reinforcement | P32: =U20 -> 0 | Q32: =Z20 -> 0 | R32: =AE20 -> 0 | S32: =AJ20 -> 0 | T32: =AO20 -> 0 | U32: =AT20 -> 0
A33: 21 | B33: 3343 | C33: 12 | D33: 3356 | E33: 13 | F33: 3359 | G33: 14 | H33: 3365 | K33: 0 | L33: 2111 | O33: % target
A34: 21 | B34: 3470 | C34: 12 | D34: 3481 | E34: 13 | F34: 3490 | G34: 14 | H34: 3497 | K34: 0 | L34: 2111 | O34: CCRF
A35: 21 | B35: 3594 | C35: 12 | D35: 3605 | E35: 13 | F35: 3613 | G35: 14 | H35: 3620 | K35: 0 | L35: 2111 | O35: % CCRf
A36: 21 | B36: 3713 | C36: 21 | D36: 3728 | E36: 11 | F36: 3740 | G36: 12 | H36: 3746 | K36: 0 | L36: 2211 | O36: average response rate | P36: =H33/P28 -> 124.6296296 | Q36: =(H59-H33)/Q28 -> 138.9615385 | R36: =(H86-H59)/R28 -> 131.4074074 | S36: =(H112-H86)/S28 -> 154.4615385 | T36: =(H139-H112)/T28 -> 145.3333333 | U36: =(H165-H139)/U28 -> -710.2307692
A37: 21 | B37: 3852 | C37: 12 | D37: 3867 | E37: 13 | F37: 3873 | G37: 14 | H37: 3879 | K37: 0 | L37: 2111
A38: 21 | B38: 4296 | C38: 12 | D38: 4307 | E38: 13 | F38: 4312 | G38: 14 | H38: 4320 | K38: 0 | L38: 2111
A39: 12 | B39: 4428 | C39: 14 | D39: 4432 | E39: 13 | F39: 4438 | G39: 14 | H39: 4445 | K39: 0 | L39: 1111
A40: 21 | B40: 4539 | C40: 21 | D40: 4554 | E40: 22 | F40: 4558 | G40: 14 | H40: 4572 | K40: 0 | L40: 2221
A41: 21 | B41: 4671 | C41: 21 | D41: 4688 | E41: 11 | F41: 4702 | G41: 12 | H41: 4711 | K41: 0 | L41: 2211
A42: 21 | B42: 4718 | C42: 21 | D42: 4732 | E42: 11 | F42: 4746 | G42: 12 | H42: 4751 | K42: 0 | L42: 2211
A43: 21 | B43: 4847 | C43: 21 | D43: 4859 | E43: 22 | F43: 4862 | G43: 14 | H43: 4877 | K43: 0 | L43: 2221
A44: 12 | B44: 4991 | C44: 14 | D44: 5010 | E44: 13 | F44: 5015 | G44: 14 | H44: 5022 | K44: 0 | L44: 1111
A45: 21 | B45: 5120 | C45: 21 | D45: 5127 | E45: 22 | F45: 5147 | G45: 14 | H45: 5158 | K45: 0 | L45: 2221
A46: 21 | B46: 5252 | C46: 12 | D46: 5267 | E46: 13 | F46: 5271 | G46: 14 | H46: 5280 | K46: 0 | L46: 2111
A47: 21 | B47: 5375 | C47: 12 | D47: 5415 | E47: 13 | F47: 5426 | G47: 14 | H47: 5433 | K47: 0 | L47: 2111
A48: 21 | B48: 5528 | C48: 21 | D48: 5547 | E48: 11 | F48: 5559 | G48: 12 | H48: 5574 | K48: 0 | L48: 2211
A49: 21 | B49: 5669 | C49: 21 | D49: 5697 | E49: 11 | F49: 5708 | G49: 12 | H49: 5711 | K49: 0 | L49: 2211
A50: 21 | B50: 5818 | C50: 21 | D50: 5822 | E50: 11 | F50: 5833 | G50: 12 | H50: 5837 | K50: 0 | L50: 2211
A51: 12 | B51: 5936 | C51: 14 | D51: 5944 | E51: 13 | F51: 5951 | G51: 14 | H51: 5958 | K51: 0 | L51: 1111
A52: 21 | B52: 6056 | C52: 21 | D52: 6059 | E52: 11 | F52: 6068 | G52: 12 | H52: 6082 | K52: 0 | L52: 2211
A53: 21 | B53: 6113 | C53: 21 | D53: 6117 | E53: 22 | F53: 6123 | G53: 23 | H53: 6129 | K53: 0 | L53: 2222
A54: 21 | B54: 6271 | C54: 12 | D54: 6283 | E54: 13 | F54: 6288 | G54: 14 | H54: 6294 | K54: 0 | L54: 2111
A55: 21 | B55: 6389 | C55: 21 | D55: 6398 | E55: 11 | F55: 6412 | G55: 12 | H55: 6419 | K55: 0 | L55: 2211
A56: 21 | B56: 6514 | C56: 21 | D56: 6536 | E56: 11 | F56: 6548 | G56: 12 | H56: 6553 | K56: 0 | L56: 2211
A57: 21 | B57: 6648 | C57: 21 | D57: 6654 | E57: 22 | F57: 6660 | G57: 23 | H57: 6676 | K57: 0 | L57: 2222
A58: 12 | B58: 6780 | C58: 14 | D58: 6785 | E58: 13 | F58: 6791 | G58: 14 | H58: 6798 | K58: 0 | L58: 1111
A59: 21 | B59: 6950 | C59: 12 | D59: 6965 | E59: 13 | F59: 6971 | G59: 14 | H59: 6978 | K59: 0 | L59: 2111
A60: 21 | B60: 7075 | C60: 21 | D60: 7083 | E60: 11 | F60: 7102 | G60: 12 | H60: 7107 | K60: 0 | L60: 2211
A61: 21 | B61: 7202 | C61: 21 | D61: 7220 | E61: 11 | F61: 7234 | G61: 12 | H61: 7238 | K61: 0 | L61: 2211
A62: 21 | B62: 7339 | C62: 12 | D62: 7357 | E62: 13 | F62: 7362 | G62: 14 | H62: 7367 | K62: 0 | L62: 2111
A63: 21 | B63: 7466 | C63: 12 | D63: 7480 | E63: 13 | F63: 7488 | G63: 14 | H63: 7493 | K63: 0 | L63: 2111
A64: 21 | B64: 7642 | C64: 12 | D64: 7654 | E64: 13 | F64: 7660 | G64: 14 | H64: 7666 | K64: 0 | L64: 2111
A65: 21 | B65: 7846 | C65: 12 | D65: 7860 | E65: 13 | F65: 7864 | G65: 14 | H65: 7870 | K65: 0 | L65: 2111
A66: 21 | B66: 7977 | C66: 12 | D66: 7995 | E66: 13 | F66: 8000 | G66: 14 | H66: 8006 | K66: 0 | L66: 2111
A67: 21 | B67: 8111 | C67: 21 | D67: 8114 | E67: 11 | F67: 8127 | G67: 12 | H67: 8131 | K67: 0 | L67: 2211
A68: 12 | B68: 8259 | C68: 14 | D68: 8263 | E68: 24 | F68: 8278 | G68: 23 | H68: 8282 | K68: 0 | L68: 1122
A69: 21 | B69: 8377 | C69: 12 | D69: 8390 | E69: 13 | F69: 8395 | G69: 14 | H69: 8412 | K69: 0 | L69: 2111
A70: 21 | B70: 8509 | C70: 12 | D70: 8525 | E70: 13 | F70: 8529 | G70: 14 | H70: 8534 | K70: 0 | L70: 2111
A71: 21 | B71: 8632 | C71: 21 | D71: 8635 | E71: 11 | F71: 8650 | G71: 12 | H71: 8655 | K71: 0 | L71: 2211
A72: 21 | B72: 8676 | C72: 12 | D72: 8692 | E72: 13 | F72: 8698 | G72: 14 | H72: 8703 | K72: 0 | L72: 2111
A73: 12 | B73: 8816 | C73: 14 | D73: 8820 | E73: 13 | F73: 8827 | G73: 14 | H73: 8832 | K73: 0 | L73: 1111
A74: 21 | B74: 8932 | C74: 21 | D74: 8935 | E74: 11 | F74: 8949 | G74: 12 | H74: 8953 | K74: 0 | L74: 2211
A75: 12 | B75: 9077 | C75: 14 | D75: 9082 | E75: 13 | F75: 9086 | G75: 14 | H75: 9092 | K75: 0 | L75: 1111
A76: 12 | B76: 9198 | C76: 14 | D76: 9205 | E76: 13 | F76: 9213 | G76: 14 | H76: 9219 | K76: 0 | L76: 1111
A77: 21 | B77: 9340 | C77: 12 | D77: 9360 | E77: 13 | F77: 9363 | G77: 14 | H77: 9371 | K77: 0 | L77: 2111
A78: 12 | B78: 9476 | C78: 14 | D78: 9481 | E78: 13 | F78: 9487 | G78: 14 | H78: 9493 | K78: 0 | L78: 1111
A79: 12 | B79: 9595 | C79: 14 | D79: 9600 | E79: 13 | F79: 9607 | G79: 14 | H79: 9613 | K79: 0 | L79: 1111
A80: 21 | B80: 9724 | C80: 21 | D80: 9729 | E80: 22 | F80: 9734 | G80: 23 | H80: 9742 | K80: 0 | L80: 2222
A81: 12 | B81: 9849 | C81: 23 | D81: 9860 | E81: 24 | F81: 9865 | G81: 23 | H81: 9870 | K81: 0 | L81: 1222
A82: 12 | B82: 9968 | C82: 23 | D82: 9981 | E82: 24 | F82: 9985 | G82: 23 | H82: 9990 | K82: 0 | L82: 1222
A83: 12 | B83: 10103 | C83: 14 | D83: 10108 | E83: 13 | F83: 10115 | G83: 14 | H83: 10122 | K83: 0 | L83: 1111
A84: 12 | B84: 10223 | C84: 14 | D84: 10231 | E84: 13 | F84: 10237 | G84: 14 | H84: 10243 | K84: 0 | L84: 1111
A85: 21 | B85: 10349 | C85: 12 | D85: 10365 | E85: 13 | F85: 10370 | G85: 14 | H85: 10374 | K85: 0 | L85: 2111
A86: 12 | B86: 10500 | C86: 14 | D86: 10504 | E86: 24 | F86: 10521 | G86: 23 | H86: 10526 | K86: 0 | L86: 1122
A87: 21 | B87: 10626 | C87: 12 | D87: 10645 | E87: 13 | F87: 10651 | G87: 14 | H87: 10657 | K87: 0 | L87: 2111
A88: 21 | B88: 10837 | C88: 12 | D88: 10849 | E88: 13 | F88: 10855 | G88: 14 | H88: 10860 | K88: 0 | L88: 2111
A89: 21 | B89: 10952 | C89: 12 | D89: 10966 | E89: 13 | F89: 10976 | G89: 14 | H89: 10987 | K89: 0 | L89: 2111
A90: 21 | B90: 11079 | C90: 21 | D90: 11085 | E90: 11 | F90: 11100 | G90: 12 | H90: 11104 | K90: 0 | L90: 2211
A91: 21 | B91: 11207 | C91: 12 | D91: 11223 | E91: 13 | F91: 11228 | G91: 14 | H91: 11233 | K91: 0 | L91: 2111
A92: 21 | B92: 11337 | C92: 21 | D92: 11339 | E92: 11 | F92: 11354 | G92: 12 | H92: 11357 | K92: 0 | L92: 2211
A93: 21 | B93: 11367 | C93: 21 | D93: 11391 | E93: 22 | F93: 11395 | G93: 23 | H93: 11402 | K93: 0 | L93: 2222
A94: 21 | B94: 11496 | C94: 12 | D94: 11512 | E94: 13 | F94: 11517 | G94: 14 | H94: 11524 | K94: 0 | L94: 2111
A95: 12 | B95: 11628 | C95: 14 | D95: 11638 | E95: 13 | F95: 11645 | G95: 14 | H95: 11655 | K95: 0 | L95: 1111
A96: 21 | B96: 11761 | C96: 12 | D96: 11774 | E96: 13 | F96: 11778 | G96: 14 | H96: 11784 | K96: 0 | L96: 2111
A97: 12 | B97: 11891 | C97: 14 | D97: 11902 | E97: 13 | F97: 11908 | G97: 14 | H97: 11910 | K97: 0 | L97: 1111
A98: 21 | B98: 12010 | C98: 12 | D98: 12023 | E98: 13 | F98: 12027 | G98: 14 | H98: 12035 | K98: 0 | L98: 2111
A99: 21 | B99: 12129 | C99: 12 | D99: 12146 | E99: 13 | F99: 12151 | G99: 14 | H99: 12157 | K99: 0 | L99: 2111
A100: 21 | B100: 12260 | C100: 21 | D100: 12280 | E100: 22 | F100: 12284 | G100: 23 | H100: 12290 | K100: 0 | L100: 2222
A101: 21 | B101: 12390 | C101: 12 | D101: 12405 | E101: 13 | F101: 12408 | G101: 14 | H101: 12414 | K101: 0 | L101: 2111
A102: 21 | B102: 12509 | C102: 21 | D102: 12524 | E102: 11 | F102: 12546 | G102: 12 | H102: 12553 | K102: 0 | L102: 2211
A103: 21 | B103: 12572 | C103: 12 | D103: 12589 | E103: 13 | F103: 12596 | G103: 14 | H103: 12602 | K103: 0 | L103: 2111
A104: 12 | B104: 12707 | C104: 14 | D104: 12714 | E104: 13 | F104: 12721 | G104: 14 | H104: 12729 | K104: 0 | L104: 1111
A105: 12 | B105: 12846 | C105: 14 | D105: 12852 | E105: 13 | F105: 12859 | G105: 14 | H105: 12866 | K105: 0 | L105: 1111
A106: 12 | B106: 12985 | C106: 14 | D106: 12993 | E106: 13 | F106: 12999 | G106: 14 | H106: 13005 | K106: 0 | L106: 1111
A107: 12 | B107: 13103 | C107: 14 | D107: 13105 | E107: 13 | F107: 13111 | G107: 14 | H107: 13121 | K107: 0 | L107: 1111
A108: 21 | B108: 13241 | C108: 21 | D108: 13244 | E108: 11 | F108: 13257 | G108: 12 | H108: 13261 | K108: 0 | L108: 2211
A109: 21 | B109: 13358 | C109: 12 | D109: 13392 | E109: 13 | F109: 13398 | G109: 14 | H109: 13405 | K109: 0 | L109: 2111
A110: 12 | B110: 14201 | C110: 23 | D110: 14217 | E110: 24 | F110: 14222 | G110: 23 | H110: 14229 | K110: 0 | L110: 1222
A111: 21 | B111: 14383 | C111: 12 | D111: 14405 | E111: 13 | F111: 14418 | G111: 14 | H111: 14420 | K111: 0 | L111: 2111
A112: 21 | B112: 14516 | C112: 12 | D112: 14530 | E112: 13 | F112: 14536 | G112: 14 | H112: 14542 | K112: 0 | L112: 2111
A113: 12 | B113: 14640 | C113: 14 | D113: 14645 | E113: 13 | F113: 14651 | G113: 14 | H113: 14659 | K113: 0 | L113: 1111
A114: 21 | B114: 14759 | C114: 21 | D114: 14763 | E114: 11 | F114: 14778 | G114: 12 | H114: 14787 | K114: 0 | L114: 2211
A115: 21 | B115: 14882 | C115: 21 | D115: 14924 | E115: 11 | F115: 14940 | G115: 12 | H115: 14946 | K115: 0 | L115: 2211
A116: 21 | B116: 15045 | C116: 21 | D116: 15065 | E116: 11 | F116: 15079 | G116: 12 | H116: 15083 | K116: 0 | L116: 2211
A117: 21 | B117: 15181 | C117: 21 | D117: 15184 | E117: 11 | F117: 15204 | G117: 12 | H117: 15209 | K117: 0 | L117: 2211
A118: 21 | B118: 15320 | C118: 12 | D118: 15335 | E118: 13 | F118: 15339 | G118: 14 | H118: 15345 | K118: 0 | L118: 2111
A119: 21 | B119: 15463 | C119: 12 | D119: 15475 | E119: 13 | F119: 15480 | G119: 14 | H119: 15487 | K119: 0 | L119: 2111
A120: 21 | B120: 15605 | C120: 12 | D120: 15631 | E120: 13 | F120: 15634 | G120: 14 | H120: 15639 | K120: 0 | L120: 2111
A121: 12 | B121: 15759 | C121: 14 | D121: 15768 | E121: 13 | F121: 15777 | G121: 14 | H121: 15785 | K121: 0 | L121: 1111
A122: 21 | B122: 15899 | C122: 12 | D122: 15913 | E122: 13 | F122: 15919 | G122: 14 | H122: 15925 | K122: 0 | L122: 2111
A123: 21 | B123: 16037 | C123: 12 | D123: 16049 | E123: 13 | F123: 16053 | G123: 14 | H123: 16059 | K123: 0 | L123: 2111
A124: 12 | B124: 16160 | C124: 14 | D124: 16168 | E124: 13 | F124: 16174 | G124: 14 | H124: 16180 | K124: 0 | L124: 1111
A125: 21 | B125: 16326 | C125: 12 | D125: 16342 | E125: 13 | F125: 16351 | G125: 14 | H125: 16358 | K125: 0 | L125: 2111
A126: 12 | B126: 16481 | C126: 14 | D126: 16487 | E126: 13 | F126: 16494 | G126: 14 | H126: 16500 | K126: 0 | L126: 1111
A127: 12 | B127: 16616 | C127: 14 | D127: 16622 | E127: 13 | F127: 16631 | G127: 14 | H127: 16637 | K127: 0 | L127: 1111
A128: 21 | B128: 16733 | C128: 12 | D128: 16766 | E128: 13 | F128: 16770 | G128: 14 | H128: 16775 | K128: 0 | L128: 2111
A129: 12 | B129: 16914 | C129: 23 | D129: 16927 | E129: 24 | F129: 16930 | G129: 23 | H129: 16936 | K129: 0 | L129: 1222
A130: 12 | B130: 17080 | C130: 14 | D130: 17089 | E130: 13 | F130: 17094 | G130: 14 | H130: 17099 | K130: 0 | L130: 1111
A131: 12 | B131: 17226 | C131: 23 | D131: 17239 | E131: 24 | F131: 17244 | G131: 23 | H131: 17249 | K131: 0 | L131: 1222
A132: 12 | B132: 17453 | C132: 23 | D132: 17466 | E132: 24 | F132: 17468 | G132: 23 | H132: 17473 | K132: 0 | L132: 1222
A133: 12 | B133: 17619 | C133: 23 | D133: 17637 | E133: 24 | F133: 17642 | G133: 23 | H133: 17647 | K133: 0 | L133: 1222
A134: 12 | B134: 17753 | C134: 14 | D134: 17760 | E134: 13 | F134: 17762 | G134: 14 | H134: 17770 | K134: 0 | L134: 1111
A135: 12 | B135: 17879 | C135: 23 | D135: 17890 | E135: 24 | F135: 17894 | G135: 23 | H135: 17902 | K135: 0 | L135: 1222
A136: 12 | B136: 18034 | C136: 14 | D136: 18040 | E136: 13 | F136: 18045 | G136: 14 | H136: 18053 | K136: 0 | L136: 1111
A137: 21 | B137: 18148 | C137: 12 | D137: 18164 | E137: 13 | F137: 18169 | G137: 14 | H137: 18175 | K137: 0 | L137: 2111
A138: 21 | B138: 18298 | C138: 12 | D138: 18318 | E138: 13 | F138: 18323 | G138: 14 | H138: 18329 | K138: 0 | L138: 2111
A139: 12 | B139: 18441 | C139: 14 | D139: 18453 | E139: 13 | F139: 18460 | G139: 14 | H139: 18466 | K139: 0 | L139: 1111
A140: 12 | B140: 18639 | C140: 14 | D140: 18645 | E140: 13 | F140: 18651 | G140: 14 | H140: 18658 | K140: 0 | L140: 1111
A141: 12 | B141: 18752 | C141: 23 | D141: 18768 | E141: 24 | F141: 18773 | G141: 23 | H141: 18779 | K141: 0 | L141: 1222
A142: 12 | B142: 18891 | C142: 14 | D142: 18897 | E142: 13 | F142: 18907 | G142: 14 | H142: 18914 | K142: 0 | L142: 1111
A143: 21 | B143: 19023 | C143: 21 | D143: 19029 | E143: 22 | F143: 19034 | G143: 23 | H143: 19041 | K143: 0 | L143: 2222
A144: 12 | B144: 19145 | C144: 23 | D144: 19159 | E144: 24 | F144: 19163 | G144: 23 | H144: 19169 | K144: 0 | L144: 1222
A145: 12 | B145: 19308 | C145: 14 | D145: 19312 | E145: 13 | F145: 19319 | G145: 14 | H145: 19324 | K145: 0 | L145: 1111
A146: 12 | B146: 19475 | C146: 23 | D146: 19491 | E146: 24 | F146: 19494 | G146: 23 | H146: 19508 | K146: 0 | L146: 1222
A147: 12 | B147: 19629 | C147: 14 | D147: 19636 | E147: 13 | F147: 19642 | G147: 14 | H147: 19650 | K147: 0 | L147: 1111
A148: 12 | B148: 19753 | C148: 14 | D148: 19759 | E148: 13 | F148: 19768 | G148: 14 | H148: 19773 | K148: 0 | L148: 1111
A149: 21 | B149: 19881 | C149: 21 | D149: 19883 | E149: 11 | F149: 19900 | G149: 12 | H149: 19905 | K149: 0 | L149: 2211
A150: 12 | B150: 20029 | C150: 14 | D150: 20036 | E150: 13 | F150: 20042 | G150: 14 | H150: 20048 | K150: 0 | L150: 1111
A151: 21 | B151: 20168 | C151: 12 | D151: 20180 | E151: 13 | F151: 20183 | G151: 14 | H151: 20187 | K151: 0 | L151: 2111
A152: 12 | B152: 20315 | C152: 14 | D152: 20323 | E152: 13 | F152: 20330 | G152: 14 | H152: 20345 | K152: 0 | L152: 1111
A153: 12 | B153: 20467 | C153: 14 | D153: 20473 | E153: 13 | F153: 20475 | G153: 14 | H153: 20483 | K153: 0 | L153: 1111
A154: 12 | B154: 20583 | C154: 14 | D154: 20589 | E154: 13 | F154: 20597 | G154: 14 | H154: 20609 | K154: 0 | L154: 1111
A155: 12 | B155: 20729 | C155: 14 | D155: 20737 | E155: 13 | F155: 20744 | G155: 14 | H155: 20752 | K155: 0 | L155: 1111
A156: 12 | B156: 20857 | C156: 14 | D156: 20860 | E156: 13 | F156: 20863 | G156: 14 | H156: 20872 | K156: 0 | L156: 1111
A157: 21 | B157: 20993 | C157: 21 | D157: 20996 | E157: 11 | F157: 21007 | G157: 12 | H157: 21011 | K157: 0 | L157: 2211
A158: 12 | B158: 21105 | C158: 23 | D158: 21128 | E158: 24 | F158: 21134 | G158: 23 | H158: 21139 | K158: 0 | L158: 1222
A159: 12 | B159: 21838 | C159: 14 | D159: 21847 | E159: 13 | F159: 21864 | G159: 14 | H159: 21871 | K159: 0 | L159: 1111
A160: 12 | B160: 22123 | C160: 14 | D160: 22129 | E160: 13 | F160: 22134 | G160: 14 | H160: 22142 | K160: 0 | L160: 1111
A161: 12 | B161: 22344 | C161: 14 | D161: 22350 | E161: 13 | F161: 22356 | G161: 14 | H161: 22362 | K161: 0 | L161: 1111
A162: 21 | B162: 22974 | C162: 12 | D162: 22995 | E162: 13 | F162: 23001 | G162: 14 | H162: 23008 | K162: 0 | L162: 2111
A163: 12 | B163: 23743 | C163: 14 | D163: 23750 | E163: 13 | F163: 23754 | G163: 14 | H163: 23760 | K163: 0 | L163: 1111
A164: 12 | B164: 23874 | C164: 14 | D164: 23881 | E164: 13 | F164: 23888 | G164: 14 | H164: 23895 | K164: 0 | L164: 1111
A165: 12 | B165: 23999 | L165: 1

Sheet !LB09A45..Du
A1: Report for:!LB09A45..Du
A2: Date: | B2: <date>
A3: Hen: | B3: <hen> | F3: Correct Sequence | G3: =Start!J2 -> 2212 | P3: Total Sequences in Data | Q3: =4994-COUNTBLANK(L7:L5000) -> 63 | V3: Total Sequences in Block Data | W3: =COUNTA(L7:L17) -> 11 | AA3: Total Sequences in Block Data | AB3: =COUNTA(L18:L27) -> 10 | AF3: Total Sequences in Block Data | AG3: =COUNTA(L28:L38) -> 11 | AK3: Total Sequences in Block Data | AL3: =COUNTA(L39:L48) -> 10 | AP3: Total Sequences in Block Data | AQ3: =COUNTA(L49:L59) -> 11 | AU3: Total Sequences in Block Data | AV3: =COUNTA(L60:L69) -> 10
P4: Total Sequences in Summary | Q4: =SUM(O7:O22) -> 63 | V4: Total Sequences in Block Summary | W4: =SUM(U7:U22) -> 11 | AA4: Total Sequences in Block Summary | AB4: =SUM(Z7:Z22) -> 10 | AF4: Total Sequences in Block Summary | AG4: =SUM(AE7:AE22) -> 11 | AK4: Total Sequences in Block Summary | AL4: =SUM(AJ7:AJ22) -> 10 | AP4: Total Sequences in Block Summary | AQ4: =SUM(AO7:AO22) -> 11 | AU4: Total Sequences in Block Summary | AV4: =SUM(AT7:AT22) -> 10
T5: Block 1 | Y5: Block 2 | AD5: Block 3 | AI5: Block 4 | AN5: Block 5 | AS5: Block 6
A6: Sequence Component 1 | B6: Time 1 | C6: Sequence Component 2 | D6: Time 2 | E6: Sequence Component 3 | F6: Time 3 | G6: Sequence Component 4 | H6: Time 4 | I6: Sequence Component 5 | J6: Time 5 | K6: Correct? 0=No 1=Yes | L6: Sequence | N6: Frequency | P6: Relative Frequency | Q6: Variability | T6: Frequency | V6: Relative Frequency | W6: Variability | Y6: Frequency | AA6: Relative Frequency | AB6: Variability | AD6: Frequency | AF6: Relative Frequency | AG6: Variability | AI6: Frequency | AK6: Relative Frequency | AL6: Variability | AN6: Frequency | AP6: Relative Frequency | AQ6: Variability | AS6: Frequency | AU6: Relative Frequency | AV6: Variability
A7: 12 | B7: 25 | C7: 14 | D7: 28 | E7: 13 | F7: 34 | G7: 14 | H7: 40 | K7: 0 | L7: 1111 | N7: 1111 | O7: =COUNTIF($L$7:$L$500,N7) -> 14 | P7: =O7/$Q$4 -> 0.2222222222 | Q7: =IF(P7=0,0,(P7*((LOG(P7))/LOG(2)))) -> -0.4822055559 | T7: =N7 -> 1111 | U7: =COUNTIF(L7:L17,T7) -> 5 | V7: =U7/(W4-U20) -> 0.4545454545 | W7: =IF(V7=0,0,(V7*((LOG(V7))/LOG(2)))) -> -0.5170470562 | Y7: =N7 -> 1111 | Z7: =COUNTIF(L18:L27,Y7) -> 2 | AA7: =Z7/(AB4-Z20) -> 0.2 | AB7: =IF(AA7=0,0,(AA7*((LOG(AA7))/LOG(2)))) -> -0.464385619 | AD7: =N7 -> 1111 | AE7: =COUNTIF(L28:L38,AD7) -> 0 | AF7: =AE7/(AG4-AE20) -> 0 | AG7: =IF(AF7=0,0,(AF7*((LOG(AF7))/LOG(2)))) -> 0 | AI7: =N7 -> 1111 | AJ7: =COUNTIF(L39:L48,AI7) -> 2 | AK7: =AJ7/(AL4-AJ20) -> 0.2 | AL7: =IF(AK7=0,0,(AK7*((LOG(AK7))/LOG(2)))) -> -0.464385619 | AN7: =N7 -> 1111 | AO7: =COUNTIF(L49:L59,AN7) -> 4 | AP7: =AO7/(AQ4-AO20) -> 0.3636363636 | AQ7: =IF(AP7=0,0,(AP7*((LOG(AP7))/LOG(2)))) -> -0.5307024068 | AS7: =N7 -> 1111 | AT7: =COUNTIF(L60:L69,AS7) -> 1 | AU7: =AT7/(AV4-AT20) -> 0.1 | AV7: =IF(AU7=0,0,(AU7*((LOG(AU7))/LOG(2)))) -> -0.3321928095
A8: 21 | B8: 177 | C8: 12 | D8: 189 | E8: 13 | F8: 196 | G8: 14 | H8: 202 | K8: 0 | L8: 2111 | N8: 1112 | O8: 0 | P8: 0 | Q8: 0 | T8: 1112 | U8: =COUNTIF(L7:L17,T8) -> 0 | V8: =U8/(W4-U20) -> 0 | W8: 0 | Y8: 1112 | Z8: =COUNTIF(L18:L27,Y8) -> 0 | AA8: =Z8/(AB4-Z20) -> 0 | AB8: 0 | AD8: 1112 | AE8: =COUNTIF(L28:L38,AD8) -> 0 | AF8: =AE8/(AG4-AE20) -> 0 | AG8: 0 | AI8: 1112 | AJ8: =COUNTIF(L39:L48,AI8) -> 0 | AK8: =AJ8/(AL4-AJ20) -> 0 | AL8: 0 | AN8: 1112 | AO8: =COUNTIF(L49:L59,AN8) -> 0 | AP8: =AO8/(AQ4-AO20) -> 0 | AQ8: 0 | AS8: 1112 | AT8: =COUNTIF(L60:L69,AS8) -> 0 | AU8: =AT8/(AV4-AT20) -> 0 | AV8: 0
A9: 21 | B9: 372 | C9: 21 | D9: 378 | E9: 11 | F9: 396 | G9: 12 | H9: 403 | K9: 0 | L9: 2211 | N9: 1121 | O9: 0 | P9: 0 | Q9: 0 | T9: 1121 | U9: =COUNTIF(L7:L17,T9) -> 0 | V9: =U9/(W4-U20) -> 0 | W9: 0 | Y9: 1121 | Z9: =COUNTIF(L18:L27,Y9) -> 0 | AA9: =Z9/(AB4-Z20) -> 0 | AB9: 0 | AD9: 1121 | AE9: =COUNTIF(L28:L38,AD9) -> 0 | AF9: =AE9/(AG4-AE20) -> 0 | AG9: 0 | AI9: 1121 | AJ9: =COUNTIF(L39:L48,AI9) -> 0 | AK9: =AJ9/(AL4-AJ20) -> 0 | AL9: 0 | AN9: 1121 | AO9: =COUNTIF(L49:L59,AN9) -> 0 | AP9: =AO9/(AQ4-AO20) -> 0 | AQ9: 0 | AS9: 1121 | AT9: =COUNTIF(L60:L69,AS9) -> 0 | AU9: =AT9/(AV4-AT20) -> 0 | AV9: 0
A10: 12 | B10: 497 | C10: 14 | D10: 503 | E10: 13 | F10: 508 | G10: 14 | H10: 515 | K10: 0 | L10: 1111 | N10: 1122 | O10: 0 | P10: 0 | Q10: 0 | T10: 1122 | U10: =COUNTIF(L7:L17,T10) -> 0 | V10: =U10/(W4-U20) -> 0 | W10: 0 | Y10: 1122 | Z10: =COUNTIF(L18:L27,Y10) -> 0 | AA10: =Z10/(AB4-Z20) -> 0 | AB10: 0 | AD10: 1122 | AE10: =COUNTIF(L28:L38,AD10) -> 0 | AF10: =AE10/(AG4-AE20) -> 0 | AG10: 0 | AI10: 1122 | AJ10: =COUNTIF(L39:L48,AI10) -> 0 | AK10: =AJ10/(AL4-AJ20) -> 0 | AL10: 0 | AN10: 1122 | AO10: =COUNTIF(L49:L59,AN10) -> 0 | AP10: =AO10/(AQ4-AO20) -> 0 | AQ10: 0 | AS10: 1122 | AT10: =COUNTIF(L60:L69,AS10) -> 0 | AU10: =AT10/(AV4-AT20) -> 0 | AV10: 0
A11: 21 | B11: 612 | C11: 12 | D11: 622 | E11: 13 | F11: 626 | G11: 14 | H11: 646 | K11: 0 | L11: 2111 | N11: 1211 | O11: 0 | P11: 0 | Q11: 0 | T11: 1211 | U11: =COUNTIF(L7:L17,T11) -> 0 | V11: =U11/(W4-U20) -> 0 | W11: 0 | Y11: 1211 | Z11: =COUNTIF(L18:L27,Y11) -> 0 | AA11: =Z11/(AB4-Z20) -> 0 | AB11: 0 | AD11: 1211 | AE11: =COUNTIF(L28:L38,AD11) -> 0 | AF11: =AE11/(AG4-AE20) -> 0 | AG11: 0 | AI11: 1211 | AJ11: =COUNTIF(L39:L48,AI11) -> 0 | AK11: =AJ11/(AL4-AJ20) -> 0 | AL11: 0 | AN11: 1211 | AO11: =COUNTIF(L49:L59,AN11) -> 0 | AP11: =AO11/(AQ4-AO20) -> 0 | AQ11: 0 | AS11: 1211 | AT11: =COUNTIF(L60:L69,AS11) -> 0 | AU11: =AT11/(AV4-AT20) -> 0 | AV11: 0
A12: 12 | B12: 742 | C12: 14 | D12: 751 | E12: 13 | F12: 756 | G12: 14 | H12: 762 | K12: 0 | L12: 1111 | N12: 1212 | O12: 0 | P12: 0 | Q12: 0 | T12: 1212 | U12: =COUNTIF(L7:L17,T12) -> 0 | V12: =U12/(W4-U20) -> 0 | W12: 0 | Y12: 1212 | Z12: =COUNTIF(L18:L27,Y12) -> 0 | AA12: =Z12/(AB4-Z20) -> 0 | AB12: 0 | AD12: 1212 | AE12: =COUNTIF(L28:L38,AD12) -> 0 | AF12: =AE12/(AG4-AE20) -> 0 | AG12: 0 | AI12: 1212 | AJ12: =COUNTIF(L39:L48,AI12) -> 0 | AK12: =AJ12/(AL4-AJ20) -> 0 | AL12: 0 | AN12: 1212 | AO12: =COUNTIF(L49:L59,AN12) -> 0 | AP12: =AO12/(AQ4-AO20) -> 0 | AQ12: 0 | AS12: 1212 | AT12: =COUNTIF(L60:L69,AS12) -> 0 | AU12: =AT12/(AV4-AT20) -> 0 | AV12: 0
A13: 21 | B13: 862 | C13: 12 | D13: 871 | E13: 13 | F13: 875 | G13: 14 | H13: 880 | K13: 0 | L13: 2111 | N13: 1221 | O13: 0 | P13: 0 | Q13: 0 | T13: 1221 | U13: =COUNTIF(L7:L17,T13) -> 0 | V13: =U13/(W4-U20) -> 0 | W13: 0 | Y13: 1221 | Z13: =COUNTIF(L18:L27,Y13) -> 0 | AA13: =Z13/(AB4-Z20) -> 0 | AB13: 0 | AD13: 1221 | AE13: =COUNTIF(L28:L38,AD13) -> 0 | AF13: =AE13/(AG4-AE20) -> 0 | AG13: 0 | AI13: 1221 | AJ13: =COUNTIF(L39:L48,AI13) -> 0 | AK13: =AJ13/(AL4-AJ20) -> 0 | AL13: 0 | AN13: 1221 | AO13: =COUNTIF(L49:L59,AN13) -> 0 | AP13: =AO13/(AQ4-AO20) -> 0 | AQ13: 0 | AS13: 1221 | AT13: =COUNTIF(L60:L69,AS13) -> 0 | AU13: =AT13/(AV4-AT20) -> 0 | AV13: 0
A14: 12 | B14: 1011 | C14: 14 | D14: 1013 | E14: 13 | F14: 1017 | G14: 14 | H14: 1023 | K14: 0 | L14: 1111 | N14: 1222 | O14: 2 | P14: 0.03174603175 | Q14: -0.1580088865 | T14: 1222 | U14: =COUNTIF(L7:L17,T14) -> 0 | V14: =U14/(W4-U20) -> 0 | W14: 0 | Y14: 1222 | Z14: =COUNTIF(L18:L27,Y14) -> 0 | AA14: =Z14/(AB4-Z20) -> 0 | AB14: 0 | AD14: 1222 | AE14: =COUNTIF(L28:L38,AD14) -> 1 | AF14: =AE14/(AG4-AE20) -> 0.09090909091 | AG14: -0.3144937835 | AI14: 1222 | AJ14: =COUNTIF(L39:L48,AI14) -> 1 | AK14: =AJ14/(AL4-AJ20) -> 0.1 | AL14: -0.3321928095 | AN14: 1222 | AO14: =COUNTIF(L49:L59,AN14) -> 0 | AP14: =AO14/(AQ4-AO20) -> 0 | AQ14: 0 | AS14: 1222 | AT14: =COUNTIF(L60:L69,AS14) -> 0 | AU14: =AT14/(AV4-AT20) -> 0 | AV14: 0
A15: 21 | B15: 1121 | C15: 12 | D15: 1133 | E15: 13 | F15: 1137 | G15: 14 | H15: 1146 | K15: 0 | L15: 2111 | N15: 2111 | O15: 24 | P15: 0.380952381 | Q15: -0.5304066372 | T15: 2111 | U15: =COUNTIF(L7:L17,T15) -> 4 | V15: =U15/(W4-U20) -> 0.3636363636 | W15: -0.5307024068 | Y15: 2111 | Z15: =COUNTIF(L18:L27,Y15) -> 3 | AA15: =Z15/(AB4-Z20) -> 0.3 | AB15: -0.5210896782 | AD15: 2111 | AE15: =COUNTIF(L28:L38,AD15) -> 5 | AF15: =AE15/(AG4-AE20) -> 0.4545454545 | AG15: -0.5170470562 | AI15: 2111 | AJ15: =COUNTIF(L39:L48,AI15) -> 3 | AK15: =AJ15/(AL4-AJ20) -> 0.3 | AL15: -0.5210896782 | AN15: 2111 | AO15: =COUNTIF(L49:L59,AN15) -> 3 | AP15: =AO15/(AQ4-AO20) -> 0.2727272727 | AQ15: -0.5112188503 | AS15: 2111 | AT15: =COUNTIF(L60:L69,AS15) -> 6 | AU15: =AT15/(AV4-AT20) -> 0.6 | AV15: -0.4421793565
A16: 21 | B16: 1245 | C16: 21 | D16: 1249 | E16: 11 | F16: 1267 | G16: 12 | H16: 1272 | K16: 0 | L16: 2211 | N16: 2112 | O16: 0 | P16: 0 | Q16: 0 | T16: 2112 | U16: =COUNTIF(L7:L17,T16) -> 0 | V16: =U16/(W4-U20) -> 0 | W16: 0 | Y16: 2112 | Z16: =COUNTIF(L18:L27,Y16) -> 0 | AA16: =Z16/(AB4-Z20) -> 0 | AB16: 0 | AD16: 2112 | AE16: =COUNTIF(L28:L38,AD16) -> 0 | AF16: =AE16/(AG4-AE20) -> 0 | AG16: 0 | AI16: 2112 | AJ16: =COUNTIF(L39:L48,AI16) -> 0 | AK16: =AJ16/(AL4-AJ20) -> 0 | AL16: 0 | AN16: 2112 | AO16: =COUNTIF(L49:L59,AN16) -> 0 | AP16: =AO16/(AQ4-AO20) -> 0 | AQ16: 0 | AS16: 2112 | AT16: =COUNTIF(L60:L69,AS16) -> 0 | AU16: =AT16/(AV4-AT20) -> 0 | AV16: 0
A17: 12 | B17: 1379 | C17: 14 | D17: 1391 | E17: 13 | F17: 1397 | G17: 14 | H17: 1403 | K17: 0 | L17: 1111 | N17: 2121 | O17: 0 | P17: 0 | Q17: 0 | T17: 2121 | U17: =COUNTIF(L7:L17,T17) -> 0 | V17: =U17/(W4-U20) -> 0 | W17: 0 | Y17: 2121 | Z17: =COUNTIF(L18:L27,Y17) -> 0 | AA17: =Z17/(AB4-Z20) -> 0 | AB17: 0 | AD17: 2121 | AE17: =COUNTIF(L28:L38,AD17) -> 0 | AF17: =AE17/(AG4-AE20) -> 0 | AG17: 0 | AI17: 2121 | AJ17: =COUNTIF(L39:L48,AI17) -> 0 | AK17: =AJ17/(AL4-AJ20) -> 0 | AL17: 0 | AN17: 2121 | AO17: =COUNTIF(L49:L59,AN17) -> 0 | AP17: =AO17/(AQ4-AO20) -> 0 | AQ17: 0 | AS17: 2121 | AT17: =COUNTIF(L60:L69,AS17) -> 0 | AU17: =AT17/(AV4-AT20) -> 0 | AV17: 0
A18: 21 | B18: 1499 | C18: 21 | D18: 1503 | E18: 11 | F18: 1527 | G18: 12 | H18: 1534 | K18: 0 | L18: 2211 | N18: 2122 | O18: 0 | P18: 0 | Q18: 0 | T18: 2122 | U18: =COUNTIF(L7:L17,T18) -> 0 | V18: =U18/(W4-U20) -> 0 | W18: 0 | Y18: 2122 | Z18: =COUNTIF(L18:L27,Y18) -> 0 | AA18: =Z18/(AB4-Z20) -> 0 | AB18: 0 | AD18: 2122 | AE18: =COUNTIF(L28:L38,AD18) -> 0 | AF18: =AE18/(AG4-AE20) -> 0 | AG18: 0 | AI18: 2122 | AJ18: =COUNTIF(L39:L48,AI18) -> 0 | AK18: =AJ18/(AL4-AJ20) -> 0 | AL18: 0 | AN18: 2122 | AO18: =COUNTIF(L49:L59,AN18) -> 0 | AP18: =AO18/(AQ4-AO20) -> 0 | AQ18: 0 | AS18: 2122 | AT18: =COUNTIF(L60:L69,AS18) -> 0 | AU18: =AT18/(AV4-AT20) -> 0 | AV18: 0
A19: 21 | B19: 1634 | C19: 21 | D19: 1637 | E19: 11 | F19: 1646 | G19: 12 | H19: 1651 | K19: 0 | L19: 2211 | N19: 2211 | O19: 17 | P19: 0.2698412698 | Q19: -0.5099506412 | T19: 2211 | U19: =COUNTIF(L7:L17,T19) -> 2 | V19: =U19/(W4-U20) -> 0.1818181818 | W19: -0.4471693852 | Y19: 2211 | Z19: =COUNTIF(L18:L27,Y19) -> 4 | AA19: =Z19/(AB4-Z20) -> 0.4 | AB19: -0.528771238 | AD19: 2211 | AE19: =COUNTIF(L28:L38,AD19) -> 3 | AF19: =AE19/(AG4-AE20) -> 0.2727272727 | AG19: -0.5112188503 | AI19: 2211 | AJ19: =COUNTIF(L39:L48,AI19) -> 3 | AK19: =AJ19/(AL4-AJ20) -> 0.3 | AL19: -0.5210896782 | AN19: 2211 | AO19: =COUNTIF(L49:L59,AN19) -> 4 | AP19: =AO19/(AQ4-AO20) -> 0.3636363636 | AQ19: -0.5307024068 | AS19: 2211 | AT19: =COUNTIF(L60:L69,AS19) -> 1 | AU19: =AT19/(AV4-AT20) -> 0.1 | AV19: -0.3321928095
A20: 21 | B20: 1663 | C20: 21 | D20: 1670 | E20: 22 | F20: 1678 | G20: 14 | H20: 1692 | K20: 0 | L20: 2221 | N20: 2212 | O20: 0 | P20: 0 | Q20: 0 | T20: 2212 | U20: =COUNTIF(L7:L17,T20) -> 0 | Y20: 2212 | Z20: =COUNTIF(L18:L27,Y20) -> 0 | AD20: 2212 | AE20: =COUNTIF(L28:L38,AD20) -> 0 | AI20: 2212 | AJ20: =COUNTIF(L39:L48,AI20) -> 0 | AN20: 2212 | AO20: =COUNTIF(L49:L59,AN20) -> 0 | AS20: 2212 | AT20: =COUNTIF(L60:L69,AS20) -> 0
A21: 21 | B21: 1787 | C21: 21 | D21: 1791 | E21: 11 | F21: 1802 | G21: 12 | H21: 1806 | K21: 0 | L21: 2211 | N21: 2221 | O21: 4 | P21: 0.06349206349 | Q21: -0.2525257094 | T21: 2221 | U21: =COUNTIF(L7:L17,T21) -> 0 | V21: =U21/(W4-U20) -> 0 | W21: =IF(V21=0,0,(V21*((LOG(V21))/LOG(2)))) -> 0 | Y21: 2221 | Z21: =COUNTIF(L18:L27,Y21) -> 1 | AA21: =Z21/(AB4-Z20) -> 0.1 | AB21: =IF(AA21=0,0,(AA21*((LOG(AA21))/LOG(2)))) -> -0.3321928095 | AD21: 2221 | AE21: =COUNTIF(L28:L38,AD21) -> 1 | AF21: =AE21/(AG4-AE20) -> 0.09090909091 | AG21: =IF(AF21=0,0,(AF21*((LOG(AF21))/LOG(2)))) -> -0.3144937835 | AI21: 2221 | AJ21: =COUNTIF(L39:L48,AI21) -> 0 | AK21: =AJ21/(AL4-AJ20) -> 0 | AL21: =IF(AK21=0,0,(AK21*((LOG(AK21))/LOG(2)))) -> 0 | AN21: 2221 | AO21: =COUNTIF(L49:L59,AN21) -> 0 | AP21: =AO21/(AQ4-AO20) -> 0 | AQ21: =IF(AP21=0,0,(AP21*((LOG(AP21))/LOG(2)))) -> 0 | AS21: 2221 | AT21: =COUNTIF(L60:L69,AS21) -> 2 | AU21: =AT21/(AV4-AT20) -> 0.2 | AV21: =IF(AU21=0,0,(AU21*((LOG(AU21))/LOG(2)))) -> -0.464385619
A22: 21 | B22: 1912 | C22: 12 | D22: 1926 | E22: 13 | F22: 1931 | G22: 14 | H22: 1936 | K22: 0 | L22: 2111 | N22: 2222 | O22: 2 | P22: 0.03174603175 | Q22: -0.1580088865 | T22: 2222 | U22: =COUNTIF(L7:L17,T22) -> 0 | V22: =U22/(W4-U20) -> 0 | W22: =IF(V22=0,0,(V22*((LOG(V22))/LOG(2)))) -> 0 | Y22: 2222 | Z22: =COUNTIF(L18:L27,Y22) -> 0 | AA22: =Z22/(AB4-Z20) -> 0 | AB22: =IF(AA22=0,0,(AA22*((LOG(AA22))/LOG(2)))) -> 0 | AD22: 2222 | AE22: =COUNTIF(L28:L38,AD22) -> 1 | AF22: =AE22/(AG4-AE20) -> 0.09090909091 | AG22: =IF(AF22=0,0,(AF22*((LOG(AF22))/LOG(2)))) -> -0.3144937835 | AI22: 2222 | AJ22: =COUNTIF(L39:L48,AI22) -> 1 | AK22: =AJ22/(AL4-AJ20) -> 0.1 | AL22: =IF(AK22=0,0,(AK22*((LOG(AK22))/LOG(2)))) -> -0.3321928095 | AN22: 2222 | AO22: =COUNTIF(L49:L59,AN22) -> 0 | AP22: =AO22/(AQ4-AO20) -> 0 | AQ22: =IF(AP22=0,0,(AP22*((LOG(AP22))/LOG(2)))) -> 0 | AS22: 2222 | AT22: =COUNTIF(L60:L69,AS22) -> 0 | AU22: =AT22/(AV4-AT20) -> 0 | AV22: =IF(AU22=0,0,(AU22*((LOG(AU22))/LOG(2)))) -> 0
A23: 12 | B23: 2072 | C23: 14 | D23: 2077 | E23: 13 | F23: 2083 | G23: 14 | H23: 2089 | K23: 0 | L23: 1111 | P23: =SUM(P7:P22) -> 1 | Q23: =-SUM(Q7:Q22) -> 2.091106317 | V23: =SUM(V7:V22) -> 1 | W23: =-SUM(W7:W22) -> 1.494918848 | AA23: =SUM(AA7:AA22) -> 1 | AB23: =-SUM(AB7:AB22) -> 1.846439345 | AF23: =SUM(AF7:AF22) -> 1 | AG23: =-SUM(AG7:AG22) -> 1.971747257 | AK23: =SUM(AK7:AK22) -> 1 | AL23: =-SUM(AL7:AL22) -> 2.170950594 | AP23: =SUM(AP7:AP22) -> 1 | AQ23: =-SUM(AQ7:AQ22) -> 1.572623664 | AU23: =SUM(AU7:AU22) -> 1 | AV23: =-SUM(AV7:AV22) -> 1.570950594
A24: 21 | B24: 2190 | C24: 21 | D24: 2198 | E24: 11 | F24: 2208 | G24: 12 | H24: 2213 | K24: 0 | L24: 2211 | P24: U= | Q24: =Q23/(LOG(Q4)/LOG(2)) -> 0.3498424607 | V24: U1= | W24: =W23/(LOG(W4)/LOG(2)) -> 0.4321284572 | AA24: U2= | AB24: =AB23/(LOG(AB4)/LOG(2)) -> 0.5558336279 | AF24: U3= | AG24: =AG23/(LOG(AG4)/LOG(2)) -> 0.5699627784 | AK24: U4= | AL24: =AL23/(LOG(AL4)/LOG(2)) -> 0.653521248 | AP24: U5= | AQ24: =AQ23/(LOG(AQ4)/LOG(2)) -> 0.4545901863 | AU24: U6= | AV24: =AV23/(LOG(AV4)/LOG(2)) -> 0.4729032506
A25: 21 | B25: 2313 | C25: 12 | D25: 2326 | E25: 13 | F25: 2329 | G25: 14 | H25: 2334 | K25: 0 | L25: 2111
A26: 12 | B26: 2431 | C26: 14 | D26: 2438 | E26: 13 | F26: 2445 | G26: 14 | H26: 2462 | K26: 0 | L26: 1111
A27: 21 | B27: 2556 | C27: 12 | D27: 2576 | E27: 13 | F27: 2578 | G27: 14 | H27: 2583 | K27: 0 | L27: 2111 | N27: Total Target Seq
A28: 21 | B28: 2677 | C28: 21 | D28: 2700 | E28: 22 | F28: 2705 | G28: 23 | H28: 2712 | K28: 0 | L28: 2222 | N28: =COUNTIF(L7:L69,G3) -> 0 | P28: 11 | Q28: 10 | R28: 11 | S28: 10 | T28: 11 | U28: 10
A29: 12 | B29: 2823 | C29: 23 | D29: 2835 | E29: 24 | F29: 2839 | G29: 23 | H29: 2844 | K29: 0 | L29: 1222 | P29: % of reinforcement given in 6 equal intervals based on number of trials
A30: 21 | B30: 3003 | C30: 21 | D30: 3023 | E30: 11 | F30: 3032 | G30: 12 | H30: 3036 | K30: 0 | L30: 2211 | P30: %_1 | Q30: %_2 | R30: %_3 | S30: %_4 | T30: %_5 | U30: %_6
A31: 21 | B31: 3047 | C31: 12 | D31: 3062 | E31: 13 | F31: 3067 | G31: 14 | H31: 3072 | K31: 0 | L31: 2111 | O31: target sequence | P31: =$G$3 -> 2212 | Q31: 2212 | R31: 2212 | S31: 2212 | T31: 2212 | U31: 2212
A32: 21 | B32: 3172 | C32: 21 | D32: 3176 | E32: 11 | F32: 3189 | G32: 12 | H32: 3195 | K32: 0 | L32: 2211 | O32: total reinforcement | P32: =U20 -> 0 | Q32: =Z20 -> 0 | R32: =AE20 -> 0 | S32: =AJ20 -> 0 | T32: =AO20 -> 0 | U32: =AT20 -> 0
A33: 21 | B33: 3298 | C33: 12 | D33: 3312 | E33: 13 | F33: 3322 | G33: 14 | H33: 3329 | K33: 0 | L33: 2111 | O33: % target
A34: 21 | B34: 3425 | C34: 12 | D34: 3440 | E34: 13 | F34: 3443 | G34: 14 | H34: 3448 | K34: 0 | L34: 2111 | O34: CCRF
A35: 21 | B35: 3560 | C35: 12 | D35: 3572 | E35: 13 | F35: 3575 | G35: 14 | H35: 3582 | K35: 0 | L35: 2111 | O35: % CCRf
A36: 21 | B36: 3702 | C36: 21 | D36: 3705 | E36: 11 | F36: 3718 | G36: 12 | H36: 3729 | K36: 0 | L36: 2211 | O36: average response rate | P36: =H17/P28 -> 127.5454545 | Q36: =(H27-H17)/Q28 -> 118 | R36: =(H38-H27)/R28 -> 128.3636364 | S36: =(H48-H38)/S28 -> 129.7 | T36: =(H59-H48)/T28 -> 132.8181818 | U36: =(H69-H59)/U28 -> 133.9
A37: 21 | B37: 3825 | C37: 21 | D37: 3843 | E37: 22 | F37: 3847 | G37: 14 | H37: 3864 | K37: 0 | L37: 2221
A38: 21 | B38: 3972 | C38: 12 | D38: 3985 | E38: 13 | F38: 3988 | G38: 14 | H38: 3995 | K38: 0 | L38: 2111
A39: 12 | B39: 4089 | C39: 23 | D39: 4106 | E39: 24 | F39: 4111 | G39: 23 | H39: 4121 | K39: 0 | L39: 1222
A40: 21 | B40: 4277 | C40: 12 | D40: 4288 | E40: 13 | F40: 4291 | G40: 14 | H40: 4297 | K40: 0 | L40: 2111
A41: 12 | B41: 4398 | C41: 14 | D41: 4404 | E41: 13 | F41: 4414 | G41: 14 | H41: 4421 | K41: 0 | L41: 1111
A42: 21 | B42: 4525 | C42: 21 | D42: 4530 | E42: 11 | F42: 4548 | G42: 12 | H42: 4558 | K42: 0 | L42: 2211
A43: 21 | B43: 4655 | C43: 21 | D43: 4658 | E43: 11 | F43: 4674 | G43: 12 | H43: 4679 | K43: 0 | L43: 2211
A44: 21 | B44: 4697 | C44: 21 | D44: 4725 | E44: 11 | F44: 4740 | G44: 12 | H44: 4745 | K44: 0 | L44: 2211
A45: 12 | B45: 4857 | C45: 14 | D45: 4870 | E45: 13 | F45: 4877 | G45: 14 | H45: 4886 | K45: 0 | L45: 1111
A46: 21 | B46: 4988 | C46: 12 | D46: 5004 | E46: 13 | F46: 5012 | G46: 14 | H46: 5017 | K46: 0 | L46: 2111
A47: 21 | B47: 5112 | C47: 21 | D47: 5117 | E47: 22 | F47: 5121 | G47: 23 | H47: 5140 | K47: 0 | L47: 2222
A48: 21 | B48: 5263 | C48: 12 | D48: 5281 | E48: 13 | F48: 5287 | G48: 14 | H48: 5292 | K48: 0 | L48: 2111
A49: 21 | B49: 5405 | C49: 12 | D49: 5419 | E49: 13 | F49: 5424 | G49: 14 | H49: 5431 | K49: 0 | L49: 2111
A50: 21 | B50: 5532 | C50: 21 | D50: 5534 | E50: 11 | F50: 5549 | G50: 12 | H50: 5553 | K50: 0 | L50: 2211
A51: 21 | B51: 5654 | C51: 21 | D51: 5659 | E51: 11 | F51: 5679 | G51: 12 | H51: 5683 | K51: 0 | L51: 2211
A52: 21 | B52: 5777 | C52: 21 | D52: 5792 | E52: 11 | F52: 5808 | G52: 12 | H52: 5818 | K52: 0 | L52: 2211
A53: 12 | B53: 5938 | C53: 14 | D53: 5944 | E53: 13 | F53: 5949 | G53: 14 | H53: 5956 | K53: 0 | L53: 1111
A54: 12 | B54: 6048 | C54: 14 | D54: 6056 | E54: 13 | F54: 6066 | G54: 14 | H54: 6073 | K54: 0 | L54: 1111
A55: 21 | B55: 6234 | C55: 12 | D55: 6254 | E55: 13 | F55: 6259 | G55: 14 | H55: 6270 | K55: 0 | L55: 2111
A56: 21 | B56: 6369 | C56: 21 | D56: 6373 | E56: 11 | F56: 6388 | G56: 12 | H56: 6392 | K56: 0 | L56: 2211
A57: 21 | B57: 6493 | C57: 12 | D57: 6509 | E57: 13 | F57: 6512 | G57: 14 | H57: 6519 | K57: 0 | L57: 2111
A58: 12 | B58: 6616 | C58: 14 | D58: 6623 | E58: 13 | F58: 6628 | G58: 14 | H58: 6635 | K58: 0 | L58: 1111
A59: 12 | B59: 6735 | C59: 14 | D59: 6739 | E59: 13 | F59: 6746 | G59: 14 | H59: 6753 | K59: 0 | L59: 1111
A60: 21 | B60: 6856 | C60: 12 | D60: 6866 | E60: 13 | F60: 6872 | G60: 14 | H60: 6877 | K60: 0 | L60: 2111
A61: 21 | B61: 6974 | C61: 12 | D61: 6995 | E61: 13 | F61: 6999 | G61: 14 | H61: 7005 | K61: 0 | L61: 2111
A62: 21 | B62: 7180 | C62: 12 | D62: 7192 | E62: 13 | F62: 7197 | G62: 14 | H62: 7203 | K62: 0 | L62: 2111
A63: 12 | B63: 7311 | C63: 14 | D63: 7316 | E63: 13 | F63: 7323 | G63: 14 | H63: 7329 | K63: 0 | L63: 1111
A64: 21 | B64: 7431 | C64: 12 | D64: 7442 | E64: 13 | F64: 7446 | G64: 14 | H64: 7457 | K64: 0 | L64: 2111
A65: 21 | B65: 7555 | C65: 21 | D65: 7557 | E65: 22 | F65: 7561 | G65: 14 | H65: 7575 | K65: 0 | L65: 2221
A66: 21 | B66: 7675 | C66: 12 | D66: 7692 | E66: 13 | F66: 7697 | G66: 14 | H66: 7704 | K66: 0 | L66: 2111
A67: 21 | B67: 7814 | C67: 12 | D67: 7828 | E67: 13 | F67: 7833 | G67: 14 | H67: 7840 | K67: 0 | L67: 2111
A68: 21 | B68: 7935 | C68: 21 | D68: 7950 | E68: 22 | F68: 7954 | G68: 14 | H68: 7971 | K68: 0 | L68: 2221
A69: 21 | B69: 8067 | C69: 21 | D69: 8070 | E69: 11 | F69: 8086 | G69: 12 | H69: 8092 | K69: 1 | L69: 2211

Sheet !LB10A55..Du
A1: Report for:!LB10A55..Du
A2: Date: | B2: <date>
A3: Hen: | B3: <hen> | F3: Correct Sequence | G3: =Start!J2 -> 2212 | P3: Total Sequences in Data | Q3: =4994-COUNTBLANK(L7:L5000) -> 167 | V3: Total Sequences in Block Data | W3: =COUNTA(L7:L34) -> 28 | AA3: Total Sequences in Block Data | AB3: =COUNTA(L35:L62) -> 28 | AF3: Total Sequences in Block Data | AG3: =COUNTA(L63:L89) -> 27 | AK3: Total Sequences in Block Data | AL3: =COUNTA(L90:L117) -> 28 | AP3: Total Sequences in Block Data | AQ3: =COUNTA(L118:L145) -> 28 | AU3: Total Sequences in Block Data | AV3: =COUNTA(L146:L173) -> 28
P4: Total Sequences in Summary | Q4: =SUM(O7:O22) -> 167 | V4: Total Sequences in Block Summary | W4: =SUM(U7:U22) -> 28 | AA4: Total Sequences in Block Summary | AB4: =SUM(Z7:Z22) -> 28 | AF4: Total Sequences in Block Summary | AG4: =SUM(AE7:AE22) -> 27 | AK4: Total Sequences in Block Summary | AL4: =SUM(AJ7:AJ22) -> 28 | AP4: Total Sequences in Block Summary | AQ4: =SUM(AO7:AO22) -> 28 | AU4: Total Sequences in Block Summary | AV4: =SUM(AT7:AT22) -> 28
T5: Block 1 | Y5: Block 2 | AD5: Block 3 | AI5: Block 4 | AN5: Block 5 | AS5: Block 6
A6: Sequence Component 1 | B6: Time 1 | C6: Sequence Component 2 | D6: Time 2 | E6: Sequence Component 3 | F6: Time 3 | G6: Sequence Component 4 | H6: Time 4 | I6: Sequence Component 5 | J6: Time 5 | K6: Correct? 0=No 1=Yes | L6: Sequence | N6: Frequency | P6: Relative Frequency | Q6: Variability | T6: Frequency | V6: Relative Frequency | W6: Variability | Y6: Frequency | AA6: Relative Frequency | AB6: Variability | AD6: Frequency | AF6: Relative Frequency | AG6: Variability | AI6: Frequency | AK6: Relative Frequency | AL6: Variability | AN6: Frequency | AP6: Relative Frequency | AQ6: Variability | AS6: Frequency | AU6: Relative Frequency | AV6: Variability
A7: 12 | B7: 15 | C7: 14 | D7: 18 | E7: 13 | F7: 23 | G7: 14 | H7: 32 | K7: 0 | L7: 1111 | N7: 1111 | O7: =COUNTIF($L$7:$L$500,N7) -> 55 | P7: =O7/$Q$4 -> 0.3293413174 | Q7: =IF(P7=0,0,(P7*((LOG(P7))/LOG(2)))) -> -0.5277182745 | T7: =N7 -> 1111 | U7: =COUNTIF(L7:L34,T7) -> 8 | V7: =U7/(W4-U20) -> 0.2857142857 | W7: =IF(V7=0,0,(V7*((LOG(V7))/LOG(2)))) -> -0.5163871206 | Y7: =N7 -> 1111 | Z7: =COUNTIF(L35:L62,Y7) -> 12 | AA7: =Z7/(AB4-Z20) -> 0.4285714286 | AB7: =IF(AA7=0,0,(AA7*((LOG(AA7))/LOG(2)))) -> -0.5238824663 | AD7: =N7 -> 1111 | AE7: =COUNTIF(L63:L89,AD7) -> 7 | AF7: =AE7/(AG4-AE20) -> 0.2592592593 | AG7: =IF(AF7=0,0,(AF7*((LOG(AF7))/LOG(2)))) -> -0.5049158541 | AI7: =N7 -> 1111 | AJ7: =COUNTIF(L90:L117,AI7) -> 9 | AK7: =AJ7/(AL4-AJ20) -> 0.3214285714 | AL7: =IF(AK7=0,0,(AK7*((LOG(AK7))/LOG(2)))) -> -0.5263167602 | AN7: =N7 -> 1111 | AO7: =COUNTIF(L118:L145,AN7) -> 11 | AP7: =AO7/(AQ4-AO20) -> 0.4074074074 | AQ7: =IF(AP7=0,0,(AP7*((LOG(AP7))/LOG(2)))) -> -0.5277783229 | AS7: =N7 -> 1111 | AT7: =COUNTIF(L146:L173,AS7) -> 8 | AU7: =AT7/(AV4-AT20) -> 0.2857142857 | AV7: =IF(AU7=0,0,(AU7*((LOG(AU7))/LOG(2)))) -> -0.5163871206
A8: 12 | B8: 144 | C8: 14 | D8: 150 | E8: 13 | F8: 155 | G8: 14 | H8: 162 | K8: 0 | L8: 1111 | N8: 1112 | O8: 0 | P8: 0 | Q8: 0 | T8: 1112 | U8: =COUNTIF(L7:L34,T8) -> 0 | V8: =U8/(W4-U20) -> 0 | W8: 0 | Y8: 1112 | Z8: =COUNTIF(L35:L62,Y8) -> 0 | AA8: =Z8/(AB4-Z20) -> 0 | AB8: 0 | AD8: 1112 | AE8: =COUNTIF(L63:L89,AD8) -> 0 | AF8: =AE8/(AG4-AE20) -> 0 | AG8: 0 | AI8: 1112 | AJ8: =COUNTIF(L90:L117,AI8) -> 0 | AK8: =AJ8/(AL4-AJ20) -> 0 | AL8: 0 | AN8: 1112 | AO8: =COUNTIF(L118:L145,AN8) -> 0 | AP8: =AO8/(AQ4-AO20) -> 0 | AQ8: 0 | AS8: 1112 | AT8: =COUNTIF(L146:L173,AS8) -> 0 | AU8: =AT8/(AV4-AT20) -> 0 | AV8: 0
A9: 21 | B9: 262 | C9: 12 | D9: 274 | E9: 13 | F9: 278 | G9: 14 | H9: 284 | K9: 0 | L9: 2111 | N9: 1121 | O9: 0 | P9: 0 | Q9: 0 | T9: 1121 | U9: =COUNTIF(L7:L34,T9) -> 0 | V9: =U9/(W4-U20) -> 0 | W9: 0 | Y9: 1121 | Z9: =COUNTIF(L35:L62,Y9) -> 0 | AA9: =Z9/(AB4-Z20) -> 0 | AB9: 0 | AD9: 1121 | AE9: =COUNTIF(L63:L89,AD9) -> 0 | AF9: =AE9/(AG4-AE20) -> 0 | AG9: 0 | AI9: 1121 | AJ9: =COUNTIF(L90:L117,AI9) -> 0 | AK9: =AJ9/(AL4-AJ20) -> 0 | AL9: 0 | AN9: 1121 | AO9: =COUNTIF(L118:L145,AN9) -> 0 | AP9: =AO9/(AQ4-AO20) -> 0 | AQ9: 0 | AS9: 1121 | AT9: =COUNTIF(L146:L173,AS9) -> 0 | AU9: =AT9/(AV4-AT20) -> 0 | AV9: 0
A10: 12 | B10: 380 | C10: 23 | D10: 393 | E10: 24 | F10: 399 | G10: 23 | H10: 405 | K10: 0 | L10: 1222 | N10: 1122 | O10: 1 | P10: 0.005988023952 | Q10: -0.04421379816 | T10: 1122 | U10: =COUNTIF(L7:L34,T10) -> 0 | V10: =U10/(W4-U20) -> 0 | W10: 0 | Y10: 1122 | Z10: =COUNTIF(L35:L62,Y10) -> 0 | AA10: =Z10/(AB4-Z20) -> 0 | AB10: 0 | AD10: 1122 | AE10: =COUNTIF(L63:L89,AD10) -> 0 | AF10: =AE10/(AG4-AE20) -> 0 | AG10: 0 | AI10: 1122 | AJ10: =COUNTIF(L90:L117,AI10) -> 0 | AK10: =AJ10/(AL4-AJ20) -> 0 | AL10: 0 | AN10: 1122 | AO10: =COUNTIF(L118:L145,AN10) -> 0 | AP10: =AO10/(AQ4-AO20) -> 0 | AQ10: 0 | AS10: 1122 | AT10: =COUNTIF(L146:L173,AS10) -> 1 | AU10: =AT10/(AV4-AT20) -> 0.03571428571 | AV10: -0.1716912472
A11: 12 | B11: 508 | C11: 23 | D11: 517 | E11: 24 | F11: 520 | G11: 14 | H11: 532 | K11: 0 | L11: 1221 | N11: 1211 | O11: 0 | P11: 0 | Q11: 0 | T11: 1211 | U11: =COUNTIF(L7:L34,T11) -> 0 | V11: =U11/(W4-U20) -> 0 | W11: 0 | Y11: 1211 | Z11: =COUNTIF(L35:L62,Y11) -> 0 | AA11: =Z11/(AB4-Z20) -> 0 | AB11: 0 | AD11: 1211 | AE11: =COUNTIF(L63:L89,AD11) -> 0 | AF11: =AE11/(AG4-AE20) -> 0 | AG11: 0 | AI11: 1211 | AJ11: =COUNTIF(L90:L117,AI11) -> 0 | AK11: =AJ11/(AL4-AJ20) -> 0 | AL11: 0 | AN11: 1211 | AO11: =COUNTIF(L118:L145,AN11) -> 0 | AP11: =AO11/(AQ4-AO20) -> 0 | AQ11: 0 | AS11: 1211 | AT11: =COUNTIF(L146:L173,AS11) -> 0 | AU11: =AT11/(AV4-AT20) -> 0 | AV11: 0
A12: 12 | B12: 633 | C12: 14 | D12: 642 | E12: 13 | F12: 647 | G12: 14 | H12: 653 | K12: 0 | L12: 1111 | N12: 1212 | O12: 0 | P12: 0 | Q12: 0 | T12: 1212 | U12: =COUNTIF(L7:L34,T12) -> 0 | V12: =U12/(W4-U20) -> 0 | W12: 0 | Y12: 1212 | Z12: =COUNTIF(L35:L62,Y12) -> 0 | AA12: =Z12/(AB4-Z20) -> 0 | AB12: 0 | AD12: 1212 | AE12: =COUNTIF(L63:L89,AD12) -> 0 | AF12: =AE12/(AG4-AE20) -> 0 | AG12: 0 | AI12: 1212 | AJ12: =COUNTIF(L90:L117,AI12) -> 0 | AK12: =AJ12/(AL4-AJ20) -> 0 | AL12: 0 | AN12: 1212 | AO12: =COUNTIF(L118:L145,AN12) -> 0 | AP12: =AO12/(AQ4-AO20) -> 0 | AQ12: 0 | AS12: 1212 | AT12: =COUNTIF(L146:L173,AS12) -> 0 | AU12: =AT12/(AV4-AT20) -> 0 | AV12: 0
A13: 21 | B13: 816 | C13: 21 | D13: 822 | E13: 22 | F13: 828 | G13: 23 | H13: 834 | K13: 0 | L13: 2222 | N13: 1221 | O13: 1 | P13: 0.005988023952 | Q13: -0.04421379816 | T13: 1221 | U13: =COUNTIF(L7:L34,T13) -> 1 | V13: =U13/(W4-U20) -> 0.03571428571 | W13: -0.1716912472 | Y13: 1221 | Z13: =COUNTIF(L35:L62,Y13) -> 0 | AA13: =Z13/(AB4-Z20) -> 0 | AB13: 0 | AD13: 1221 | AE13: =COUNTIF(L63:L89,AD13) -> 0 | AF13: =AE13/(AG4-AE20) -> 0 | AG13: 0 | AI13: 1221 | AJ13: =COUNTIF(L90:L117,AI13) -> 0 | AK13: =AJ13/(AL4-AJ20) -> 0 | AL13: 0 | AN13: 1221 | AO13: =COUNTIF(L118:L145,AN13) -> 0 | AP13: =AO13/(AQ4-AO20) -> 0 | AQ13: 0 | AS13: 1221 | AT13: =COUNTIF(L146:L173,AS13) -> 0 | AU13: =AT13/(AV4-AT20) -> 0 | AV13: 0
A14: 12 | B14: 930 | C14: 14 | D14: 936 | E14: 13 | F14: 941 | G14: 14 | H14: 947 | K14: 0 | L14: 1111 | N14: 1222 | O14: 23 | P14: 0.1377245509 | Q14: -0.3939118188 | T14: 1222 | U14: =COUNTIF(L7:L34,T14) -> 3 | V14: =U14/(W4-U20) -> 0.1071428571 | W14: -0.3452563309 | Y14: 1222 | Z14: =COUNTIF(L35:L62,Y14) -> 3 | AA14: =Z14/(AB4-Z20) -> 0.1071428571 | AB14: -0.3452563309 | AD14: 1222 | AE14: =COUNTIF(L63:L89,AD14) -> 3 | AF14: =AE14/(AG4-AE20) -> 0.1111111111 | AG14: -0.352213889 | AI14: 1222 | AJ14: =COUNTIF(L90:L117,AI14) -> 7 | AK14: =AJ14/(AL4-AJ20) -> 0.25 | AL14: -0.5 | AN14: 1222 | AO14: =COUNTIF(L118:L145,AN14) -> 4 | AP14: =AO14/(AQ4-AO20) -> 0.1481481481 | AQ14: -0.4081314818 | AS14: 1222 | AT14: =COUNTIF(L146:L173,AS14) -> 3 | AU14: =AT14/(AV4-AT20) -> 0.1071428571 | AV14: -0.3452563309
A15: 12 | B15: 1067 | C15: 14 | D15: 1074 | E15: 13 | F15: 1080 | G15: 14 | H15: 1086 | K15: 0 | L15: 1111 | N15: 2111 | O15: 44 | P15: 0.2634730539 | Q15: -0.5069939979 | T15: 2111 | U15: =COUNTIF(L7:L34,T15) -> 8 | V15: =U15/(W4-U20) -> 0.2857142857 | W15: -0.5163871206 | Y15: 2111 | Z15: =COUNTIF(L35:L62,Y15) -> 9 | AA15: =Z15/(AB4-Z20) -> 0.3214285714 | AB15: -0.5263167602 | AD15: 2111 | AE15: =COUNTIF(L63:L89,AD15) -> 8 | AF15: =AE15/(AG4-AE20) -> 0.2962962963 | AG15: -0.5199666673 | AI15: 2111 | AJ15: =COUNTIF(L90:L117,AI15) -> 7 | AK15: =AJ15/(AL4-AJ20) -> 0.25 | AL15: -0.5 | AN15: 2111 | AO15: =COUNTIF(L118:L145,AN15) -> 5 | AP15: =AO15/(AQ4-AO20) -> 0.1851851852 | AQ15: -0.4505480384 | AS15: 2111 | AT15: =COUNTIF(L146:L173,AS15) -> 7 | AU15: =AT15/(AV4-AT20) -> 0.25 | AV15: -0.5
A16: 21 | B16: 1182 | C16: 21 | D16: 1184 | E16: 11 | F16: 1199 | G16: 12 | H16: 1208 | K16: 0 | L16: 2211 | N16: 2112 | O16: 0 | P16: 0 | Q16: 0 | T16: 2112 | U16: =COUNTIF(L7:L34,T16) -> 0 | V16: =U16/(W4-U20) -> 0 | W16: 0 | Y16: 2112 | Z16: =COUNTIF(L35:L62,Y16) -> 0 | AA16: =Z16/(AB4-Z20) -> 0 | AB16: 0 | AD16: 2112 | AE16: =COUNTIF(L63:L89,AD16) -> 0 | AF16: =AE16/(AG4-AE20) -> 0 | AG16: 0 | AI16: 2112 | AJ16: =COUNTIF(L90:L117,AI16) -> 0 | AK16: =AJ16/(AL4-AJ20) -> 0 | AL16: 0 | AN16: 2112 | AO16: =COUNTIF(L118:L145,AN16) -> 0 | AP16: =AO16/(AQ4-AO20) -> 0 | AQ16: 0 | AS16: 2112 | AT16: =COUNTIF(L146:L173,AS16) -> 0 | AU16: =AT16/(AV4-AT20) -> 0 | AV16: 0
A17: 21 | B17: 1302 | C17: 21 | D17: 1304 | E17: 22 | F17: 1315 | G17: 14 | H17: 1328 | K17: 0 | L17: 2221 | N17: 2121 | O17: 0 | P17: 0 | Q17: 0 | T17: 2121 | U17: =COUNTIF(L7:L34,T17) -> 0 | V17: =U17/(W4-U20) -> 0 | W17: 0 | Y17: 2121 | Z17: =COUNTIF(L35:L62,Y17) -> 0 | AA17: =Z17/(AB4-Z20) -> 0 | AB17: 0 | AD17: 2121 | AE17: =COUNTIF(L63:L89,AD17) -> 0 | AF17: =AE17/(AG4-AE20) -> 0 | AG17: 0 | AI17: 2121 | AJ17: =COUNTIF(L90:L117,AI17) -> 0 | AK17: =AJ17/(AL4-AJ20) -> 0 | AL17: 0 | AN17: 2121 | AO17: =COUNTIF(L118:L145,AN17) -> 0 | AP17: =AO17/(AQ4-AO20) -> 0 | AQ17: 0 | AS17: 2121 | AT17: =COUNTIF(L146:L173,AS17) -> 0 | AU17: =AT17/(AV4-AT20) -> 0 | AV17: 0
A18: 21 | B18: 1430 | C18: 21 | D18: 1443 | E18: 11 | F18: 1459 | G18: 12 | H18: 1465 | K18: 0 | L18: 2211 | N18: 2122 | O18: 3 | P18: 0.01796407186 | Q18: -0.1041690142 | T18: 2122 | U18: =COUNTIF(L7:L34,T18) -> 1 | V18: =U18/(W4-U20) -> 0.03571428571 | W18: -0.1716912472 | Y18: 2122 | Z18: =COUNTIF(L35:L62,Y18) -> 0 | AA18: =Z18/(AB4-Z20) -> 0 | AB18: 0 | AD18: 2122 | AE18: =COUNTIF(L63:L89,AD18) -> 0 | AF18: =AE18/(AG4-AE20) -> 0 | AG18: 0 | AI18: 2122 | AJ18: =COUNTIF(L90:L117,AI18) -> 0 | AK18: =AJ18/(AL4-AJ20) -> 0 | AL18: 0 | AN18: 2122 | AO18: =COUNTIF(L118:L145,AN18) -> 2 | AP18: =AO18/(AQ4-AO20) -> 0.07407407407 | AQ18: -0.278139815 | AS18: 2122 | AT18: =COUNTIF(L146:L173,AS18) -> 0 | AU18: =AT18/(AV4-AT20) -> 0 | AV18: 0
A19: 12 | B19: 1484 | C19: 14 | D19: 1489 | E19: 13 | F19: 1496 | G19: 14 | H19: 1502 | K19: 0 | L19: 1111 | N19: 2211 | O19: 10 | P19: 0.05988023952 | Q19: -0.2432201316 | T19: 2211 | U19: =COUNTIF(L7:L34,T19) -> 3 | V19: =U19/(W4-U20) -> 0.1071428571 | W19: -0.3452563309 | Y19: 2211 | Z19: =COUNTIF(L35:L62,Y19) -> 1 | AA19: =Z19/(AB4-Z20) -> 0.03571428571 | AB19: -0.1716912472 | AD19: 2211 | AE19: =COUNTIF(L63:L89,AD19) -> 1 | AF19: =AE19/(AG4-AE20) -> 0.03703703704 | AG19: -0.1761069445 | AI19: 2211 | AJ19: =COUNTIF(L90:L117,AI19) -> 1 | AK19: =AJ19/(AL4-AJ20) -> 0.03571428571 | AL19: -0.1716912472 | AN19: 2211 | AO19: =COUNTIF(L118:L145,AN19) -> 2 | AP19: =AO19/(AQ4-AO20) -> 0.07407407407 | AQ19: -0.278139815 | AS19: 2211 | AT19: =COUNTIF(L146:L173,AS19) -> 2 | AU19: =AT19/(AV4-AT20) -> 0.07142857143 | AV19: -0.271953923
A20: 21 | B20: 1603 | C20: 21 | D20: 1606 | E20: 11 | F20: 1620 | G20: 12 | H20: 1631 | K20: 0 | L20: 2211 | N20: 2212 | O20: 1 | P20: 0.005988023952 | Q20: -0.04421379816 | T20: 2212 | U20: =COUNTIF(L7:L34,T20) -> 0 | Y20: 2212 | Z20: =COUNTIF(L35:L62,Y20) -> 0 | AD20: 2212 | AE20: =COUNTIF(L63:L89,AD20) -> 0 | AI20: 2212 | AJ20: =COUNTIF(L90:L117,AI20) -> 0 | AN20: 2212 | AO20: =COUNTIF(L118:L145,AN20) -> 1 | AS20: 2212 | AT20: =COUNTIF(L146:L173,AS20) -> 0
A21: 21 | B21: 1728 | C21: 12 | D21: 1739 | E21: 13 | F21: 1742 | G21: 14 | H21: 1749 | K21: 0 | L21: 2111 | N21: 2221 | O21: 4 | P21: 0.02395209581 | Q21: -0.128951001 | T21: 2221 | U21: =COUNTIF(L7:L34,T21) -> 1 | V21: =U21/(W4-U20) -> 0.03571428571 | W21: =IF(V21=0,0,(V21*((LOG(V21))/LOG(2)))) -> -0.1716912472 | Y21: 2221 | Z21: =COUNTIF(L35:L62,Y21) -> 0 | AA21: =Z21/(AB4-Z20) -> 0 | AB21: =IF(AA21=0,0,(AA21*((LOG(AA21))/LOG(2)))) -> 0 | AD21: 2221 | AE21: =COUNTIF(L63:L89,AD21) -> 0 | AF21: =AE21/(AG4-AE20) -> 0 | AG21: =IF(AF21=0,0,(AF21*((LOG(AF21))/LOG(2)))) -> 0 | AI21: 2221 | AJ21: =COUNTIF(L90:L117,AI21) -> 1 | AK21: =AJ21/(AL4-AJ20) -> 0.03571428571 | AL21: =IF(AK21=0,0,(AK21*((LOG(AK21))/LOG(2)))) -> -0.1716912472 | AN21: 2221 | AO21: =COUNTIF(L118:L145,AN21) -> 1 | AP21: =AO21/(AQ4-AO20) -> 0.03703703704 | AQ21: =IF(AP21=0,0,(AP21*((LOG(AP21))/LOG(2)))) -> -0.1761069445 | AS21: 2221 | AT21: =COUNTIF(L146:L173,AS21) -> 1 | AU21: =AT21/(AV4-AT20) -> 0.03571428571 | AV21: =IF(AU21=0,0,(AU21*((LOG(AU21))/LOG(2)))) -> -0.1716912472
A22: 21 | B22: 1853 | C22: 12 | D22: 1865 | E22: 13 | F22: 1868 | G22: 14 | H22: 1874 | K22: 0 | L22: 2111 | N22: 2222 | O22: 25 | P22: 0.1497005988 | Q22: -0.4101569016 | T22: 2222 | U22: =COUNTIF(L7:L34,T22) -> 3 | V22: =U22/(W4-U20) -> 0.1071428571 | W22: =IF(V22=0,0,(V22*((LOG(V22))/LOG(2)))) -> -0.3452563309 | Y22: 2222 | Z22: =COUNTIF(L35:L62,Y22) -> 3 | AA22: =Z22/(AB4-Z20) -> 0.1071428571 | AB22: =IF(AA22=0,0,(AA22*((LOG(AA22))/LOG(2)))) -> -0.3452563309 | AD22: 2222 | AE22: =COUNTIF(L63:L89,AD22) -> 8 | AF22: =AE22/(AG4-AE20) -> 0.2962962963 | AG22: =IF(AF22=0,0,(AF22*((LOG(AF22))/LOG(2)))) -> -0.5199666673 | AI22: 2222 | AJ22: =COUNTIF(L90:L117,AI22) -> 3 | AK22: =AJ22/(AL4-AJ20) -> 0.1071428571 | AL22: =IF(AK22=0,0,(AK22*((LOG(AK22))/LOG(2)))) -> -0.3452563309 | AN22: 2222 | AO22: =COUNTIF(L118:L145,AN22) -> 2 | AP22: =AO22/(AQ4-AO20) -> 0.07407407407 | AQ22: =IF(AP22=0,0,(AP22*((LOG(AP22))/LOG(2)))) -> -0.278139815 | AS22: 2222 | AT22: =COUNTIF(L146:L173,AS22) -> 6 | AU22: =AT22/(AV4-AT20) -> 0.2142857143 | AV22: =IF(AU22=0,0,(AU22*((LOG(AU22))/LOG(2)))) -> -0.4762269474
A23: 21 | B23: 1978 | C23: 12 | D23: 1990 | E23: 13 | F23: 1995 | G23: 14 | H23: 2001 | K23: 0 | L23: 2111 | P23: =SUM(P7:P22) -> 1 | Q23: =-SUM(Q7:Q22) -> 2.447762534 | V23: =SUM(V7:V22) -> 1 | W23: =-SUM(W7:W22) -> 2.583616975 | AA23: =SUM(AA7:AA22) -> 1 | AB23: =-SUM(AB7:AB22) -> 1.912403135 | AF23: =SUM(AF7:AF22) -> 1 | AG23: =-SUM(AG7:AG22) -> 2.073170022 | AK23: =SUM(AK7:AK22) -> 1 | AL23: =-SUM(AL7:AL22) -> 2.214955585 | AP23: =SUM(AP7:AP22) -> 1 | AQ23: =-SUM(AQ7:AQ22) -> 2.396984233 | AU23: =SUM(AU7:AU22) -> 1 | AV23: =-SUM(AV7:AV22) -> 2.453206816
A24: 12 | B24: 2105 | C24: 14 | D24: 2110 | E24: 13 | F24: 2116 | G24: 14 | H24: 2123 | K24: 0 | L24: 1111 | P24: U= | Q24: =Q23/(LOG(Q4)/LOG(2)) -> 0.3315087437 | V24: U1= | W24: =W23/(LOG(W4)/LOG(2)) -> 0.5374300457 | AA24: U2= | AB24: =AB23/(LOG(AB4)/LOG(2)) -> 0.3978077688 | AF24: U3= | AG24: =AG23/(LOG(AG4)/LOG(2)) -> 0.4360082171 | AK24: U4= | AL24: =AL23/(LOG(AL4)/LOG(2)) -> 0.460743095 | AP24: U5= | AQ24: =AQ23/(LOG(AQ4)/LOG(2)) -> 0.4986077108 | AU24: U6= | AV24: =AV23/(LOG(AV4)/LOG(2)) -> 0.5103028289
A25: 21 | B25: 2221 | C25: 12 | D25: 2236 | E25: 13 | F25: 2241 | G25: 14 | H25: 2248 | K25: 0 | L25: 2111
A26: 12 | B26: 2345 | C26: 14 | D26: 2354 | E26: 13 | F26: 2362 | G26: 14 | H26: 2369 | K26: 0 | L26: 1111
A27: 21 | B27: 2463 | C27: 12 | D27: 2480 | E27: 13 | F27: 2485 | G27: 14 | H27: 2490 | K27: 0 | L27: 2111 | N27: Total Target Seq
A28: 21 | B28: 2585 | C28: 12 | D28: 2597 | E28: 24 | F28: 2610 | G28: 23 | H28: 2613 | K28: 0 | L28: 2122 | N28: =COUNTIF(L7:L173,G3) -> 1 | P28: 28 | Q28: 28 | R28: 27 | S28: 28 | T28: 28 | U28: 28
A29: 12 | B29: 2745 | C29: 23 | D29: 2756 | E29: 24 | F29: 2760 | G29: 23 | H29: 2765 | K29: 0 | L29: 1222 | P29: % of reinforcement given in 6 equal intervals based on number of trials
A30: 21 | B30: 2861 | C30: 21 | D30: 2894 | E30: 22 | F30: 2898 | G30: 23 | H30: 2904 | K30: 0 | L30: 2222 | P30: %_1 | Q30: %_2 | R30: %_3 | S30: %_4 | T30: %_5 | U30: %_6
A31: 21 | B31: 3001 | C31: 12 | D31: 3016 | E31: 13 | F31: 3021 | G31: 14 | H31: 3027 | K31: 0 | L31: 2111 | O31: target sequence | P31: =$G$3 -> 2212 | Q31: 2212 | R31: 2212 | S31: 2212 | T31: 2212 | U31: 2212
A32: 12 | B32: 3130 | C32: 23 | D32: 3148 | E32: 24 | F32: 3153 | G32: 23 | H32: 3160 | K32: 0 | L32: 1222 | O32: total reinforcement | P32: =U20 -> 0 | Q32: =Z20 -> 0 | R32: =AE20 -> 0 | S32: =AJ20 -> 0 | T32: =AO20 -> 1 | U32: =AT20 -> 0
A33: 21 | B33: 3256 | C33: 21 | D33: 3280 | E33: 22 | F33: 3285 | G33: 23 | H33: 3290 | K33: 0 | L33: 2222 | O33: % target
A34: 21 | B34: 3479 | C34: 12 | D34: 3491 | E34: 13 | F34: 3499 | G34: 14 | H34: 3507 | K34: 0 | L34: 2111 | O34: CCRF
A35: 12 | B35: 3624 | C35: 14 | D35: 3629 | E35: 13 | F35: 3633 | G35: 14 | H35: 3637 | K35: 0 | L35: 1111 | O35: % CCRf
A36: 21 | B36: 3734 | C36: 12 | D36: 3752 | E36: 13 | F36: 3755 | G36: 14 | H36: 3760 | K36: 0 | L36: 2111 | O36: average response rate | P36: =H34/P28 -> 125.25 | Q36: =(H62-H34)/Q28 -> 140.3928571 | R36: =(H89-H62)/R28 -> 142.3333333 | S36: =(H117-H89)/S28 -> 148.9285714 | T36: =(H145-H117)/T28 -> 154.25 | U36: =(H173-H145)/U28 -> 147.6428571
A37: 21 | B37: 3857 | C37: 21 | D37: 3882 | E37: 22 | F37: 3889 | G37: 23 | H37: 3900 | K37: 0 | L37: 2222
A38: 12 | B38: 4004 | C38: 14 | D38: 4012 | E38: 13 | F38: 4017 | G38: 14 | H38: 4022 | K38: 0 | L38: 1111
A39: 12 | B39: 4184 | C39: 14 | D39: 4192 | E39: 13 | F39: 4198 | G39: 14 | H39: 4205 | K39: 0 | L39: 1111
A40: 12 | B40: 4300 | C40: 23 | D40: 4314 | E40: 24 | F40: 4321 | G40: 23 | H40: 4326 | K40: 0 | L40: 1222
A41: 12 | B41: 4431 | C41: 14 | D41: 4437 | E41: 13 | F41: 4442 | G41: 14 | H41: 4447 | K41: 0 | L41: 1111
A42: 12 | B42: 4548 | C42: 14 | D42: 4553 | E42: 13 | F42: 4558 | G42: 14 | H42: 4565 | K42: 0 | L42: 1111
A43: 12 | B43: 4666 | C43: 14 | D43: 4670 | E43: 13 | F43: 4675 | G43: 14 | H43: 4681 | K43: 0 | L43: 1111
A44: 12 | B44: 4801 | C44: 14 | D44: 4807 | E44: 13 | F44: 4817 | G44: 14 | H44: 4823 | K44: 0 | L44: 1111
A45: 21 | B45: 4976 | C45: 12 | D45: 4991 | E45: 13 | F45: 4996 | G45: 14 | H45: 5003 | K45: 0 | L45: 2111
A46: 12 | B46: 5232 | C46: 14 | D46: 5240 | E46: 13 | F46: 5245 | G46: 14 | H46: 5250 | K46: 0 | L46: 1111
A47: 12 | B47: 5347 | C47: 14 | D47: 5356 | E47: 13 | F47: 5370 | G47: 14 | H47: 5376 | K47: 0 | L47: 1111
A48: 21 | B48: 5560 | C48: 12 | D48: 5571 | E48: 13 | F48: 5578 | G48: 14 | H48: 5580 | K48: 0 | L48: 2111
A49: 21 | B49: 5691 | C49: 21 | D49: 5695 | E49: 22 | F49: 5721 | G49: 23 | H49: 5725 | K49: 0 | L49: 2222
A50: 12 | B50: 5834 | C50: 14 | D50: 5838 | E50: 13 | F50: 5844 | G50: 14 | H50: 5849 | K50: 0 | L50: 1111
A51: 12 | B51: 5944 | C51: 23 | D51: 5961 | E51: 24 | F51: 5967 | G51: 23 | H51: 5973 | K51: 0 | L51: 1222
A52: 21 | B52: 6091 | C52: 12 | D52: 6106 | E52: 13 | F52: 6112 | G52: 14 | H52: 6117 | K52: 0 | L52: 2111
A53: 21 | B53: 6214 | C53: 12 | D53: 6226 | E53: 13 | F53: 6229 | G53: 14 | H53: 6234 | K53: 0 | L53: 2111
A54: 21 | B54: 6332 | C54: 21 | D54: 6335 | E54: 11 | F54: 6347 | G54: 12 | H54: 6352 | K54: 0 | L54: 2211
A55: 12 | B55: 6454 | C55: 23 | D55: 6465 | E55: 24 | F55: 6470 | G55: 23 | H55: 6476 | K55: 0 | L55: 1222
A56: 21 | B56: 6659 | C56: 12 | D56: 6675 | E56: 13 | F56: 6680 | G56: 14 | H56: 6685 | K56: 0 | L56: 2111
A57: 12 | B57: 6782 | C57: 14 | D57: 6791 | E57: 13 | F57: 6798 | G57: 14 | H57: 6804 | K57: 0 | L57: 1111
A58: 21 | B58: 6902 | C58: 12 | D58: 6912 | E58: 13 | F58: 6917 | G58: 14 | H58: 6922 | K58: 0 | L58: 2111
A59: 21 | B59: 7024 | C59: 21 | D59: 7047 | E59: 22 | F59: 7052 | G59: 23 | H59: 7058 | K59: 0 | L59: 2222
A60: 12 | B60: 7159 | C60: 14 | D60: 7168 | E60: 13 | F60: 7173 | G60: 14 | H60: 7183 | K60: 0 | L60: 1111
A61: 21 | B61: 7287 | C61: 12 | D61: 7301 | E61: 13 | F61: 7304 | G61: 14 | H61: 7309 | K61: 0 | L61: 2111
A62: 21 | B62: 7407 | C62: 12 | D62: 7424 | E62: 13 | F62: 7433 | G62: 14 | H62: 7438 | K62: 0 | L62: 2111
A63: 21 | B63: 7580 | C63: 12 | D63: 7591 | E63: 13 | F63: 7597 | G63: 14 | H63: 7605 | K63: 0 | L63: 2111
A64: 12 | B64: 7727 | C64: 14 | D64: 7740 | E64: 13 | F64: 7751 | G64: 14 | H64: 7757 | K64: 0 | L64: 1111
A65: 21 | B65: 7857 | C65: 12 | D65: 7872 | E65: 13 | F65: 7882 | G65: 14 | H65: 7893 | K65: 0 | L65: 2111
A66: 12 | B66: 8003 | C66: 14 | D66: 8013 | E66: 13 | F66: 8020 | G66: 14 | H66: 8026 | K66: 0 | L66: 1111
A67: 12 | B67: 8224 | C67: 23 | D67: 8241 | E67: 24 | F67: 8248 | G67: 23 | H67: 8259 | K67: 0 | L67: 1222
A68: 21 | B68: 8356 | C68: 21 | D68: 8378 | E68: 22 | F68: 8382 | G68: 23 | H68: 8388 | K68: 0 | L68: 2222
A69: 21 | B69: 8522 | C69: 12 | D69: 8537 | E69: 13 | F69: 8543 | G69: 14 | H69: 8546 | K69: 0 | L69: 2111
A70: 21 | B70: 8641 | C70: 21 | D70: 8645 | E70: 11 | F70: 8663 | G70: 12 | H70: 8668 | K70: 0 | L70: 2211
A71: 21 | B71: 8760 | C71: 12 | D71: 8793 | E71: 13 | F71: 8799 | G71: 14 | H71: 8805 | K71: 0 | L71: 2111
A72: 21 | B72: 8906 | C72: 21 | D72: 8930 | E72: 22 | F72: 8936 | G72: 23 | H72: 8942 | K72: 0 | L72: 2222
A73: 12 | B73: 9056 | C73: 14 | D73: 9061 | E73: 13 | F73: 9065 | G73: 14 | H73: 9071 | K73: 0 | L73: 1111
A74: 12 | B74: 9165 | C74: 23 | D74: 9182 | E74: 24 | F74: 9187 | G74: 23 | H74: 9194 | K74: 0 | L74: 1222
A75: 12 | B75: 9305 | C75: 23 | D75: 9317 | E75: 24 | F75: 9321 | G75: 23 | H75: 9331 | K75: 0 | L75: 1222
A76: 12 | B76: 9443 | C76: 14 | D76: 9447 | E76: 13 | F76: 9455 | G76: 14 | H76: 9459 | K76: 0 | L76: 1111
A77: 21 | B77: 9622 | C77: 12 | D77: 9635 | E77: 13 | F77: 9641 | G77: 14 | H77: 9659 | K77: 0 | L77: 2111
A78: 21 | B78: 9764 | C78: 21 | D78: 9781 | E78: 22 | F78: 9785 | G78: 23 | H78: 9802 | K78: 0 | L78: 2222
A79: 21 | B79: 9902 | C79: 21 | D79: 9924 | E79: 22 | F79: 9927 | G79: 23 | H79: 9933 | K79: 0 | L79: 2222
A80: 21 | B80: 10036 | C80: 12 | D80: 10054 | E80: 13 | F80: 10059 | G80: 14 | H80: 10065 | K80: 0 | L80: 2111
A81: 21 | B81: 10229 | C81: 12 | D81: 10244 | E81: 13 | F81: 10252 | G81: 14 | H81: 10258 | K81: 0 | L81: 2111
A82: 21 | B82: 10355 | C82: 21 | D82: 10377 | E82: 22 | F82: 10382 | G82: 23 | H82: 10388 | K82: 0 | L82: 2222
A83: 21 | B83: 10487 | C83: 12 | D83: 10500 | E83: 13 | F83: 10506 | G83: 14 | H83: 10512 | K83: 0 | L83: 2111
A84: 21 | B84: 10619 | C84: 21 | D84: 10624 | E84: 22 | F84: 10630 | G84: 23 | H84: 10643 | K84: 0 | L84: 2222
A85: 21 | B85: 10761 | C85: 21 | D85: 10767 | E85: 22 | F85: 10772 | G85: 23 | H85: 10779 | K85: 0 | L85: 2222
A86: 12 | B86: 10880 | C86: 14 | D86: 10885 | E86: 13 | F86: 10889 | G86: 14 | H86: 10895 | K86: 0 | L86: 1111
A87: 12 | B87: 11023 | C87: 14 | D87: 11027 | E87: 13 | F87: 11032 | G87: 14 | H87: 11037 | K87: 0 | L87: 1111
A88: 21 | B88: 11137 | C88: 21 | D88: 11140 | E88: 22 | F88: 11161 | G88: 23 | H88: 11165 | K88: 0 | L88: 2222
A89: 12 | B89: 11266 | C89: 14 | D89: 11271 | E89: 13 | F89: 11276 | G89: 14 | H89: 11281 | K89: 0 | L89: 1111
A90: 12 | B90: 11376 | C90: 14 | D90: 11386 | E90: 13 | F90: 11403 | G90: 14 | H90: 11409 | K90: 0 | L90: 1111
A91: 12 | B91: 11538 | C91: 14 | D91: 11544 | E91: 13 | F91: 11547 | G91: 14 | H91: 11551 | K91: 0 | L91: 1111
A92: 12 | B92: 11757 | C92: 23 | D92: 11773 | E92: 24 | F92: 11777 | G92: 23 | H92: 11782 | K92: 0 | L92: 1222
A93: 12 | B93: 11900 | C93: 14 | D93: 11906 | E93: 13 | F93: 11911 | G93: 14 | H93: 11923 | K93: 0 | L93: 1111
A94: 21 | B94: 12018 | C94: 21 | D94: 12043 | E94: 22 | F94: 12049 | G94: 23 | H94: 12056 | K94: 0 | L94: 2222
A95: 12 | B95: 12152 | C95: 14 | D95: 12159 | E95: 13 | F95: 12167 | G95: 14 | H95: 12172 | K95: 0 | L95: 1111
A96: 21 | B96: 12291 | C96: 21 | D96: 12297 | E96: 22 | F96: 12303 | G96: 23 | H96: 12315 | K96: 0 | L96: 2222
A97: 12 | B97: 12421 | C97: 14 | D97: 12434 | E97: 13 | F97: 12438 | G97: 14 | H97: 12453 | K97: 0 | L97: 1111
A98: 12 | B98: 12569 | C98: 14 | D98: 12575 | E98: 13 | F98: 12580 | G98: 14 | H98: 12591 | K98: 0 | L98: 1111
A99: 21 | B99: 12702 | C99: 21 | D99: 12726 | E99: 22 | F99: 12731 | G99: 14 | H99: 12742 | K99: 0 | L99: 2221
A100: 21 | B100: 12835 | C100: 12 | D100: 12848 | E100: 13 | F100: 12851 | G100: 14 | H100: 12862 | K100: 0 | L100: 2111
A101: 21 | B101: 12967 | C101: 12 | D101: 12980 | E101: 13 | F101: 12984 | G101: 14 | H101: 12990 | K101: 0 | L101: 2111
A102: 21 | B102: 13212 | C102: 12 | D102: 13225 | E102: 13 | F102: 13229 | G102: 14 | H102: 13235 | K102: 0 | L102: 2111
A103: 12 | B103: 13435 | C103: 14 | D103: 13441 | E103: 13 | F103: 13447 | G103: 14 | H103: 13453 | K103: 0 | L103: 1111
A104: 21 | B104: 13569 | C104: 12 | D104: 13584 | E104: 13 | F104: 13593 | G104: 14 | H104: 13599 | K104: 0 | L104: 2111
A105: 12 | B105: 13730 | C105: 23 | D105: 13747 | E105: 24 | F105: 13751 | G105: 23 | H105: 13763 | K105: 0 | L105: 1222
A106: 21 | B106: 13860 | C106: 12 | D106: 13876 | E106: 13 | F106: 13879 | G106: 14 | H106: 13884 | K106: 0 | L106: 2111
A107: 21 | B107: 13982 | C107: 21 | D107: 13984 | E107: 11 | F107: 13999 | G107: 12 | H107: 14008 | K107: 0 | L107: 2211
A108: 21 | B108: 14104 | C108: 21 | D108: 14125 | E108: 22 | F108: 14130 | G108: 23 | H108: 14136 | K108: 0 | L108: 2222
A109: 12 | B109: 14325 | C109: 23 | D109: 14339 | E109: 24 | F109: 14342 | G109: 23 | H109: 14347 | K109: 0 | L109: 1222
A110: 12 | B110: 14533 | C110: 14 | D110: 14538 | E110: 13 | F110: 14544 | G110: 14 | H110: 14551 | K110: 0 | L110: 1111
A111: 12 | B111: 14650 | C111: 23 | D111: 14661 | E111: 24 | F111: 14666 | G111: 23 | H111: 14670 | K111: 0 | L111: 1222
A112: 12 | B112: 14776 | C112: 23 | D112: 14790 | E112: 24 | F112: 14794 | G112: 23 | H112: 14799 | K112: 0 | L112: 1222
A113: 12 | B113: 14898 | C113: 14 | D113: 14903 | E113: 13 | F113: 14910 | G113: 14 | H113: 14915 | K113: 0 | L113: 1111
A114: 12 | B114: 15025 | C114: 23 | D114: 15034 | E114: 24 | F114: 15037 | G114: 23 | H114: 15043 | K114: 0 | L114: 1222
A115: 21 | B115: 15143 | C115: 12 | D115: 15161 | E115: 13 | F115: 15166 | G115: 14 | H115: 15172 | K115: 0 | L115: 2111
A116: 21 | B116: 15273 | C116: 12 | D116: 15289 | E116: 13 | F116: 15298 | G116: 14 | H116: 15304 | K116: 0 | L116: 2111
A117: 12 | B117: 15410 | C117: 23 | D117: 15425 | E117: 24 | F117: 15430 | G117: 23 | H117: 15451 | K117: 0 | L117: 1222
A118: 12 | B118: 15549 | C118: 23 | D118: 15561 | E118: 24 | F118: 15565 | G118: 23 | H118: 15571 | K118: 0 | L118: 1222
A119: 21 | B119: 15674 | C119: 12 | D119: 15694 | E119: 13 | F119: 15700 | G119: 14 | H119: 15704 | K119: 0 | L119: 2111
A120: 21 | B120: 15809 | C120: 12 | D120: 15824 | E120: 13 | F120: 15828 | G120: 14 | H120: 15831 | K120: 0 | L120: 2111
A121: 12 | B121: 16002 | C121: 14 | D121: 16008 | E121: 13 | F121: 16014 | G121: 14 | H121: 16025 | K121: 0 | L121: 1111
A122: 12 | B122: 16189 | C122: 14 | D122: 16197 | E122: 13 | F122: 16202 | G122: 14 | H122: 16208 | K122: 0 | L122: 1111
A123: 12 | B123: 16302 | C123: 23 | D123: 16316 | E123: 24 | F123: 16321 | G123: 23 | H123: 16327 | K123: 0 | L123: 1222
A124: 12 | B124: 16426 | C124: 14 | D124: 16436 | E124: 13 | F124: 16441 | G124: 14 | H124: 16451 | K124: 0 | L124: 1111
A125: 21 | B125: 16548 | C125: 21 | D125: 16551 | E125: 22 | F125: 16563 | G125: 14 | H125: 16583 | K125: 0 | L125: 2221
A126: 12 | B126: 16757 | C126: 23 | D126: 16777 | E126: 24 | F126: 16783 | G126: 23 | H126: 16791 | K126: 0 | L126: 1222
A127: 12 | B127: 17066 | C127: 14 | D127: 17069 | E127: 13 | F127: 17073 | G127: 14 | H127: 17078 | K127: 0 | L127: 1111
A128: 21 | B128: 17181 | C128: 12 | D128: 17197 | E128: 24 | F128: 17213 | G128: 23 | H128: 17219 | K128: 0 | L128: 2122
A129: 21 | B129: 17322 | C129: 12 | D129: 17336 | E129: 24 | F129: 17355 | G129: 23 | H129: 17361 | K129: 0 | L129: 2122
A130: 12 | B130: 17485 | C130: 23 | D130: 17498 | E130: 24 | F130: 17502 | G130: 23 | H130: 17507 | K130: 0 | L130: 1222
A131: 21 | B131: 17607 | C131: 21 | D131: 17628 | E131: 11 | F131: 17648 | G131: 12 | H131: 17655 | K131: 0 | L131: 2211
A132: 21 | B132: 17750 | C132: 21 | D132: 17754 | E132: 11 | F132: 17769 | G132: 12 | H132: 17774 | K132: 0 | L132: 2211
A133: 21 | B133: 17895 | C133: 21 | D133: 17899 | E133: 22 | F133: 17907 | G133: 23 | H133: 17914 | K133: 0 | L133: 2222
A134: 21 | B134: 18022 | C134: 12 | D134: 18036 | E134: 13 | F134: 18041 | G134: 14 | H134: 18044 | K134: 0 | L134: 2111
A135: 21 | B135: 18158 | C135: 12 | D135: 18175 | E135: 13 | F135: 18181 | G135: 14 | H135: 18186 | K135: 0 | L135: 2111
A136: 12 | B136: 18287 | C136: 14 | D136: 18295 | E136: 13 | F136: 18301 | G136: 14 | H136: 18310 | K136: 0 | L136: 1111
A137: 12 | B137: 18473 | C137: 14 | D137: 18480 | E137: 13 | F137: 18489 | G137: 14 | H137: 18502 | K137: 0 | L137: 1111
A138: 12 | B138: 18712 | C138: 14 | D138: 18719 | E138: 13 | F138: 18725 | G138: 14 | H138: 18732 | K138: 0 | L138: 1111
A139: 12 | B139: 18898 | C139: 14 | D139: 18907 | E139: 13 | F139: 18929 | G139: 14 | H139: 18937 | K139: 0 | L139: 1111
A140: 12 | B140: 19053 | C140: 14 | D140: 19061 | E140: 13 | F140: 19068 | G140: 14 | H140: 19078 | K140: 0 | L140: 1111
A141: 12 | B141: 19214 | C141: 14 | D141: 19237 | E141: 13 | F141: 19247 | G141: 14 | H141: 19255 | K141: 0 | L141: 1111
A142: 21 | B142: 19350 | C142: 12 | D142: 19369 | E142: 13 | F142: 19373 | G142: 14 | H142: 19380 | K142: 0 | L142: 2111
A143: 21 | B143: 19487 | C143: 21 | D143: 19492 | E143: 22 | F143: 19498 | G143: 23 | H143: 19506 | K143: 0 | L143: 2222
A144: 12 | B144: 19620 | C144: 14 | D144: 19626 | E144: 13 | F144: 19630 | G144: 14 | H144: 19635 | K144: 0 | L144: 1111
A145: 21 | B145: 19736 | C145: 21 | D145: 19743 | E145: 11 | F145: 19759 | G145: 21 | H145: 19770 | K145: 0 | L145: 2212
A146: 12 | B146: 19916 | C146: 14 | D146: 19923 | E146: 24 | F146: 19939 | G146: 23 | H146: 19944 | K146: 0 | L146: 1122
A147: 12 | B147: 20139 | C147: 14 | D147: 20146 | E147: 13 | F147: 20154 | G147: 14 | H147: 20161 | K147: 0 | L147: 1111
A148: 12 | B148: 20280 | C148: 14 | D148: 20285 | E148: 13 | F148: 20293 | G148: 14 | H148: 20300 | K148: 0 | L148: 1111
A149: 21 | B149: 20423 | C149: 12 | D149: 20448 | E149: 13 | F149: 20455 | G149: 14 | H149: 20459 | K149: 0 | L149: 2111
A150: 12 | B150: 20652 | C150: 23 | D150: 20669 | E150: 24 | F150: 20672 | G150: 23 | H150: 20678 | K150: 0 | L150: 1222
A151: 21 | B151: 20786 | C151: 12 | D151: 20801 | E151: 13 | F151: 20804 | G151: 14 | H151: 20809 | K151: 0 | L151: 2111
A152: 12 | B152: 20910 | C152: 14 | D152: 20913 | E152: 13 | F152: 20915 | G152: 14 | H152: 20924 | K152: 0 | L152: 1111
A153: 21 | B153: 21035 | C153: 21 | D153: 21040 | E153: 22 | F153: 21045 | G153: 23 | H153: 21051 | K153: 0 | L153: 2222
A154: 21 | B154: 21172 | C154: 21 | D154: 21178 | E154: 22 | F154: 21184 | G154: 23 | H154: 21191 | K154: 0 | L154: 2222
A155: 21 | B155: 21303 | C155: 12 | D155: 21317 | E155: 13 | F155: 21321 | G155: 14 | H155: 21327 | K155: 0 | L155: 2111
A156: 21 | B156: 21434 | C156: 21 | D156: 21437 | E156: 11 | F156: 21451 | G156: 12 | H156: 21457 | K156: 0 | L156: 2211
A157: 21 | B157: 21603 | C157: 12 | D157: 21615 | E157: 13 | F157: 21619 | G157: 14 | H157: 21626 | K157: 0 | L157: 2111
A158: 21 | B158: 21720 | C158: 21 | D158: 21767 | E158: 22 | F158: 21772 | G158: 23 | H158: 21778 | K158: 0 | L158: 2222
A159: 12 | B159: 21890 | C159: 14 | D159: 21902 | E159: 13 | F159: 21908 | G159: 14 | H159: 21915 | K159: 0 | L159: 1111
A160: 12 | B160: 22018 | C160: 23 | D160: 22034 | E160: 24 | F160: 22039 | G160: 23 | H160: 22050 | K160: 0 | L160: 1222
A161: 12 | B161: 22157 | C161: 23 | D161: 22173 | E161: 24 | F161: 22177 | G161: 23 | H161: 22183 | K161: 0 | L161: 1222
A162: 12 | B162: 22325 | C162: 14 | D162: 22330 | E162: 13 | F162: 22337 | G162: 14 | H162: 22342 | K162: 0 | L162: 1111
A163: 21 | B163: 22437 | C163: 21 | D163: 22476 | E163: 22 | F163: 22481 | G163: 23 | H163: 22486 | K163: 0 | L163: 2222
A164: 21 | B164: 22594 | C164: 21 | D164: 22613 | E164: 22 | F164: 22618 | G164: 23 | H164: 22624 | K164: 0 | L164: 2222
A165: 21 | B165: 22733 | C165: 12 | D165: 22748 | E165: 13 | F165: 22752 | G165: 14 | H165: 22756 | K165: 0 | L165: 2111
A166: 12 | B166: 22934 | C166: 14 | D166: 22940 | E166: 13 | F166: 22944 | G166: 14 | H166: 22958 | K166: 0 | L166: 1111
A167: 21 | B167: 23052 | C167: 21 | D167: 23076 | E167: 22 | F167: 23080 | G167: 23 | H167: 23096 | K167: 0 | L167: 2222
A168: 12 | B168: 23201 | C168: 14 | D168: 23206 | E168: 13 | F168: 23224 | G168: 14 | H168: 23231 | K168: 0 | L168: 1111
A169: 21 | B169: 23323 | C169: 21 | D169: 23362 | E169: 11 | F169: 23374 | G169: 12 | H169: 23379 | K169: 0 | L169: 2211
A170: 21 | B170: 23496 | C170: 12 | D170: 23509 | E170: 13 | F170: 23513 | G170: 14 | H170: 23517 | K170: 0 | L170: 2111
A171: 21 | B171: 23618 | C171: 21 | D171: 23633 | E171: 22 | F171: 23639 | G171: 14 | H171: 23661 | K171: 0 | L171: 2221
A172: 21 | B172: 23760 | C172: 12 | D172: 23772 | E172: 13 | F172: 23777 | G172: 14 | H172: 23783 | K172: 0 | L172: 2111
A173: 12 | B173: 23886 | C173: 14 | D173: 23890 | E173: 13 | F173: 23898 | G173: 14 | H173: 23904 | K173: 0 | L173: 1111

Sheet !LB11A05..Du
A1: Report for:!LB11A05..Du
A2: Date: | B2: <date>
A3: Hen: | B3: <hen> | F3: Correct Sequence | G3: =Start!J2 -> 2212 | P3: Total Sequences in Data | Q3: =4994-COUNTBLANK(L7:L5000) -> 171 | V3: Total Sequences in Block Data | W3: =COUNTA(L7:L35) -> 29 | AA3: Total Sequences in Block Data | AB3: =COUNTA(L36:L63) -> 28 | AF3: Total Sequences in Block Data | AG3: =COUNTA(L64:L92) -> 29 | AK3: Total Sequences in Block Data | AL3: =COUNTA(L93:L120) -> 28 | AP3: Total Sequences in Block Data | AQ3: =COUNTA(L121:L149) -> 29 | AU3: Total Sequences in Block Data | AV3: =COUNTA(L150:L177) -> 28
P4: Total Sequences in Summary | Q4: =SUM(O7:O22) -> 171 | V4: Total Sequences in Block Summary | W4: =SUM(U7:U22) -> 29 | AA4: Total Sequences in Block Summary | AB4: =SUM(Z7:Z22) -> 28 | AF4: Total Sequences in Block Summary | AG4: =SUM(AE7:AE22) -> 29 | AK4: Total Sequences in Block Summary | AL4: =SUM(AJ7:AJ22) -> 28 | AP4: Total Sequences in Block Summary | AQ4: =SUM(AO7:AO22) -> 29 | AU4: Total Sequences in Block Summary | AV4: =SUM(AT7:AT22) -> 28
T5: Block 1 | Y5: Block 2 | AD5: Block 3 | AI5: Block 4 | AN5: Block 5 | AS5: Block 6
A6: Sequence Component 1 | B6: Time 1 | C6: Sequence Component 2 | D6: Time 2 | E6: Sequence Component 3 | F6: Time 3 | G6: Sequence Component 4 | H6: Time 4 | I6: Sequence Component 5 | J6: Time 5 | K6: Correct? 0=No 1=Yes | L6: Sequence | N6: Frequency | P6: Relative Frequency | Q6: Variability | T6: Frequency | V6: Relative Frequency | W6: Variability | Y6: Frequency | AA6: Relative Frequency | AB6: Variability | AD6: Frequency | AF6: Relative Frequency | AG6: Variability | AI6: Frequency | AK6: Relative Frequency | AL6: Variability | AN6: Frequency | AP6: Relative Frequency | AQ6: Variability | AS6: Frequency | AU6: Relative Frequency | AV6: Variability
A7: 21 | B7: 49 | C7: 12 | D7: 76 | E7: 13 | F7: 81 | G7: 14 | H7: 86 | K7: 0 | L7: 2111 | N7: 1111 | O7: =COUNTIF($L$7:$L$500,N7) -> 87 | P7: =O7/$Q$4 -> 0.5087719298 | Q7: =IF(P7=0,0,(P7*((LOG(P7))/LOG(2)))) -> -0.496006343 | T7: =N7 -> 1111 | U7: =COUNTIF(L7:L35,T7) -> 7 | V7: =U7/(W4-U20) -> 0.25 | W7: =IF(V7=0,0,(V7*((LOG(V7))/LOG(2)))) -> -0.5 | Y7: =N7 -> 1111 | Z7: =COUNTIF(L36:L63,Y7) -> 6 | AA7: =Z7/(AB4-Z20) -> 0.2142857143 | AB7: =IF(AA7=0,0,(AA7*((LOG(AA7))/LOG(2)))) -> -0.4762269474 | AD7: =N7 -> 1111 | AE7: =COUNTIF(L64:L92,AD7) -> 19 | AF7: =AE7/(AG4-AE20) -> 0.6551724138 | AG7: =IF(AF7=0,0,(AF7*((LOG(AF7))/LOG(2)))) -> -0.3996902121 | AI7: =N7 -> 1111 | AJ7: =COUNTIF(L93:L120,AI7) -> 16 | AK7: =AJ7/(AL4-AJ20) -> 0.5714285714 | AL7: =IF(AK7=0,0,(AK7*((LOG(AK7))/LOG(2)))) -> -0.4613456697 | AN7: =N7 -> 1111 | AO7: =COUNTIF(L121:L149,AN7) -> 22 | AP7: =AO7/(AQ4-AO20) -> 0.7586206897 | AQ7: =IF(AP7=0,0,(AP7*((LOG(AP7))/LOG(2)))) -> -0.3023478029 | AS7: =N7 -> 1111 | AT7: =COUNTIF(L150:L177,AS7) -> 17 | AU7: =AT7/(AV4-AT20) -> 0.6071428571 | AV7: =IF(AU7=0,0,(AU7*((LOG(AU7))/LOG(2)))) -> -0.4370773348
A8: 12 | B8: 193 | C8: 14 | D8: 196 | E8: 13 | F8: 200 | G8: 14 | H8: 206 | K8: 0 | L8: 1111 | N8: 1112 | O8: 0 | P8: 0 | Q8: 0 | T8: 1112 | U8: =COUNTIF(L7:L35,T8) -> 0 | V8: =U8/(W4-U20) -> 0 | W8: 0 | Y8: 1112 | Z8: =COUNTIF(L36:L63,Y8) -> 0 | AA8: =Z8/(AB4-Z20) -> 0 | AB8: 0 | AD8: 1112 | AE8: =COUNTIF(L64:L92,AD8) -> 0 | AF8: =AE8/(AG4-AE20) -> 0 | AG8: 0 | AI8: 1112 | AJ8: =COUNTIF(L93:L120,AI8) -> 0 | AK8: =AJ8/(AL4-AJ20) -> 0 | AL8: 0 | AN8: 1112 | AO8: =COUNTIF(L121:L149,AN8) -> 0 | AP8: =AO8/(AQ4-AO20) -> 0 | AQ8: 0 | AS8: 1112 | AT8: =COUNTIF(L150:L177,AS8) -> 0 | AU8: =AT8/(AV4-AT20) -> 0 | AV8: 0
A9: 21 | B9: 316 | C9: 12 | D9: 329 | E9: 13 | F9: 335 | G9: 14 | H9: 344 | K9: 0 | L9: 2111 | N9: 1121 | O9: 0 | P9: 0 | Q9: 0 | T9: 1121 | U9: =COUNTIF(L7:L35,T9) -> 0 | V9: =U9/(W4-U20) -> 0 | W9: 0 | Y9: 1121 | Z9: =COUNTIF(L36:L63,Y9) -> 0 | AA9: =Z9/(AB4-Z20) -> 0 | AB9: 0 | AD9: 1121 | AE9: =COUNTIF(L64:L92,AD9) -> 0 | AF9: =AE9/(AG4-AE20) -> 0 | AG9: 0 | AI9: 1121 | AJ9: =COUNTIF(L93:L120,AI9) -> 0 | AK9: =AJ9/(AL4-AJ20) -> 0 | AL9: 0 | AN9: 1121 | AO9: =COUNTIF(L121:L149,AN9) -> 0 | AP9: =AO9/(AQ4-AO20) -> 0 | AQ9: 0 | AS9: 1121 | AT9: =COUNTIF(L150:L177,AS9) -> 0 | AU9: =AT9/(AV4-AT20) -> 0 | AV9: 0
A10: 12 | B10: 442 | C10: 23 | D10: 461 | E10: 24 | F10: 467 | G10: 23 | H10: 478 | K10: 0 | L10: 1222 | N10: 1122 | O10: 2 | P10: 0.01169590643 | Q10: -0.07506260251 | T10: 1122 | U10: =COUNTIF(L7:L35,T10) -> 0 | V10: =U10/(W4-U20) -> 0 | W10: 0 | Y10: 1122 | Z10: =COUNTIF(L36:L63,Y10) -> 1 | AA10: =Z10/(AB4-Z20) -> 0.03571428571 | AB10: -0.1716912472 | AD10: 1122 | AE10: =COUNTIF(L64:L92,AD10) -> 0 | AF10: =AE10/(AG4-AE20) -> 0 | AG10: 0 | AI10: 1122 | AJ10: =COUNTIF(L93:L120,AI10) -> 1 | AK10: =AJ10/(AL4-AJ20) -> 0.03571428571 | AL10: -0.1716912472 | AN10: 1122 | AO10: =COUNTIF(L121:L149,AN10) -> 0 | AP10: =AO10/(AQ4-AO20) -> 0 | AQ10: 0 | AS10: 1122 | AT10: =COUNTIF(L150:L177,AS10) -> 0 | AU10: =AT10/(AV4-AT20) -> 0 | AV10: 0
A11: 21 | B11: 581 | C11: 12 | D11: 596 | E11: 24 | F11: 602 | G11: 14 | H11: 620 | K11: 0 | L11: 2121 | N11: 1211 | O11: 3 | P11: 0.01754385965 | Q11: -0.1023314038 | T11: 1211 | U11: =COUNTIF(L7:L35,T11) -> 0 | V11: =U11/(W4-U20) -> 0 | W11: 0 | Y11: 1211 | Z11: =COUNTIF(L36:L63,Y11) -> 0 | AA11: =Z11/(AB4-Z20) -> 0 | AB11: 0 | AD11: 1211 | AE11: =COUNTIF(L64:L92,AD11) -> 0 | AF11: =AE11/(AG4-AE20) -> 0 | AG11: 0 | AI11: 1211 | AJ11: =COUNTIF(L93:L120,AI11) -> 1 | AK11: =AJ11/(AL4-AJ20) -> 0.03571428571 | AL11: -0.1716912472 | AN11: 1211 | AO11: =COUNTIF(L121:L149,AN11) -> 1 | AP11: =AO11/(AQ4-AO20) -> 0.03448275862 | AQ11: -0.167516586 | AS11: 1211 | AT11: =COUNTIF(L150:L177,AS11) -> 1 | AU11: =AT11/(AV4-AT20) -> 0.03571428571 | AV11: -0.1716912472
A12: 21 | B12: 723 | C12: 12 | D12: 741 | E12: 13 | F12: 747 | G12: 14 | H12: 752 | K12: 0 | L12: 2111 | N12: 1212 | O12: 0 | P12: 0 | Q12: 0 | T12: 1212 | U12: =COUNTIF(L7:L35,T12) -> 0 | V12: =U12/(W4-U20) -> 0 | W12: 0 | Y12: 1212 | Z12: =COUNTIF(L36:L63,Y12) -> 0 | AA12: =Z12/(AB4-Z20) -> 0 | AB12: 0 | AD12: 1212 | AE12: =COUNTIF(L64:L92,AD12) -> 0 | AF12: =AE12/(AG4-AE20) -> 0 | AG12: 0 | AI12: 1212 | AJ12: =COUNTIF(L93:L120,AI12) -> 0 | AK12: =AJ12/(AL4-AJ20) -> 0 | AL12: 0 | AN12: 1212 | AO12: =COUNTIF(L121:L149,AN12) -> 0 | AP12: =AO12/(AQ4-AO20) -> 0 | AQ12: 0 | AS12: 1212 | AT12: =COUNTIF(L150:L177,AS12) -> 0 | AU12: =AT12/(AV4-AT20) -> 0 | AV12: 0
A13: 21 | B13: 915 | C13: 12 | D13: 931 | E13: 24 | F13: 943 | G13: 23 | H13: 947 | K13: 0 | L13: 2122 | N13: 1221 | O13: 1 | P13: 0.005847953216 | Q13: -0.04337925447 | T13: 1221 | U13: =COUNTIF(L7:L35,T13) -> 0 | V13: =U13/(W4-U20) -> 0 | W13: 0 | Y13: 1221 | Z13: =COUNTIF(L36:L63,Y13) -> 0 | AA13: =Z13/(AB4-Z20) -> 0 | AB13: 0 | AD13: 1221 | AE13: =COUNTIF(L64:L92,AD13) -> 0 | AF13: =AE13/(AG4-AE20) -> 0 | AG13: 0 | AI13: 1221 | AJ13: =COUNTIF(L93:L120,AI13) -> 0 | AK13: =AJ13/(AL4-AJ20) -> 0 | AL13: 0 | AN13: 1221 | AO13: =COUNTIF(L121:L149,AN13) -> 1 | AP13: =AO13/(AQ4-AO20) -> 0.03448275862 | AQ13: -0.167516586 | AS13: 1221 | AT13: =COUNTIF(L150:L177,AS13) -> 0 | AU13: =AT13/(AV4-AT20) -> 0 | AV13: 0
A14: 21 | B14: 1042 | C14: 21 | D14: 1049 | E14: 22 | F14: 1083 | G14: 23 | H14: 1089 | K14: 0 | L14: 2222 | N14: 1222 | O14: 5 | P14: 0.02923976608 | Q14: -0.149003638 | T14: 1222 | U14: =COUNTIF(L7:L35,T14) -> 2 | V14: =U14/(W4-U20) -> 0.07142857143 | W14: -0.271953923 | Y14: 1222 | Z14: =COUNTIF(L36:L63,Y14) -> 2 | AA14: =Z14/(AB4-Z20) -> 0.07142857143 | AB14: -0.271953923 | AD14: 1222 | AE14: =COUNTIF(L64:L92,AD14) -> 1 | AF14: =AE14/(AG4-AE20) -> 0.03448275862 | AG14: -0.167516586 | AI14: 1222 | AJ14: =COUNTIF(L93:L120,AI14) -> 0 | AK14: =AJ14/(AL4-AJ20) -> 0 | AL14: 0 | AN14: 1222 | AO14: =COUNTIF(L121:L149,AN14) -> 0 | AP14: =AO14/(AQ4-AO20) -> 0 | AQ14: 0 | AS14: 1222 | AT14: =COUNTIF(L150:L177,AS14) -> 0 | AU14: =AT14/(AV4-AT20) -> 0 | AV14: 0
A15: 21 | B15: 1185 | C15: 21 | D15: 1201 | E15: 22 | F15: 1204 | G15: 23 | H15: 1211 | K15: 0 | L15: 2222 | N15: 2111 | O15: 42 | P15: 0.2456140351 | Q15: -0.4974998472 | T15: 2111 | U15: =COUNTIF(L7:L35,T15) -> 8 | V15: =U15/(W4-U20) -> 0.2857142857 | W15: -0.5163871206 | Y15: 2111 | Z15: =COUNTIF(L36:L63,Y15) -> 9 | AA15: =Z15/(AB4-Z20) -> 0.3214285714 | AB15: -0.5263167602 | AD15: 2111 | AE15: =COUNTIF(L64:L92,AD15) -> 4 | AF15: =AE15/(AG4-AE20) -> 0.1379310345 | AG15: -0.3942042752 | AI15: 2111 | AJ15: =COUNTIF(L93:L120,AI15) -> 10 | AK15: =AJ15/(AL4-AJ20) -> 0.3571428571 | AL15: -0.5305095811 | AN15: 2111 | AO15: =COUNTIF(L121:L149,AN15) -> 3 | AP15: =AO15/(AQ4-AO20) -> 0.1034482759 | AQ15: -0.3385881201 | AS15: 2111 | AT15: =COUNTIF(L150:L177,AS15) -> 8 | AU15: =AT15/(AV4-AT20) -> 0.2857142857 | AV15: -0.5163871206
A16: 21 | B16: 1305 | C16: 12 | D16: 1319 | E16: 13 | F16: 1324 | G16: 14 | H16: 1330 | K16: 0 | L16: 2111 | N16: 2112 | O16: 0 | P16: 0 | Q16: 0 | T16: 2112 | U16: =COUNTIF(L7:L35,T16) -> 0 | V16: =U16/(W4-U20) -> 0 | W16: 0 | Y16: 2112 | Z16: =COUNTIF(L36:L63,Y16) -> 0 | AA16: =Z16/(AB4-Z20) -> 0 | AB16: 0 | AD16: 2112 | AE16: =COUNTIF(L64:L92,AD16) -> 0 | AF16: =AE16/(AG4-AE20) -> 0 | AG16: 0 | AI16: 2112 | AJ16: =COUNTIF(L93:L120,AI16) -> 0 | AK16: =AJ16/(AL4-AJ20) -> 0 | AL16: 0 | AN16: 2112 | AO16: =COUNTIF(L121:L149,AN16) -> 0 | AP16: =AO16/(AQ4-AO20) -> 0 | AQ16: 0 | AS16: 2112 | AT16: =COUNTIF(L150:L177,AS16) -> 0 | AU16: =AT16/(AV4-AT20) -> 0 | AV16: 0
A17: 12 | B17: 1443 | C17: 14 | D17: 1447 | E17: 13 | F17: 1454 | G17: 14 | H17: 1464 | K17: 0 | L17: 1111 | N17: 2121 | O17: 2 | P17: 0.01169590643 | Q17: -0.07506260251 | T17: 2121 | U17: =COUNTIF(L7:L35,T17) -> 1 | V17: =U17/(W4-U20) -> 0.03571428571 | W17: -0.1716912472 | Y17: 2121 | Z17: =COUNTIF(L36:L63,Y17) -> 1 | AA17: =Z17/(AB4-Z20) -> 0.03571428571 | AB17: -0.1716912472 | AD17: 2121 | AE17: =COUNTIF(L64:L92,AD17) -> 0 | AF17: =AE17/(AG4-AE20) -> 0 | AG17: 0 | AI17: 2121 | AJ17: =COUNTIF(L93:L120,AI17) -> 0 | AK17: =AJ17/(AL4-AJ20) -> 0 | AL17: 0 | AN17: 2121 | AO17: =COUNTIF(L121:L149,AN17) -> 0 | AP17: =AO17/(AQ4-AO20) -> 0 | AQ17: 0 | AS17: 2121 | AT17: =COUNTIF(L150:L177,AS17) -> 0 | AU17: =AT17/(AV4-AT20) -> 0 | AV17: 0
A18: 21 | B18: 1624 | C18: 12 | D18: 1636 | E18: 13 | F18: 1640 | G18: 14 | H18: 1647 | K18: 0 | L18: 2111 | N18: 2122 | O18: 5 | P18: 0.02923976608 | Q18: -0.149003638 | T18: 2122 | U18: =COUNTIF(L7:L35,T18) -> 2 | V18: =U18/(W4-U20) -> 0.07142857143 | W18: -0.271953923 | Y18: 2122 | Z18: =COUNTIF(L36:L63,Y18) -> 1 | AA18: =Z18/(AB4-Z20) -> 0.03571428571 | AB18: -0.1716912472 | AD18: 2122 | AE18: =COUNTIF(L64:L92,AD18) -> 1 | AF18: =AE18/(AG4-AE20) -> 0.03448275862 | AG18: -0.167516586 | AI18: 2122 | AJ18: =COUNTIF(L93:L120,AI18) -> 0 | AK18: =AJ18/(AL4-AJ20) -> 0 | AL18: 0 | AN18: 2122 | AO18: =COUNTIF(L121:L149,AN18) -> 0 | AP18: =AO18/(AQ4-AO20) -> 0 | AQ18: 0 | AS18: 2122 | AT18: =COUNTIF(L150:L177,AS18) -> 1 | AU18: =AT18/(AV4-AT20) -> 0.03571428571 | AV18: -0.1716912472
A19: 21 | B19: 1746 | C19: 12 | D19: 1757 | E19: 13 | F19: 1762 | G19: 14 | H19: 1765 | K19: 0 | L19: 2111 | N19: 2211 | O19: 8 | P19: 0.04678362573 | Q19: -0.2066831586 | T19: 2211 | U19: =COUNTIF(L7:L35,T19) -> 1 | V19: =U19/(W4-U20) -> 0.03571428571 | W19: -0.1716912472 | Y19: 2211 | Z19: =COUNTIF(L36:L63,Y19) -> 4 | AA19: =Z19/(AB4-Z20) -> 0.1428571429 | AB19: -0.4010507032 | AD19: 2211 | AE19: =COUNTIF(L64:L92,AD19) -> 0 | AF19: =AE19/(AG4-AE20) -> 0 | AG19: 0 | AI19: 2211 | AJ19: =COUNTIF(L93:L120,AI19) -> 0 | AK19: =AJ19/(AL4-AJ20) -> 0 | AL19: 0 | AN19: 2211 | AO19: =COUNTIF(L121:L149,AN19) -> 2 | AP19: =AO19/(AQ4-AO20) -> 0.06896551724 | AQ19: -0.2660676548 | AS19: 2211 | AT19: =COUNTIF(L150:L177,AS19) -> 1 | AU19: =AT19/(AV4-AT20) -> 0.03571428571 | AV19: -0.1716912472
A20: 21 | B20: 1869 | C20: 21 | D20: 1890 | E20: 22 | F20: 1895 | G20: 23 | H20: 1901 | K20: 0 | L20: 2222 | N20: 2212 | O20: 1 | P20: 0.005847953216 | Q20: -0.04337925447 | T20: 2212 | U20: =COUNTIF(L7:L35,T20) -> 1 | Y20: 2212 | Z20: =COUNTIF(L36:L63,Y20) -> 0 | AD20: 2212 | AE20: =COUNTIF(L64:L92,AD20) -> 0 | AI20: 2212 | AJ20: =COUNTIF(L93:L120,AI20) -> 0 | AN20: 2212 | AO20: =COUNTIF(L121:L149,AN20) -> 0 | AS20: 2212 | AT20: =COUNTIF(L150:L177,AS20) -> 0
A21: 21 | B21: 1999 | C21: 21 | D21: 2018 | E21: 11 | F21: 2027 | G21: 12 | H21: 2038 | K21: 0 | L21: 2211 | N21: 2221 | O21: 6 | P21: 0.0350877193 | Q21: -0.1695750882 | T21: 2221 | U21: =COUNTIF(L7:L35,T21) -> 1 | V21: =U21/(W4-U20) -> 0.03571428571 | W21: =IF(V21=0,0,(V21*((LOG(V21))/LOG(2)))) -> -0.1716912472 | Y21: 2221 | Z21: =COUNTIF(L36:L63,Y21) -> 2 | AA21: =Z21/(AB4-Z20) -> 0.07142857143 | AB21: =IF(AA21=0,0,(AA21*((LOG(AA21))/LOG(2)))) -> -0.271953923 | AD21: 2221 | AE21: =COUNTIF(L64:L92,AD21) -> 3 | AF21: =AE21/(AG4-AE20) -> 0.1034482759 | AG21: =IF(AF21=0,0,(AF21*((LOG(AF21))/LOG(2)))) -> -0.3385881201 | AI21: 2221 | AJ21: =COUNTIF(L93:L120,AI21) -> 0 | AK21: =AJ21/(AL4-AJ20) -> 0 | AL21: =IF(AK21=0,0,(AK21*((LOG(AK21))/LOG(2)))) -> 0 | AN21: 2221 | AO21: =COUNTIF(L121:L149,AN21) -> 0 | AP21: =AO21/(AQ4-AO20) -> 0 | AQ21: =IF(AP21=0,0,(AP21*((LOG(AP21))/LOG(2)))) -> 0 | AS21: 2221 | AT21: =COUNTIF(L150:L177,AS21) -> 0 | AU21: =AT21/(AV4-AT20) -> 0 | AV21: =IF(AU21=0,0,(AU21*((LOG(AU21))/LOG(2)))) -> 0
A22: 21 | B22: 2140 | C22: 21 | D22: 2143 | E22: 22 | F22: 2150 | G22: 14 | H22: 2166 | K22: 0 | L22: 2221 | N22: 2222 | O22: 9 | P22: 0.05263157895 | Q22: -0.2235751323 | T22: 2222 | U22: =COUNTIF(L7:L35,T22) -> 6 | V22: =U22/(W4-U20) -> 0.2142857143 | W22: =IF(V22=0,0,(V22*((LOG(V22))/LOG(2)))) -> -0.4762269474 | Y22: 2222 | Z22: =COUNTIF(L36:L63,Y22) -> 2 | AA22: =Z22/(AB4-Z20) -> 0.07142857143 | AB22: =IF(AA22=0,0,(AA22*((LOG(AA22))/LOG(2)))) -> -0.271953923 | AD22: 2222 | AE22: =COUNTIF(L64:L92,AD22) -> 1 | AF22: =AE22/(AG4-AE20) -> 0.03448275862 | AG22: =IF(AF22=0,0,(AF22*((LOG(AF22))/LOG(2)))) -> -0.167516586 | AI22: 2222 | AJ22: =COUNTIF(L93:L120,AI22) -> 0 | AK22: =AJ22/(AL4-AJ20) -> 0 | AL22: =IF(AK22=0,0,(AK22*((LOG(AK22))/LOG(2)))) -> 0 | AN22: 2222 | AO22: =COUNTIF(L121:L149,AN22) -> 0 | AP22: =AO22/(AQ4-AO20) -> 0 | AQ22: =IF(AP22=0,0,(AP22*((LOG(AP22))/LOG(2)))) -> 0 | AS22: 2222 | AT22: =COUNTIF(L150:L177,AS22) -> 0 | AU22: =AT22/(AV4-AT20) -> 0 | AV22: =IF(AU22=0,0,(AU22*((LOG(AU22))/LOG(2)))) -> 0
A23: 12 | B23: 2264 | C23: 14 | D23: 2267 | E23: 13 | F23: 2273 | G23: 14 | H23: 2284 | K23: 0 | L23: 1111 | P23: =SUM(P7:P22) -> 1 | Q23: =-SUM(Q7:Q22) -> 2.230561963 | V23: =SUM(V7:V22) -> 1 | W23: =-SUM(W7:W22) -> 2.551595656 | AA23: =SUM(AA7:AA22) -> 1 | AB23: =-SUM(AB7:AB22) -> 2.734529921 | AF23: =SUM(AF7:AF22) -> 1 | AG23: =-SUM(AG7:AG22) -> 1.635032366 | AK23: =SUM(AK7:AK22) -> 1 | AL23: =-SUM(AL7:AL22) -> 1.335237745 | AP23: =SUM(AP7:AP22) -> 1 | AQ23: =-SUM(AQ7:AQ22) -> 1.24203675 | AU23: =SUM(AU7:AU22) -> 1 | AV23: =-SUM(AV7:AV22) -> 1.468538197
A24: 21 | B24: 2398 | C24: 12 | D24: 2411 | E24: 13 | F24: 2417 | G24: 14 | H24: 2426 | K24: 0 | L24: 2111 | P24: U= | Q24: =Q23/(LOG(Q4)/LOG(2)) -> 0.3007018485 | V24: U1= | W24: =W23/(LOG(W4)/LOG(2)) -> 0.5252378834 | AA24: U2= | AB24: =AB23/(LOG(AB4)/LOG(2)) -> 0.5688221414 | AF24: U3= | AG24: =AG23/(LOG(AG4)/LOG(2)) -> 0.3365662334 | AK24: U4= | AL24: =AL23/(LOG(AL4)/LOG(2)) -> 0.2777489424 | AP24: U5= | AQ24: =AQ23/(LOG(AQ4)/LOG(2)) -> 0.2556693308 | AU24: U6= | AV24: =AV23/(LOG(AV4)/LOG(2)) -> 0.3054773822
A25: 21 | B25: 2635 | C25: 21 | D25: 2653 | E25: 22 | F25: 2658 | G25: 23 | H25: 2668 | K25: 0 | L25: 2222
A26: 21 | B26: 2766 | C26: 21 | D26: 2790 | E26: 22 | F26: 2797 | G26: 23 | H26: 2802 | K26: 0 | L26: 2222
A27: 21 | B27: 2916 | C27: 21 | D27: 2921 | E27: 22 | F27: 2928 | G27: 23 | H27: 2934 | K27: 0 | L27: 2222 | N27: Total Target Seq
A28: 12 | B28: 3038 | C28: 23 | D28: 3049 | E28: 24 | F28: 3053 | G28: 23 | H28: 3060 | K28: 0 | L28: 1222 | N28: =COUNTIF(L7:L177,G3) -> 1 | P28: 29 | Q28: 28 | R28: 29 | S28: 28 | T28: 29 | U28: 28
A29: 21 | B29: 3152 | C29: 21 | D29: 3159 | E29: 11 | F29: 3190 | G29: 21 | H29: 3204 | K29: 0 | L29: 2212 | P29: % of reinforcement given in 6 equal intervals based on number of trials
A30: 21 | B30: 3339 | C30: 12 | D30: 3351 | E30: 13 | F30: 3354 | G30: 14 | H30: 3359 | K30: 0 | L30: 2111 | P30: %_1 | Q30: %_2 | R30: %_3 | S30: %_4 | T30: %_5 | U30: %_6
A31: 12 | B31: 3457 | C31: 14 | D31: 3465 | E31: 13 | F31: 3470 | G31: 14 | H31: 3476 | K31: 0 | L31: 1111 | O31: target sequence | P31: =$G$3 -> 2212 | Q31: 2212 | R31: 2212 | S31: 2212 | T31: 2212 | U31: 2212
A32: 12 | B32: 3570 | C32: 14 | D32: 3577 | E32: 13 | F32: 3586 | G32: 14 | H32: 3592 | K32: 0 | L32: 1111 | O32: total reinforcement | P32: =U20 -> 1 | Q32: =Z20 -> 0 | R32: =AE20 -> 0 | S32: =AJ20 -> 0 | T32: =AO20 -> 0 | U32: =AT20 -> 0
A33: 12 | B33: 3703 | C33: 14 | D33: 3708 | E33: 13 | F33: 3713 | G33: 14 | H33: 3718 | K33: 0 | L33: 1111 | O33: % target
A34: 21 | B34: 3819 | C34: 12 | D34: 3832 | E34: 24 | F34: 3845 | G34: 23 | H34: 3849 | K34: 0 | L34: 2122 | O34: CCRF
A35: 12 | B35: 3957 | C35: 14 | D35: 3966 | E35: 13 | F35: 3978 | G35: 14 | H35: 3985 | K35: 0 | L35: 1111 | O35: % CCRf
A36: 21 | B36: 4113 | C36: 12 | D36: 4126 | E36: 13 | F36: 4134 | G36: 14 | H36: 4144 | K36: 0 | L36: 2111 | O36: average response rate | P36: =H35/P28 -> 137.4137931 | Q36: =(H63-H35)/Q28 -> 138.1428571 | R36: =(H92-H63)/R28 -> 149.5172414 | S36: =(H120-H92)/S28 -> 138.1071429 | T36: =(H149-H120)/T28 -> 139.4482759 | U36: =(H177-H149)/U28 -> 138.7857143
A37: 21 | B37: 4254 | C37: 12 | D37: 4264 | E37: 24 | F37: 4276 | G37: 23 | H37: 4280 | K37: 0 | L37: 2122
A38: 12 | B38: 4373 | C38: 23 | D38: 4385 | E38: 24 | F38: 4389 | G38: 23 | H38: 4395 | K38: 0 | L38: 1222
A39: 12 | B39: 4512 | C39: 14 | D39: 4518 | E39: 13 | F39: 4522 | G39: 14 | H39: 4528 | K39: 0 | L39: 1111
A40: 21 | B40: 4630 | C40: 12 | D40: 4645 | E40: 13 | F40: 4651 | G40: 14 | H40: 4655 | K40: 0 | L40: 2111
A41: 21 | B41: 4776 | C41: 21 | D41: 4783 | E41: 11 | F41: 4799 | G41: 12 | H41: 4807 | K41: 0 | L41: 2211
A42: 12 | B42: 4903 | C42: 14 | D42: 4909 | E42: 13 | F42: 4914 | G42: 14 | H42: 4920 | K42: 0 | L42: 1111
A43: 21 | B43: 5029 | C43: 12 | D43: 5045 | E43: 13 | F43: 5056 | G43: 14 | H43: 5062 | K43: 0 | L43: 2111
A44: 21 | B44: 5184 | C44: 12 | D44: 5197 | E44: 13 | F44: 5201 | G44: 14 | H44: 5208 | K44: 0 | L44: 2111
A45: 21 | B45: 5319 | C45: 12 | D45: 5334 | E45: 24 | F45: 5342 | G45: 14 | H45: 5361 | K45: 0 | L45: 2121
A46: 21 | B46: 5460 | C46: 21 | D46: 5463 | E46: 22 | F46: 5479 | G46: 14 | H46: 5490 | K46: 0 | L46: 2221
A47: 21 | B47: 5592 | C47: 12 | D47: 5607 | E47: 13 | F47: 5613 | G47: 14 | H47: 5626 | K47: 0 | L47: 2111
A48: 12 | B48: 5730 | C48: 14 | D48: 5742 | E48: 13 | F48: 5745 | G48: 14 | H48: 5750 | K48: 0 | L48: 1111
A49: 12 | B49: 5850 | C49: 14 | D49: 5856 | E49: 13 | F49: 5861 | G49: 14 | H49: 5868 | K49: 0 | L49: 1111
A50: 21 | B50: 5960 | C50: 21 | D50: 5985 | E50: 11 | F50: 5996 | G50: 12 | H50: 6001 | K50: 0 | L50: 2211
A51: 21 | B51: 6113 | C51: 12 | D51: 6129 | E51: 13 | F51: 6135 | G51: 14 | H51: 6140 | K51: 0 | L51: 2111
A52: 21 | B52: 6239 | C52: 21 | D52: 6258 | E52: 22 | F52: 6264 | G52: 14 | H52: 6283 | K52: 0 | L52: 2221
A53: 12 | B53: 6394 | C53: 23 | D53: 6405 | E53: 24 | F53: 6411 | G53: 23 | H53: 6417 | K53: 0 | L53: 1222
A54: 21 | B54: 6515 | C54: 21 | D54: 6533 | E54: 11 | F54: 6554 | G54: 12 | H54: 6559 | K54: 0 | L54: 2211
A55: 21 | B55: 6709 | C55: 12 | D55: 6723 | E55: 13 | F55: 6729 | G55: 14 | H55: 6735 | K55: 0 | L55: 2111
A56: 21 | B56: 6870 | C56: 21 | D56: 6874 | E56: 22 | F56: 6880 | G56: 23 | H56: 6886 | K56: 0 | L56: 2222
A57: 21 | B57: 6981 | C57: 21 | D57: 6994 | E57: 22 | F57: 6996 | G57: 23 | H57: 7014 | K57: 0 | L57: 2222
A58: 12 | B58: 7114 | C58: 14 | D58: 7116 | E58: 24 | F58: 7136 | G58: 23 | H58: 7142 | K58: 0 | L58: 1122
A59: 21 | B59: 7240 | C59: 21 | D59: 7247 | E59: 11 | F59: 7279 | G59: 12 | H59: 7283 | K59: 0 | L59: 2211
A60: 21 | B60: 7389 | C60: 12 | D60: 7401 | E60: 13 | F60: 7406 | G60: 14 | H60: 7417 | K60: 0 | L60: 2111
A61: 12 | B61: 7518 | C61: 14 | D61: 7524 | E61: 13 | F61: 7528 | G61: 14 | H61: 7535 | K61: 0 | L61: 1111
A62: 12 | B62: 7677 | C62: 14 | D62: 7683 | E62: 13 | F62: 7694 | G62: 14 | H62: 7700 | K62: 0 | L62: 1111
A63: 21 | B63: 7796 | C63: 12 | D63: 7842 | E63: 13 | F63: 7847 | G63: 14 | H63: 7853 | K63: 0 | L63: 2111
A64: 12 | B64: 7958 | C64: 14 | D64: 7979 | E64: 13 | F64: 7985 | G64: 14 | H64: 7991 | K64: 0 | L64: 1111
A65: 21 | B65: 8106 | C65: 12 | D65: 8123 | E65: 13 | F65: 8128 | G65: 14 | H65: 8133 | K65: 0 | L65: 2111
A66: 21 | B66: 8242 | C66: 12 | D66: 8254 | E66: 13 | F66: 8261 | G66: 14 | H66: 8272 | K66: 0 | L66: 2111
A67: 12 | B67: 8364 | C67: 14 | D67: 8371 | E67: 13 | F67: 8385 | G67: 14 | H67: 8387 | K67: 0 | L67: 1111
A68: 21 | B68: 8502 | C68: 21 | D68: 8518 | E68: 22 | F68: 8522 | G68: 14 | H68: 8539 | K68: 0 | L68: 2221
A69: 12 | B69: 8666 | C69: 14 | D69: 8669 | E69: 13 | F69: 8671 | G69: 14 | H69: 8677 | K69: 0 | L69: 1111
A70: 21 | B70: 8776 | C70: 21 | D70: 8781 | E70: 22 | F70: 8795 | G70: 14 | H70: 8810 | K70: 0 | L70: 2221
A71: 21 | B71: 8912 | C71: 12 | D71: 8929 | E71: 24 | F71: 8938 | G71: 23 | H71: 8943 | K71: 0 | L71: 2122
A72: 12 | B72: 9043 | C72: 14 | D72: 9049 | E72: 13 | F72: 9059 | G72: 14 | H72: 9065 | K72: 0 | L72: 1111
A73: 12 | B73: 9250 | C73: 14 | D73: 9259 | E73: 13 | F73: 9264 | G73: 14 | H73: 9270 | K73: 0 | L73: 1111
A74: 21 | B74: 9371 | C74: 21 | D74: 9375 | E74: 22 | F74: 9381 | G74: 23 | H74: 9388 | K74: 0 | L74: 2222
A75: 12 | B75: 9487 | C75: 14 | D75: 9495 | E75: 13 | F75: 9500 | G75: 14 | H75: 9506 | K75: 0 | L75: 1111
A76: 21 | B76: 9606 | C76: 21 | D76: 9609 | E76: 22 | F76: 9616 | G76: 14 | H76: 9627 | K76: 0 | L76: 2221
A77: 12 | B77: 9729 | C77: 14 | D77: 9735 | E77: 13 | F77: 9741 | G77: 14 | H77: 9752 | K77: 0 | L77: 1111
A78: 21 | B78: 9925 | C78: 12 | D78: 9937 | E78: 13 | F78: 9943 | G78: 14 | H78: 9951 | K78: 0 | L78: 2111
A79: 12 | B79: 10174 | C79: 14 | D79: 10183 | E79: 13 | F79: 10204 | G79: 14 | H79: 10214 | K79: 0 | L79: 1111
A80: 12 | B80: 10372 | C80: 14 | D80: 10392 | E80: 13 | F80: 10397 | G80: 14 | H80: 10403 | K80: 0 | L80: 1111
A81: 12 | B81: 10504 | C81: 14 | D81: 10513 | E81: 13 | F81: 10515 | G81: 14 | H81: 10520 | K81: 0 | L81: 1111
A82: 12 | B82: 10678 | C82: 14 | D82: 10685 | E82: 13 | F82: 10691 | G82: 14 | H82: 10697 | K82: 0 | L82: 1111
A83: 12 | B83: 10812 | C83: 23 | D83: 10826 | E83: 24 | F83: 10830 | G83: 23 | H83: 10836 | K83: 0 | L83: 1222
A84: 12 | B84: 10956 | C84: 14 | D84: 10960 | E84: 13 | F84: 10965 | G84: 14 | H84: 10971 | K84: 0 | L84: 1111
A85: 12 | B85: 11098 | C85: 14 | D85: 11104 | E85: 13 | F85: 11121 | G85: 14 | H85: 11127 | K85: 0 | L85: 1111
A86: 12 | B86: 11295 | C86: 14 | D86: 11300 | E86: 13 | F86: 11308 | G86: 14 | H86: 11314 | K86: 0 | L86: 1111
A87: 21 | B87: 11414 | C87: 12 | D87: 11445 | E87: 13 | F87: 11451 | G87: 14 | H87: 11455 | K87: 0 | L87: 2111
A88: 12 | B88: 11611 | C88: 14 | D88: 11617 | E88: 13 | F88: 11622 | G88: 14 | H88: 11628 | K88: 0 | L88: 1111
A89: 12 | B89: 11769 | C89: 14 | D89: 11772 | E89: 13 | F89: 11781 | G89: 14 | H89: 11787 | K89: 0 | L89: 1111
A90: 12 | B90: 11894 | C90: 14 | D90: 11901 | E90: 13 | F90: 11907 | G90: 14 | H90: 11912 | K90: 0 | L90: 1111
A91: 12 | B91: 12019 | C91: 14 | D91: 12021 | E91: 13 | F91: 12026 | G91: 14 | H91: 12039 | K91: 0 | L91: 1111
A92: 12 | B92: 12161 | C92: 14 | D92: 12175 | E92: 13 | F92: 12181 | G92: 14 | H92: 12189 | K92: 0 | L92: 1111
A93: 21 | B93: 12286 | C93: 12 | D93: 12319 | E93: 13 | F93: 12322 | G93: 14 | H93: 12333 | K93: 0 | L93: 2111
A94: 21 | B94: 12446 | C94: 12 | D94: 12462 | E94: 13 | F94: 12472 | G94: 14 | H94: 12479 | K94: 0 | L94: 2111
A95: 12 | B95: 12617 | C95: 14 | D95: 12633 | E95: 13 | F95: 12640 | G95: 14 | H95: 12646 | K95: 0 | L95: 1111
A96: 12 | B96: 12749 | C96: 14 | D96: 12758 | E96: 13 | F96: 12762 | G96: 14 | H96: 12779 | K96: 0 | L96: 1111
A97: 21 | B97: 12886 | C97: 12 | D97: 12901 | E97: 13 | F97: 12906 | G97: 14 | H97: 12912 | K97: 0 | L97: 2111
A98: 21 | B98: 13018 | C98: 12 | D98: 13033 | E98: 13 | F98: 13036 | G98: 14 | H98: 13041 | K98: 0 | L98: 2111
A99: 12 | B99: 13174 | C99: 14 | D99: 13181 | E99: 13 | F99: 13187 | G99: 14 | H99: 13194 | K99: 0 | L99: 1111
A100: 12 | B100: 13289 | C100: 14 | D100: 13297 | E100: 13 | F100: 13305 | G100: 14 | H100: 13309 | K100: 0 | L100: 1111
A101: 21 | B101: 13429 | C101: 12 | D101: 13442 | E101: 13 | F101: 13447 | G101: 14 | H101: 13452 | K101: 0 | L101: 2111
A102: 12 | B102: 13552 | C102: 14 | D102: 13557 | E102: 13 | F102: 13564 | G102: 14 | H102: 13570 | K102: 0 | L102: 1111
A103: 12 | B103: 13666 | C103: 23 | D103: 13682 | E103: 13 | F103: 13694 | G103: 14 | H103: 13700 | K103: 0 | L103: 1211
A104: 21 | B104: 13793 | C104: 12 | D104: 13825 | E104: 13 | F104: 13829 | G104: 14 | H104: 13835 | K104: 0 | L104: 2111
A105: 12 | B105: 13994 | C105: 14 | D105: 14001 | E105: 13 | F105: 14007 | G105: 14 | H105: 14014 | K105: 0 | L105: 1111
A106: 21 | B106: 14110 | C106: 12 | D106: 14124 | E106: 13 | F106: 14127 | G106: 14 | H106: 14132 | K106: 0 | L106: 2111
A107: 12 | B107: 14247 | C107: 14 | D107: 14264 | E107: 13 | F107: 14269 | G107: 14 | H107: 14275 | K107: 0 | L107: 1111
A108: 12 | B108: 14405 | C108: 14 | D108: 14411 | E108: 13 | F108: 14417 | G108: 14 | H108: 14423 | K108: 0 | L108: 1111
A109: 12 | B109: 14551 | C109: 14 | D109: 14555 | E109: 13 | F109: 14561 | G109: 14 | H109: 14564 | K109: 0 | L109: 1111
A110: 12 | B110: 14659 | C110: 14 | D110: 14662 | E110: 24 | F110: 14673 | G110: 23 | H110: 14677 | K110: 0 | L110: 1122
A111: 21 | B111: 14778 | C111: 12 | D111: 14794 | E111: 13 | F111: 14799 | G111: 14 | H111: 14805 | K111: 0 | L111: 2111
A112: 12 | B112: 14905 | C112: 14 | D112: 14913 | E112: 13 | F112: 14918 | G112: 14 | H112: 14926 | K112: 0 | L112: 1111
A113: 21 | B113: 15033 | C113: 12 | D113: 15047 | E113: 13 | F113: 15052 | G113: 14 | H113: 15058 | K113: 0 | L113: 2111
A114: 12 | B114: 15153 | C114: 14 | D114: 15161 | E114: 13 | F114: 15166 | G114: 14 | H114: 15171 | K114: 0 | L114: 1111
A115: 21 | B115: 15311 | C115: 12 | D115: 15325 | E115: 13 | F115: 15330 | G115: 14 | H115: 15335 | K115: 0 | L115: 2111
A116: 12 | B116: 15496 | C116: 14 | D116: 15501 | E116: 13 | F116: 15507 | G116: 14 | H116: 15513 | K116: 0 | L116: 1111
A117: 12 | B117: 15607 | C117: 14 | D117: 15613 | E117: 13 | F117: 15619 | G117: 14 | H117: 15629 | K117: 0 | L117: 1111
A118: 12 | B118: 15763 | C118: 14 | D118: 15767 | E118: 13 | F118: 15773 | G118: 14 | H118: 15779 | K118: 0 | L118: 1111
A119: 12 | B119: 15886 | C119: 14 | D119: 15891 | E119: 13 | F119: 15902 | G119: 14 | H119: 15905 | K119: 0 | L119: 1111
A120: 12 | B120: 16031 | C120: 14 | D120: 16038 | E120: 13 | F120: 16050 | G120: 14 | H120: 16056 | K120: 0 | L120: 1111
A121: 12 | B121: 16161 | C121: 14 | D121: 16167 | E121: 13 | F121: 16172 | G121: 14 | H121: 16178 | K121: 0 | L121: 1111
A122: 12 | B122: 16284 | C122: 23 | D122: 16297 | E122: 24 | F122: 16303 | G122: 14 | H122: 16318 | K122: 0 | L122: 1221
A123: 12 | B123: 16413 | C123: 14 | D123: 16417 | E123: 13 | F123: 16422 | G123: 14 | H123: 16428 | K123: 0 | L123: 1111
A124: 12 | B124: 16526 | C124: 14 | D124: 16531 | E124: 13 | F124: 16537 | G124: 14 | H124: 16541 | K124: 0 | L124: 1111
A125: 12 | B125: 16641 | C125: 14 | D125: 16644 | E125: 13 | F125: 16653 | G125: 14 | H125: 16662 | K125: 0 | L125: 1111
A126: 12 | B126: 16821 | C126: 14 | D126: 16828 | E126: 13 | F126: 16838 | G126: 14 | H126: 16844 | K126: 0 | L126: 1111
A127: 12 | B127: 16944 | C127: 14 | D127: 16949 | E127: 13 | F127: 16955 | G127: 14 | H127: 16969 | K127: 0 | L127: 1111
A128: 12 | B128: 17075 | C128: 23 | D128: 17086 | E128: 13 | F128: 17097 | G128: 14 | H128: 17102 | K128: 0 | L128: 1211
A129: 21 | B129: 17204 | C129: 21 | D129: 17225 | E129: 11 | F129: 17241 | G129: 12 | H129: 17247 | K129: 0 | L129: 2211
A130: 12 | B130: 17343 | C130: 14 | D130: 17352 | E130: 13 | F130: 17363 | G130: 14 | H130: 17370 | K130: 0 | L130: 1111
A131: 12 | B131: 17521 | C131: 14 | D131: 17531 | E131: 13 | F131: 17537 | G131: 14 | H131: 17543 | K131: 0 | L131: 1111
A132: 21 | B132: 17640 | C132: 12 | D132: 17652 | E132: 13 | F132: 17662 | G132: 14 | H132: 17668 | K132: 0 | L132: 2111
A133: 12 | B133: 17840 | C133: 14 | D133: 17843 | E133: 13 | F133: 17852 | G133: 14 | H133: 17860 | K133: 0 | L133: 1111
A134: 12 | B134: 18023 | C134: 14 | D134: 18030 | E134: 13 | F134: 18035 | G134: 14 | H134: 18041 | K134: 0 | L134: 1111
A135: 12 | B135: 18149 | C135: 14 | D135: 18154 | E135: 13 | F135: 18161 | G135: 14 | H135: 18171 | K135: 0 | L135: 1111
A136: 12 | B136: 18278 | C136: 14 | D136: 18287 | E136: 13 | F136: 18293 | G136: 14 | H136: 18296 | K136: 0 | L136: 1111
A137: 12 | B137: 18393 | C137: 14 | D137: 18399 | E137: 13 | F137: 18405 | G137: 14 | H137: 18416 | K137: 0 | L137: 1111
A138: 12 | B138: 18595 | C138: 14 | D138: 18597 | E138: 13 | F138: 18609 | G138: 14 | H138: 18615 | K138: 0 | L138: 1111
A139: 12 | B139: 18718 | C139: 14 | D139: 18724 | E139: 13 | F139: 18731 | G139: 14 | H139: 18736 | K139: 0 | L139: 1111
A140: 21 | B140: 18831 | C140: 21 | D140: 18843 | E140: 11 | F140: 18861 | G140: 12 | H140: 18867 | K140: 0 | L140: 2211
A141: 12 | B141: 18981 | C141: 14 | D141: 18984 | E141: 13 | F141: 18990 | G141: 14 | H141: 18996 | K141: 0 | L141: 1111
A142: 21 | B142: 19116 | C142: 12 | D142: 19128 | E142: 13 | F142: 19132 | G142: 14 | H142: 19141 | K142: 0 | L142: 2111
A143: 12 | B143: 19306 | C143: 14 | D143: 19314 | E143: 13 | F143: 19320 | G143: 14 | H143: 19327 | K143: 0 | L143: 1111
A144: 12 | B144: 19424 | C144: 14 | D144: 19433 | E144: 13 | F144: 19441 | G144: 14 | H144: 19448 | K144: 0 | L144: 1111
A145: 12 | B145: 19560 | C145: 14 | D145: 19564 | E145: 13 | F145: 19570 | G145: 14 | H145: 19576 | K145: 0 | L145: 1111
A146: 12 | B146: 19676 | C146: 14 | D146: 19681 | E146: 13 | F146: 19694 | G146: 14 | H146: 19701 | K146: 0 | L146: 1111
A147: 21 | B147: 19797 | C147: 12 | D147: 19808 | E147: 13 | F147: 19816 | G147: 14 | H147: 19819 | K147: 0 | L147: 2111
A148: 12 | B148: 19953 | C148: 14 | D148: 19958 | E148: 13 | F148: 19964 | G148: 14 | H148: 19970 | K148: 0 | L148: 1111
A149: 12 | B149: 20079 | C149: 14 | D149: 20087 | E149: 13 | F149: 20092 | G149: 14 | H149: 20100 | K149: 0 | L149: 1111
A150: 12 | B150: 20195 | C150: 23 | D150: 20207 | E150: 13 | F150: 20221 | G150: 14 | H150: 20225 | K150: 0 | L150: 1211
A151: 12 | B151: 20360 | C151: 14 | D151: 20366 | E151: 13 | F151: 20372 | G151: 14 | H151: 20378 | K151: 0 | L151: 1111
A152: 21 | B152: 20480 | C152: 12 | D152: 20496 | E152: 13 | F152: 20508 | G152: 14 | H152: 20515 | K152: 0 | L152: 2111
A153: 12 | B153: 20617 | C153: 14 | D153: 20623 | E153: 13 | F153: 20628 | G153: 14 | H153: 20634 | K153: 0 | L153: 1111
A154: 12 | B154: 20728 | C154: 14 | D154: 20737 | E154: 13 | F154: 20743 | G154: 14 | H154: 20749 | K154: 0 | L154: 1111
A155: 12 | B155: 20847 | C155: 14 | D155: 20853 | E155: 13 | F155: 20859 | G155: 14 | H155: 20863 | K155: 0 | L155: 1111
A156: 12 | B156: 20962 | C156: 14 | D156: 20971 | E156: 13 | F156: 20977 | G156: 14 | H156: 20981 | K156: 0 | L156: 1111
A157: 12 | B157: 21097 | C157: 14 | D157: 21102 | E157: 13 | F157: 21107 | G157: 14 | H157: 21113 | K157: 0 | L157: 1111
A158: 21 | B158: 21205 | C158: 12 | D158: 21225 | E158: 13 | F158: 21241 | G158: 14 | H158: 21246 | K158: 0 | L158: 2111
A159: 12 | B159: 21391 | C159: 14 | D159: 21407 | E159: 13 | F159: 21413 | G159: 14 | H159: 21419 | K159: 0 | L159: 1111
A160: 12 | B160: 21525 | C160: 14 | D160: 21534 | E160: 13 | F160: 21537 | G160: 14 | H160: 21543 | K160: 0 | L160: 1111
A161: 21 | B161: 21660 | C161: 12 | D161: 21676 | E161: 13 | F161: 21681 | G161: 14 | H161: 21686 | K161: 0 | L161: 2111
A162: 21 | B162: 21793 | C162: 12 | D162: 21813 | E162: 13 | F162: 21819 | G162: 14 | H162: 21823 | K162: 0 | L162: 2111
A163: 12 | B163: 21935 | C163: 14 | D163: 21943 | E163: 13 | F163: 21948 | G163: 14 | H163: 21964 | K163: 0 | L163: 1111
A164: 21 | B164: 22059 | C164: 12 | D164: 22069 | E164: 24 | F164: 22085 | G164: 23 | H164: 22090 | K164: 0 | L164: 2122
A165: 21 | B165: 22205 | C165: 12 | D165: 22224 | E165: 13 | F165: 22228 | G165: 14 | H165: 22234 | K165: 0 | L165: 2111
A166: 21 | B166: 22418 | C166: 12 | D166: 22430 | E166: 13 | F166: 22437 | G166: 14 | H166: 22440 | K166: 0 | L166: 2111
A167: 12 | B167: 22562 | C167: 14 | D167: 22579 | E167: 13 | F167: 22587 | G167: 14 | H167: 22592 | K167: 0 | L167: 1111
A168: 12 | B168: 22726 | C168: 14 | D168: 22731 | E168: 13 | F168: 22737 | G168: 14 | H168: 22739 | K168: 0 | L168: 1111
A169: 12 | B169: 22839 | C169: 14 | D169: 22845 | E169: 13 | F169: 22852 | G169: 14 | H169: 22864 | K169: 0 | L169: 1111
A170: 12 | B170: 22967 | C170: 14 | D170: 22973 | E170: 13 | F170: 22978 | G170: 14 | H170: 22984 | K170: 0 | L170: 1111
A171: 12 | B171: 23109 | C171: 14 | D171: 23113 | E171: 13 | F171: 23119 | G171: 14 | H171: 23124 | K171: 0 | L171: 1111
A172: 21 | B172: 23226 | C172: 12 | D172: 23240 | E172: 13 | F172: 23248 | G172: 14 | H172: 23254 | K172: 0 | L172: 2111
A173: 12 | B173: 23361 | C173: 14 | D173: 23374 | E173: 13 | F173: 23380 | G173: 14 | H173: 23386 | K173: 0 | L173: 1111
A174: 12 | B174: 23560 | C174: 14 | D174: 23572 | E174: 13 | F174: 23578 | G174: 14 | H174: 23583 | K174: 0 | L174: 1111
A175: 21 | B175: 23695 | C175: 12 | D175: 23710 | E175: 13 | F175: 23717 | G175: 14 | H175: 23722 | K175: 0 | L175: 2111
A176: 12 | B176: 23820 | C176: 14 | D176: 23832 | E176: 13 | F176: 23837 | G176: 14 | H176: 23843 | K176: 0 | L176: 1111
A177: 21 | B177: 23941 | C177: 21 | D177: 23962 | E177: 11 | F177: 23981 | G177: 12 | H177: 23986 | L177: 2211

Sheet !LB12A05..Du
A1: Report for:!LB12A05..Du
A2: Date: | B2: <date>
A3: Hen: | B3: <hen> | F3: Correct Sequence | G3: =Start!J2 -> 2212 | P3: Total Sequences in Data | Q3: =4994-COUNTBLANK(L7:L5000) -> 17 | V3: Total Sequences in Block Data | W3: =COUNTA(L7:L9) -> 3 | AA3: Total Sequences in Block Data | AB3: =COUNTA(L10:L12) -> 3 | AF3: Total Sequences in Block Data | AG3: =COUNTA(L13:L14) -> 2 | AK3: Total Sequences in Block Data | AL3: =COUNTA(L15:L17) -> 3 | AP3: Total Sequences in Block Data | AQ3: =COUNTA(L18:L20) -> 3 | AU3: Total Sequences in Block Data | AV3: =COUNTA(L21:L23) -> 3
P4: Total Sequences in Summary | Q4: =SUM(O7:O22) -> 17 | V4: Total Sequences in Block Summary | W4: =SUM(U7:U22) -> 3 | AA4: Total Sequences in Block Summary | AB4: =SUM(Z7:Z22) -> 3 | AF4: Total Sequences in Block Summary | AG4: =SUM(AE7:AE22) -> 2 | AK4: Total Sequences in Block Summary | AL4: =SUM(AJ7:AJ22) -> 3 | AP4: Total Sequences in Block Summary | AQ4: =SUM(AO7:AO22) -> 3 | AU4: Total Sequences in Block Summary | AV4: =SUM(AT7:AT22) -> 3
T5: Block 1 | Y5: Block 2 | AD5: Block 3 | AI5: Block 4 | AN5: Block 5 | AS5: Block 6
A6: Sequence Component 1 | B6: Time 1 | C6: Sequence Component 2 | D6: Time 2 | E6: Sequence Component 3 | F6: Time 3 | G6: Sequence Component 4 | H6: Time 4 | I6: Sequence Component 5 | J6: Time 5 | K6: Correct? 0=No 1=Yes | L6: Sequence | N6: Frequency | P6: Relative Frequency | Q6: Variability | T6: Frequency | V6: Relative Frequency | W6: Variability | Y6: Frequency | AA6: Relative Frequency | AB6: Variability | AD6: Frequency | AF6: Relative Frequency | AG6: Variability | AI6: Frequency | AK6: Relative Frequency | AL6: Variability | AN6: Frequency | AP6: Relative Frequency | AQ6: Variability | AS6: Frequency | AU6: Relative Frequency | AV6: Variability
A7: 12 | B7: 25 | C7: 23 | D7: 36 | E7: 24 | F7: 42 | G7: 23 | H7: 51 | K7: 0 | L7: 1222 | N7: 1111 | O7: =COUNTIF($L$7:$L$500,N7) -> 9 | P7: =O7/$Q$4 -> 0.5294117647 | Q7: =IF(P7=0,0,(P7*((LOG(P7))/LOG(2)))) -> -0.485755327 | T7: =N7 -> 1111 | U7: =COUNTIF(L7:L9,T7) -> 1 | V7: =U7/(W4-U20) -> 0.3333333333 | W7: =IF(V7=0,0,(V7*((LOG(V7))/LOG(2)))) -> -0.5283208336 | Y7: =N7 -> 1111 | Z7: =COUNTIF(L10:L12,Y7) -> 2 | AA7: =Z7/(AB4-Z20) -> 0.6666666667 | AB7: =IF(AA7=0,0,(AA7*((LOG(AA7))/LOG(2)))) -> -0.3899750005 | AD7: =N7 -> 1111 | AE7: =COUNTIF(L13:L14,AD7) -> 1 | AF7: =AE7/(AG4-AE20) -> 0.5 | AG7: =IF(AF7=0,0,(AF7*((LOG(AF7))/LOG(2)))) -> -0.5 | AI7: =N7 -> 1111 | AJ7: =COUNTIF(L15:L17,AI7) -> 2 | AK7: =AJ7/(AL4-AJ20) -> 0.6666666667 | AL7: =IF(AK7=0,0,(AK7*((LOG(AK7))/LOG(2)))) -> -0.3899750005 | AN7: =N7 -> 1111 | AO7: =COUNTIF(L18:L20,AN7) -> 2 | AP7: =AO7/(AQ4-AO20) -> 0.6666666667 | AQ7: =IF(AP7=0,0,(AP7*((LOG(AP7))/LOG(2)))) -> -0.3899750005 | AS7: =N7 -> 1111 | AT7: =COUNTIF(L21:L23,AS7) -> 1 | AU7: =AT7/(AV4-AT20) -> 0.3333333333 | AV7: =IF(AU7=0,0,(AU7*((LOG(AU7))/LOG(2)))) -> -0.5283208336
A8: 12 | B8: 149 | C8: 14 | D8: 157 | E8: 13 | F8: 162 | G8: 14 | H8: 165 | K8: 0 | L8: 1111 | N8: 1112 | O8: 0 | P8: 0 | Q8: 0 | T8: 1112 | U8: =COUNTIF(L7:L9,T8) -> 0 | V8: =U8/(W4-U20) -> 0 | W8: 0 | Y8: 1112 | Z8: =COUNTIF(L10:L12,Y8) -> 0 | AA8: =Z8/(AB4-Z20) -> 0 | AB8: 0 | AD8: 1112 | AE8: =COUNTIF(L13:L14,AD8) -> 0 | AF8: =AE8/(AG4-AE20) -> 0 | AG8: 0 | AI8: 1112 | AJ8: =COUNTIF(L15:L17,AI8) -> 0 | AK8: =AJ8/(AL4-AJ20) -> 0 | AL8: 0 | AN8: 1112 | AO8: =COUNTIF(L18:L20,AN8) -> 0 | AP8: =AO8/(AQ4-AO20) -> 0 | AQ8: 0 | AS8: 1112 | AT8: =COUNTIF(L21:L23,AS8) -> 0 | AU8: =AT8/(AV4-AT20) -> 0 | AV8: 0
A9: 21 | B9: 265 | C9: 12 | D9: 282 | E9: 13 | F9: 287 | G9: 14 | H9: 292 | K9: 0 | L9: 2111 | N9: 1121 | O9: 0 | P9: 0 | Q9: 0 | T9: 1121 | U9: =COUNTIF(L7:L9,T9) -> 0 | V9: =U9/(W4-U20) -> 0 | W9: 0 | Y9: 1121 | Z9: =COUNTIF(L10:L12,Y9) -> 0 | AA9: =Z9/(AB4-Z20) -> 0 | AB9: 0 | AD9: 1121 | AE9: =COUNTIF(L13:L14,AD9) -> 0 | AF9: =AE9/(AG4-AE20) -> 0 | AG9: 0 | AI9: 1121 | AJ9: =COUNTIF(L15:L17,AI9) -> 0 | AK9: =AJ9/(AL4-AJ20) -> 0 | AL9: 0 | AN9: 1121 | AO9: =COUNTIF(L18:L20,AN9) -> 0 | AP9: =AO9/(AQ4-AO20) -> 0 | AQ9: 0 | AS9: 1121 | AT9: =COUNTIF(L21:L23,AS9) -> 0 | AU9: =AT9/(AV4-AT20) -> 0 | AV9: 0
A10: 12 | B10: 392 | C10: 14 | D10: 401 | E10: 13 | F10: 406 | G10: 14 | H10: 412 | K10: 0 | L10: 1111 | N10: 1122 | O10: 0 | P10: 0 | Q10: 0 | T10: 1122 | U10: =COUNTIF(L7:L9,T10) -> 0 | V10: =U10/(W4-U20) -> 0 | W10: 0 | Y10: 1122 | Z10: =COUNTIF(L10:L12,Y10) -> 0 | AA10: =Z10/(AB4-Z20) -> 0 | AB10: 0 | AD10: 1122 | AE10: =COUNTIF(L13:L14,AD10) -> 0 | AF10: =AE10/(AG4-AE20) -> 0 | AG10: 0 | AI10: 1122 | AJ10: =COUNTIF(L15:L17,AI10) -> 0 | AK10: =AJ10/(AL4-AJ20) -> 0 | AL10: 0 | AN10: 1122 | AO10: =COUNTIF(L18:L20,AN10) -> 0 | AP10: =AO10/(AQ4-AO20) -> 0 | AQ10: 0 | AS10: 1122 | AT10: =COUNTIF(L21:L23,AS10) -> 0 | AU10: =AT10/(AV4-AT20) -> 0 | AV10: 0
A11: 21 | B11: 518 | C11: 12 | D11: 530 | E11: 24 | F11: 542 | G11: 14 | H11: 555 | K11: 0 | L11: 2121 | N11: 1211 | O11: 1 | P11: 0.05882352941 | Q11: -0.2404389907 | T11: 1211 | U11: =COUNTIF(L7:L9,T11) -> 0 | V11: =U11/(W4-U20) -> 0 | W11: 0 | Y11: 1211 | Z11: =COUNTIF(L10:L12,Y11) -> 0 | AA11: =Z11/(AB4-Z20) -> 0 | AB11: 0 | AD11: 1211 | AE11: =COUNTIF(L13:L14,AD11) -> 0 | AF11: =AE11/(AG4-AE20) -> 0 | AG11: 0 | AI11: 1211 | AJ11: =COUNTIF(L15:L17,AI11) -> 1 | AK11: =AJ11/(AL4-AJ20) -> 0.3333333333 | AL11: -0.5283208336 | AN11: 1211 | AO11: =COUNTIF(L18:L20,AN11) -> 0 | AP11: =AO11/(AQ4-AO20) -> 0 | AQ11: 0 | AS11: 1211 | AT11: =COUNTIF(L21:L23,AS11) -> 0 | AU11: =AT11/(AV4-AT20) -> 0 | AV11: 0
A12: 12 | B12: 720 | C12: 14 | D12: 725 | E12: 13 | F12: 731 | G12: 14 | H12: 736 | K12: 0 | L12: 1111 | N12: 1212 | O12: 0 | P12: 0 | Q12: 0 | T12: 1212 | U12: =COUNTIF(L7:L9,T12) -> 0 | V12: =U12/(W4-U20) -> 0 | W12: 0 | Y12: 1212 | Z12: =COUNTIF(L10:L12,Y12) -> 0 | AA12: =Z12/(AB4-Z20) -> 0 | AB12: 0 | AD12: 1212 | AE12: =COUNTIF(L13:L14,AD12) -> 0 | AF12: =AE12/(AG4-AE20) -> 0 | AG12: 0 | AI12: 1212 | AJ12: =COUNTIF(L15:L17,AI12) -> 0 | AK12: =AJ12/(AL4-AJ20) -> 0 | AL12: 0 | AN12: 1212 | AO12: =COUNTIF(L18:L20,AN12) -> 0 | AP12: =AO12/(AQ4-AO20) -> 0 | AQ12: 0 | AS12: 1212 | AT12: =COUNTIF(L21:L23,AS12) -> 0 | AU12: =AT12/(AV4-AT20) -> 0 | AV12: 0
A13: 12 | B13: 830 | C13: 14 | D13: 837 | E13: 13 | F13: 842 | G13: 14 | H13: 847 | K13: 0 | L13: 1111 | N13: 1221 | O13: 1 | P13: 0.05882352941 | Q13: -0.2404389907 | T13: 1221 | U13: =COUNTIF(L7:L9,T13) -> 0 | V13: =U13/(W4-U20) -> 0 | W13: 0 | Y13: 1221 | Z13: =COUNTIF(L10:L12,Y13) -> 0 | AA13: =Z13/(AB4-Z20) -> 0 | AB13: 0 | AD13: 1221 | AE13: =COUNTIF(L13:L14,AD13) -> 1 | AF13: =AE13/(AG4-AE20) -> 0.5 | AG13: -0.5 | AI13: 1221 | AJ13: =COUNTIF(L15:L17,AI13) -> 0 | AK13: =AJ13/(AL4-AJ20) -> 0 | AL13: 0 | AN13: 1221 | AO13: =COUNTIF(L18:L20,AN13) -> 0 | AP13: =AO13/(AQ4-AO20) -> 0 | AQ13: 0 | AS13: 1221 | AT13: =COUNTIF(L21:L23,AS13) -> 0 | AU13: =AT13/(AV4-AT20) -> 0 | AV13: 0
A14: 12 | B14: 947 | C14: 23 | D14: 958 | E14: 24 | F14: 960 | G14: 14 | H14: 973 | K14: 0 | L14: 1221 | N14: 1222 | O14: 1 | P14: 0.05882352941 | Q14: -0.2404389907 | T14: 1222 | U14: =COUNTIF(L7:L9,T14) -> 1 | V14: =U14/(W4-U20) -> 0.3333333333 | W14: -0.5283208336 | Y14: 1222 | Z14: =COUNTIF(L10:L12,Y14) -> 0 | AA14: =Z14/(AB4-Z20) -> 0 | AB14: 0 | AD14: 1222 | AE14: =COUNTIF(L13:L14,AD14) -> 0 | AF14: =AE14/(AG4-AE20) -> 0 | AG14: 0 | AI14: 1222 | AJ14: =COUNTIF(L15:L17,AI14) -> 0 | AK14: =AJ14/(AL4-AJ20) -> 0 | AL14: 0 | AN14: 1222 | AO14: =COUNTIF(L18:L20,AN14) -> 0 | AP14: =AO14/(AQ4-AO20) -> 0 | AQ14: 0 | AS14: 1222 | AT14: =COUNTIF(L21:L23,AS14) -> 0 | AU14: =AT14/(AV4-AT20) -> 0 | AV14: 0
A15: 12 | B15: 1077 | C15: 14 | D15: 1086 | E15: 13 | F15: 1092 | G15: 14 | H15: 1097 | K15: 0 | L15: 1111 | N15: 2111 | O15: 4 | P15: 0.2352941176 | Q15: -0.4911677274 | T15: 2111 | U15: =COUNTIF(L7:L9,T15) -> 1 | V15: =U15/(W4-U20) -> 0.3333333333 | W15: -0.5283208336 | Y15: 2111 | Z15: =COUNTIF(L10:L12,Y15) -> 0 | AA15: =Z15/(AB4-Z20) -> 0 | AB15: 0 | AD15: 2111 | AE15: =COUNTIF(L13:L14,AD15) -> 0 | AF15: =AE15/(AG4-AE20) -> 0 | AG15: 0 | AI15: 2111 | AJ15: =COUNTIF(L15:L17,AI15) -> 0 | AK15: =AJ15/(AL4-AJ20) -> 0 | AL15: 0 | AN15: 2111 | AO15: =COUNTIF(L18:L20,AN15) -> 1 | AP15: =AO15/(AQ4-AO20) -> 0.3333333333 | AQ15: -0.5283208336 | AS15: 2111 | AT15: =COUNTIF(L21:L23,AS15) -> 2 | AU15: =AT15/(AV4-AT20) -> 0.6666666667 | AV15: -0.3899750005
A16: 12 | B16: 1205 | C16: 14 | D16: 1216 | E16: 13 | F16: 1222 | G16: 14 | H16: 1228 | K16: 0 | L16: 1111 | N16: 2112 | O16: 0 | P16: 0 | Q16: 0 | T16: 2112 | U16: =COUNTIF(L7:L9,T16) -> 0 | V16: =U16/(W4-U20) -> 0 | W16: 0 | Y16: 2112 | Z16: =COUNTIF(L10:L12,Y16) -> 0 | AA16: =Z16/(AB4-Z20) -> 0 | AB16: 0 | AD16: 2112 | AE16: =COUNTIF(L13:L14,AD16) -> 0 | AF16: =AE16/(AG4-AE20) -> 0 | AG16: 0 | AI16: 2112 | AJ16: =COUNTIF(L15:L17,AI16) -> 0 | AK16: =AJ16/(AL4-AJ20) -> 0 | AL16: 0 | AN16: 2112 | AO16: =COUNTIF(L18:L20,AN16) -> 0 | AP16: =AO16/(AQ4-AO20) -> 0 | AQ16: 0 | AS16: 2112 | AT16: =COUNTIF(L21:L23,AS16) -> 0 | AU16: =AT16/(AV4-AT20) -> 0 | AV16: 0
A17: 12 | B17: 1336 | C17: 23 | D17: 1342 | E17: 13 | F17: 1357 | G17: 14 | H17: 1362 | K17: 0 | L17: 1211 | N17: 2121 | O17: 1 | P17: 0.05882352941 | Q17: -0.2404389907 | T17: 2121 | U17: =COUNTIF(L7:L9,T17) -> 0 | V17: =U17/(W4-U20) -> 0 | W17: 0 | Y17: 2121 | Z17: =COUNTIF(L10:L12,Y17) -> 1 | AA17: =Z17/(AB4-Z20) -> 0.3333333333 | AB17: -0.5283208336 | AD17: 2121 | AE17: =COUNTIF(L13:L14,AD17) -> 0 | AF17: =AE17/(AG4-AE20) -> 0 | AG17: 0 | AI17: 2121 | AJ17: =COUNTIF(L15:L17,AI17) -> 0 | AK17: =AJ17/(AL4-AJ20) -> 0 | AL17: 0 | AN17: 2121 | AO17: =COUNTIF(L18:L20,AN17) -> 0 | AP17: =AO17/(AQ4-AO20) -> 0 | AQ17: 0 | AS17: 2121 | AT17: =COUNTIF(L21:L23,AS17) -> 0 | AU17: =AT17/(AV4-AT20) -> 0 | AV17: 0
A18: 12 | B18: 1455 | C18: 14 | D18: 1462 | E18: 13 | F18: 1468 | G18: 14 | H18: 1474 | K18: 0 | L18: 1111 | N18: 2122 | O18: 0 | P18: 0 | Q18: 0 | T18: 2122 | U18: =COUNTIF(L7:L9,T18) -> 0 | V18: =U18/(W4-U20) -> 0 | W18: 0 | Y18: 2122 | Z18: =COUNTIF(L10:L12,Y18) -> 0 | AA18: =Z18/(AB4-Z20) -> 0 | AB18: 0 | AD18: 2122 | AE18: =COUNTIF(L13:L14,AD18) -> 0 | AF18: =AE18/(AG4-AE20) -> 0 | AG18: 0 | AI18: 2122 | AJ18: =COUNTIF(L15:L17,AI18) -> 0 | AK18: =AJ18/(AL4-AJ20) -> 0 | AL18: 0 | AN18: 2122 | AO18: =COUNTIF(L18:L20,AN18) -> 0 | AP18: =AO18/(AQ4-AO20) -> 0 | AQ18: 0 | AS18: 2122 | AT18: =COUNTIF(L21:L23,AS18) -> 0 | AU18: =AT18/(AV4-AT20) -> 0 | AV18: 0
A19: 21 | B19: 1573 | C19: 12 | D19: 1587 | E19: 13 | F19: 1592 | G19: 14 | H19: 1597 | K19: 0 | L19: 2111 | N19: 2211 | O19: 0 | P19: 0 | Q19: 0 | T19: 2211 | U19: =COUNTIF(L7:L9,T19) -> 0 | V19: =U19/(W4-U20) -> 0 | W19: 0 | Y19: 2211 | Z19: =COUNTIF(L10:L12,Y19) -> 0 | AA19: =Z19/(AB4-Z20) -> 0 | AB19: 0 | AD19: 2211 | AE19: =COUNTIF(L13:L14,AD19) -> 0 | AF19: =AE19/(AG4-AE20) -> 0 | AG19: 0 | AI19: 2211 | AJ19: =COUNTIF(L15:L17,AI19) -> 0 | AK19: =AJ19/(AL4-AJ20) -> 0 | AL19: 0 | AN19: 2211 | AO19: =COUNTIF(L18:L20,AN19) -> 0 | AP19: =AO19/(AQ4-AO20) -> 0 | AQ19: 0 | AS19: 2211 | AT19: =COUNTIF(L21:L23,AS19) -> 0 | AU19: =AT19/(AV4-AT20) -> 0 | AV19: 0
A20: 12 | B20: 1754 | C20: 14 | D20: 1766 | E20: 13 | F20: 1772 | G20: 14 | H20: 1779 | K20: 0 | L20: 1111 | N20: 2212 | O20: 0 | P20: 0 | Q20: 0 | T20: 2212 | U20: =COUNTIF(L7:L9,T20) -> 0 | Y20: 2212 | Z20: =COUNTIF(L10:L12,Y20) -> 0 | AD20: 2212 | AE20: =COUNTIF(L13:L14,AD20) -> 0 | AI20: 2212 | AJ20: =COUNTIF(L15:L17,AI20) -> 0 | AN20: 2212 | AO20: =COUNTIF(L18:L20,AN20) -> 0 | AS20: 2212 | AT20: =COUNTIF(L21:L23,AS20) -> 0
A21: 21 | B21: 1889 | C21: 12 | D21: 1904 | E21: 13 | F21: 1911 | G21: 14 | H21: 1916 | K21: 0 | L21: 2111 | N21: 2221 | O21: 0 | P21: 0 | Q21: 0 | T21: 2221 | U21: =COUNTIF(L7:L9,T21) -> 0 | V21: =U21/(W4-U20) -> 0 | W21: =IF(V21=0,0,(V21*((LOG(V21))/LOG(2)))) -> 0 | Y21: 2221 | Z21: =COUNTIF(L10:L12,Y21) -> 0 | AA21: =Z21/(AB4-Z20) -> 0 | AB21: =IF(AA21=0,0,(AA21*((LOG(AA21))/LOG(2)))) -> 0 | AD21: 2221 | AE21: =COUNTIF(L13:L14,AD21) -> 0 | AF21: =AE21/(AG4-AE20) -> 0 | AG21: =IF(AF21=0,0,(AF21*((LOG(AF21))/LOG(2)))) -> 0 | AI21: 2221 | AJ21: =COUNTIF(L15:L17,AI21) -> 0 | AK21: =AJ21/(AL4-AJ20) -> 0 | AL21: =IF(AK21=0,0,(AK21*((LOG(AK21))/LOG(2)))) -> 0 | AN21: 2221 | AO21: =COUNTIF(L18:L20,AN21) -> 0 | AP21: =AO21/(AQ4-AO20) -> 0 | AQ21: =IF(AP21=0,0,(AP21*((LOG(AP21))/LOG(2)))) -> 0 | AS21: 2221 | AT21: =COUNTIF(L21:L23,AS21) -> 0 | AU21: =AT21/(AV4-AT20) -> 0 | AV21: =IF(AU21=0,0,(AU21*((LOG(AU21))/LOG(2)))) -> 0
A22: 12 | B22: 2015 | C22: 14 | D22: 2023 | E22: 13 | F22: 2029 | G22: 14 | H22: 2036 | K22: 0 | L22: 1111 | N22: 2222 | O22: 0 | P22: 0 | Q22: 0 | T22: 2222 | U22: =COUNTIF(L7:L9,T22) -> 0 | V22: =U22/(W4-U20) -> 0 | W22: =IF(V22=0,0,(V22*((LOG(V22))/LOG(2)))) -> 0 | Y22: 2222 | Z22: =COUNTIF(L10:L12,Y22) -> 0 | AA22: =Z22/(AB4-Z20) -> 0 | AB22: =IF(AA22=0,0,(AA22*((LOG(AA22))/LOG(2)))) -> 0 | AD22: 2222 | AE22: =COUNTIF(L13:L14,AD22) -> 0 | AF22: =AE22/(AG4-AE20) -> 0 | AG22: =IF(AF22=0,0,(AF22*((LOG(AF22))/LOG(2)))) -> 0 | AI22: 2222 | AJ22: =COUNTIF(L15:L17,AI22) -> 0 | AK22: =AJ22/(AL4-AJ20) -> 0 | AL22: =IF(AK22=0,0,(AK22*((LOG(AK22))/LOG(2)))) -> 0 | AN22: 2222 | AO22: =COUNTIF(L18:L20,AN22) -> 0 | AP22: =AO22/(AQ4-AO20) -> 0 | AQ22: =IF(AP22=0,0,(AP22*((LOG(AP22))/LOG(2)))) -> 0 | AS22: 2222 | AT22: =COUNTIF(L21:L23,AS22) -> 0 | AU22: =AT22/(AV4-AT20) -> 0 | AV22: =IF(AU22=0,0,(AU22*((LOG(AU22))/LOG(2)))) -> 0
A23: 21 | B23: 2141 | C23: 12 | D23: 2152 | E23: 13 | F23: 2157 | G23: 14 | H23: 2162 | K23: 0 | L23: 2111 | P23: =SUM(P7:P22) -> 1 | Q23: =-SUM(Q7:Q22) -> 1.938679017 | V23: =SUM(V7:V22) -> 1 | W23: =-SUM(W7:W22) -> 1.584962501 | AA23: =SUM(AA7:AA22) -> 1 | AB23: =-SUM(AB7:AB22) -> 0.9182958341 | AF23: =SUM(AF7:AF22) -> 1 | AG23: =-SUM(AG7:AG22) -> 1 | AK23: =SUM(AK7:AK22) -> 1 | AL23: =-SUM(AL7:AL22) -> 0.9182958341 | AP23: =SUM(AP7:AP22) -> 1 | AQ23: =-SUM(AQ7:AQ22) -> 0.9182958341 | AU23: =SUM(AU7:AU22) -> 1 | AV23: =-SUM(AV7:AV22) -> 0.9182958341
P24: U= | Q24: =Q23/(LOG(Q4)/LOG(2)) -> 0.4742988725 | V24: U1= | W24: =W23/(LOG(W4)/LOG(2)) -> 1 | AA24: U2= | AB24: =AB23/(LOG(AB4)/LOG(2)) -> 0.5793801643 | AF24: U3= | AG24: =AG23/(LOG(AG4)/LOG(2)) -> 1 | AK24: U4= | AL24: =AL23/(LOG(AL4)/LOG(2)) -> 0.5793801643 | AP24: U5= | AQ24: =AQ23/(LOG(AQ4)/LOG(2)) -> 0.5793801643 | AU24: U6= | AV24: =AV23/(LOG(AV4)/LOG(2)) -> 0.5793801643
N27: Total Target Seq
N28: =COUNTIF(L7:L23,G3) -> 0 | P28: 3 | Q28: 3 | R28: 2 | S28: 3 | T28: 3 | U28: 3
P29: % of reinforcement given in 6 equal intervals based on number of trials
P30: %_1 | Q30: %_2 | R30: %_3 | S30: %_4 | T30: %_5 | U30: %_6
O31: target sequence | P31: =$G$3 -> 2212 | Q31: 2212 | R31: 2212 | S31: 2212 | T31: 2212 | U31: 2212
O32: total reinforcement | P32: =U20 -> 0 | Q32: =Z20 -> 0 | R32: =AE20 -> 0 | S32: =AJ20 -> 0 | T32: =AO20 -> 0 | U32: =AT20 -> 0
O33: % target
O34: CCRF
O35: % CCRf
O36: average response rate | P36: =H9/P28 -> 97.33333333 | Q36: =(H12-H9)/Q28 -> 148 | R36: =(H14-H12)/R28 -> 118.5 | S36: =(H17-H14)/S28 -> 129.6666667 | T36: =(H20-H17)/T28 -> 139 | U36: =(H23-H20)/U28 -> 127.6666667

Sheet !LB12A15..Du
A1: Report for:!LB12A15..Du
A2: Date: | B2: <date>
A3: Hen: | B3: <hen> | F3: Correct Sequence | G3: =Start!J2 -> 2212 | P3: Total Sequences in Data | Q3: =4994-COUNTBLANK(L7:L5000) -> 176 | V3: Total Sequences in Block Data | W3: =COUNTA(L7:L35) -> 29 | AA3: Total Sequences in Block Data | AB3: =COUNTA(L36:L65) -> 30 | AF3: Total Sequences in Block Data | AG3: =COUNTA(L66:L94) -> 29 | AK3: Total Sequences in Block Data | AL3: =COUNTA(L95:L123) -> 29 | AP3: Total Sequences in Block Data | AQ3: =COUNTA(L124:L153) -> 30 | AU3: Total Sequences in Block Data | AV3: =COUNTA(L154:L182) -> 29
P4: Total Sequences in Summary | Q4: =SUM(O7:O22) -> 175 | V4: Total Sequences in Block Summary | W4: =SUM(U7:U22) -> 29 | AA4: Total Sequences in Block Summary | AB4: =SUM(Z7:Z22) -> 30 | AF4: Total Sequences in Block Summary | AG4: =SUM(AE7:AE22) -> 29 | AK4: Total Sequences in Block Summary | AL4: =SUM(AJ7:AJ22) -> 29 | AP4: Total Sequences in Block Summary | AQ4: =SUM(AO7:AO22) -> 30 | AU4: Total Sequences in Block Summary | AV4: =SUM(AT7:AT22) -> 28
T5: Block 1 | Y5: Block 2 | AD5: Block 3 | AI5: Block 4 | AN5: Block 5 | AS5: Block 6
A6: Sequence Component 1 | B6: Time 1 | C6: Sequence Component 2 | D6: Time 2 | E6: Sequence Component 3 | F6: Time 3 | G6: Sequence Component 4 | H6: Time 4 | I6: Sequence Component 5 | J6: Time 5 | K6: Correct? 0=No 1=Yes | L6: Sequence | N6: Frequency | P6: Relative Frequency | Q6: Variability | T6: Frequency | V6: Relative Frequency | W6: Variability | Y6: Frequency | AA6: Relative Frequency | AB6: Variability | AD6: Frequency | AF6: Relative Frequency | AG6: Variability | AI6: Frequency | AK6: Relative Frequency | AL6: Variability | AN6: Frequency | AP6: Relative Frequency | AQ6: Variability | AS6: Frequency | AU6: Relative Frequency | AV6: Variability
A7: 12 | B7: 34 | C7: 14 | D7: 39 | E7: 13 | F7: 45 | G7: 14 | H7: 51 | K7: 0 | L7: 1111 | N7: 1111 | O7: =COUNTIF($L$7:$L$500,N7) -> 127 | P7: =O7/$Q$4 -> 0.7257142857 | Q7: =IF(P7=0,0,(P7*((LOG(P7))/LOG(2)))) -> -0.3356620342 | T7: =N7 -> 1111 | U7: =COUNTIF(L7:L35,T7) -> 21 | V7: =U7/(W4-U20) -> 0.724137931 | W7: =IF(V7=0,0,(V7*((LOG(V7))/LOG(2)))) -> -0.3372046558 | Y7: =N7 -> 1111 | Z7: =COUNTIF(L36:L65,Y7) -> 23 | AA7: =Z7/(AB4-Z20) -> 0.7666666667 | AB7: =IF(AA7=0,0,(AA7*((LOG(AA7))/LOG(2)))) -> -0.2938852903 | AD7: =N7 -> 1111 | AE7: =COUNTIF(L66:L94,AD7) -> 18 | AF7: =AE7/(AG4-AE20) -> 0.6206896552 | AG7: =IF(AF7=0,0,(AF7*((LOG(AF7))/LOG(2)))) -> -0.4270692375 | AI7: =N7 -> 1111 | AJ7: =COUNTIF(L95:L123,AI7) -> 19 | AK7: =AJ7/(AL4-AJ20) -> 0.6551724138 | AL7: =IF(AK7=0,0,(AK7*((LOG(AK7))/LOG(2)))) -> -0.3996902121 | AN7: =N7 -> 1111 | AO7: =COUNTIF(L124:L153,AN7) -> 20 | AP7: =AO7/(AQ4-AO20) -> 0.6666666667 | AQ7: =IF(AP7=0,0,(AP7*((LOG(AP7))/LOG(2)))) -> -0.3899750005 | AS7: =N7 -> 1111 | AT7: =COUNTIF(L154:L182,AS7) -> 26 | AU7: =AT7/(AV4-AT20) -> 0.9285714286 | AV7: =IF(AU7=0,0,(AU7*((LOG(AU7))/LOG(2)))) -> -0.09927840364
A8: 12 | B8: 158 | C8: 14 | D8: 163 | E8: 13 | F8: 169 | G8: 14 | H8: 176 | K8: 0 | L8: 1111 | N8: 1112 | O8: 0 | P8: 0 | Q8: 0 | T8: 1112 | U8: =COUNTIF(L7:L35,T8) -> 0 | V8: =U8/(W4-U20) -> 0 | W8: 0 | Y8: 1112 | Z8: =COUNTIF(L36:L65,Y8) -> 0 | AA8: =Z8/(AB4-Z20) -> 0 | AB8: 0 | AD8: 1112 | AE8: =COUNTIF(L66:L94,AD8) -> 0 | AF8: =AE8/(AG4-AE20) -> 0 | AG8: 0 | AI8: 1112 | AJ8: =COUNTIF(L95:L123,AI8) -> 0 | AK8: =AJ8/(AL4-AJ20) -> 0 | AL8: 0 | AN8: 1112 | AO8: =COUNTIF(L124:L153,AN8) -> 0 | AP8: =AO8/(AQ4-AO20) -> 0 | AQ8: 0 | AS8: 1112 | AT8: =COUNTIF(L154:L182,AS8) -> 0 | AU8: =AT8/(AV4-AT20) -> 0 | AV8: 0
A9: 21 | B9: 278 | C9: 12 | D9: 288 | E9: 13 | F9: 295 | G9: 14 | H9: 300 | K9: 0 | L9: 2111 | N9: 1121 | O9: 1 | P9: 0.005714285714 | Q9: -0.04257834921 | T9: 1121 | U9: =COUNTIF(L7:L35,T9) -> 0 | V9: =U9/(W4-U20) -> 0 | W9: 0 | Y9: 1121 | Z9: =COUNTIF(L36:L65,Y9) -> 0 | AA9: =Z9/(AB4-Z20) -> 0 | AB9: 0 | AD9: 1121 | AE9: =COUNTIF(L66:L94,AD9) -> 0 | AF9: =AE9/(AG4-AE20) -> 0 | AG9: 0 | AI9: 1121 | AJ9: =COUNTIF(L95:L123,AI9) -> 0 | AK9: =AJ9/(AL4-AJ20) -> 0 | AL9: 0 | AN9: 1121 | AO9: =COUNTIF(L124:L153,AN9) -> 1 | AP9: =AO9/(AQ4-AO20) -> 0.03333333333 | AQ9: -0.1635630199 | AS9: 1121 | AT9: =COUNTIF(L154:L182,AS9) -> 0 | AU9: =AT9/(AV4-AT20) -> 0 | AV9: 0
A10: 12 | B10: 401 | C10: 14 | D10: 406 | E10: 13 | F10: 414 | G10: 14 | H10: 420 | K10: 0 | L10: 1111 | N10: 1122 | O10: 2 | P10: 0.01142857143 | Q10: -0.07372812699 | T10: 1122 | U10: =COUNTIF(L7:L35,T10) -> 1 | V10: =U10/(W4-U20) -> 0.03448275862 | W10: -0.167516586 | Y10: 1122 | Z10: =COUNTIF(L36:L65,Y10) -> 0 | AA10: =Z10/(AB4-Z20) -> 0 | AB10: 0 | AD10: 1122 | AE10: =COUNTIF(L66:L94,AD10) -> 0 | AF10: =AE10/(AG4-AE20) -> 0 | AG10: 0 | AI10: 1122 | AJ10: =COUNTIF(L95:L123,AI10) -> 1 | AK10: =AJ10/(AL4-AJ20) -> 0.03448275862 | AL10: -0.167516586 | AN10: 1122 | AO10: =COUNTIF(L124:L153,AN10) -> 0 | AP10: =AO10/(AQ4-AO20) -> 0 | AQ10: 0 | AS10: 1122 | AT10: =COUNTIF(L154:L182,AS10) -> 0 | AU10: =AT10/(AV4-AT20) -> 0 | AV10: 0
A11: 21 | B11: 518 | C11: 12 | D11: 530 | E11: 13 | F11: 533 | G11: 14 | H11: 539 | K11: 0 | L11: 2111 | N11: 1211 | O11: 6 | P11: 0.03428571429 | Q11: -0.1668428095 | T11: 1211 | U11: =COUNTIF(L7:L35,T11) -> 0 | V11: =U11/(W4-U20) -> 0 | W11: 0 | Y11: 1211 | Z11: =COUNTIF(L36:L65,Y11) -> 3 | AA11: =Z11/(AB4-Z20) -> 0.1 | AB11: -0.3321928095 | AD11: 1211 | AE11: =COUNTIF(L66:L94,AD11) -> 2 | AF11: =AE11/(AG4-AE20) -> 0.06896551724 | AG11: -0.2660676548 | AI11: 1211 | AJ11: =COUNTIF(L95:L123,AI11) -> 1 | AK11: =AJ11/(AL4-AJ20) -> 0.03448275862 | AL11: -0.167516586 | AN11: 1211 | AO11: =COUNTIF(L124:L153,AN11) -> 0 | AP11: =AO11/(AQ4-AO20) -> 0 | AQ11: 0 | AS11: 1211 | AT11: =COUNTIF(L154:L182,AS11) -> 0 | AU11: =AT11/(AV4-AT20) -> 0 | AV11: 0
A12: 12 | B12: 643 | C12: 14 | D12: 645 | E12: 13 | F12: 651 | G12: 14 | H12: 655 | K12: 0 | L12: 1111 | N12: 1212 | O12: 0 | P12: 0 | Q12: 0 | T12: 1212 | U12: =COUNTIF(L7:L35,T12) -> 0 | V12: =U12/(W4-U20) -> 0 | W12: 0 | Y12: 1212 | Z12: =COUNTIF(L36:L65,Y12) -> 0 | AA12: =Z12/(AB4-Z20) -> 0 | AB12: 0 | AD12: 1212 | AE12: =COUNTIF(L66:L94,AD12) -> 0 | AF12: =AE12/(AG4-AE20) -> 0 | AG12: 0 | AI12: 1212 | AJ12: =COUNTIF(L95:L123,AI12) -> 0 | AK12: =AJ12/(AL4-AJ20) -> 0 | AL12: 0 | AN12: 1212 | AO12: =COUNTIF(L124:L153,AN12) -> 0 | AP12: =AO12/(AQ4-AO20) -> 0 | AQ12: 0 | AS12: 1212 | AT12: =COUNTIF(L154:L182,AS12) -> 0 | AU12: =AT12/(AV4-AT20) -> 0 | AV12: 0
A13: 12 | B13: 755 | C13: 14 | D13: 760 | E13: 13 | F13: 765 | G13: 14 | H13: 772 | K13: 0 | L13: 1111 | N13: 1221 | O13: 1 | P13: 0.005714285714 | Q13: -0.04257834921 | T13: 1221 | U13: =COUNTIF(L7:L35,T13) -> 0 | V13: =U13/(W4-U20) -> 0 | W13: 0 | Y13: 1221 | Z13: =COUNTIF(L36:L65,Y13) -> 0 | AA13: =Z13/(AB4-Z20) -> 0 | AB13: 0 | AD13: 1221 | AE13: =COUNTIF(L66:L94,AD13) -> 0 | AF13: =AE13/(AG4-AE20) -> 0 | AG13: 0 | AI13: 1221 | AJ13: =COUNTIF(L95:L123,AI13) -> 0 | AK13: =AJ13/(AL4-AJ20) -> 0 | AL13: 0 | AN13: 1221 | AO13: =COUNTIF(L124:L153,AN13) -> 1 | AP13: =AO13/(AQ4-AO20) -> 0.03333333333 | AQ13: -0.1635630199 | AS13: 1221 | AT13: =COUNTIF(L154:L182,AS13) -> 0 | AU13: =AT13/(AV4-AT20) -> 0 | AV13: 0
A14: 12 | B14: 891 | C14: 14 | D14: 897 | E14: 13 | F14: 903 | G14: 14 | H14: 908 | K14: 0 | L14: 1111 | N14: 1222 | O14: 2 | P14: 0.01142857143 | Q14: -0.07372812699 | T14: 1222 | U14: =COUNTIF(L7:L35,T14) -> 0 | V14: =U14/(W4-U20) -> 0 | W14: 0 | Y14: 1222 | Z14: =COUNTIF(L36:L65,Y14) -> 2 | AA14: =Z14/(AB4-Z20) -> 0.06666666667 | AB14: -0.260459373 | AD14: 1222 | AE14: =COUNTIF(L66:L94,AD14) -> 0 | AF14: =AE14/(AG4-AE20) -> 0 | AG14: 0 | AI14: 1222 | AJ14: =COUNTIF(L95:L123,AI14) -> 0 | AK14: =AJ14/(AL4-AJ20) -> 0 | AL14: 0 | AN14: 1222 | AO14: =COUNTIF(L124:L153,AN14) -> 0 | AP14: =AO14/(AQ4-AO20) -> 0 | AQ14: 0 | AS14: 1222 | AT14: =COUNTIF(L154:L182,AS14) -> 0 | AU14: =AT14/(AV4-AT20) -> 0 | AV14: 0
A15: 12 | B15: 1005 | C15: 14 | D15: 1011 | E15: 13 | F15: 1015 | G15: 14 | H15: 1021 | K15: 0 | L15: 1111 | N15: 2111 | O15: 32 | P15: 0.1828571429 | Q15: -0.4482214604 | T15: 2111 | U15: =COUNTIF(L7:L35,T15) -> 6 | V15: =U15/(W4-U20) -> 0.2068965517 | W15: -0.4702796885 | Y15: 2111 | Z15: =COUNTIF(L36:L65,Y15) -> 2 | AA15: =Z15/(AB4-Z20) -> 0.06666666667 | AB15: -0.260459373 | AD15: 2111 | AE15: =COUNTIF(L66:L94,AD15) -> 6 | AF15: =AE15/(AG4-AE20) -> 0.2068965517 | AG15: -0.4702796885 | AI15: 2111 | AJ15: =COUNTIF(L95:L123,AI15) -> 8 | AK15: =AJ15/(AL4-AJ20) -> 0.275862069 | AL15: -0.5125464814 | AN15: 2111 | AO15: =COUNTIF(L124:L153,AN15) -> 8 | AP15: =AO15/(AQ4-AO20) -> 0.2666666667 | AQ15: -0.5085041588 | AS15: 2111 | AT15: =COUNTIF(L154:L182,AS15) -> 2 | AU15: =AT15/(AV4-AT20) -> 0.07142857143 | AV15: -0.271953923
A16: 21 | B16: 1129 | C16: 12 | D16: 1141 | E16: 13 | F16: 1145 | G16: 14 | H16: 1152 | K16: 0 | L16: 2111 | N16: 2112 | O16: 0 | P16: 0 | Q16: 0 | T16: 2112 | U16: =COUNTIF(L7:L35,T16) -> 0 | V16: =U16/(W4-U20) -> 0 | W16: 0 | Y16: 2112 | Z16: =COUNTIF(L36:L65,Y16) -> 0 | AA16: =Z16/(AB4-Z20) -> 0 | AB16: 0 | AD16: 2112 | AE16: =COUNTIF(L66:L94,AD16) -> 0 | AF16: =AE16/(AG4-AE20) -> 0 | AG16: 0 | AI16: 2112 | AJ16: =COUNTIF(L95:L123,AI16) -> 0 | AK16: =AJ16/(AL4-AJ20) -> 0 | AL16: 0 | AN16: 2112 | AO16: =COUNTIF(L124:L153,AN16) -> 0 | AP16: =AO16/(AQ4-AO20) -> 0 | AQ16: 0 | AS16: 2112 | AT16: =COUNTIF(L154:L182,AS16) -> 0 | AU16: =AT16/(AV4-AT20) -> 0 | AV16: 0
A17: 21 | B17: 1370 | C17: 12 | D17: 1388 | E17: 24 | F17: 1405 | G17: 23 | H17: 1410 | K17: 0 | L17: 2122 | N17: 2121 | O17: 0 | P17: 0 | Q17: 0 | T17: 2121 | U17: =COUNTIF(L7:L35,T17) -> 0 | V17: =U17/(W4-U20) -> 0 | W17: 0 | Y17: 2121 | Z17: =COUNTIF(L36:L65,Y17) -> 0 | AA17: =Z17/(AB4-Z20) -> 0 | AB17: 0 | AD17: 2121 | AE17: =COUNTIF(L66:L94,AD17) -> 0 | AF17: =AE17/(AG4-AE20) -> 0 | AG17: 0 | AI17: 2121 | AJ17: =COUNTIF(L95:L123,AI17) -> 0 | AK17: =AJ17/(AL4-AJ20) -> 0 | AL17: 0 | AN17: 2121 | AO17: =COUNTIF(L124:L153,AN17) -> 0 | AP17: =AO17/(AQ4-AO20) -> 0 | AQ17: 0 | AS17: 2121 | AT17: =COUNTIF(L154:L182,AS17) -> 0 | AU17: =AT17/(AV4-AT20) -> 0 | AV17: 0
A18: 12 | B18: 1504 | C18: 14 | D18: 1513 | E18: 13 | F18: 1519 | G18: 14 | H18: 1537 | K18: 0 | L18: 1111 | N18: 2122 | O18: 1 | P18: 0.005714285714 | Q18: -0.04257834921 | T18: 2122 | U18: =COUNTIF(L7:L35,T18) -> 1 | V18: =U18/(W4-U20) -> 0.03448275862 | W18: -0.167516586 | Y18: 2122 | Z18: =COUNTIF(L36:L65,Y18) -> 0 | AA18: =Z18/(AB4-Z20) -> 0 | AB18: 0 | AD18: 2122 | AE18: =COUNTIF(L66:L94,AD18) -> 0 | AF18: =AE18/(AG4-AE20) -> 0 | AG18: 0 | AI18: 2122 | AJ18: =COUNTIF(L95:L123,AI18) -> 0 | AK18: =AJ18/(AL4-AJ20) -> 0 | AL18: 0 | AN18: 2122 | AO18: =COUNTIF(L124:L153,AN18) -> 0 | AP18: =AO18/(AQ4-AO20) -> 0 | AQ18: 0 | AS18: 2122 | AT18: =COUNTIF(L154:L182,AS18) -> 0 | AU18: =AT18/(AV4-AT20) -> 0 | AV18: 0
A19: 12 | B19: 1634 | C19: 14 | D19: 1658 | E19: 13 | F19: 1664 | G19: 14 | H19: 1670 | K19: 0 | L19: 1111 | N19: 2211 | O19: 2 | P19: 0.01142857143 | Q19: -0.07372812699 | T19: 2211 | U19: =COUNTIF(L7:L35,T19) -> 0 | V19: =U19/(W4-U20) -> 0 | W19: 0 | Y19: 2211 | Z19: =COUNTIF(L36:L65,Y19) -> 0 | AA19: =Z19/(AB4-Z20) -> 0 | AB19: 0 | AD19: 2211 | AE19: =COUNTIF(L66:L94,AD19) -> 2 | AF19: =AE19/(AG4-AE20) -> 0.06896551724 | AG19: -0.2660676548 | AI19: 2211 | AJ19: =COUNTIF(L95:L123,AI19) -> 0 | AK19: =AJ19/(AL4-AJ20) -> 0 | AL19: 0 | AN19: 2211 | AO19: =COUNTIF(L124:L153,AN19) -> 0 | AP19: =AO19/(AQ4-AO20) -> 0 | AQ19: 0 | AS19: 2211 | AT19: =COUNTIF(L154:L182,AS19) -> 0 | AU19: =AT19/(AV4-AT20) -> 0 | AV19: 0
A20: 12 | B20: 1862 | C20: 14 | D20: 1873 | E20: 13 | F20: 1880 | G20: 14 | H20: 1886 | K20: 0 | L20: 1111 | N20: 2212 | O20: 0 | P20: 0 | Q20: 0 | T20: 2212 | U20: =COUNTIF(L7:L35,T20) -> 0 | Y20: 2212 | Z20: =COUNTIF(L36:L65,Y20) -> 0 | AD20: 2212 | AE20: =COUNTIF(L66:L94,AD20) -> 0 | AI20: 2212 | AJ20: =COUNTIF(L95:L123,AI20) -> 0 | AN20: 2212 | AO20: =COUNTIF(L124:L153,AN20) -> 0 | AS20: 2212 | AT20: =COUNTIF(L154:L182,AS20) -> 0
A21: 21 | B21: 1983 | C21: 12 | D21: 1994 | E21: 13 | F21: 1999 | G21: 14 | H21: 2006 | K21: 0 | L21: 2111 | N21: 2221 | O21: 1 | P21: 0.005714285714 | Q21: -0.04257834921 | T21: 2221 | U21: =COUNTIF(L7:L35,T21) -> 0 | V21: =U21/(W4-U20) -> 0 | W21: =IF(V21=0,0,(V21*((LOG(V21))/LOG(2)))) -> 0 | Y21: 2221 | Z21: =COUNTIF(L36:L65,Y21) -> 0 | AA21: =Z21/(AB4-Z20) -> 0 | AB21: =IF(AA21=0,0,(AA21*((LOG(AA21))/LOG(2)))) -> 0 | AD21: 2221 | AE21: =COUNTIF(L66:L94,AD21) -> 1 | AF21: =AE21/(AG4-AE20) -> 0.03448275862 | AG21: =IF(AF21=0,0,(AF21*((LOG(AF21))/LOG(2)))) -> -0.167516586 | AI21: 2221 | AJ21: =COUNTIF(L95:L123,AI21) -> 0 | AK21: =AJ21/(AL4-AJ20) -> 0 | AL21: =IF(AK21=0,0,(AK21*((LOG(AK21))/LOG(2)))) -> 0 | AN21: 2221 | AO21: =COUNTIF(L124:L153,AN21) -> 0 | AP21: =AO21/(AQ4-AO20) -> 0 | AQ21: =IF(AP21=0,0,(AP21*((LOG(AP21))/LOG(2)))) -> 0 | AS21: 2221 | AT21: =COUNTIF(L154:L182,AS21) -> 0 | AU21: =AT21/(AV4-AT20) -> 0 | AV21: =IF(AU21=0,0,(AU21*((LOG(AU21))/LOG(2)))) -> 0
A22: 12 | B22: 2112 | C22: 14 | D22: 2118 | E22: 13 | F22: 2124 | G22: 14 | H22: 2130 | K22: 0 | L22: 1111 | N22: 2222 | O22: 0 | P22: 0 | Q22: 0 | T22: 2222 | U22: =COUNTIF(L7:L35,T22) -> 0 | V22: =U22/(W4-U20) -> 0 | W22: =IF(V22=0,0,(V22*((LOG(V22))/LOG(2)))) -> 0 | Y22: 2222 | Z22: =COUNTIF(L36:L65,Y22) -> 0 | AA22: =Z22/(AB4-Z20) -> 0 | AB22: =IF(AA22=0,0,(AA22*((LOG(AA22))/LOG(2)))) -> 0 | AD22: 2222 | AE22: =COUNTIF(L66:L94,AD22) -> 0 | AF22: =AE22/(AG4-AE20) -> 0 | AG22: =IF(AF22=0,0,(AF22*((LOG(AF22))/LOG(2)))) -> 0 | AI22: 2222 | AJ22: =COUNTIF(L95:L123,AI22) -> 0 | AK22: =AJ22/(AL4-AJ20) -> 0 | AL22: =IF(AK22=0,0,(AK22*((LOG(AK22))/LOG(2)))) -> 0 | AN22: 2222 | AO22: =COUNTIF(L124:L153,AN22) -> 0 | AP22: =AO22/(AQ4-AO20) -> 0 | AQ22: =IF(AP22=0,0,(AP22*((LOG(AP22))/LOG(2)))) -> 0 | AS22: 2222 | AT22: =COUNTIF(L154:L182,AS22) -> 0 | AU22: =AT22/(AV4-AT20) -> 0 | AV22: =IF(AU22=0,0,(AU22*((LOG(AU22))/LOG(2)))) -> 0
A23: 12 | B23: 2228 | C23: 14 | D23: 2242 | E23: 13 | F23: 2248 | G23: 14 | H23: 2258 | K23: 0 | L23: 1111 | P23: =SUM(P7:P22) -> 1 | Q23: =-SUM(Q7:Q22) -> 1.342224082 | V23: =SUM(V7:V22) -> 1 | W23: =-SUM(W7:W22) -> 1.142517516 | AA23: =SUM(AA7:AA22) -> 1 | AB23: =-SUM(AB7:AB22) -> 1.146996846 | AF23: =SUM(AF7:AF22) -> 1 | AG23: =-SUM(AG7:AG22) -> 1.597000822 | AK23: =SUM(AK7:AK22) -> 1 | AL23: =-SUM(AL7:AL22) -> 1.247269866 | AP23: =SUM(AP7:AP22) -> 1 | AQ23: =-SUM(AQ7:AQ22) -> 1.225605199 | AU23: =SUM(AU7:AU22) -> 1 | AV23: =-SUM(AV7:AV22) -> 0.3712323266
A24: 12 | B24: 2360 | C24: 14 | D24: 2363 | E24: 13 | F24: 2369 | G24: 14 | H24: 2374 | K24: 0 | L24: 1111 | P24: U= | Q24: =Q23/(LOG(Q4)/LOG(2)) -> 0.1801350226 | V24: U1= | W24: =W23/(LOG(W4)/LOG(2)) -> 0.2351836118 | AA24: U2= | AB24: =AB23/(LOG(AB4)/LOG(2)) -> 0.2337522762 | AF24: U3= | AG24: =AG23/(LOG(AG4)/LOG(2)) -> 0.3287375606 | AK24: U4= | AL24: =AL23/(LOG(AL4)/LOG(2)) -> 0.2567465511 | AP24: U5= | AQ24: =AQ23/(LOG(AQ4)/LOG(2)) -> 0.2497722692 | AU24: U6= | AV24: =AV23/(LOG(AV4)/LOG(2)) -> 0.07722174307
A25: 21 | B25: 2521 | C25: 12 | D25: 2531 | E25: 13 | F25: 2535 | G25: 14 | H25: 2541 | K25: 0 | L25: 2111
A26: 12 | B26: 2709 | C26: 14 | D26: 2717 | E26: 13 | F26: 2720 | G26: 14 | H26: 2727 | K26: 0 | L26: 1111
A27: 12 | B27: 2911 | C27: 14 | D27: 2913 | E27: 24 | F27: 2923 | G27: 23 | H27: 2927 | K27: 0 | L27: 1122 | N27: Total Target Seq
A28: 12 | B28: 3028 | C28: 14 | D28: 3037 | E28: 13 | F28: 3041 | G28: 14 | H28: 3046 | K28: 0 | L28: 1111 | N28: =COUNTIF(L7:L182,G3) -> 0 | P28: 29 | Q28: 30 | R28: 29 | S28: 29 | T28: 30 | U28: 29
A29: 21 | B29: 3149 | C29: 12 | D29: 3161 | E29: 13 | F29: 3167 | G29: 14 | H29: 3172 | K29: 0 | L29: 2111 | P29: % of reinforcement given in 6 equal intervals based on number of trials
A30: 12 | B30: 3292 | C30: 14 | D30: 3295 | E30: 13 | F30: 3301 | G30: 14 | H30: 3308 | K30: 0 | L30: 1111 | P30: %_1 | Q30: %_2 | R30: %_3 | S30: %_4 | T30: %_5 | U30: %_6
A31: 12 | B31: 3453 | C31: 14 | D31: 3458 | E31: 13 | F31: 3465 | G31: 14 | H31: 3471 | K31: 0 | L31: 1111 | O31: target sequence | P31: =$G$3 -> 2212 | Q31: 2212 | R31: 2212 | S31: 2212 | T31: 2212 | U31: 2212
A32: 12 | B32: 3571 | C32: 14 | D32: 3582 | E32: 13 | F32: 3588 | G32: 14 | H32: 3594 | K32: 0 | L32: 1111 | O32: total reinforcement | P32: =U20 -> 0 | Q32: =Z20 -> 0 | R32: =AE20 -> 0 | S32: =AJ20 -> 0 | T32: =AO20 -> 0 | U32: =AT20 -> 0
A33: 12 | B33: 3766 | C33: 14 | D33: 3773 | E33: 13 | F33: 3779 | G33: 14 | H33: 3785 | K33: 0 | L33: 1111 | O33: % target
A34: 12 | B34: 3880 | C34: 14 | D34: 3886 | E34: 13 | F34: 3892 | G34: 14 | H34: 3896 | K34: 0 | L34: 1111 | O34: CCRF
A35: 12 | B35: 3992 | C35: 14 | D35: 3997 | E35: 13 | F35: 4003 | G35: 14 | H35: 4009 | K35: 0 | L35: 1111 | O35: % CCRf
A36: 12 | B36: 4119 | C36: 14 | D36: 4124 | E36: 13 | F36: 4129 | G36: 14 | H36: 4136 | K36: 0 | L36: 1111 | O36: average response rate | P36: =H35/P28 -> 138.2413793 | Q36: =(H65-H35)/Q28 -> 126.6333333 | R36: =(H94-H65)/R28 -> 132.0689655 | S36: =(H123-H94)/S28 -> 151.4482759 | T36: =(H153-H123)/T28 -> 137.2333333 | U36: =(H182-H153)/U28 -> -694.7241379
A37: 12 | B37: 4251 | C37: 14 | D37: 4259 | E37: 13 | F37: 4264 | G37: 14 | H37: 4269 | K37: 0 | L37: 1111
A38: 12 | B38: 4365 | C38: 14 | D38: 4367 | E38: 13 | F38: 4371 | G38: 14 | H38: 4378 | K38: 0 | L38: 1111
A39: 12 | B39: 4476 | C39: 14 | D39: 4482 | E39: 13 | F39: 4488 | G39: 14 | H39: 4494 | K39: 0 | L39: 1111
A40: 12 | B40: 4592 | C40: 14 | D40: 4598 | E40: 13 | F40: 4604 | G40: 14 | H40: 4611 | K40: 0 | L40: 1111
A41: 12 | B41: 4773 | C41: 14 | D41: 4777 | E41: 13 | F41: 4783 | G41: 14 | H41: 4789 | K41: 0 | L41: 1111
A42: 12 | B42: 4935 | C42: 14 | D42: 4940 | E42: 13 | F42: 4947 | G42: 14 | H42: 4953 | K42: 0 | L42: 1111
A43: 12 | B43: 5047 | C43: 23 | D43: 5061 | E43: 24 | F43: 5065 | G43: 23 | H43: 5071 | K43: 0 | L43: 1222
A44: 12 | B44: 5164 | C44: 14 | D44: 5169 | E44: 13 | F44: 5175 | G44: 14 | H44: 5181 | K44: 0 | L44: 1111
A45: 12 | B45: 5279 | C45: 14 | D45: 5285 | E45: 13 | F45: 5291 | G45: 14 | H45: 5293 | K45: 0 | L45: 1111
A46: 12 | B46: 5403 | C46: 14 | D46: 5409 | E46: 13 | F46: 5415 | G46: 14 | H46: 5422 | K46: 0 | L46: 1111
A47: 12 | B47: 5526 | C47: 14 | D47: 5531 | E47: 13 | F47: 5535 | G47: 14 | H47: 5542 | K47: 0 | L47: 1111
A48: 12 | B48: 5639 | C48: 23 | D48: 5652 | E48: 13 | F48: 5663 | G48: 14 | H48: 5668 | K48: 0 | L48: 1211
A49: 12 | B49: 5787 | C49: 14 | D49: 5794 | E49: 13 | F49: 5800 | G49: 14 | H49: 5806 | K49: 0 | L49: 1111
A50: 12 | B50: 5936 | C50: 14 | D50: 5941 | E50: 13 | F50: 5947 | G50: 14 | H50: 5953 | K50: 0 | L50: 1111
A51: 12 | B51: 6059 | C51: 14 | D51: 6065 | E51: 13 | F51: 6072 | G51: 14 | H51: 6078 | K51: 0 | L51: 1111
A52: 12 | B52: 6183 | C52: 23 | D52: 6195 | E52: 13 | F52: 6207 | G52: 14 | H52: 6212 | K52: 0 | L52: 1211
A53: 12 | B53: 6321 | C53: 14 | D53: 6327 | E53: 13 | F53: 6331 | G53: 14 | H53: 6336 | K53: 0 | L53: 1111
A54: 12 | B54: 6436 | C54: 23 | D54: 6446 | E54: 24 | F54: 6451 | G54: 23 | H54: 6456 | K54: 0 | L54: 1222
A55: 12 | B55: 6553 | C55: 14 | D55: 6565 | E55: 13 | F55: 6570 | G55: 14 | H55: 6576 | K55: 0 | L55: 1111
A56: 12 | B56: 6678 | C56: 14 | D56: 6685 | E56: 13 | F56: 6690 | G56: 14 | H56: 6696 | K56: 0 | L56: 1111
A57: 12 | B57: 6802 | C57: 14 | D57: 6806 | E57: 13 | F57: 6811 | G57: 14 | H57: 6816 | K57: 0 | L57: 1111
A58: 12 | B58: 6913 | C58: 14 | D58: 6918 | E58: 13 | F58: 6925 | G58: 14 | H58: 6930 | K58: 0 | L58: 1111
A59: 12 | B59: 7035 | C59: 23 | D59: 7049 | E59: 13 | F59: 7065 | G59: 14 | H59: 7071 | K59: 0 | L59: 1211
A60: 12 | B60: 7181 | C60: 14 | D60: 7188 | E60: 13 | F60: 7193 | G60: 14 | H60: 7199 | K60: 0 | L60: 1111
A61: 21 | B61: 7322 | C61: 12 | D61: 7332 | E61: 13 | F61: 7336 | G61: 14 | H61: 7342 | K61: 0 | L61: 2111
A62: 12 | B62: 7438 | C62: 14 | D62: 7448 | E62: 13 | F62: 7454 | G62: 14 | H62: 7460 | K62: 0 | L62: 1111
A63: 12 | B63: 7554 | C63: 14 | D63: 7559 | E63: 13 | F63: 7565 | G63: 14 | H63: 7570 | K63: 0 | L63: 1111
A64: 12 | B64: 7666 | C64: 14 | D64: 7672 | E64: 13 | F64: 7678 | G64: 14 | H64: 7685 | K64: 0 | L64: 1111
A65: 21 | B65: 7784 | C65: 12 | D65: 7796 | E65: 13 | F65: 7802 | G65: 14 | H65: 7808 | K65: 0 | L65: 2111
A66: 12 | B66: 7911 | C66: 14 | D66: 7927 | E66: 13 | F66: 7934 | G66: 14 | H66: 7940 | K66: 0 | L66: 1111
A67: 12 | B67: 8037 | C67: 23 | D67: 8053 | E67: 13 | F67: 8065 | G67: 14 | H67: 8069 | K67: 0 | L67: 1211
A68: 12 | B68: 8170 | C68: 14 | D68: 8176 | E68: 13 | F68: 8182 | G68: 14 | H68: 8189 | K68: 0 | L68: 1111
A69: 12 | B69: 8352 | C69: 14 | D69: 8359 | E69: 13 | F69: 8364 | G69: 14 | H69: 8370 | K69: 0 | L69: 1111
A70: 21 | B70: 8464 | C70: 12 | D70: 8473 | E70: 13 | F70: 8487 | G70: 14 | H70: 8493 | K70: 0 | L70: 2111
A71: 12 | B71: 8588 | C71: 14 | D71: 8597 | E71: 13 | F71: 8604 | G71: 14 | H71: 8611 | K71: 0 | L71: 1111
